Workbook

Sheet CAISSE
G1: C A I S S E | T1: VENTILATION CA SEMAINE | AG1: CHIFFRE D'AFFAIRE TTC ANNUEL | AY1: TOTAL DEPENSES
R3: Notice
B6: DATE | C6: JOUR | D6: SEMAINE | E6: MOIS | F6: CATEGORIE | G6: OBJET | H6: CODES CLIENT | I6: N° de Document | J6: DESIGNATION | K6: Type de PAIEMENT | L6: NB Réglmt | M6: CREDIT | N6: DEBIT | O6: RECETTE JOUR | P6: DEPENSES JOUR | AW6: JANVIER | AX6: FÉVRIER | AY6: MARS | AZ6: AVRIL | BA6: MAI | BB6: JUIN | BC6: JUILLET | BD6: AOÛT | BE6: SEPTEMBRE | BF6: OCTOBRE | BG6: NOVEMBRE | BH6: DÉCEMBRE
AE7: JANVIER | AF7: FÉVRIER | AG7: MARS | AH7: AVRIL | AI7: MAI | AJ7: JUIN | AK7: JUILLET | AL7: AOÛT | AM7: SEPTEMBRE | AN7: OCTOBRE | AO7: NOVEMBRE | AP7: DÉCEMBRE
B8: 2013-01-01
B9: 2013-09-27 | C9: =DATE(YEAR(B9),MONTH(B9),DAY(B9)) -> 41544 | D9: =INT(MOD(INT((B9-2)/7)+0.6,52+5/28))+1 -> 39 | E9: =IF(CaJour=0,"",UPPER(TEXT(C9,"mmmm"))) -> SEPTEMBRE | F9: Taxi | K9: Espèce | M9: 70 | O9: =IF(AND((CaJour=B9),(CACatégorie="Résultat")),IF(B8=B9,M8,0)+IF(B6=B9,M6,0),0) -> 0 | P9: =IF(AND((CaJour=B9),(CACatégorie="Résultat")),IF(B8=B9,N8,0)+IF(B6=B9,N6,0),0) -> 0 | R9: Semaine N° | T9: TOTAL | U9: Taxi | V9: Location | W9: Publicité | AD9: Espèce | AE9: =SUMPRODUCT((CaMois=AE7)*(CaMode=$AD$9)*CaCrédit) -> 100 | AF9: 0 | AG9: 0 | AH9: 0 | AI9: 0 | AJ9: 0 | AK9: 0 | AL9: 0 | AM9: 70 | AN9: 2070 | AO9: 0 | AP9: 0 | AV9: DEPENSES | AW9: =SUMPRODUCT((CaMois=AW6)*(CACatégorie="Dépense")*CaDébit) -> 0 | AX9: 0 | AY9: 0 | AZ9: 0 | BA9: 0 | BB9: 0 | BC9: 0 | BD9: 0 | BE9: 0 | BF9: 550 | BG9: 0 | BH9: 0 | BI9: =SUM(AW9:BH9) -> 550
B10: 2013-09-27 | C10: =DATE(YEAR(B10),MONTH(B10),DAY(B10)) -> 41544 | D10: 39 | E10: SEPTEMBRE | F10: Résultat | O10: =IF(AND((CaJour=B10),(CACatégorie="Résultat")),IF(B9=B10,M9,0)+IF(B8=B10,M8,0),0) -> 70 | P10: =IF(AND((CaJour=B10),(CACatégorie="Résultat")),IF(B9=B10,N9,0)+IF(B8=B10,N8,0),0) -> 0 | T10: =SUMPRODUCT((CaSem=S9)*CaCrédit) -> 0 | U10: =SUMPRODUCT((CaSem=S9)*(CACatégorie=U9)*CaCrédit) -> 0 | V10: =SUMPRODUCT((CaSem=S9)*(CACatégorie=V9)*CaCrédit) -> 0 | W10: =SUMPRODUCT((CaSem=S9)*(CACatégorie=W9)*CaCrédit) -> 0
B11: 2013-09-30 | C11: 41547 | D11: 40 | E11: SEPTEMBRE | F11: Publicité | G11: Factures | H11: PUCYC0001 | I11: F2013421 | K11: Virement | L11: R1 | M11: 1300 | O11: =IF(AND((CaJour=B11),(CACatégorie="Résultat")),IF(B10=B11,M10,0)+IF(B9=B11,M9,0)+IF(B8=B11,M8,0),0) -> 0 | P11: =IF(AND((CaJour=B11),(CACatégorie="Résultat")),IF(B10=B11,N10,0)+IF(B9=B11,N9,0)+IF(B8=B11,N8,0),0) -> 0 | AD11: Chèque | AE11: =SUMPRODUCT((CaMois=AE7)*(CaMode=$AD$11)*CaCrédit) -> 850 | AF11: 200 | AG11: 0 | AH11: 0 | AI11: 0 | AJ11: 0 | AK11: 0 | AL11: 0 | AM11: 0 | AN11: 4534 | AO11: 3350 | AP11: 800
B12: 2013-09-30 | C12: 41547 | D12: 40 | E12: SEPTEMBRE | F12: Banque | G12: Remise | K12: Virement | N12: 1400 | O12: =IF(AND((CaJour=B12),(CACatégorie="Résultat")),IF(B11=B12,M11,0)+IF(B10=B12,M10,0)+IF(B9=B12,M9,0)+IF(B8=B12,M8,0),0) -> 0 | P12: =IF(AND((CaJour=B12),(CACatégorie="Résultat")),IF(B11=B12,N11,0)+IF(B10=B12,N10,0)+IF(B9=B12,N9,0)+IF(B8=B12,N8,0),0) -> 0 | T12: Espèce | U12: Chèque | V12: CB | W12: Virement | X12: Tickets | Y12: vérif
B13: 2013-09-30 | C13: 41547 | D13: 40 | E13: SEPTEMBRE | F13: Résultat | O13: =IF(AND((CaJour=B13),(CACatégorie="Résultat")),IF(B12=B13,M12,0)+IF(B11=B13,M11,0)+IF(B10=B13,M10,0)+IF(B9=B13,M9,0),0) -> 1300 | P13: =IF(AND((CaJour=B13),(CACatégorie="Résultat")),IF(B12=B13,N12,0)+IF(B11=B13,N11,0)+IF(B10=B13,N10,0)+IF(B9=B13,N9,0),0) -> 1400 | T13: =SUMPRODUCT((CaSem=S9)*(CaMode="Espèce")*CaCrédit) -> 0 | U13: =SUMPRODUCT((CaSem=S9)*(CaMode=U12)*CaCrédit) -> 0 | V13: =SUMPRODUCT((CaSem=S9)*(CaMode=V12)*CaCrédit) -> 0 | W13: =SUMPRODUCT((CaSem=S9)*(CaMode=W12)*CaCrédit) -> 0 | X13: =SUMPRODUCT((CaSem=S9)*(CaMode=X12)*CaCrédit) -> 0 | Y13: =SUM(T13:X14) -> 0 | AD13: CB | AE13: =SUMPRODUCT((CaMois=AE7)*(CaMode=$AD$13)*CaCrédit) -> 0 | AF13: 150 | AG13: 0 | AH13: 0 | AI13: 0 | AJ13: 0 | AK13: 0 | AL13: 0 | AM13: 0 | AN13: 1908 | AO13: 0 | AP13: 0
B14: 2013-10-02 | C14: 41549 | D14: 40 | E14: OCTOBRE | F14: Location | G14: Factures | J14: Vélo1 | K14: Chèque | M14: 90 | O14: =IF(AND((CaJour=B14),(CACatégorie="Résultat")),IF(B13=B14,M13,0)+IF(B12=B14,M12,0)+IF(B11=B14,M11,0)+IF(B10=B14,M10,0)+IF(B9=B14,M9,0),0) -> 0 | P14: =IF(AND((CaJour=B14),(CACatégorie="Résultat")),IF(B13=B14,N13,0)+IF(B12=B14,N12,0)+IF(B11=B14,N11,0)+IF(B10=B14,N10,0)+IF(B9=B14,N9,0),0) -> 0 | Y14: =SUMPRODUCT((CaSem=S9)*CaRecJour) -> 0
B15: 2013-10-02 | C15: 41549 | D15: 40 | E15: OCTOBRE | F15: Résultat | O15: =IF(AND((CaJour=B15),(CACatégorie="Résultat")),IF(B14=B15,M14,0)+IF(B13=B15,M13,0)+IF(B12=B15,M12,0)+IF(B11=B15,M11,0)+IF(B10=B15,M10,0)+IF(B9=B15,M9,0),0) -> 90 | P15: =IF(AND((CaJour=B15),(CACatégorie="Résultat")),IF(B14=B15,N14,0)+IF(B13=B15,N13,0)+IF(B12=B15,N12,0)+IF(B11=B15,N11,0)+IF(B10=B15,N10,0)+IF(B9=B15,N9,0),0) -> 0 | R15: FdC | T15: Remise esp | U15: Remise chq | V15: Remise CB | W15: Rem Virmt | X15: Tickets | Y15: TOTAL | Z15: Report | AD15: Virement | AE15: =SUMPRODUCT((CaMois=AE7)*(CaMode=$AD$15)*CaCrédit) -> 0 | AF15: 0 | AG15: 0 | AH15: 0 | AI15: 0 | AJ15: 0 | AK15: 0 | AL15: 0 | AM15: 1300 | AN15: 0 | AO15: 0 | AP15: 0
B16: 2013-10-03 | C16: 41550 | D16: 40 | E16: OCTOBRE | F16: Taxi | K16: Espèce | M16: 50 | O16: =IF(AND((CaJour=B16),(CACatégorie="Résultat")),IF(B15=B16,M15,0)+IF(B14=B16,M14,0)+IF(B13=B16,M13,0)+IF(B12=B16,M12,0)+IF(B11=B16,M11,0)+IF(B10=B16,M10,0)+IF(B9=B16,M9,0),0) -> 0 | P16: =IF(AND((CaJour=B16),(CACatégorie="Résultat")),IF(B15=B16,N15,0)+IF(B14=B16,N14,0)+IF(B13=B16,N13,0)+IF(B12=B16,N12,0)+IF(B11=B16,N11,0)+IF(B10=B16,N10,0)+IF(B9=B16,N9,0),0) -> 0 | T16: =SUMPRODUCT((CaSem=S9)*(CACatégorie="Banque")*(CaMode=T12)*CaDébit) -> 0 | U16: =SUMPRODUCT((CaSem=S9)*(CACatégorie="Banque")*(CaMode=U12)*CaDébit) -> 0 | V16: =SUMPRODUCT((CaSem=S9)*(CaMode=V12)*CaDébit) -> 0 | W16: =SUMPRODUCT((CaSem=S9)*(CaMode=W12)*CaDébit) -> 0 | X16: =SUMPRODUCT((CaSem=S9)*(CaMode=X12)*CaDébit) -> 0 | Y16: =SUM(T16:X16) -> 0 | Z16: =(T10+R16)-Y16 -> 0
B17: 2013-10-03 | C17: 41550 | D17: 40 | E17: OCTOBRE | F17: Taxi | K17: Tickets | M17: 10 | O17: =IF(AND((CaJour=B17),(CACatégorie="Résultat")),IF(B16=B17,M16,0)+IF(B15=B17,M15,0)+IF(B14=B17,M14,0)+IF(B13=B17,M13,0)+IF(B12=B17,M12,0)+IF(B11=B17,M11,0)+IF(B10=B17,M10,0)+IF(B9=B17,M9,0),0) -> 0 | P17: =IF(AND((CaJour=B17),(CACatégorie="Résultat")),IF(B16=B17,N16,0)+IF(B15=B17,N15,0)+IF(B14=B17,N14,0)+IF(B13=B17,N13,0)+IF(B12=B17,N12,0)+IF(B11=B17,N11,0)+IF(B10=B17,N10,0)+IF(B9=B17,N9,0),0) -> 0
B18: 2013-10-03 | C18: 41550 | D18: 40 | E18: OCTOBRE | F18: Taxi | K18: Chèque | M18: 46 | O18: =IF(AND((CaJour=B18),(CACatégorie="Résultat")),IF(B17=B18,M17,0)+IF(B16=B18,M16,0)+IF(B15=B18,M15,0)+IF(B14=B18,M14,0)+IF(B13=B18,M13,0)+IF(B12=B18,M12,0)+IF(B11=B18,M11,0)+IF(B10=B18,M10,0)+IF(B9=B18,M9,0),0) -> 0 | P18: =IF(AND((CaJour=B18),(CACatégorie="Résultat")),IF(B17=B18,N17,0)+IF(B16=B18,N16,0)+IF(B15=B18,N15,0)+IF(B14=B18,N14,0)+IF(B13=B18,N13,0)+IF(B12=B18,N12,0)+IF(B11=B18,N11,0)+IF(B10=B18,N10,0)+IF(B9=B18,N9,0),0) -> 0 | AD18: TOTAL | AE18: =AE9+AE11+AE13+AE15 -> 950 | AF18: =AF9+AF11+AF13+AF15 -> 350 | AG18: =AG9+AG11+AG13+AG15 -> 0 | AH18: 0 | AI18: 0 | AJ18: 0 | AK18: 0 | AL18: 0 | AM18: 1370 | AN18: 8512 | AO18: 3350 | AP18: 800
B19: 2013-10-03 | C19: 41550 | D19: 40 | E19: OCTOBRE | F19: Publicité | G19: Factures | H19: PUCYC0001 | I19: F2013421 | K19: Chèque | L19: R2 | M19: 2300 | O19: =IF(AND((CaJour=B19),(CACatégorie="Résultat")),IF(B18=B19,M18,0)+IF(B17=B19,M17,0)+IF(B16=B19,M16,0)+IF(B15=B19,M15,0)+IF(B14=B19,M14,0)+IF(B13=B19,M13,0)+IF(B12=B19,M12,0)+IF(B11=B19,M11,0)+IF(B10=B19,M10,0)+IF(B9=B19,M9,0),0) -> 0 | P19: =IF(AND((CaJour=B19),(CACatégorie="Résultat")),IF(B18=B19,N18,0)+IF(B17=B19,N17,0)+IF(B16=B19,N16,0)+IF(B15=B19,N15,0)+IF(B14=B19,N14,0)+IF(B13=B19,N13,0)+IF(B12=B19,N12,0)+IF(B11=B19,N11,0)+IF(B10=B19,N10,0)+IF(B9=B19,N9,0)+IF(B9=B20,N9,0),0) -> 0 | R19: Semaine N° | T19: TOTAL | U19: Taxi | V19: Location | W19: Publicité
B20: 2013-10-03 | C20: 41550 | D20: 40 | E20: OCTOBRE | F20: Divers | K20: Tickets | N20: 10 | O20: =IF(AND((CaJour=B20),(CACatégorie="Résultat")),IF(B19=B20,M19,0)+IF(B18=B20,M18,0)+IF(B17=B20,M17,0)+IF(B16=B20,M16,0)+IF(B15=B20,M15,0)+IF(B14=B20,M14,0)+IF(B13=B20,M13,0)+IF(B12=B20,M12,0)+IF(B11=B20,M11,0)+IF(B10=B20,M10,0)+IF(B9=B20,M9,0),0) -> 0 | P20: =IF(AND((CaJour=B20),(CACatégorie="Résultat")),IF(B19=B20,N19,0)+IF(B18=B20,N18,0)+IF(B17=B20,N17,0)+IF(B16=B20,N16,0)+IF(B15=B20,N15,0)+IF(B14=B20,N14,0)+IF(B13=B20,N13,0)+IF(B12=B20,N12,0)+IF(B11=B20,N11,0)+IF(B10=B20,N10,0)+IF(B9=B21,N9,0),0) -> 0 | T20: =SUMPRODUCT((CaSem=S19)*(CaSem>0)*CaCrédit) -> 0 | U20: =SUMPRODUCT((CaSem=S19)*(CACatégorie=U19)*CaCrédit) -> 0 | V20: =SUMPRODUCT((CaSem=S19)*(CACatégorie=V19)*CaCrédit) -> 0 | W20: =SUMPRODUCT((CaSem=S19)*(CACatégorie=W19)*CaCrédit) -> 0 | AC20: Clic ici > > > | AD20: Location | AE20: =SUMPRODUCT((CaMois=AE7)*(CACatégorie=$AD$20)*CaCrédit) -> 240 | AF20: 0 | AG20: 0 | AH20: 0 | AI20: 0 | AJ20: 0 | AK20: 0 | AL20: 0 | AM20: 0 | AN20: 190 | AO20: 0 | AP20: 0
B21: 2013-10-03 | C21: 41550 | D21: 40 | E21: OCTOBRE | F21: Résultat | O21: =IF(AND((CaJour=B21),(CACatégorie="Résultat")),IF(B20=B21,M20,0)+IF(B19=B21,M19,0)+IF(B18=B21,M18,0)+IF(B17=B21,M17,0)+IF(B16=B21,M16,0)+IF(B15=B21,M15,0)+IF(B14=B21,M14,0)+IF(B13=B21,M13,0)+IF(B12=B21,M12,0)+IF(B11=B21,M11,0)+IF(B10=B21,M10,0)+IF(B9=B21,M9,0),0) -> 2406 | P21: =IF(AND((CaJour=B21),(CACatégorie="Résultat")),IF(B20=B21,N20,0)+IF(B19=B21,N19,0)+IF(B18=B21,N18,0)+IF(B17=B21,N17,0)+IF(B16=B21,N16,0)+IF(B15=B21,N15,0)+IF(B14=B21,N14,0)+IF(B13=B21,N13,0)+IF(B12=B21,N12,0)+IF(B11=B21,N11,0)+IF(B10=B21,N10,0)+IF(B9=B21,N9,0),0) -> 10
B22: 2013-10-04 | C22: 41551 | D22: 40 | E22: OCTOBRE | F22: Taxi | K22: Espèce | M22: 20 | O22: =IF(AND((CaJour=B22),(CACatégorie="Résultat")),IF(B21=B22,M21,0)+IF(B20=B22,M20,0)+IF(B19=B22,M19,0)+IF(B18=B22,M18,0)+IF(B17=B22,M17,0)+IF(B16=B22,M16,0)+IF(B15=B22,M15,0)+IF(B14=B22,M14,0)+IF(B13=B22,M13,0)+IF(B12=B22,M12,0)+IF(B11=B22,M11,0)+IF(B10=B22,M10,0)+IF(B9=B22,M9,0),0) -> 0 | P22: =IF(AND((CaJour=B22),(CACatégorie="Résultat")),IF(B21=B22,N21,0)+IF(B20=B22,N20,0)+IF(B19=B22,N19,0)+IF(B18=B22,N18,0)+IF(B17=B22,N17,0)+IF(B16=B22,N16,0)+IF(B15=B22,N15,0)+IF(B14=B22,N14,0)+IF(B13=B22,N13,0)+IF(B12=B22,N12,0)+IF(B11=B22,N11,0)+IF(B10=B22,N10,0)+IF(B9=B22,N9,0),0) -> 0 | T22: Espèce | U22: Chèque | V22: CB | W22: Virement | X22: Tickets | Y22: vérif
B23: 2013-10-04 | C23: 41551 | D23: 40 | E23: OCTOBRE | F23: Taxi | K23: Chèque | M23: 78 | O23: =IF(AND((CaJour=B23),(CACatégorie="Résultat")),IF(B22=B23,M22,0)+IF(B21=B23,M21,0)+IF(B20=B23,M20,0)+IF(B19=B23,M19,0)+IF(B18=B23,M18,0)+IF(B17=B23,M17,0)+IF(B16=B23,M16,0)+IF(B15=B23,M15,0)+IF(B14=B23,M14,0)+IF(B13=B23,M13,0)+IF(B12=B23,M12,0)+IF(B11=B23,M11,0)+IF(B10=B23,M10,0)+IF(B9=B23,M9,0),0) -> 0 | P23: =IF(AND((CaJour=B23),(CACatégorie="Résultat")),IF(B22=B23,N22,0)+IF(B21=B23,N21,0)+IF(B20=B23,N20,0)+IF(B19=B23,N19,0)+IF(B18=B23,N18,0)+IF(B17=B23,N17,0)+IF(B16=B23,N16,0)+IF(B15=B23,N15,0)+IF(B14=B23,N14,0)+IF(B13=B23,N13,0)+IF(B12=B23,N12,0)+IF(B11=B23,N11,0)+IF(B10=B23,N10,0)+IF(B9=B23,N9,0),0) -> 0 | T23: =SUMPRODUCT((CaSem=S19)*(CaMode="Espèce")*CaCrédit) -> 0 | U23: =SUMPRODUCT((CaSem=S19)*(CaMode=U22)*CaCrédit) -> 0 | V23: =SUMPRODUCT((CaSem=S19)*(CaMode=V22)*CaCrédit) -> 0 | W23: =SUMPRODUCT((CaSem=S19)*(CaMode=W22)*CaCrédit) -> 0 | X23: =SUMPRODUCT((CaSem=S19)*(CaMode=X22)*CaCrédit) -> 0 | Y23: =SUM(T23:X24) -> 0
B24: 2013-10-04 | C24: 41551 | D24: 40 | E24: OCTOBRE | F24: Résultat | O24: =IF(AND((CaJour=B24),(CACatégorie="Résultat")),IF(B23=B24,M23,0)+IF(B22=B24,M22,0)+IF(B21=B24,M21,0)+IF(B20=B24,M20,0)+IF(B19=B24,M19,0)+IF(B18=B24,M18,0)+IF(B17=B24,M17,0)+IF(B16=B24,M16,0)+IF(B15=B24,M15,0)+IF(B14=B24,M14,0)+IF(B13=B24,M13,0)+IF(B12=B24,M12,0)+IF(B11=B24,M11,0)+IF(B10=B24,M10,0)+IF(B9=B24,M9,0),0) -> 98 | P24: =IF(AND((CaJour=B24),(CACatégorie="Résultat")),IF(B23=B24,N23,0)+IF(B22=B24,N22,0)+IF(B21=B24,N21,0)+IF(B20=B24,N20,0)+IF(B19=B24,N19,0)+IF(B18=B24,N18,0)+IF(B17=B24,N17,0)+IF(B16=B24,N16,0)+IF(B15=B24,N15,0)+IF(B14=B24,N14,0)+IF(B13=B24,N13,0)+IF(B12=B24,N12,0)+IF(B11=B24,N11,0)+IF(B10=B24,N10,0)+IF(B9=B24,N9,0),0) -> 0 | Y24: =SUMPRODUCT((CaSem=S19)*CaRecJour) -> 0
B25: 2013-10-05 | C25: 41552 | D25: 40 | E25: OCTOBRE | F25: Taxi | K25: Espèce | M25: 65 | O25: =IF(AND((CaJour=B25),(CACatégorie="Résultat")),IF(B24=B25,M24,0)+IF(B23=B25,M23,0)+IF(B22=B25,M22,0)+IF(B21=B25,M21,0)+IF(B20=B25,M20,0)+IF(B19=B25,M19,0)+IF(B18=B25,M18,0)+IF(B17=B25,M17,0)+IF(B16=B25,M16,0)+IF(B15=B25,M15,0)+IF(B14=B25,M14,0)+IF(B13=B25,M13,0)+IF(B12=B25,M12,0)+IF(B11=B25,M11,0)+IF(B10=B25,M10,0)+IF(B9=B25,M9,0),0) -> 0 | P25: =IF(AND((CaJour=B25),(CACatégorie="Résultat")),IF(B24=B25,N24,0)+IF(B23=B25,N23,0)+IF(B22=B25,N22,0)+IF(B21=B25,N21,0)+IF(B20=B25,N20,0)+IF(B19=B25,N19,0)+IF(B18=B25,N18,0)+IF(B17=B25,N17,0)+IF(B16=B25,N16,0)+IF(B15=B25,N15,0)+IF(B14=B25,N14,0)+IF(B13=B25,N13,0)+IF(B12=B25,N12,0)+IF(B11=B25,N11,0)+IF(B10=B25,N10,0)+IF(B9=B25,N9,0),0) -> 0 | R25: FdC | T25: Remise esp | U25: Remise chq | V25: Remise CB | W25: Rem Virmt | X25: Tickets | Y25: TOTAL | Z25: Report
B26: 2013-10-05 | C26: 41552 | D26: 40 | E26: OCTOBRE | F26: Résultat | O26: =IF(AND((CaJour=B26),(CACatégorie="Résultat")),IF(B25=B26,M25,0)+IF(B24=B26,M24,0)+IF(B23=B26,M23,0)+IF(B22=B26,M22,0)+IF(B21=B26,M21,0)+IF(B20=B26,M20,0)+IF(B19=B26,M19,0)+IF(B18=B26,M18,0)+IF(B17=B26,M17,0)+IF(B16=B26,M16,0)+IF(B15=B26,M15,0)+IF(B14=B26,M14,0)+IF(B13=B26,M13,0)+IF(B12=B26,M12,0)+IF(B11=B26,M11,0)+IF(B10=B26,M10,0)+IF(B9=B26,M9,0),0) -> 65 | P26: =IF(AND((CaJour=B26),(CACatégorie="Résultat")),IF(B25=B26,N25,0)+IF(B24=B26,N24,0)+IF(B23=B26,N23,0)+IF(B22=B26,N22,0)+IF(B21=B26,N21,0)+IF(B20=B26,N20,0)+IF(B19=B26,N19,0)+IF(B18=B26,N18,0)+IF(B17=B26,N17,0)+IF(B16=B26,N16,0)+IF(B15=B26,N15,0)+IF(B14=B26,N14,0)+IF(B13=B26,N13,0)+IF(B12=B26,N12,0)+IF(B11=B26,N11,0)+IF(B10=B26,N10,0)+IF(B9=B26,N9,0),0) -> 0 | R26: =Z16 -> 0 | T26: =SUMPRODUCT((CaSem=S19)*(CACatégorie="Banque")*(CaMode=T22)*CaDébit) -> 0 | U26: =SUMPRODUCT((CaSem=S19)*(CACatégorie="Banque")*(CaMode=U22)*CaDébit) -> 0 | V26: =SUMPRODUCT((CaSem=S19)*(CaMode=V22)*CaDébit) -> 0 | W26: =SUMPRODUCT((CaSem=S19)*(CaMode=W22)*CaDébit) -> 0 | X26: =SUMPRODUCT((CaSem=S19)*(CaMode=X22)*CaDébit) -> 0 | Y26: =SUM(T26:X26) -> 0 | Z26: =(T20+R26)-Y26 -> 0
B27: 2013-10-06 | C27: 41553 | D27: 40 | E27: OCTOBRE | F27: Taxi | K27: CB | M27: 108 | O27: =IF(AND((CaJour=B27),(CACatégorie="Résultat")),IF(B26=B27,M26,0)+IF(B25=B27,M25,0)+IF(B24=B27,M24,0)+IF(B23=B27,M23,0)+IF(B22=B27,M22,0)+IF(B21=B27,M21,0)+IF(B20=B27,M20,0)+IF(B19=B27,M19,0)+IF(B18=B27,M18,0)+IF(B17=B27,M17,0)+IF(B16=B27,M16,0)+IF(B15=B27,M15,0)+IF(B14=B27,M14,0)+IF(B13=B27,M13,0)+IF(B12=B27,M12,0)+IF(B11=B27,M11,0)+IF(B10=B27,M10,0)+IF(B9=B27,M9,0),0) -> 0 | P27: =IF(AND((CaJour=B27),(CACatégorie="Résultat")),IF(B26=B27,N26,0)+IF(B25=B27,N25,0)+IF(B24=B27,N24,0)+IF(B23=B27,N23,0)+IF(B22=B27,N22,0)+IF(B21=B27,N21,0)+IF(B20=B27,N20,0)+IF(B19=B27,N19,0)+IF(B18=B27,N18,0)+IF(B17=B27,N17,0)+IF(B16=B27,N16,0)+IF(B15=B27,N15,0)+IF(B14=B27,N14,0)+IF(B13=B27,N13,0)+IF(B12=B27,N12,0)+IF(B11=B27,N11,0)+IF(B10=B27,N10,0)+IF(B9=B27,N9,0),0) -> 0
B28: 2013-10-06 | C28: 41553 | D28: 40 | E28: OCTOBRE | F28: Banque | G28: Remise | H28: CL002 | K28: CB | N28: 108 | O28: =IF(AND((CaJour=B28),(CACatégorie="Résultat")),IF(B27=B28,M27,0)+IF(B26=B28,M26,0)+IF(B25=B28,M25,0)+IF(B24=B28,M24,0)+IF(B23=B28,M23,0)+IF(B22=B28,M22,0)+IF(B21=B28,M21,0)+IF(B20=B28,M20,0)+IF(B19=B28,M19,0)+IF(B18=B28,M18,0)+IF(B17=B28,M17,0)+IF(B16=B28,M16,0)+IF(B15=B28,M15,0)+IF(B14=B28,M14,0)+IF(B13=B28,M13,0)+IF(B12=B28,M12,0)+IF(B11=B28,M11,0)+IF(B10=B28,M10,0)+IF(B9=B28,M9,0),0) -> 0 | P28: =IF(AND((CaJour=B28),(CACatégorie="Résultat")),IF(B27=B28,N27,0)+IF(B26=B28,N26,0)+IF(B25=B28,N25,0)+IF(B24=B28,N24,0)+IF(B23=B28,N23,0)+IF(B22=B28,N22,0)+IF(B21=B28,N21,0)+IF(B20=B28,N20,0)+IF(B19=B28,N19,0)+IF(B18=B28,N18,0)+IF(B17=B28,N17,0)+IF(B16=B28,N16,0)+IF(B15=B28,N15,0)+IF(B14=B28,N14,0)+IF(B13=B28,N13,0)+IF(B12=B28,N12,0)+IF(B11=B28,N11,0)+IF(B10=B28,N10,0)+IF(B9=B28,N9,0),0) -> 0
B29: 2013-10-06 | C29: 41553 | D29: 40 | E29: OCTOBRE | F29: Résultat | O29: =IF(AND((CaJour=B29),(CACatégorie="Résultat")),IF(B28=B29,M28,0)+IF(B27=B29,M27,0)+IF(B26=B29,M26,0)+IF(B25=B29,M25,0)+IF(B24=B29,M24,0)+IF(B23=B29,M23,0)+IF(B22=B29,M22,0)+IF(B21=B29,M21,0)+IF(B20=B29,M20,0)+IF(B19=B29,M19,0)+IF(B18=B29,M18,0)+IF(B17=B29,M17,0)+IF(B16=B29,M16,0)+IF(B15=B29,M15,0)+IF(B14=B29,M14,0)+IF(B13=B29,M13,0)+IF(B12=B29,M12,0)+IF(B11=B29,M11,0)+IF(B10=B29,M10,0)+IF(B9=B29,M9,0),0) -> 108 | P29: =IF(AND((CaJour=B29),(CACatégorie="Résultat")),IF(B28=B29,N28,0)+IF(B27=B29,N27,0)+IF(B26=B29,N26,0)+IF(B25=B29,N25,0)+IF(B24=B29,N24,0)+IF(B23=B29,N23,0)+IF(B22=B29,N22,0)+IF(B21=B29,N21,0)+IF(B20=B29,N20,0)+IF(B19=B29,N19,0)+IF(B18=B29,N18,0)+IF(B17=B29,N17,0)+IF(B16=B29,N16,0)+IF(B15=B29,N15,0)+IF(B14=B29,N14,0)+IF(B13=B29,N13,0)+IF(B12=B29,N12,0)+IF(B11=B29,N11,0)+IF(B10=B29,N10,0)+IF(B9=B29,N9,0),0) -> 108 | R29: Semaine N° | T29: TOTAL | U29: Taxi | V29: Location | W29: Publicité
B30: 2013-10-07 | C30: 41554 | D30: 41 | E30: OCTOBRE | F30: Banque | G30: Remise | K30: Espèce | N30: 150 | O30: 0 | P30: 0 | T30: =SUMPRODUCT((CaSem=S29)*(CaSem>0)*CaCrédit) -> 0 | U30: =SUMPRODUCT((CaSem=S29)*(CACatégorie=U29)*CaCrédit) -> 0 | V30: =SUMPRODUCT((CaSem=S29)*(CACatégorie=V29)*CaCrédit) -> 0 | W30: =SUMPRODUCT((CaSem=S29)*(CACatégorie=W29)*CaCrédit) -> 0
B31: 2013-10-07 | C31: 41554 | D31: 41 | E31: OCTOBRE | F31: Banque | G31: Remise | K31: Chèque | N31: 734 | O31: 0 | P31: 0
B32: 2013-10-07 | C32: 41554 | D32: 41 | E32: OCTOBRE | F32: Taxi | K32: Espèce | M32: 85 | O32: 0 | P32: 0 | T32: Espèce | U32: Chèque | V32: CB | W32: Virement | X32: Tickets | Y32: vérif
B33: 2013-10-07 | C33: =DATE(YEAR(B33),MONTH(B33),DAY(B33)) -> 41554 | D33: =INT(MOD(INT((B33-2)/7)+0.6,52+5/28))+1 -> 41 | E33: OCTOBRE | F33: Résultat | O33: 85 | P33: 884 | T33: =SUMPRODUCT((CaSem=S29)*(CaMode="Espèce")*CaCrédit) -> 0 | U33: =SUMPRODUCT((CaSem=S29)*(CaMode=U32)*CaCrédit) -> 0 | V33: =SUMPRODUCT((CaSem=S29)*(CaMode=V32)*CaCrédit) -> 0 | W33: =SUMPRODUCT((CaSem=S29)*(CaMode=W32)*CaCrédit) -> 0 | X33: =SUMPRODUCT((CaSem=S29)*(CaMode=X32)*CaCrédit) -> 0 | Y33: =SUM(T33:X34) -> 0
B34: 2013-10-06 | C34: 41553 | D34: 40 | E34: OCTOBRE | F34: Publicité | G34: Factures | K34: Espèce | M34: 1850 | O34: 0 | P34: 0 | Y34: =SUMPRODUCT((CaSem=S29)*CaRecJour) -> 0
B35: 2013-10-10 | C35: 41557 | D35: 41 | E35: OCTOBRE | F35: Résultat | O35: 0 | P35: 0 | R35: FdC | T35: Remise esp | U35: Remise chq | V35: Remise CB | W35: Rem Virmt | X35: Tickets | Y35: TOTAL | Z35: Report
B36: 2013-10-11 | C36: 41558 | D36: 41 | E36: OCTOBRE | F36: Taxi | K36: Chèque | M36: 500 | O36: 0 | P36: 0 | R36: =Z26 -> 0 | T36: =SUMPRODUCT((CaSem=S29)*(CACatégorie="Banque")*(CaMode=T32)*CaDébit) -> 0 | U36: =SUMPRODUCT((CaSem=S29)*(CACatégorie="Banque")*(CaMode=U32)*CaDébit) -> 0 | V36: =SUMPRODUCT((CaSem=S29)*(CaMode=V32)*CaDébit) -> 0 | W36: =SUMPRODUCT((CaSem=S29)*(CaMode=W32)*CaDébit) -> 0 | X36: =SUMPRODUCT((CaSem=S29)*(CaMode=X32)*CaDébit) -> 0 | Y36: =SUM(T36:X36) -> 0 | Z36: =(T30+R36)-Y36 -> 0
B37: 2013-10-11 | C37: 41558 | D37: 41 | E37: OCTOBRE | F37: Résultat | O37: 500 | P37: 0
B38: 2013-10-12 | C38: 41559 | D38: 41 | E38: OCTOBRE | F38: Publicité | G38: Factures | H38: PUCYC0001 | I38: f2013421 | K38: CB | M38: 700 | O38: 0 | P38: 0 | AD38: Objectifs
B39: 2013-10-12 | C39: 41559 | D39: 41 | E39: OCTOBRE | F39: Banque | G39: Remise | K39: CB | N39: 500 | O39: 0 | P39: 0 | R39: Semaine N° | T39: TOTAL | U39: Taxi | V39: Location | W39: Publicité | AD39: taxi | AE39: 780 | AF39: 390 | AG39: 780 | AH39: 1560 | AI39: 1560 | AJ39: =390+1560 -> 1950 | AK39: =390+1560 -> 1950 | AL39: 1560 | AM39: 1560 | AN39: 780 | AO39: 390 | AP39: 780
B40: 2013-10-12 | C40: 41559 | D40: 41 | E40: OCTOBRE | F40: Banque | G40: Remise | K40: Espèce | N40: 1500 | O40: 0 | P40: 0 | T40: =SUMPRODUCT((CaSem=S39)*(CaSem>0)*CaCrédit) -> 0 | U40: =SUMPRODUCT((CaSem=S39)*(CACatégorie=U39)*CaCrédit) -> 0 | V40: =SUMPRODUCT((CaSem=S39)*(CACatégorie=V39)*CaCrédit) -> 0 | W40: =SUMPRODUCT((CaSem=S39)*(CACatégorie=W39)*CaCrédit) -> 0 | AD40: pub 1+2 | AE40: =1040+520 -> 1560 | AF40: =1040+1040 -> 2080 | AG40: =1040+1040 -> 2080 | AH40: =2080+1040 -> 3120 | AI40: =2080+1040 -> 3120 | AJ40: =2080+1040 -> 3120 | AK40: =2080+1040 -> 3120 | AL40: =2080+1040 -> 3120 | AM40: =2080+520 -> 2600 | AN40: =2080 -> 2080 | AO40: 0 | AP40: =520+520 -> 1040
B41: 2013-10-12 | C41: 41559 | D41: 41 | E41: OCTOBRE | F41: Banque | G41: Remise | K41: Chèque | N41: 200 | O41: 0 | P41: 0 | AD41: cyclopolitain | AF41: 0 | AG41: 3000 | AN41: 0
B42: 2013-10-12 | C42: 41559 | D42: 41 | E42: OCTOBRE | F42: Résultat | O42: 700 | P42: 2200 | T42: Espèce | U42: Chèque | V42: CB | W42: Virement | X42: Tickets | Y42: vérif | AD42: loc2 | AE42: 180 | AF42: 180 | AG42: 360 | AH42: 420 | AI42: 480 | AJ42: 480 | AK42: 480 | AL42: 420 | AM42: 360 | AN42: 180 | AO42: 0 | AP42: 180
B43: 2013-10-17 | C43: 41564 | D43: 42 | E43: OCTOBRE | F43: Dépense | G43: Factures | H43: PU0020 | K43: Espèce | N43: 300 | O43: 0 | P43: 0 | T43: =SUMPRODUCT((CaSem=S39)*(CaMode="Espèce")*CaCrédit) -> 0 | U43: =SUMPRODUCT((CaSem=S39)*(CaMode=U42)*CaCrédit) -> 0 | V43: =SUMPRODUCT((CaSem=S39)*(CaMode=V42)*CaCrédit) -> 0 | W43: =SUMPRODUCT((CaSem=S39)*(CaMode=W42)*CaCrédit) -> 0 | X43: =SUMPRODUCT((CaSem=S39)*(CaMode=X42)*CaCrédit) -> 0 | Y43: =SUM(T43:X44) -> 0
B44: 2013-10-17 | C44: 41564 | D44: 42 | E44: OCTOBRE | F44: Dépense | G44: Factures | H44: CL005 | K44: Espèce | N44: 250 | O44: 0 | P44: 0 | Y44: =SUMPRODUCT((CaSem=S39)*CaRecJour) -> 0 | AE44: =AE39+AE40+AE41+AE42 -> 2520 | AF44: =AF39+AF40+AF41+AF42 -> 2650 | AG44: 6220 | AH44: 5100 | AI44: 5160 | AJ44: 5550 | AK44: 5550 | AL44: 5100 | AM44: 4520 | AN44: 3040 | AO44: 390 | AP44: 2000
B45: 2013-10-17 | C45: 41564 | D45: 42 | E45: OCTOBRE | F45: Résultat | O45: 0 | P45: 550 | R45: FdC | T45: Remise esp | U45: Remise chq | V45: Remise CB | W45: Rem Virmt | X45: Tickets | Y45: TOTAL | Z45: Report
B46: 2013-10-19 | C46: 41566 | D46: 42 | E46: OCTOBRE | F46: Publicité | O46: 0 | P46: 0 | R46: =Z36 -> 0 | T46: =SUMPRODUCT((CaSem=S39)*(CACatégorie="Banque")*(CaMode=T42)*CaDébit) -> 0 | U46: =SUMPRODUCT((CaSem=S39)*(CACatégorie="Banque")*(CaMode=U42)*CaDébit) -> 0 | V46: =SUMPRODUCT((CaSem=S39)*(CaMode=V42)*CaDébit) -> 0 | W46: =SUMPRODUCT((CaSem=S39)*(CaMode=W42)*CaDébit) -> 0 | X46: =SUMPRODUCT((CaSem=S39)*(CaMode=X42)*CaDébit) -> 0 | Y46: =SUM(T46:X46) -> 0 | Z46: =(T40+R46)-Y46 -> 0
B47: 2013-10-19 | C47: 41566 | D47: 42 | E47: OCTOBRE | F47: Location | J47: Vélo1 | M47: 100 | O47: 0 | P47: 0
B48: 2014-01-31 | C48: 41670 | D48: 5 | E48: JANVIER | F48: Taxi | K48: Espèce | M48: 100 | O48: 0 | P48: 0
B49: 2014-01-31 | C49: 41670 | D49: 5 | E49: JANVIER | F49: Résultat | K49: Résultat | O49: 100 | P49: 0 | R49: Semaine N° | T49: TOTAL | U49: Taxi | V49: Location | W49: Publicité
B50: 2014-02-01 | C50: 41671 | D50: 5 | E50: FÉVRIER | F50: Taxi | K50: Chèque | M50: 200 | O50: 0 | P50: 0 | T50: =SUMPRODUCT((CaSem=S49)*(CaSem>0)*CaCrédit) -> 0 | U50: =SUMPRODUCT((CaSem=S49)*(CACatégorie=U49)*CaCrédit) -> 0 | V50: =SUMPRODUCT((CaSem=S49)*(CACatégorie=V49)*CaCrédit) -> 0 | W50: =SUMPRODUCT((CaSem=S49)*(CACatégorie=W49)*CaCrédit) -> 0
B51: 2013-02-01 | C51: 41306 | D51: 5 | E51: FÉVRIER | F51: Taxi | K51: CB | M51: 150 | O51: 0 | P51: 0
B52: 2013-01-04 | C52: 41278 | D52: 1 | E52: JANVIER | F52: Location | J52: Vélo2 | M52: 240 | O52: 0 | P52: 0 | T52: Espèce | U52: Chèque | V52: CB | W52: Virement | X52: Tickets | Y52: vérif
B53: 2013-10-01 | C53: 41548 | D53: 40 | E53: OCTOBRE | F53: Publicité | G53: Factures | H53: PUAPF002 | I53: F2013682 | K53: Chèque | L53: R1 | M53: 520 | O53: 0 | P53: 0 | T53: =SUMPRODUCT((CaSem=S49)*(CaMode="Espèce")*CaCrédit) -> 0 | U53: =SUMPRODUCT((CaSem=S49)*(CaMode=U52)*CaCrédit) -> 0 | V53: =SUMPRODUCT((CaSem=S49)*(CaMode=V52)*CaCrédit) -> 0 | W53: =SUMPRODUCT((CaSem=S49)*(CaMode=W52)*CaCrédit) -> 0 | X53: =SUMPRODUCT((CaSem=S49)*(CaMode=X52)*CaCrédit) -> 0 | Y53: =SUM(T53:X54) -> 0
B54: 2013-10-20 | C54: 41567 | D54: 42 | E54: OCTOBRE | F54: Publicité | G54: Factures | H54: PUAPF002 | I54: F2013682 | K54: CB | L54: R2 | M54: 1100 | O54: 0 | P54: 0 | Y54: =SUMPRODUCT((CaSem=S49)*CaRecJour) -> 0
B55: 2013-11-05 | C55: 41583 | D55: 45 | E55: NOVEMBRE | F55: Publicité | G55: Factures | H55: PUCYC0001 | I55: 130005 | K55: Chèque | L55: R1 | M55: 1000 | O55: 0 | P55: 0 | R55: FdC | T55: Remise esp | U55: Remise chq | V55: Remise CB | W55: Rem Virmt | X55: Tickets | Y55: TOTAL | Z55: Report
B56: 2013-11-05 | C56: 41583 | D56: 45 | E56: NOVEMBRE | F56: Résultat | O56: 1000 | P56: 0 | R56: =Z46 -> 0 | T56: =SUMPRODUCT((CaSem=S49)*(CACatégorie="Banque")*(CaMode=T52)*CaDébit) -> 0 | U56: =SUMPRODUCT((CaSem=S49)*(CACatégorie="Banque")*(CaMode=U52)*CaDébit) -> 0 | V56: =SUMPRODUCT((CaSem=S49)*(CaMode=V52)*CaDébit) -> 0 | W56: =SUMPRODUCT((CaSem=S49)*(CaMode=W52)*CaDébit) -> 0 | X56: =SUMPRODUCT((CaSem=S49)*(CaMode=X52)*CaDébit) -> 0 | Y56: =SUM(T56:X56) -> 0 | Z56: =(T50+R56)-Y56 -> 0
B57: 2013-11-10 | C57: 41588 | D57: 45 | E57: NOVEMBRE | F57: Publicité | G57: Factures | H57: PUCYC0001 | I57: 130005 | K57: Chèque | L57: R2 | M57: 1550 | O57: 0 | P57: 0
B58: 2013-11-10 | C58: 41588 | D58: 45 | E58: NOVEMBRE | F58: Résultat | O58: 1550 | P58: 0
B59: 2013-10-10 | C59: 41557 | D59: 41 | E59: OCTOBRE | F59: Publicité | G59: Factures | H59: PUCYC0001 | I59: 130010 | K59: Chèque | L59: R1 | M59: 1000 | O59: 0 | P59: 0 | R59: Semaine N° | T59: TOTAL | U59: Taxi | V59: Location | W59: Publicité
B60: 2013-11-06 | C60: 41584 | D60: 45 | E60: NOVEMBRE | F60: Publicité | H60: PUCYC0001 | I60: 130010 | K60: Chèque | L60: R2 | M60: 800 | O60: 0 | P60: 0 | T60: =SUMPRODUCT((CaSem=S59)*(CaSem>0)*CaCrédit) -> 0 | U60: =SUMPRODUCT((CaSem=S59)*(CACatégorie=U59)*CaCrédit) -> 0 | V60: =SUMPRODUCT((CaSem=S59)*(CACatégorie=V59)*CaCrédit) -> 0 | W60: =SUMPRODUCT((CaSem=S59)*(CACatégorie=W59)*CaCrédit) -> 0
B61: 2013-12-12 | C61: 41620 | D61: 50 | E61: DÉCEMBRE | F61: Publicité | H61: PUCYC0001 | I61: 130010 | K61: Chèque | L61: R3 | M61: 800 | O61: 0 | P61: 0
B62: 2014-01-03 | C62: 41642 | D62: 1 | E62: JANVIER | F62: Publicité | H62: PUCYC0001 | I62: 130010 | K62: Chèque | L62: R4 | M62: 850 | O62: 0 | P62: 0 | T62: Espèce | U62: Chèque | V62: CB | W62: Virement | X62: Tickets | Y62: vérif
B63: 2014-02-13 | C63: 41683 | D63: 7 | E63: FÉVRIER | O63: 0 | P63: 0 | T63: =SUMPRODUCT((CaSem=S59)*(CaMode="Espèce")*CaCrédit) -> 0 | U63: =SUMPRODUCT((CaSem=S59)*(CaMode=U62)*CaCrédit) -> 0 | V63: =SUMPRODUCT((CaSem=S59)*(CaMode=V62)*CaCrédit) -> 0 | W63: =SUMPRODUCT((CaSem=S59)*(CaMode=W62)*CaCrédit) -> 0 | X63: =SUMPRODUCT((CaSem=S59)*(CaMode=X62)*CaCrédit) -> 0 | Y63: =SUM(T63:X64) -> 0
C64: 0 | D64: 52 | O64: 0 | P64: 0 | Y64: =SUMPRODUCT((CaSem=S59)*CaRecJour) -> 0
C65: 0 | D65: 52 | O65: 0 | P65: 0 | R65: FdC | T65: Remise esp | U65: Remise chq | V65: Remise CB | W65: Rem Virmt | X65: Tickets | Y65: TOTAL | Z65: Report
C66: 0 | D66: 52 | O66: 0 | P66: 0 | R66: =Z56 -> 0 | T66: =SUMPRODUCT((CaSem=S59)*(CACatégorie="Banque")*(CaMode=T62)*CaDébit) -> 0 | U66: =SUMPRODUCT((CaSem=S59)*(CACatégorie="Banque")*(CaMode=U62)*CaDébit) -> 0 | V66: =SUMPRODUCT((CaSem=S59)*(CaMode=V62)*CaDébit) -> 0 | W66: =SUMPRODUCT((CaSem=S59)*(CaMode=W62)*CaDébit) -> 0 | X66: =SUMPRODUCT((CaSem=S59)*(CaMode=X62)*CaDébit) -> 0 | Y66: =SUM(T66:X66) -> 0 | Z66: =(T60+R66)-Y66 -> 0
C67: 0 | D67: 52 | O67: 0 | P67: 0
C68: 0 | D68: 52 | O68: 0 | P68: 0
C69: 0 | D69: 52 | O69: 0 | P69: 0 | R69: Semaine N° | T69: TOTAL | U69: Taxi | V69: Location | W69: Publicité
C70: 0 | D70: 52 | O70: 0 | P70: 0 | T70: =SUMPRODUCT((CaSem=S69)*(CaSem>0)*CaCrédit) -> 0 | U70: =SUMPRODUCT((CaSem=S69)*(CACatégorie=U69)*CaCrédit) -> 0 | V70: =SUMPRODUCT((CaSem=S69)*(CACatégorie=V69)*CaCrédit) -> 0 | W70: =SUMPRODUCT((CaSem=S69)*(CACatégorie=W69)*CaCrédit) -> 0
C71: 0 | D71: 52 | O71: 0 | P71: 0
C72: 0 | D72: 52 | O72: 0 | P72: 0 | T72: Espèce | U72: Chèque | V72: CB | W72: Virement | X72: Tickets | Y72: vérif
C73: 0 | D73: 52 | E73: =IF(CaJour=0,"",UPPER(TEXT(C73,"mmmm"))) ->  | O73: 0 | P73: 0 | T73: =SUMPRODUCT((CaSem=S69)*(CaMode="Espèce")*CaCrédit) -> 0 | U73: =SUMPRODUCT((CaSem=S69)*(CaMode=U72)*CaCrédit) -> 0 | V73: =SUMPRODUCT((CaSem=S69)*(CaMode=V72)*CaCrédit) -> 0 | W73: =SUMPRODUCT((CaSem=S69)*(CaMode=W72)*CaCrédit) -> 0 | X73: =SUMPRODUCT((CaSem=S69)*(CaMode=X72)*CaCrédit) -> 0 | Y73: =SUM(T73:X74) -> 0
C74: =DATE(YEAR(B74),MONTH(B74),DAY(B74)) -> 0 | D74: =INT(MOD(INT((B74-2)/7)+0.6,52+5/28))+1 -> 52 | O74: 0 | P74: 0 | Y74: =SUMPRODUCT((CaSem=S69)*CaRecJour) -> 0
C75: 0 | D75: 52 | O75: 0 | P75: 0 | R75: FdC | T75: Remise esp | U75: Remise chq | V75: Remise CB | W75: Rem Virmt | X75: Tickets | Y75: TOTAL | Z75: Report
C76: 0 | D76: 52 | O76: 0 | P76: 0 | R76: =Z66 -> 0 | T76: =SUMPRODUCT((CaSem=S69)*(CACatégorie="Banque")*(CaMode=T72)*CaDébit) -> 0 | U76: =SUMPRODUCT((CaSem=S69)*(CACatégorie="Banque")*(CaMode=U72)*CaDébit) -> 0 | V76: =SUMPRODUCT((CaSem=S69)*(CaMode=V72)*CaDébit) -> 0 | W76: =SUMPRODUCT((CaSem=S69)*(CaMode=W72)*CaDébit) -> 0 | X76: =SUMPRODUCT((CaSem=S69)*(CaMode=X72)*CaDébit) -> 0 | Y76: =SUM(T76:X76) -> 0 | Z76: =(T70+R76)-Y76 -> 0
C77: 0 | D77: 52 | O77: 0 | P77: 0
C78: 0 | D78: 52 | O78: 0 | P78: 0
C79: 0 | D79: 52 | O79: 0 | P79: 0 | R79: Semaine N° | T79: TOTAL | U79: Taxi | V79: Location | W79: Publicité
C80: 0 | D80: 52 | O80: 0 | P80: 0 | T80: =SUMPRODUCT((CaSem=S79)*(CaSem>0)*CaCrédit) -> 0 | U80: =SUMPRODUCT((CaSem=S79)*(CACatégorie=U79)*CaCrédit) -> 0 | V80: =SUMPRODUCT((CaSem=S79)*(CACatégorie=V79)*CaCrédit) -> 0 | W80: =SUMPRODUCT((CaSem=S79)*(CACatégorie=W79)*CaCrédit) -> 0
C81: 0 | D81: 52 | O81: 0 | P81: 0
C82: 0 | D82: 52 | O82: 0 | P82: 0 | T82: Espèce | U82: Chèque | V82: CB | W82: Virement | X82: Tickets | Y82: vérif
C83: 0 | D83: 52 | O83: 0 | P83: 0 | T83: =SUMPRODUCT((CaSem=S79)*(CaMode="Espèce")*CaCrédit) -> 0 | U83: =SUMPRODUCT((CaSem=S79)*(CaMode=U82)*CaCrédit) -> 0 | V83: =SUMPRODUCT((CaSem=S79)*(CaMode=V82)*CaCrédit) -> 0 | W83: =SUMPRODUCT((CaSem=S79)*(CaMode=W82)*CaCrédit) -> 0 | X83: =SUMPRODUCT((CaSem=S79)*(CaMode=X82)*CaCrédit) -> 0 | Y83: =SUM(T83:X84) -> 0
C84: 0 | D84: 52 | O84: 0 | P84: 0 | Y84: =SUMPRODUCT((CaSem=S79)*CaRecJour) -> 0
C85: 0 | D85: 52 | O85: 0 | P85: 0 | R85: FdC | T85: Remise esp | U85: Remise chq | V85: Remise CB | W85: Rem Virmt | X85: Tickets | Y85: TOTAL | Z85: Report
C86: 0 | D86: 52 | O86: 0 | P86: 0 | R86: =Z76 -> 0 | T86: =SUMPRODUCT((CaSem=S79)*(CACatégorie="Banque")*(CaMode=T82)*CaDébit) -> 0 | U86: =SUMPRODUCT((CaSem=S79)*(CACatégorie="Banque")*(CaMode=U82)*CaDébit) -> 0 | V86: =SUMPRODUCT((CaSem=S79)*(CaMode=V82)*CaDébit) -> 0 | W86: =SUMPRODUCT((CaSem=S79)*(CaMode=W82)*CaDébit) -> 0 | X86: =SUMPRODUCT((CaSem=S79)*(CaMode=X82)*CaDébit) -> 0 | Y86: =SUM(T86:X86) -> 0 | Z86: =(T80+R86)-Y86 -> 0
C87: 0 | D87: 52 | O87: 0 | P87: 0
C88: 0 | D88: 52 | O88: 0 | P88: 0
C89: 0 | D89: 52 | O89: 0 | P89: 0 | R89: Semaine N° | T89: TOTAL | U89: Taxi | V89: Location | W89: Publicité
C90: 0 | D90: 52 | O90: 0 | P90: 0 | T90: =SUMPRODUCT((CaSem=S89)*(CaSem>0)*CaCrédit) -> 0 | U90: =SUMPRODUCT((CaSem=S89)*(CACatégorie=U89)*CaCrédit) -> 0 | V90: =SUMPRODUCT((CaSem=S89)*(CACatégorie=V89)*CaCrédit) -> 0 | W90: =SUMPRODUCT((CaSem=S89)*(CACatégorie=W89)*CaCrédit) -> 0
C91: 0 | D91: 52 | O91: 0 | P91: 0
C92: 0 | D92: 52 | O92: 0 | P92: 0 | T92: Espèce | U92: Chèque | V92: CB | W92: Virement | X92: Tickets | Y92: vérif
C93: 0 | D93: 52 | O93: =IF(AND((CaJour=B93),(CACatégorie="Résultat")),IF(B92=B93,M92,0)+IF(B91=B93,M91,0)+IF(B90=B93,M90,0)+IF(B89=B93,M89,0)+IF(B88=B93,M88,0)+IF(B87=B93,M87,0)+IF(B86=B93,M86,0)+IF(B85=B93,M85,0)+IF(B84=B93,M84,0)+IF(B83=B93,M83,0)+IF(B82=B93,M82,0)+IF(B81=B93,M81,0)+IF(B80=B93,M80,0)+IF(B79=B93,M79,0)+IF(B78=B93,M78,0)+IF(B77=B93,M77,0)+IF(B76=B93,M76,0)+IF(B75=B93,M75,0)+IF(B74=B93,M74,0)+IF(B73=B93,M73,0),0) -> 0 | P93: =IF(AND((CaJour=B93),(CACatégorie="Résultat")),IF(B92=B93,N92,0)+IF(B91=B93,N91,0)+IF(B90=B93,N90,0)+IF(B89=B93,N89,0)+IF(B88=B93,N88,0)+IF(B87=B93,N87,0)+IF(B86=B93,N86,0)+IF(B85=B93,N85,0)+IF(B84=B93,N84,0)+IF(B83=B93,N83,0)+IF(B82=B93,N82,0)+IF(B81=B93,N81,0)+IF(B80=B93,N80,0)+IF(B79=B93,N79,0)+IF(B78=B93,N78,0)+IF(B77=B93,N77,0)+IF(B76=B93,N76,0)+IF(B75=B93,N75,0)+IF(B74=B93,N74,0)+IF(B73=B93,N73,0),0) -> 0 | T93: =SUMPRODUCT((CaSem=S89)*(CaMode="Espèce")*CaCrédit) -> 0 | U93: =SUMPRODUCT((CaSem=S89)*(CaMode=U92)*CaCrédit) -> 0 | V93: =SUMPRODUCT((CaSem=S89)*(CaMode=V92)*CaCrédit) -> 0 | W93: =SUMPRODUCT((CaSem=S89)*(CaMode=W92)*CaCrédit) -> 0 | X93: =SUMPRODUCT((CaSem=S89)*(CaMode=X92)*CaCrédit) -> 0 | Y93: =SUM(T93:X94) -> 0
C94: 0 | D94: 52 | O94: 0 | P94: 0 | Y94: =SUMPRODUCT((CaSem=S89)*CaRecJour) -> 0
C95: 0 | D95: 52 | O95: 0 | P95: 0 | R95: FdC | T95: Remise esp | U95: Remise chq | V95: Remise CB | W95: Rem Virmt | X95: Tickets | Y95: TOTAL | Z95: Report
C96: 0 | D96: 52 | O96: 0 | P96: 0 | R96: =Z86 -> 0 | T96: =SUMPRODUCT((CaSem=S89)*(CACatégorie="Banque")*(CaMode=T92)*CaDébit) -> 0 | U96: =SUMPRODUCT((CaSem=S89)*(CACatégorie="Banque")*(CaMode=U92)*CaDébit) -> 0 | V96: =SUMPRODUCT((CaSem=S89)*(CaMode=V92)*CaDébit) -> 0 | W96: =SUMPRODUCT((CaSem=S89)*(CaMode=W92)*CaDébit) -> 0 | X96: =SUMPRODUCT((CaSem=S89)*(CaMode=X92)*CaDébit) -> 0 | Y96: =SUM(T96:X96) -> 0 | Z96: =(T90+R96)-Y96 -> 0
C97: 0 | D97: 52 | O97: 0 | P97: 0
C98: 0 | D98: 52 | O98: 0 | P98: 0
C99: 0 | D99: 52 | O99: 0 | P99: 0 | R99: Semaine N° | T99: TOTAL | U99: Taxi | V99: Location | W99: Publicité
C100: 0 | D100: 52 | O100: 0 | P100: 0 | T100: =SUMPRODUCT((CaSem=S99)*(CaSem>0)*CaCrédit) -> 0 | U100: =SUMPRODUCT((CaSem=S99)*(CACatégorie=U99)*CaCrédit) -> 0 | V100: =SUMPRODUCT((CaSem=S99)*(CACatégorie=V99)*CaCrédit) -> 0 | W100: =SUMPRODUCT((CaSem=S99)*(CACatégorie=W99)*CaCrédit) -> 0
C101: 0 | D101: 52 | O101: 0 | P101: 0
C102: 0 | D102: 52 | O102: 0 | P102: 0 | T102: Espèce | U102: Chèque | V102: CB | W102: Virement | X102: Tickets | Y102: vérif
C103: 0 | D103: 52 | O103: 0 | P103: 0 | T103: =SUMPRODUCT((CaSem=S99)*(CaMode="Espèce")*CaCrédit) -> 0 | U103: =SUMPRODUCT((CaSem=S99)*(CaMode=U102)*CaCrédit) -> 0 | V103: =SUMPRODUCT((CaSem=S99)*(CaMode=V102)*CaCrédit) -> 0 | W103: =SUMPRODUCT((CaSem=S99)*(CaMode=W102)*CaCrédit) -> 0 | X103: =SUMPRODUCT((CaSem=S99)*(CaMode=X102)*CaCrédit) -> 0 | Y103: =SUM(T103:X104) -> 0
C104: 0 | D104: 52 | O104: 0 | P104: 0 | Y104: =SUMPRODUCT((CaSem=S99)*CaRecJour) -> 0
C105: 0 | D105: 52 | O105: 0 | P105: 0 | R105: FdC | T105: Remise esp | U105: Remise chq | V105: Remise CB | W105: Rem Virmt | X105: Tickets | Y105: TOTAL | Z105: Report
C106: 0 | D106: 52 | O106: 0 | P106: 0 | R106: =Z96 -> 0 | T106: =SUMPRODUCT((CaSem=S99)*(CACatégorie="Banque")*(CaMode=T102)*CaDébit) -> 0 | U106: =SUMPRODUCT((CaSem=S99)*(CACatégorie="Banque")*(CaMode=U102)*CaDébit) -> 0 | V106: =SUMPRODUCT((CaSem=S99)*(CaMode=V102)*CaDébit) -> 0 | W106: =SUMPRODUCT((CaSem=S99)*(CaMode=W102)*CaDébit) -> 0 | X106: =SUMPRODUCT((CaSem=S99)*(CaMode=X102)*CaDébit) -> 0 | Y106: =SUM(T106:X106) -> 0 | Z106: =(T100+R106)-Y106 -> 0
C107: 0 | D107: 52 | O107: 0 | P107: 0
C108: 0 | D108: 52 | O108: 0 | P108: 0
C109: 0 | D109: 52 | O109: 0 | P109: 0 | R109: Semaine N° | T109: TOTAL | U109: Taxi | V109: Location | W109: Publicité
C110: 0 | D110: 52 | O110: 0 | P110: 0 | T110: =SUMPRODUCT((CaSem=S109)*(CaSem>0)*CaCrédit) -> 0 | U110: =SUMPRODUCT((CaSem=S109)*(CACatégorie=U109)*CaCrédit) -> 0 | V110: =SUMPRODUCT((CaSem=S109)*(CACatégorie=V109)*CaCrédit) -> 0 | W110: =SUMPRODUCT((CaSem=S109)*(CACatégorie=W109)*CaCrédit) -> 0
C111: 0 | D111: 52 | O111: 0 | P111: 0
C112: 0 | D112: 52 | O112: 0 | P112: 0 | T112: Espèce | U112: Chèque | V112: CB | W112: Virement | X112: Tickets | Y112: vérif
C113: 0 | D113: 52 | O113: 0 | P113: 0 | T113: =SUMPRODUCT((CaSem=S109)*(CaMode="Espèce")*CaCrédit) -> 0 | U113: =SUMPRODUCT((CaSem=S109)*(CaMode=U112)*CaCrédit) -> 0 | V113: =SUMPRODUCT((CaSem=S109)*(CaMode=V112)*CaCrédit) -> 0 | W113: =SUMPRODUCT((CaSem=S109)*(CaMode=W112)*CaCrédit) -> 0 | X113: =SUMPRODUCT((CaSem=S109)*(CaMode=X112)*CaCrédit) -> 0 | Y113: =SUM(T113:X114) -> 0
C114: 0 | D114: 52 | O114: 0 | P114: 0 | Y114: =SUMPRODUCT((CaSem=S109)*CaRecJour) -> 0
C115: 0 | D115: 52 | O115: 0 | P115: 0 | R115: FdC | T115: Remise esp | U115: Remise chq | V115: Remise CB | W115: Rem Virmt | X115: Tickets | Y115: TOTAL | Z115: Report
C116: 0 | D116: 52 | O116: 0 | P116: 0 | R116: =Z106 -> 0 | T116: =SUMPRODUCT((CaSem=S109)*(CACatégorie="Banque")*(CaMode=T112)*CaDébit) -> 0 | U116: =SUMPRODUCT((CaSem=S109)*(CACatégorie="Banque")*(CaMode=U112)*CaDébit) -> 0 | V116: =SUMPRODUCT((CaSem=S109)*(CaMode=V112)*CaDébit) -> 0 | W116: =SUMPRODUCT((CaSem=S109)*(CaMode=W112)*CaDébit) -> 0 | X116: =SUMPRODUCT((CaSem=S109)*(CaMode=X112)*CaDébit) -> 0 | Y116: =SUM(T116:X116) -> 0 | Z116: =(T110+R116)-Y116 -> 0
C117: 0 | D117: 52 | O117: 0 | P117: 0
C118: 0 | D118: 52 | O118: 0 | P118: 0
C119: 0 | D119: 52 | O119: 0 | P119: 0 | R119: Semaine N° | T119: TOTAL | U119: Taxi | V119: Location | W119: Publicité
C120: 0 | D120: 52 | O120: 0 | P120: 0 | T120: =SUMPRODUCT((CaSem=S119)*(CaSem>0)*CaCrédit) -> 0 | U120: =SUMPRODUCT((CaSem=S119)*(CACatégorie=U119)*CaCrédit) -> 0 | V120: =SUMPRODUCT((CaSem=S119)*(CACatégorie=V119)*CaCrédit) -> 0 | W120: =SUMPRODUCT((CaSem=S119)*(CACatégorie=W119)*CaCrédit) -> 0
C121: 0 | D121: 52 | O121: 0 | P121: 0
C122: 0 | D122: 52 | O122: 0 | P122: 0 | T122: Espèce | U122: Chèque | V122: CB | W122: Virement | X122: Tickets | Y122: vérif
C123: 0 | D123: 52 | O123: 0 | P123: 0 | T123: =SUMPRODUCT((CaSem=S119)*(CaMode="Espèce")*CaCrédit) -> 0 | U123: =SUMPRODUCT((CaSem=S119)*(CaMode=U122)*CaCrédit) -> 0 | V123: =SUMPRODUCT((CaSem=S119)*(CaMode=V122)*CaCrédit) -> 0 | W123: =SUMPRODUCT((CaSem=S119)*(CaMode=W122)*CaCrédit) -> 0 | X123: =SUMPRODUCT((CaSem=S119)*(CaMode=X122)*CaCrédit) -> 0 | Y123: =SUM(T123:X124) -> 0
C124: 0 | D124: 52 | O124: 0 | P124: 0 | Y124: =SUMPRODUCT((CaSem=S119)*CaRecJour) -> 0
C125: 0 | D125: 52 | O125: 0 | P125: 0 | R125: FdC | T125: Remise esp | U125: Remise chq | V125: Remise CB | W125: Rem Virmt | X125: Tickets | Y125: TOTAL | Z125: Report
C126: 0 | D126: 52 | O126: 0 | P126: 0 | R126: =Z116 -> 0 | T126: =SUMPRODUCT((CaSem=S119)*(CACatégorie="Banque")*(CaMode=T122)*CaDébit) -> 0 | U126: =SUMPRODUCT((CaSem=S119)*(CACatégorie="Banque")*(CaMode=U122)*CaDébit) -> 0 | V126: =SUMPRODUCT((CaSem=S119)*(CaMode=V122)*CaDébit) -> 0 | W126: =SUMPRODUCT((CaSem=S119)*(CaMode=W122)*CaDébit) -> 0 | X126: =SUMPRODUCT((CaSem=S119)*(CaMode=X122)*CaDébit) -> 0 | Y126: =SUM(T126:X126) -> 0 | Z126: =(T120+R126)-Y126 -> 0
C127: 0 | D127: 52 | O127: 0 | P127: 0
C128: 0 | D128: 52 | O128: 0 | P128: 0
C129: 0 | D129: 52 | O129: 0 | P129: 0 | R129: Semaine N° | T129: TOTAL | U129: Taxi | V129: Location | W129: Publicité
C130: 0 | D130: 52 | O130: 0 | P130: 0 | T130: =SUMPRODUCT((CaSem=S129)*(CaSem>0)*CaCrédit) -> 0 | U130: =SUMPRODUCT((CaSem=S129)*(CACatégorie=U129)*CaCrédit) -> 0 | V130: =SUMPRODUCT((CaSem=S129)*(CACatégorie=V129)*CaCrédit) -> 0 | W130: =SUMPRODUCT((CaSem=S129)*(CACatégorie=W129)*CaCrédit) -> 0
C131: 0 | D131: 52 | O131: 0 | P131: 0
C132: 0 | D132: 52 | O132: 0 | P132: 0 | T132: Espèce | U132: Chèque | V132: CB | W132: Virement | X132: Tickets | Y132: vérif
C133: 0 | D133: 52 | O133: 0 | P133: 0 | T133: =SUMPRODUCT((CaSem=S129)*(CaMode="Espèce")*CaCrédit) -> 0 | U133: =SUMPRODUCT((CaSem=S129)*(CaMode=U132)*CaCrédit) -> 0 | V133: =SUMPRODUCT((CaSem=S129)*(CaMode=V132)*CaCrédit) -> 0 | W133: =SUMPRODUCT((CaSem=S129)*(CaMode=W132)*CaCrédit) -> 0 | X133: =SUMPRODUCT((CaSem=S129)*(CaMode=X132)*CaCrédit) -> 0 | Y133: =SUM(T133:X134) -> 0
C134: 0 | D134: 52 | O134: 0 | P134: 0 | Y134: =SUMPRODUCT((CaSem=S129)*CaRecJour) -> 0
C135: 0 | D135: 52 | O135: 0 | P135: 0 | R135: FdC | T135: Remise esp | U135: Remise chq | V135: Remise CB | W135: Rem Virmt | X135: Tickets | Y135: TOTAL | Z135: Report
C136: 0 | D136: 52 | O136: 0 | P136: 0 | R136: =Z126 -> 0 | T136: =SUMPRODUCT((CaSem=S129)*(CACatégorie="Banque")*(CaMode=T132)*CaDébit) -> 0 | U136: =SUMPRODUCT((CaSem=S129)*(CACatégorie="Banque")*(CaMode=U132)*CaDébit) -> 0 | V136: =SUMPRODUCT((CaSem=S129)*(CaMode=V132)*CaDébit) -> 0 | W136: =SUMPRODUCT((CaSem=S129)*(CaMode=W132)*CaDébit) -> 0 | X136: =SUMPRODUCT((CaSem=S129)*(CaMode=X132)*CaDébit) -> 0 | Y136: =SUM(T136:X136) -> 0 | Z136: =(T130+R136)-Y136 -> 0
C137: 0 | D137: 52 | E137: =IF(CaJour=0,"",UPPER(TEXT(C137,"mmmm"))) ->  | O137: 0 | P137: 0
C138: =DATE(YEAR(B138),MONTH(B138),DAY(B138)) -> 0 | D138: =INT(MOD(INT((B138-2)/7)+0.6,52+5/28))+1 -> 52 | O138: 0 | P138: 0
C139: 0 | D139: 52 | O139: 0 | P139: 0 | R139: Semaine N° | T139: TOTAL | U139: Taxi | V139: Location | W139: Publicité
C140: 0 | D140: 52 | O140: 0 | P140: 0 | T140: =SUMPRODUCT((CaSem=S139)*(CaSem>0)*CaCrédit) -> 0 | U140: =SUMPRODUCT((CaSem=S139)*(CACatégorie=U139)*CaCrédit) -> 0 | V140: =SUMPRODUCT((CaSem=S139)*(CACatégorie=V139)*CaCrédit) -> 0 | W140: =SUMPRODUCT((CaSem=S139)*(CACatégorie=W139)*CaCrédit) -> 0
C141: 0 | D141: 52 | O141: 0 | P141: 0
C142: 0 | D142: 52 | O142: 0 | P142: 0 | T142: Espèce | U142: Chèque | V142: CB | W142: Virement | X142: Tickets | Y142: vérif
C143: 0 | D143: 52 | O143: 0 | P143: 0 | T143: =SUMPRODUCT((CaSem=S139)*(CaMode="Espèce")*CaCrédit) -> 0 | U143: =SUMPRODUCT((CaSem=S139)*(CaMode=U142)*CaCrédit) -> 0 | V143: =SUMPRODUCT((CaSem=S139)*(CaMode=V142)*CaCrédit) -> 0 | W143: =SUMPRODUCT((CaSem=S139)*(CaMode=W142)*CaCrédit) -> 0 | X143: =SUMPRODUCT((CaSem=S139)*(CaMode=X142)*CaCrédit) -> 0 | Y143: =SUM(T143:X144) -> 0
C144: 0 | D144: 52 | O144: 0 | P144: 0 | Y144: =SUMPRODUCT((CaSem=S139)*CaRecJour) -> 0
C145: 0 | D145: 52 | O145: 0 | P145: 0 | R145: FdC | T145: Remise esp | U145: Remise chq | V145: Remise CB | W145: Rem Virmt | X145: Tickets | Y145: TOTAL | Z145: Report
C146: 0 | D146: 52 | O146: 0 | P146: 0 | R146: =Z136 -> 0 | T146: =SUMPRODUCT((CaSem=S139)*(CACatégorie="Banque")*(CaMode=T142)*CaDébit) -> 0 | U146: =SUMPRODUCT((CaSem=S139)*(CACatégorie="Banque")*(CaMode=U142)*CaDébit) -> 0 | V146: =SUMPRODUCT((CaSem=S139)*(CaMode=V142)*CaDébit) -> 0 | W146: =SUMPRODUCT((CaSem=S139)*(CaMode=W142)*CaDébit) -> 0 | X146: =SUMPRODUCT((CaSem=S139)*(CaMode=X142)*CaDébit) -> 0 | Y146: =SUM(T146:X146) -> 0 | Z146: =(T140+R146)-Y146 -> 0
C147: 0 | D147: 52 | O147: 0 | P147: 0
C148: 0 | D148: 52 | O148: 0 | P148: 0
C149: 0 | D149: 52 | O149: 0 | P149: 0 | R149: Semaine N° | T149: TOTAL | U149: Taxi | V149: Location | W149: Publicité
C150: 0 | D150: 52 | O150: 0 | P150: 0 | T150: =SUMPRODUCT((CaSem=S149)*(CaSem>0)*CaCrédit) -> 0 | U150: =SUMPRODUCT((CaSem=S149)*(CACatégorie=U149)*CaCrédit) -> 0 | V150: =SUMPRODUCT((CaSem=S149)*(CACatégorie=V149)*CaCrédit) -> 0 | W150: =SUMPRODUCT((CaSem=S149)*(CACatégorie=W149)*CaCrédit) -> 0
C151: 0 | D151: 52 | O151: 0 | P151: 0
C152: 0 | D152: 52 | O152: 0 | P152: 0 | T152: Espèce | U152: Chèque | V152: CB | W152: Virement | X152: Tickets | Y152: vérif
C153: 0 | D153: 52 | O153: 0 | P153: 0 | T153: =SUMPRODUCT((CaSem=S149)*(CaMode="Espèce")*CaCrédit) -> 0 | U153: =SUMPRODUCT((CaSem=S149)*(CaMode=U152)*CaCrédit) -> 0 | V153: =SUMPRODUCT((CaSem=S149)*(CaMode=V152)*CaCrédit) -> 0 | W153: =SUMPRODUCT((CaSem=S149)*(CaMode=W152)*CaCrédit) -> 0 | X153: =SUMPRODUCT((CaSem=S149)*(CaMode=X152)*CaCrédit) -> 0 | Y153: =SUM(T153:X154) -> 0
C154: 0 | D154: 52 | O154: 0 | P154: 0 | Y154: =SUMPRODUCT((CaSem=S149)*CaRecJour) -> 0
C155: 0 | D155: 52 | O155: 0 | P155: 0 | R155: FdC | T155: Remise esp | U155: Remise chq | V155: Remise CB | W155: Rem Virmt | X155: Tickets | Y155: TOTAL | Z155: Report
C156: 0 | D156: 52 | O156: 0 | P156: 0 | R156: =Z146 -> 0 | T156: =SUMPRODUCT((CaSem=S149)*(CACatégorie="Banque")*(CaMode=T152)*CaDébit) -> 0 | U156: =SUMPRODUCT((CaSem=S149)*(CACatégorie="Banque")*(CaMode=U152)*CaDébit) -> 0 | V156: =SUMPRODUCT((CaSem=S149)*(CaMode=V152)*CaDébit) -> 0 | W156: =SUMPRODUCT((CaSem=S149)*(CaMode=W152)*CaDébit) -> 0 | X156: =SUMPRODUCT((CaSem=S149)*(CaMode=X152)*CaDébit) -> 0 | Y156: =SUM(T156:X156) -> 0 | Z156: =(T150+R156)-Y156 -> 0
C157: 0 | D157: 52 | O157: =IF(AND((CaJour=B157),(CACatégorie="Résultat")),IF(B156=B157,M156,0)+IF(B155=B157,M155,0)+IF(B154=B157,M154,0)+IF(B153=B157,M153,0)+IF(B152=B157,M152,0)+IF(B151=B157,M151,0)+IF(B150=B157,M150,0)+IF(B149=B157,M149,0)+IF(B148=B157,M148,0)+IF(B147=B157,M147,0)+IF(B146=B157,M146,0)+IF(B145=B157,M145,0)+IF(B144=B157,M144,0)+IF(B143=B157,M143,0)+IF(B142=B157,M142,0)+IF(B141=B157,M141,0)+IF(B140=B157,M140,0)+IF(B139=B157,M139,0)+IF(B138=B157,M138,0)+IF(B137=B157,M137,0),0) -> 0 | P157: =IF(AND((CaJour=B157),(CACatégorie="Résultat")),IF(B156=B157,N156,0)+IF(B155=B157,N155,0)+IF(B154=B157,N154,0)+IF(B153=B157,N153,0)+IF(B152=B157,N152,0)+IF(B151=B157,N151,0)+IF(B150=B157,N150,0)+IF(B149=B157,N149,0)+IF(B148=B157,N148,0)+IF(B147=B157,N147,0)+IF(B146=B157,N146,0)+IF(B145=B157,N145,0)+IF(B144=B157,N144,0)+IF(B143=B157,N143,0)+IF(B142=B157,N142,0)+IF(B141=B157,N141,0)+IF(B140=B157,N140,0)+IF(B139=B157,N139,0)+IF(B138=B157,N138,0)+IF(B137=B157,N137,0),0) -> 0
C158: 0 | D158: 52 | O158: 0 | P158: 0
C159: 0 | D159: 52 | O159: 0 | P159: 0 | R159: Semaine N° | T159: TOTAL | U159: Taxi | V159: Location | W159: Publicité
C160: 0 | D160: 52 | O160: 0 | P160: 0 | T160: =SUMPRODUCT((CaSem=S159)*(CaSem>0)*CaCrédit) -> 0 | U160: =SUMPRODUCT((CaSem=S159)*(CACatégorie=U159)*CaCrédit) -> 0 | V160: =SUMPRODUCT((CaSem=S159)*(CACatégorie=V159)*CaCrédit) -> 0 | W160: =SUMPRODUCT((CaSem=S159)*(CACatégorie=W159)*CaCrédit) -> 0
C161: 0 | D161: 52 | O161: 0 | P161: 0
C162: 0 | D162: 52 | O162: 0 | P162: 0 | T162: Espèce | U162: Chèque | V162: CB | W162: Virement | X162: Tickets | Y162: vérif
C163: 0 | D163: 52 | O163: 0 | P163: 0 | T163: =SUMPRODUCT((CaSem=S159)*(CaMode="Espèce")*CaCrédit) -> 0 | U163: =SUMPRODUCT((CaSem=S159)*(CaMode=U162)*CaCrédit) -> 0 | V163: =SUMPRODUCT((CaSem=S159)*(CaMode=V162)*CaCrédit) -> 0 | W163: =SUMPRODUCT((CaSem=S159)*(CaMode=W162)*CaCrédit) -> 0 | X163: =SUMPRODUCT((CaSem=S159)*(CaMode=X162)*CaCrédit) -> 0 | Y163: =SUM(T163:X164) -> 0
C164: 0 | D164: 52 | O164: 0 | P164: 0 | Y164: =SUMPRODUCT((CaSem=S159)*CaRecJour) -> 0
C165: 0 | D165: 52 | O165: 0 | P165: 0 | R165: FdC | T165: Remise esp | U165: Remise chq | V165: Remise CB | W165: Rem Virmt | X165: Tickets | Y165: TOTAL | Z165: Report
C166: 0 | D166: 52 | O166: 0 | P166: 0 | R166: =Z156 -> 0 | T166: =SUMPRODUCT((CaSem=S159)*(CACatégorie="Banque")*(CaMode=T162)*CaDébit) -> 0 | U166: =SUMPRODUCT((CaSem=S159)*(CACatégorie="Banque")*(CaMode=U162)*CaDébit) -> 0 | V166: =SUMPRODUCT((CaSem=S159)*(CaMode=V162)*CaDébit) -> 0 | W166: =SUMPRODUCT((CaSem=S159)*(CaMode=W162)*CaDébit) -> 0 | X166: =SUMPRODUCT((CaSem=S159)*(CaMode=X162)*CaDébit) -> 0 | Y166: =SUM(T166:X166) -> 0 | Z166: =(T160+R166)-Y166 -> 0
C167: 0 | D167: 52 | O167: 0 | P167: 0
C168: 0 | D168: 52 | O168: 0 | P168: 0
C169: 0 | D169: 52 | O169: 0 | P169: 0 | R169: Semaine N° | T169: TOTAL | U169: Taxi | V169: Location | W169: Publicité
C170: 0 | D170: 52 | O170: 0 | P170: 0 | T170: =SUMPRODUCT((CaSem=S169)*(CaSem>0)*CaCrédit) -> 0 | U170: =SUMPRODUCT((CaSem=S169)*(CACatégorie=U169)*CaCrédit) -> 0 | V170: =SUMPRODUCT((CaSem=S169)*(CACatégorie=V169)*CaCrédit) -> 0 | W170: =SUMPRODUCT((CaSem=S169)*(CACatégorie=W169)*CaCrédit) -> 0
C171: 0 | D171: 52 | O171: 0 | P171: 0
C172: 0 | D172: 52 | O172: 0 | P172: 0 | T172: Espèce | U172: Chèque | V172: CB | W172: Virement | X172: Tickets | Y172: vérif
C173: 0 | D173: 52 | O173: 0 | P173: 0 | T173: =SUMPRODUCT((CaSem=S169)*(CaMode="Espèce")*CaCrédit) -> 0 | U173: =SUMPRODUCT((CaSem=S169)*(CaMode=U172)*CaCrédit) -> 0 | V173: =SUMPRODUCT((CaSem=S169)*(CaMode=V172)*CaCrédit) -> 0 | W173: =SUMPRODUCT((CaSem=S169)*(CaMode=W172)*CaCrédit) -> 0 | X173: =SUMPRODUCT((CaSem=S169)*(CaMode=X172)*CaCrédit) -> 0 | Y173: =SUM(T173:X174) -> 0
C174: 0 | D174: 52 | O174: 0 | P174: 0 | Y174: =SUMPRODUCT((CaSem=S169)*CaRecJour) -> 0
C175: 0 | D175: 52 | O175: 0 | P175: 0 | R175: FdC | T175: Remise esp | U175: Remise chq | V175: Remise CB | W175: Rem Virmt | X175: Tickets | Y175: TOTAL | Z175: Report
C176: 0 | D176: 52 | O176: 0 | P176: 0 | R176: =Z166 -> 0 | T176: =SUMPRODUCT((CaSem=S169)*(CACatégorie="Banque")*(CaMode=T172)*CaDébit) -> 0 | U176: =SUMPRODUCT((CaSem=S169)*(CACatégorie="Banque")*(CaMode=U172)*CaDébit) -> 0 | V176: =SUMPRODUCT((CaSem=S169)*(CaMode=V172)*CaDébit) -> 0 | W176: =SUMPRODUCT((CaSem=S169)*(CaMode=W172)*CaDébit) -> 0 | X176: =SUMPRODUCT((CaSem=S169)*(CaMode=X172)*CaDébit) -> 0 | Y176: =SUM(T176:X176) -> 0 | Z176: =(T170+R176)-Y176 -> 0
C177: 0 | D177: 52 | O177: 0 | P177: 0
C178: 0 | D178: 52 | O178: 0 | P178: 0
C179: 0 | D179: 52 | O179: 0 | P179: 0 | R179: Semaine N° | T179: TOTAL | U179: Taxi | V179: Location | W179: Publicité
C180: 0 | D180: 52 | O180: 0 | P180: 0 | T180: =SUMPRODUCT((CaSem=S179)*(CaSem>0)*CaCrédit) -> 0 | U180: =SUMPRODUCT((CaSem=S179)*(CACatégorie=U179)*CaCrédit) -> 0 | V180: =SUMPRODUCT((CaSem=S179)*(CACatégorie=V179)*CaCrédit) -> 0 | W180: =SUMPRODUCT((CaSem=S179)*(CACatégorie=W179)*CaCrédit) -> 0
C181: 0 | D181: 52 | O181: 0 | P181: 0
C182: 0 | D182: 52 | O182: 0 | P182: 0 | T182: Espèce | U182: Chèque | V182: CB | W182: Virement | X182: Tickets | Y182: vérif
C183: 0 | D183: 52 | O183: 0 | P183: 0 | T183: =SUMPRODUCT((CaSem=S179)*(CaMode="Espèce")*CaCrédit) -> 0 | U183: =SUMPRODUCT((CaSem=S179)*(CaMode=U182)*CaCrédit) -> 0 | V183: =SUMPRODUCT((CaSem=S179)*(CaMode=V182)*CaCrédit) -> 0 | W183: =SUMPRODUCT((CaSem=S179)*(CaMode=W182)*CaCrédit) -> 0 | X183: =SUMPRODUCT((CaSem=S179)*(CaMode=X182)*CaCrédit) -> 0 | Y183: =SUM(T183:X184) -> 0
C184: 0 | D184: 52 | O184: 0 | P184: 0 | Y184: =SUMPRODUCT((CaSem=S179)*CaRecJour) -> 0
C185: 0 | D185: 52 | O185: 0 | P185: 0 | R185: FdC | T185: Remise esp | U185: Remise chq | V185: Remise CB | W185: Rem Virmt | X185: Tickets | Y185: TOTAL | Z185: Report
C186: 0 | D186: 52 | O186: 0 | P186: 0 | R186: =Z176 -> 0 | T186: =SUMPRODUCT((CaSem=S179)*(CACatégorie="Banque")*(CaMode=T182)*CaDébit) -> 0 | U186: =SUMPRODUCT((CaSem=S179)*(CACatégorie="Banque")*(CaMode=U182)*CaDébit) -> 0 | V186: =SUMPRODUCT((CaSem=S179)*(CaMode=V182)*CaDébit) -> 0 | W186: =SUMPRODUCT((CaSem=S179)*(CaMode=W182)*CaDébit) -> 0 | X186: =SUMPRODUCT((CaSem=S179)*(CaMode=X182)*CaDébit) -> 0 | Y186: =SUM(T186:X186) -> 0 | Z186: =(T180+R186)-Y186 -> 0
C187: 0 | D187: 52 | O187: 0 | P187: 0
C188: 0 | D188: 52 | O188: 0 | P188: 0
C189: 0 | D189: 52 | O189: 0 | P189: 0 | R189: Semaine N° | T189: TOTAL | U189: Taxi | V189: Location | W189: Publicité
C190: 0 | D190: 52 | O190: 0 | P190: 0 | T190: =SUMPRODUCT((CaSem=S189)*(CaSem>0)*CaCrédit) -> 0 | U190: =SUMPRODUCT((CaSem=S189)*(CACatégorie=U189)*CaCrédit) -> 0 | V190: =SUMPRODUCT((CaSem=S189)*(CACatégorie=V189)*CaCrédit) -> 0 | W190: =SUMPRODUCT((CaSem=S189)*(CACatégorie=W189)*CaCrédit) -> 0
C191: 0 | D191: 52 | O191: 0 | P191: 0
C192: 0 | D192: 52 | O192: 0 | P192: 0 | T192: Espèce | U192: Chèque | V192: CB | W192: Virement | X192: Tickets | Y192: vérif
C193: 0 | D193: 52 | O193: 0 | P193: 0 | T193: =SUMPRODUCT((CaSem=S189)*(CaMode="Espèce")*CaCrédit) -> 0 | U193: =SUMPRODUCT((CaSem=S189)*(CaMode=U192)*CaCrédit) -> 0 | V193: =SUMPRODUCT((CaSem=S189)*(CaMode=V192)*CaCrédit) -> 0 | W193: =SUMPRODUCT((CaSem=S189)*(CaMode=W192)*CaCrédit) -> 0 | X193: =SUMPRODUCT((CaSem=S189)*(CaMode=X192)*CaCrédit) -> 0 | Y193: =SUM(T193:X194) -> 0
C194: 0 | D194: 52 | O194: 0 | P194: 0 | Y194: =SUMPRODUCT((CaSem=S189)*CaRecJour) -> 0
C195: 0 | D195: 52 | O195: 0 | P195: 0 | R195: FdC | T195: Remise esp | U195: Remise chq | V195: Remise CB | W195: Rem Virmt | X195: Tickets | Y195: TOTAL | Z195: Report
C196: 0 | D196: 52 | O196: 0 | P196: 0 | R196: =Z186 -> 0 | T196: =SUMPRODUCT((CaSem=S189)*(CACatégorie="Banque")*(CaMode=T192)*CaDébit) -> 0 | U196: =SUMPRODUCT((CaSem=S189)*(CACatégorie="Banque")*(CaMode=U192)*CaDébit) -> 0 | V196: =SUMPRODUCT((CaSem=S189)*(CaMode=V192)*CaDébit) -> 0 | W196: =SUMPRODUCT((CaSem=S189)*(CaMode=W192)*CaDébit) -> 0 | X196: =SUMPRODUCT((CaSem=S189)*(CaMode=X192)*CaDébit) -> 0 | Y196: =SUM(T196:X196) -> 0 | Z196: =(T190+R196)-Y196 -> 0
C197: 0 | D197: 52 | O197: 0 | P197: 0
C198: 0 | D198: 52 | O198: 0 | P198: 0
C199: 0 | D199: 52 | O199: 0 | P199: 0 | R199: Semaine N° | T199: TOTAL | U199: Taxi | V199: Location | W199: Publicité
C200: 0 | D200: 52 | O200: 0 | P200: 0 | T200: =SUMPRODUCT((CaSem=S199)*(CaSem>0)*CaCrédit) -> 0 | U200: =SUMPRODUCT((CaSem=S199)*(CACatégorie=U199)*CaCrédit) -> 0 | V200: =SUMPRODUCT((CaSem=S199)*(CACatégorie=V199)*CaCrédit) -> 0 | W200: =SUMPRODUCT((CaSem=S199)*(CACatégorie=W199)*CaCrédit) -> 0
C201: 0 | D201: 52 | E201: =IF(CaJour=0,"",UPPER(TEXT(C201,"mmmm"))) ->  | O201: 0 | P201: 0
C202: =DATE(YEAR(B202),MONTH(B202),DAY(B202)) -> 0 | D202: =INT(MOD(INT((B202-2)/7)+0.6,52+5/28))+1 -> 52 | O202: 0 | P202: 0 | T202: Espèce | U202: Chèque | V202: CB | W202: Virement | X202: Tickets | Y202: vérif
C203: 0 | D203: 52 | O203: 0 | P203: 0 | T203: =SUMPRODUCT((CaSem=S199)*(CaMode="Espèce")*CaCrédit) -> 0 | U203: =SUMPRODUCT((CaSem=S199)*(CaMode=U202)*CaCrédit) -> 0 | V203: =SUMPRODUCT((CaSem=S199)*(CaMode=V202)*CaCrédit) -> 0 | W203: =SUMPRODUCT((CaSem=S199)*(CaMode=W202)*CaCrédit) -> 0 | X203: =SUMPRODUCT((CaSem=S199)*(CaMode=X202)*CaCrédit) -> 0 | Y203: =SUM(T203:X204) -> 0
... 350 more rows

Sheet BANQUE
J1: B A N Q U E | Z1: BANQUE RECAPITULATIF ANNUEL
N6: =TODAY() -> 2013-12-05 | T6: =SUM(M9:M17)-SUM(N9:N17) -> 400
B7: DATE | C7: JOUR | D7: SEMAINE | E7: MOIS | F7: CATEGORIE | G7: OBJET | H7: CODES CLIENT | I7: N° Document | J7: DESIGNATION | K7: Type de PAIEMENT | L7: Valid | M7: CREDIT | N7: DEBIT | S7: Prévisionnel | T7: Validé | Y7: JANVIER | Z7: FÉVRIER | AA7: MARS | AB7: AVRIL | AC7: MAI | AD7: JUIN | AE7: JUILLET | AF7: AOÛT | AG7: SEPTEMBRE | AH7: OCTOBRE | AI7: NOVEMBRE | AJ7: DÉCEMBRE
C9: =IF(B9=0,0,(DATE(YEAR(B9),MONTH(B9),DAY(B9)))) -> 0 | D9: =INT(MOD(INT((B9-2)/7)+0.6,52+5/28))+1 -> 52 | E9: =IF(C9=0,"",UPPER(TEXT(B9,"mmmm"))) ->  | K9: CB | L9: v | N9: 100 | O9: =IF(L9="v",0,M9-N9) -> 0 | P9: =IF(L9="v",M9-N9,0) -> -100 | Q9: =O9 -> 0 | R9: =P9 -> -100 | S9: =IF(L9="v",0,Q9) -> 0 | T9: =IF(M9="v",0,R9) -> -100 | W9: BANQUE | X9: CREDIT | Y9: =SUMPRODUCT((BQMois=Y7)*(BQValide="v")*BQCrédit) -> 0 | Z9: 0 | AA9: 0 | AB9: 0 | AC9: 0 | AD9: 0 | AE9: 0 | AF9: 0 | AG9: 0 | AH9: 600 | AI9: 0 | AJ9: 0
B10: 2013-10-10 | C10: =IF(B10=0,0,(DATE(YEAR(B10),MONTH(B10),DAY(B10)))) -> 41557 | D10: 41 | E10: =IF(C10=0,"",UPPER(TEXT(B10,"mmmm"))) -> OCTOBRE | G10: Remise | K10: Chèque | L10: v | M10: 50 | O10: 0 | P10: 50 | Q10: =O9+O10 -> 0 | R10: =R9+P10 -> -50 | S10: =IF(Q10=Q9,0,Q10) -> 0 | T10: =IF(R10=R9,0,R10) -> -50
B11: 2013-10-10 | C11: 41557 | D11: 41 | E11: OCTOBRE | G11: Remise | K11: CB | L11: v | M11: 150 | O11: 0 | P11: 150 | Q11: =Q10+O11 -> 0 | R11: =R10+P11 -> 100 | S11: =IF(Q11=Q10,0,Q11) -> 0 | T11: =IF(R11=R10,0,R11) -> 100 | X11: DEBIT | Y11: =SUMPRODUCT((BQMois=Y7)*(BQValide="v")*BQDébit) -> 0 | Z11: 0 | AA11: 0 | AB11: 0 | AC11: 0 | AD11: 0 | AE11: 0 | AF11: 0 | AG11: 0 | AH11: 150 | AI11: 0 | AJ11: 0
B12: 2013-10-15 | C12: 41562 | D12: 42 | E12: OCTOBRE | G12: Factures | K12: Chèque | L12: v | N12: 150 | O12: 0 | P12: -150 | Q12: 0 | R12: -50 | S12: 0 | T12: -50
B13: 2013-10-18 | C13: 41565 | D13: 42 | E13: OCTOBRE | G13: Remise | K13: Espèce | L13: v | M13: 400 | O13: 0 | P13: 400 | Q13: 0 | R13: 350 | S13: 0 | T13: 350 | X13: TOTAL | Y13: =Y9-Y11 -> 0 | Z13: =Z9-Z11 -> 0 | AA13: 0 | AB13: 0 | AC13: 0 | AD13: 0 | AE13: 0 | AF13: 0 | AG13: 0 | AH13: 450 | AI13: 0 | AJ13: 0
B14: 2013-10-18 | C14: 41565 | D14: 42 | E14: OCTOBRE | G14: Remise | K14: Chèque | M14: 100 | O14: 100 | P14: 0 | Q14: 100 | R14: 350 | S14: 100 | T14: 0
B15: 2013-10-21 | C15: 41568 | D15: 43 | E15: OCTOBRE | G15: Remise | K15: Virement | M15: 150 | O15: 150 | P15: 0 | Q15: 250 | R15: 350 | S15: 250 | T15: 0
C16: 0 | D16: 52 | N16: 200 | O16: -200 | P16: 0 | Q16: 50 | R16: 350 | S16: 50 | T16: 0 | V16: PREVISIONNEL | W16: CREDIT | X16: Espèce | Y16: =SUMPRODUCT((BQMois=Y7)*(BQMode="Espèce")*BQCrédit) -> 0 | Z16: 0 | AA16: 0 | AB16: 0 | AC16: 0 | AD16: 0 | AE16: 0 | AF16: 0 | AG16: 0 | AH16: 400 | AI16: 0 | AJ16: 0
C17: 0 | D17: 52 | O17: 0 | P17: 0 | Q17: 50 | R17: 350 | S17: =IF(Q17=Q16,0,Q17) -> 0 | T17: 0 | X17: Chèque | Y17: =SUMPRODUCT((BQMois=Y7)*(BQMode="Chèque")*BQCrédit) -> 0 | Z17: 0 | AA17: 0 | AB17: 0 | AC17: 0 | AD17: 0 | AE17: 0 | AF17: 0 | AG17: 0 | AH17: 150 | AI17: 0 | AJ17: 0
B18: 2013-10-07 | C18: 41554 | D18: 41 | E18: OCTOBRE | O18: 0 | P18: 0 | Q18: =Q17+O18 -> 50 | R18: =R17+P18 -> 350 | S18: =IF(Q18=Q17,0,Q18) -> 0 | T18: =IF(R18=R17,0,R18) -> 0 | X18: CB | Y18: =SUMPRODUCT((BQMois=Y7)*(BQMode="CB")*BQCrédit) -> 0 | Z18: 0 | AA18: 0 | AB18: 0 | AC18: 0 | AD18: 0 | AE18: 0 | AF18: 0 | AG18: 0 | AH18: 150 | AI18: 0 | AJ18: 0
B19: 2013-10-07 | C19: 41554 | D19: 41 | E19: OCTOBRE | O19: 0 | P19: 0 | Q19: =Q18+O19 -> 50 | R19: =R18+P19 -> 350 | S19: 0 | T19: 0 | X19: Virement | Y19: =SUMPRODUCT((BQMois=Y7)*(BQMode="Virement")*BQCrédit) -> 0 | Z19: 0 | AA19: 0 | AB19: 0 | AC19: 0 | AD19: 0 | AE19: 0 | AF19: 0 | AG19: 0 | AH19: 150 | AI19: 0 | AJ19: 0
C20: 0 | D20: 52 | O20: 0 | P20: 0 | Q20: =Q19+O20 -> 50 | R20: =R19+P20 -> 350 | S20: 0 | T20: 0 | X20: TOTAL | Y20: =Y16+Y17+Y18+Y19 -> 0 | Z20: =Z16+Z17+Z18+Z19 -> 0 | AA20: 0 | AB20: 0 | AC20: 0 | AD20: 0 | AE20: 0 | AF20: 0 | AG20: 0 | AH20: 850 | AI20: 0 | AJ20: 0
C21: 0 | D21: 52 | O21: 0 | P21: 0 | Q21: 50 | R21: 350 | S21: 0 | T21: 0 | W21: DEBIT | X21: Espèce | Y21: =SUMPRODUCT((BQMois=Y7)*(BQMode="Espèce")*BQDébit) -> 0 | Z21: 0 | AA21: 0 | AB21: 0 | AC21: 0 | AD21: 0 | AE21: 0 | AF21: 0 | AG21: 0 | AH21: 0 | AI21: 0 | AJ21: 0
C22: 0 | D22: 52 | O22: 0 | P22: 0 | Q22: 50 | R22: 350 | S22: 0 | T22: 0 | X22: Chèque | Y22: =SUMPRODUCT((BQMois=Y7)*(BQMode="Chèque")*BQDébit) -> 0 | Z22: 0 | AA22: 0 | AB22: 0 | AC22: 0 | AD22: 0 | AE22: 0 | AF22: 0 | AG22: 0 | AH22: 150 | AI22: 0 | AJ22: 0
C23: 0 | D23: 52 | O23: 0 | P23: 0 | Q23: 50 | R23: 350 | S23: 0 | T23: 0 | X23: CB | Y23: =SUMPRODUCT((BQMois=Y7)*(BQMode="CB")*BQDébit) -> 0 | Z23: 0 | AA23: 0 | AB23: 0 | AC23: 0 | AD23: 0 | AE23: 0 | AF23: 0 | AG23: 0 | AH23: 0 | AI23: 0 | AJ23: 0
B24: 2013-10-15 | C24: 41562 | D24: 42 | E24: OCTOBRE | G24: Remise | O24: 0 | P24: 0 | Q24: 50 | R24: 350 | S24: 0 | T24: 0 | X24: Virement | Y24: =SUMPRODUCT((BQMois=Y7)*(BQMode="Virement")*BQDébit) -> 0 | Z24: 0 | AA24: 0 | AB24: 0 | AC24: 0 | AD24: 0 | AE24: 0 | AF24: 0 | AG24: 0 | AH24: 0 | AI24: 0 | AJ24: 0
C25: 0 | D25: 52 | O25: 0 | P25: 0 | Q25: 50 | R25: 350 | S25: 0 | T25: 0 | X25: TOTAL | Y25: =Y21+Y22+Y23+Y24 -> 0 | Z25: =Z21+Z22+Z23+Z24 -> 0 | AA25: 0 | AB25: 0 | AC25: 0 | AD25: 0 | AE25: 0 | AF25: 0 | AG25: 0 | AH25: 150 | AI25: 0 | AJ25: 0
C26: 0 | D26: 52 | O26: 0 | P26: 0 | Q26: 50 | R26: 350 | S26: 0 | T26: 0
C27: 0 | D27: 52 | O27: 0 | P27: 0 | Q27: 50 | R27: 350 | S27: 0 | T27: 0 | W27: Vérif crédit - Débit | Y27: =Y20-Y25 -> 0 | Z27: =Z20-Z25 -> 0 | AA27: 0 | AB27: 0 | AC27: 0 | AD27: 0 | AE27: 0 | AF27: 0 | AG27: 0 | AH27: 700 | AI27: 0 | AJ27: 0
C28: 0 | D28: 52 | O28: 0 | P28: 0 | Q28: 50 | R28: 350 | S28: 0 | T28: 0
B29: 2013-10-06 | C29: 41553 | D29: 40 | E29: OCTOBRE | O29: 0 | P29: 0 | Q29: 50 | R29: 350 | S29: 0 | T29: 0
B30: 2013-10-17 | C30: 41564 | D30: 42 | E30: OCTOBRE | G30: Factures | O30: 0 | P30: 0 | Q30: 50 | R30: 350 | S30: 0 | T30: 0
B31: =CAISSE!B39 -> 2013-10-12 | C31: 41559 | D31: 41 | E31: OCTOBRE | G31: Remise | O31: 0 | P31: 0 | Q31: 50 | R31: 350 | S31: 0 | T31: 0
B32: =CAISSE!B40 -> 2013-10-12 | C32: 41559 | D32: 41 | E32: OCTOBRE | G32: Remise | O32: 0 | P32: 0 | Q32: 50 | R32: 350 | S32: 0 | T32: 0
C33: 0 | D33: 52 | O33: 0 | P33: 0 | Q33: 50 | R33: 350 | S33: 0 | T33: 0
C34: 0 | D34: 52 | O34: 0 | P34: 0 | Q34: 50 | R34: 350 | S34: 0 | T34: 0
C35: 0 | D35: 52 | O35: 0 | P35: 0 | Q35: 50 | R35: 350 | S35: 0 | T35: 0
C36: 0 | D36: 52 | O36: 0 | P36: 0 | Q36: 50 | R36: 350 | S36: 0 | T36: 0
C37: 0 | D37: 52 | O37: 0 | P37: 0 | Q37: 50 | R37: 350 | S37: 0 | T37: 0
C38: 0 | D38: 52 | O38: 0 | P38: 0 | Q38: 50 | R38: 350 | S38: 0 | T38: 0
C39: 0 | D39: 52 | O39: 0 | P39: 0 | Q39: 50 | R39: 350 | S39: 0 | T39: 0
C40: 0 | D40: 52 | O40: 0 | P40: 0 | Q40: 50 | R40: 350 | S40: 0 | T40: 0
C41: 0 | D41: 52 | O41: 0 | P41: 0 | Q41: 50 | R41: 350 | S41: 0 | T41: 0
C42: 0 | D42: 52 | O42: 0 | P42: 0 | Q42: 50 | R42: 350 | S42: 0 | T42: 0
C43: 0 | D43: 52 | O43: 0 | P43: 0 | Q43: 50 | R43: 350 | S43: 0 | T43: 0
C44: 0 | D44: 52 | O44: 0 | P44: 0 | Q44: 50 | R44: 350 | S44: 0 | T44: 0
C45: 0 | D45: 52 | O45: 0 | P45: 0 | Q45: 50 | R45: 350 | S45: 0 | T45: 0
C46: 0 | D46: 52 | O46: 0 | P46: 0 | Q46: 50 | R46: 350 | S46: 0 | T46: 0
C47: 0 | D47: 52 | O47: 0 | P47: 0 | Q47: 50 | R47: 350 | S47: 0 | T47: 0
C48: 0 | D48: 52 | O48: 0 | P48: 0 | Q48: 50 | R48: 350 | S48: 0 | T48: 0
C49: 0 | D49: 52 | O49: 0 | P49: 0 | Q49: 50 | R49: 350 | S49: 0 | T49: 0
C50: 0 | D50: 52 | O50: 0 | P50: 0 | Q50: 50 | R50: 350 | S50: 0 | T50: 0
C51: 0 | D51: 52 | O51: 0 | P51: 0 | Q51: 50 | R51: 350 | S51: 0 | T51: 0
C52: 0 | D52: 52 | O52: 0 | P52: 0 | Q52: 50 | R52: 350 | S52: 0 | T52: 0
C53: 0 | D53: 52 | O53: 0 | P53: 0 | Q53: 50 | R53: 350 | S53: 0 | T53: 0
C54: 0 | D54: 52 | O54: 0 | P54: 0 | Q54: 50 | R54: 350 | S54: 0 | T54: 0
C55: 0 | D55: 52 | O55: 0 | P55: 0 | Q55: 50 | R55: 350 | S55: 0 | T55: 0
C56: 0 | D56: 52 | O56: 0 | P56: 0 | Q56: 50 | R56: 350 | S56: 0 | T56: 0
C57: 0 | D57: 52 | O57: 0 | P57: 0 | Q57: 50 | R57: 350 | S57: 0 | T57: 0
C58: 0 | D58: 52 | O58: 0 | P58: 0 | Q58: 50 | R58: 350 | S58: 0 | T58: 0
C59: 0 | D59: 52 | O59: 0 | P59: 0 | Q59: 50 | R59: 350 | S59: 0 | T59: 0
C60: 0 | D60: 52 | O60: 0 | P60: 0 | Q60: 50 | R60: 350 | S60: 0 | T60: 0
C61: 0 | D61: 52 | O61: 0 | P61: 0 | Q61: 50 | R61: 350 | S61: 0 | T61: 0
C62: 0 | D62: 52 | O62: 0 | P62: 0 | Q62: 50 | R62: 350 | S62: 0 | T62: 0
C63: 0 | D63: 52 | O63: 0 | P63: 0 | Q63: 50 | R63: 350 | S63: 0 | T63: 0
C64: 0 | D64: 52 | O64: 0 | P64: 0 | Q64: 50 | R64: 350 | S64: 0 | T64: 0
C65: 0 | D65: 52 | O65: 0 | P65: 0 | Q65: 50 | R65: 350 | S65: 0 | T65: 0
C66: 0 | D66: 52 | O66: 0 | P66: 0 | Q66: 50 | R66: 350 | S66: 0 | T66: 0
C67: 0 | D67: 52 | O67: 0 | P67: 0 | Q67: 50 | R67: 350 | S67: 0 | T67: 0
C68: 0 | D68: 52 | O68: 0 | P68: 0 | Q68: 50 | R68: 350 | S68: 0 | T68: 0
C69: 0 | D69: 52 | O69: 0 | P69: 0 | Q69: 50 | R69: 350 | S69: 0 | T69: 0
C70: 0 | D70: 52 | O70: 0 | P70: 0 | Q70: 50 | R70: 350 | S70: 0 | T70: 0
C71: 0 | D71: 52 | O71: 0 | P71: 0 | Q71: 50 | R71: 350 | S71: 0 | T71: 0
C72: 0 | D72: 52 | O72: 0 | P72: 0 | Q72: 50 | R72: 350 | S72: 0 | T72: 0
C73: 0 | D73: =INT(MOD(INT((B73-2)/7)+0.6,52+5/28))+1 -> 52 | O73: =IF(L73="v",0,M73-N73) -> 0 | P73: =IF(L73="v",M73-N73,0) -> 0 | Q73: 50 | R73: 350 | S73: 0 | T73: 0
C74: =IF(B74=0,0,(DATE(YEAR(B74),MONTH(B74),DAY(B74)))) -> 0 | D74: 52 | E74: =IF(C74=0,"",UPPER(TEXT(B74,"mmmm"))) ->  | O74: 0 | P74: 0 | Q74: 50 | R74: 350 | S74: 0 | T74: 0
C75: 0 | D75: 52 | O75: 0 | P75: 0 | Q75: 50 | R75: 350 | S75: 0 | T75: 0
C76: 0 | D76: 52 | O76: 0 | P76: 0 | Q76: 50 | R76: 350 | S76: 0 | T76: 0
C77: 0 | D77: 52 | O77: 0 | P77: 0 | Q77: 50 | R77: 350 | S77: 0 | T77: 0
C78: 0 | D78: 52 | O78: 0 | P78: 0 | Q78: 50 | R78: 350 | S78: 0 | T78: 0
C79: 0 | D79: 52 | O79: 0 | P79: 0 | Q79: 50 | R79: 350 | S79: 0 | T79: 0
C80: 0 | D80: 52 | O80: 0 | P80: 0 | Q80: 50 | R80: 350 | S80: 0 | T80: 0
C81: 0 | D81: 52 | O81: 0 | P81: 0 | Q81: 50 | R81: 350 | S81: 0 | T81: 0
C82: 0 | D82: 52 | O82: 0 | P82: 0 | Q82: 50 | R82: 350 | S82: =IF(Q82=Q81,0,Q82) -> 0 | T82: =IF(R82=R81,0,R82) -> 0
C83: 0 | D83: 52 | O83: 0 | P83: 0 | Q83: 50 | R83: 350 | S83: 0 | T83: 0
C84: 0 | D84: 52 | O84: 0 | P84: 0 | Q84: =Q83+O84 -> 50 | R84: =R83+P84 -> 350 | S84: 0 | T84: 0
C85: 0 | D85: 52 | O85: 0 | P85: 0 | Q85: 50 | R85: 350 | S85: 0 | T85: 0
C86: 0 | D86: 52 | O86: 0 | P86: 0 | Q86: 50 | R86: 350 | S86: 0 | T86: 0
C87: 0 | D87: 52 | O87: 0 | P87: 0 | Q87: 50 | R87: 350 | S87: 0 | T87: 0
C88: 0 | D88: 52 | O88: 0 | P88: 0 | Q88: 50 | R88: 350 | S88: 0 | T88: 0
C89: 0 | D89: 52 | O89: 0 | P89: 0 | Q89: 50 | R89: 350 | S89: 0 | T89: 0
C90: 0 | D90: 52 | O90: 0 | P90: 0 | Q90: 50 | R90: 350 | S90: 0 | T90: 0
C91: 0 | D91: 52 | O91: 0 | P91: 0 | Q91: 50 | R91: 350 | S91: 0 | T91: 0
C92: 0 | D92: 52 | O92: 0 | P92: 0 | Q92: 50 | R92: 350 | S92: 0 | T92: 0
C93: 0 | D93: 52 | O93: 0 | P93: 0 | Q93: 50 | R93: 350 | S93: 0 | T93: 0
C94: 0 | D94: 52 | O94: 0 | P94: 0 | Q94: 50 | R94: 350 | S94: 0 | T94: 0
C95: 0 | D95: 52 | O95: 0 | P95: 0 | Q95: 50 | R95: 350 | S95: 0 | T95: 0
C96: 0 | D96: 52 | O96: 0 | P96: 0 | Q96: 50 | R96: 350 | S96: 0 | T96: 0
C97: 0 | D97: 52 | O97: 0 | P97: 0 | Q97: 50 | R97: 350 | S97: 0 | T97: 0
C98: 0 | D98: 52 | O98: 0 | P98: 0 | Q98: 50 | R98: 350 | S98: 0 | T98: 0
C99: 0 | D99: 52 | O99: 0 | P99: 0 | Q99: 50 | R99: 350 | S99: 0 | T99: 0
C100: 0 | D100: 52 | O100: 0 | P100: 0 | Q100: 50 | R100: 350 | S100: 0 | T100: 0
C101: 0 | D101: 52 | O101: 0 | P101: 0 | Q101: 50 | R101: 350 | S101: 0 | T101: 0
C102: 0 | D102: 52 | O102: 0 | P102: 0 | Q102: 50 | R102: 350 | S102: 0 | T102: 0
C103: 0 | D103: 52 | O103: 0 | P103: 0 | Q103: 50 | R103: 350 | S103: 0 | T103: 0
C104: 0 | D104: 52 | O104: 0 | P104: 0 | Q104: 50 | R104: 350 | S104: 0 | T104: 0
C105: 0 | D105: 52 | O105: 0 | P105: 0 | Q105: 50 | R105: 350 | S105: 0 | T105: 0
C106: 0 | D106: 52 | O106: 0 | P106: 0 | Q106: 50 | R106: 350 | S106: 0 | T106: 0
C107: 0 | D107: 52 | O107: 0 | P107: 0 | Q107: 50 | R107: 350 | S107: 0 | T107: 0
C108: 0 | D108: 52 | O108: 0 | P108: 0 | Q108: 50 | R108: 350 | S108: 0 | T108: 0
C109: 0 | D109: 52 | O109: 0 | P109: 0 | Q109: 50 | R109: 350 | S109: 0 | T109: 0
C110: 0 | D110: 52 | O110: 0 | P110: 0 | Q110: 50 | R110: 350 | S110: 0 | T110: 0
C111: 0 | D111: 52 | O111: 0 | P111: 0 | Q111: 50 | R111: 350 | S111: 0 | T111: 0
C112: 0 | D112: 52 | O112: 0 | P112: 0 | Q112: 50 | R112: 350 | S112: 0 | T112: 0
C113: 0 | D113: 52 | O113: 0 | P113: 0 | Q113: 50 | R113: 350 | S113: 0 | T113: 0
C114: 0 | D114: 52 | O114: 0 | P114: 0 | Q114: 50 | R114: 350 | S114: 0 | T114: 0
C115: 0 | D115: 52 | O115: 0 | P115: 0 | Q115: 50 | R115: 350 | S115: 0 | T115: 0
C116: 0 | D116: 52 | O116: 0 | P116: 0 | Q116: 50 | R116: 350 | S116: 0 | T116: 0
C117: 0 | D117: 52 | O117: 0 | P117: 0 | Q117: 50 | R117: 350 | S117: 0 | T117: 0
C118: 0 | D118: 52 | O118: 0 | P118: 0 | Q118: 50 | R118: 350 | S118: 0 | T118: 0
C119: 0 | D119: 52 | O119: 0 | P119: 0 | Q119: 50 | R119: 350 | S119: 0 | T119: 0
C120: 0 | D120: 52 | O120: 0 | P120: 0 | Q120: 50 | R120: 350 | S120: 0 | T120: 0
C121: 0 | D121: 52 | O121: 0 | P121: 0 | Q121: 50 | R121: 350 | S121: 0 | T121: 0
C122: 0 | D122: 52 | O122: 0 | P122: 0 | Q122: 50 | R122: 350 | S122: 0 | T122: 0
C123: 0 | D123: 52 | O123: 0 | P123: 0 | Q123: 50 | R123: 350 | S123: 0 | T123: 0
C124: 0 | D124: 52 | O124: 0 | P124: 0 | Q124: 50 | R124: 350 | S124: 0 | T124: 0
C125: 0 | D125: 52 | O125: 0 | P125: 0 | Q125: 50 | R125: 350 | S125: 0 | T125: 0
C126: 0 | D126: 52 | O126: 0 | P126: 0 | Q126: 50 | R126: 350 | S126: 0 | T126: 0
C127: 0 | D127: 52 | O127: 0 | P127: 0 | Q127: 50 | R127: 350 | S127: 0 | T127: 0
C128: 0 | D128: 52 | O128: 0 | P128: 0 | Q128: 50 | R128: 350 | S128: 0 | T128: 0
C129: 0 | D129: 52 | O129: 0 | P129: 0 | Q129: 50 | R129: 350 | S129: 0 | T129: 0
C130: 0 | D130: 52 | O130: 0 | P130: 0 | Q130: 50 | R130: 350 | S130: 0 | T130: 0
C131: 0 | D131: 52 | O131: 0 | P131: 0 | Q131: 50 | R131: 350 | S131: 0 | T131: 0
C132: 0 | D132: 52 | O132: 0 | P132: 0 | Q132: 50 | R132: 350 | S132: 0 | T132: 0
C133: 0 | D133: 52 | O133: 0 | P133: 0 | Q133: 50 | R133: 350 | S133: 0 | T133: 0
C134: 0 | D134: 52 | O134: 0 | P134: 0 | Q134: 50 | R134: 350 | S134: 0 | T134: 0
C135: 0 | D135: 52 | O135: 0 | P135: 0 | Q135: 50 | R135: 350 | S135: 0 | T135: 0
C136: 0 | D136: 52 | O136: 0 | P136: 0 | Q136: 50 | R136: 350 | S136: 0 | T136: 0
C137: 0 | D137: =INT(MOD(INT((B137-2)/7)+0.6,52+5/28))+1 -> 52 | O137: =IF(L137="v",0,M137-N137) -> 0 | P137: =IF(L137="v",M137-N137,0) -> 0 | Q137: 50 | R137: 350 | S137: 0 | T137: 0
C138: =IF(B138=0,0,(DATE(YEAR(B138),MONTH(B138),DAY(B138)))) -> 0 | D138: 52 | E138: =IF(C138=0,"",UPPER(TEXT(B138,"mmmm"))) ->  | O138: 0 | P138: 0 | Q138: 50 | R138: 350 | S138: 0 | T138: 0
C139: 0 | D139: 52 | O139: 0 | P139: 0 | Q139: 50 | R139: 350 | S139: 0 | T139: 0
C140: 0 | D140: 52 | O140: 0 | P140: 0 | Q140: 50 | R140: 350 | S140: 0 | T140: 0
C141: 0 | D141: 52 | O141: 0 | P141: 0 | Q141: 50 | R141: 350 | S141: 0 | T141: 0
C142: 0 | D142: 52 | O142: 0 | P142: 0 | Q142: 50 | R142: 350 | S142: 0 | T142: 0
C143: 0 | D143: 52 | O143: 0 | P143: 0 | Q143: 50 | R143: 350 | S143: 0 | T143: 0
C144: 0 | D144: 52 | O144: 0 | P144: 0 | Q144: 50 | R144: 350 | S144: 0 | T144: 0
C145: 0 | D145: 52 | O145: 0 | P145: 0 | Q145: 50 | R145: 350 | S145: 0 | T145: 0
C146: 0 | D146: 52 | O146: 0 | P146: 0 | Q146: 50 | R146: 350 | S146: =IF(Q146=Q145,0,Q146) -> 0 | T146: =IF(R146=R145,0,R146) -> 0
C147: 0 | D147: 52 | O147: 0 | P147: 0 | Q147: 50 | R147: 350 | S147: 0 | T147: 0
C148: 0 | D148: 52 | O148: 0 | P148: 0 | Q148: =Q147+O148 -> 50 | R148: =R147+P148 -> 350 | S148: 0 | T148: 0
C149: 0 | D149: 52 | O149: 0 | P149: 0 | Q149: 50 | R149: 350 | S149: 0 | T149: 0
C150: 0 | D150: 52 | O150: 0 | P150: 0 | Q150: 50 | R150: 350 | S150: 0 | T150: 0
C151: 0 | D151: 52 | O151: 0 | P151: 0 | Q151: 50 | R151: 350 | S151: 0 | T151: 0
C152: 0 | D152: 52 | O152: 0 | P152: 0 | Q152: 50 | R152: 350 | S152: 0 | T152: 0
C153: 0 | D153: 52 | O153: 0 | P153: 0 | Q153: 50 | R153: 350 | S153: 0 | T153: 0
C154: 0 | D154: 52 | O154: 0 | P154: 0 | Q154: 50 | R154: 350 | S154: 0 | T154: 0
C155: 0 | D155: 52 | O155: 0 | P155: 0 | Q155: 50 | R155: 350 | S155: 0 | T155: 0
C156: 0 | D156: 52 | O156: 0 | P156: 0 | Q156: 50 | R156: 350 | S156: 0 | T156: 0
C157: 0 | D157: 52 | O157: 0 | P157: 0 | Q157: 50 | R157: 350 | S157: 0 | T157: 0
C158: 0 | D158: 52 | O158: 0 | P158: 0 | Q158: 50 | R158: 350 | S158: 0 | T158: 0
C159: 0 | D159: 52 | O159: 0 | P159: 0 | Q159: 50 | R159: 350 | S159: 0 | T159: 0
C160: 0 | D160: 52 | O160: 0 | P160: 0 | Q160: 50 | R160: 350 | S160: 0 | T160: 0
C161: 0 | D161: 52 | O161: 0 | P161: 0 | Q161: 50 | R161: 350 | S161: 0 | T161: 0
C162: 0 | D162: 52 | O162: 0 | P162: 0 | Q162: 50 | R162: 350 | S162: 0 | T162: 0
C163: 0 | D163: 52 | O163: 0 | P163: 0 | Q163: 50 | R163: 350 | S163: 0 | T163: 0
C164: 0 | D164: 52 | O164: 0 | P164: 0 | Q164: 50 | R164: 350 | S164: 0 | T164: 0
C165: 0 | D165: 52 | O165: 0 | P165: 0 | Q165: 50 | R165: 350 | S165: 0 | T165: 0
C166: 0 | D166: 52 | O166: 0 | P166: 0 | Q166: 50 | R166: 350 | S166: 0 | T166: 0
C167: 0 | D167: 52 | O167: 0 | P167: 0 | Q167: 50 | R167: 350 | S167: 0 | T167: 0
C168: 0 | D168: 52 | O168: 0 | P168: 0 | Q168: 50 | R168: 350 | S168: 0 | T168: 0
C169: 0 | D169: 52 | O169: 0 | P169: 0 | Q169: 50 | R169: 350 | S169: 0 | T169: 0
C170: 0 | D170: 52 | O170: 0 | P170: 0 | Q170: 50 | R170: 350 | S170: 0 | T170: 0
C171: 0 | D171: 52 | O171: 0 | P171: 0 | Q171: 50 | R171: 350 | S171: 0 | T171: 0
C172: 0 | D172: 52 | O172: 0 | P172: 0 | Q172: 50 | R172: 350 | S172: 0 | T172: 0
C173: 0 | D173: 52 | O173: 0 | P173: 0 | Q173: 50 | R173: 350 | S173: 0 | T173: 0
C174: 0 | D174: 52 | O174: 0 | P174: 0 | Q174: 50 | R174: 350 | S174: 0 | T174: 0
C175: 0 | D175: 52 | O175: 0 | P175: 0 | Q175: 50 | R175: 350 | S175: 0 | T175: 0
C176: 0 | D176: 52 | O176: 0 | P176: 0 | Q176: 50 | R176: 350 | S176: 0 | T176: 0
C177: 0 | D177: 52 | O177: 0 | P177: 0 | Q177: 50 | R177: 350 | S177: 0 | T177: 0
C178: 0 | D178: 52 | O178: 0 | P178: 0 | Q178: 50 | R178: 350 | S178: 0 | T178: 0
C179: 0 | D179: 52 | O179: 0 | P179: 0 | Q179: 50 | R179: 350 | S179: 0 | T179: 0
C180: 0 | D180: 52 | O180: 0 | P180: 0 | Q180: 50 | R180: 350 | S180: 0 | T180: 0
C181: 0 | D181: 52 | O181: 0 | P181: 0 | Q181: 50 | R181: 350 | S181: 0 | T181: 0
C182: 0 | D182: 52 | O182: 0 | P182: 0 | Q182: 50 | R182: 350 | S182: 0 | T182: 0
C183: 0 | D183: 52 | O183: 0 | P183: 0 | Q183: 50 | R183: 350 | S183: 0 | T183: 0
C184: 0 | D184: 52 | O184: 0 | P184: 0 | Q184: 50 | R184: 350 | S184: 0 | T184: 0
C185: 0 | D185: 52 | O185: 0 | P185: 0 | Q185: 50 | R185: 350 | S185: 0 | T185: 0
C186: 0 | D186: 52 | O186: 0 | P186: 0 | Q186: 50 | R186: 350 | S186: 0 | T186: 0
C187: 0 | D187: 52 | O187: 0 | P187: 0 | Q187: 50 | R187: 350 | S187: 0 | T187: 0
C188: 0 | D188: 52 | O188: 0 | P188: 0 | Q188: 50 | R188: 350 | S188: 0 | T188: 0
C189: 0 | D189: 52 | O189: 0 | P189: 0 | Q189: 50 | R189: 350 | S189: 0 | T189: 0
C190: 0 | D190: 52 | O190: 0 | P190: 0 | Q190: 50 | R190: 350 | S190: 0 | T190: 0
C191: 0 | D191: 52 | O191: 0 | P191: 0 | Q191: 50 | R191: 350 | S191: 0 | T191: 0
C192: 0 | D192: 52 | O192: 0 | P192: 0 | Q192: 50 | R192: 350 | S192: 0 | T192: 0
C193: 0 | D193: 52 | O193: 0 | P193: 0 | Q193: 50 | R193: 350 | S193: 0 | T193: 0
C194: 0 | D194: 52 | O194: 0 | P194: 0 | Q194: 50 | R194: 350 | S194: 0 | T194: 0
C195: 0 | D195: 52 | O195: 0 | P195: 0 | Q195: 50 | R195: 350 | S195: 0 | T195: 0
C196: 0 | D196: 52 | O196: 0 | P196: 0 | Q196: 50 | R196: 350 | S196: 0 | T196: 0
C197: 0 | D197: 52 | O197: 0 | P197: 0 | Q197: 50 | R197: 350 | S197: 0 | T197: 0
C198: 0 | D198: 52 | O198: 0 | P198: 0 | Q198: 50 | R198: 350 | S198: 0 | T198: 0
C199: 0 | D199: 52 | O199: 0 | P199: 0 | Q199: 50 | R199: 350 | S199: 0 | T199: 0
C200: 0 | D200: 52 | O200: 0 | P200: 0 | Q200: 50 | R200: 350 | S200: 0 | T200: 0
C201: 0 | D201: =INT(MOD(INT((B201-2)/7)+0.6,52+5/28))+1 -> 52 | O201: =IF(L201="v",0,M201-N201) -> 0 | P201: =IF(L201="v",M201-N201,0) -> 0 | Q201: 50 | R201: 350 | S201: 0 | T201: 0
C202: =IF(B202=0,0,(DATE(YEAR(B202),MONTH(B202),DAY(B202)))) -> 0 | D202: 52 | E202: =IF(C202=0,"",UPPER(TEXT(B202,"mmmm"))) ->  | O202: 0 | P202: 0 | Q202: 50 | R202: 350 | S202: 0 | T202: 0
C203: 0 | D203: 52 | O203: 0 | P203: 0 | Q203: 50 | R203: 350 | S203: 0 | T203: 0
C204: 0 | D204: 52 | O204: 0 | P204: 0 | Q204: 50 | R204: 350 | S204: 0 | T204: 0
C205: 0 | D205: 52 | O205: 0 | P205: 0 | Q205: 50 | R205: 350 | S205: 0 | T205: 0
... 799 more rows

Sheet LOCATIONS
H1: L O C A T I O N
D2: HT Jour | E2: TTC Jour | F2: TTC Semaine
A3: TARIFS LOCATIONS | C3: Tarif A | D3: 10 | E3: =(D3*20/100)+D3 -> 12 | F3: =E3*5 -> 60
C4: Tarif B | D4: 15 | E4: =(D4*20/100)+D4 -> 18 | F4: =E4*5 -> 90
C5: Tarif C | D5: 20 | E5: =(D5*20/100)+D5 -> 24 | F5: =E5*5 -> 120
C7: CA HT | D7: TTC | E7: JANVIER | F7: FÉVRIER | G7: MARS | H7: AVRIL | I7: MAI | J7: JUIN | K7: JUILLET | L7: AOÛT | M7: SEPTEMBRE | N7: OCTOBRE | O7: NOVEMBRE | P7: DÉCEMBRE | Q7: TOTAL TTC | R7: TVA | S7: Total HT
C9: Tarif appliqué > > | E9: A | F9: A | G9: A | H9: B | I9: C | J9: C | K9: C | L9: C | M9: B | N9: A | O9: A | P9: A
C10: Nb de semaine > > | E10: 3 | F10: 3 | G10: 3 | H10: 4 | I10: 4 | J10: 4 | K10: 4 | L10: 4 | M10: 4 | N10: 3 | O10: 3 | P10: 3
A11: OBJECTIFS | B11: VELO 2 | C11: 3100 | D11: =C11+(C11*20/100) -> 3720 | E11: =IF(E9<>0,(IF(E9="A",($F$3*E10),0)+IF(E9="B",($F$4*E10),0)+IF(E9="C",($F$5*E10),0)),0) -> 180 | F11: =IF(F9<>0,(IF(F9="A",($F$3*F10),0)+IF(F9="B",($F$4*F10),0)+IF(F9="C",($F$5*F10),0)),0) -> 180 | G11: 180 | H11: 360 | I11: 480 | J11: 480 | K11: 480 | L11: 480 | M11: 360 | N11: 180 | O11: 180 | P11: 180 | Q11: =SUM(E11:P11) -> 3720 | R11: =Q11*16.6667/100 -> 620.00124 | S11: =Q11-R11 -> 3099.99876
B12: VELO 3 | D12: =C12+(C12*20/100) -> 0 | Q12: =SUM(E12:P12) -> 0 | R12: =Q12*16.6667/100 -> 0 | S12: =Q12-R12 -> 0
B13: VELO 4 | D13: =C13+(C13*20/100) -> 0 | Q13: =SUM(E13:P13) -> 0 | R13: =Q13*16.6667/100 -> 0 | S13: =Q13-R13 -> 0
B14: VELO 1 | D14: =C14+(C14*20/100) -> 0 | Q14: =SUM(E14:P14) -> 0 | R14: =Q14*16.6667/100 -> 0 | S14: =Q14-R14 -> 0
C15: VELO 2 | D15: Semaine | E15: 1 | F15: 5 | G15: 9 | H15: 14 | I15: 18 | J15: 22 | K15: 27 | L15: 31 | M15: 36 | N15: 40 | O15: 44 | P15: 49
E16: =SUMPRODUCT((CaSem=E15)*(CACatégorie="location")*(CaDésignation="vélo2")*CaCrédit) -> 240 | F16: =SUMPRODUCT((CaSem=F15)*(CACatégorie="location")*(CaDésignation="vélo2")*CaCrédit)-E33 -> 0 | G16: 0 | H16: 0 | I16: 0 | J16: 0 | K16: 0 | L16: 0 | M16: 0 | N16: 0 | O16: 0 | P16: 0
D18: Semaine | E18: 2 | F18: 6 | G18: 10 | H18: 15 | I18: 19 | J18: 23 | K18: 28 | L18: 32 | M18: 37 | N18: 41 | O18: 45 | P18: 50
E19: =SUMPRODUCT((CaSem=E18)*(CACatégorie="location")*(CaDésignation="vélo2")*CaCrédit) -> 0 | F19: 0 | G19: 0 | H19: 0 | I19: 0 | J19: 0 | K19: 0 | L19: 0 | M19: 0 | N19: 0 | O19: 0 | P19: 0
C21: VELO 2 | D21: Semaine | E21: 3 | F21: 7 | G21: 11 | H21: 16 | I21: 20 | J21: 24 | K21: 29 | L21: 33 | M21: 38 | N21: 42 | O21: 46 | P21: 51
E22: =SUMPRODUCT((CaSem=E21)*(CACatégorie="location")*(CaDésignation="vélo2")*CaCrédit) -> 0 | F22: 0 | G22: 0 | H22: 0 | I22: 0 | J22: 0 | K22: 0 | L22: 0 | M22: 0 | N22: 0 | O22: 0 | P22: 0
D24: Semaine | E24: 4 | F24: 8 | G24: 12 | H24: 17 | I24: 21 | J24: 25 | K24: 30 | L24: 34 | M24: 39 | N24: 43 | O24: 47 | P24: 52
E25: =SUMPRODUCT((CaSem=E24)*(CACatégorie="location")*(CaDésignation="vélo2")*CaCrédit) -> 0 | F25: 0 | G25: 0 | H25: 0 | I25: 0 | J25: 0 | K25: 0 | L25: 0 | M25: 0 | N25: 0 | O25: 0 | P25: 0
C27: VELO 2 | D27: Semaine | G27: 13 | J27: 26 | L27: 35 | P27: 1
E28: =SUMPRODUCT((CaSem=E27)*(CACatégorie="location")*(CaDésignation="vélo2")*CaCrédit) -> 0 | F28: 0 | G28: 0 | H28: 0 | I28: 0 | J28: 0 | K28: 0 | L28: 0 | M28: 0 | N28: 0 | O28: 0 | P28: 240
D30: Semaine | E30: 5 | F30: 9 | G30: 14 | H30: 18 | I30: 22 | J30: 27 | K30: 31 | M30: 40 | N30: 44 | O30: 48
E31: =SUMPRODUCT((CaSem=E30)*(CACatégorie="location")*(CaDésignation="vélo2")*CaCrédit)-F16 -> 0 | F31: 0 | G31: 0 | H31: 0 | I31: 0 | J31: 0 | K31: 0 | L31: 0 | M31: 0 | N31: 0 | O31: 0 | P31: =SUMPRODUCT((CaSem=P30)*(CACatégorie="location")*(CaDésignation="vélo2")*CaCrédit) -> 0
C33: Report différence jour
C34: VELO 2 | D34: TOTAL | E34: =E16+E19+E22+E25+E28+E33 -> 240 | F34: =F16+F19+F22+F25+F28+F33 -> 0 | G34: 0 | H34: 0 | I34: 0 | J34: 0 | K34: 0 | L34: 0 | M34: 0 | N34: 0 | O34: 0 | P34: 240 | Q34: =SUM(E34:P35) -> 480 | R34: =Q34*16.6667/100 -> 80.00016 | S34: =Q34-R34 -> 399.99984
C38: VELO 3 | D38: Semaine
E39: =SUMPRODUCT((CaSem=E38)*(CACatégorie="location")*(CaDésignation="vélo3")*CaCrédit) -> 0 | F39: =SUMPRODUCT((CaSem=F38)*(CACatégorie="location")*(CaDésignation="vélo3")*CaCrédit)-E56 -> 0 | G39: 0 | H39: 0 | I39: 0 | J39: 0 | K39: 0 | L39: 0 | M39: 0 | N39: 0 | O39: 0 | P39: =SUMPRODUCT((CaSem=P38)*(CACatégorie="location")*(CaDésignation="vélo3")*CaCrédit) -> 0
D41: Semaine
E42: =SUMPRODUCT((CaSem=E41)*(CACatégorie="location")*(CaDésignation="vélo3")*CaCrédit) -> 0 | F42: 0 | G42: 0 | H42: 0 | I42: 0 | J42: 0 | K42: 0 | L42: 0 | M42: 0 | N42: 0 | O42: 0 | P42: 0
C44: VELO 3 | D44: Semaine
E45: =SUMPRODUCT((CaSem=E44)*(CACatégorie="location")*(CaDésignation="vélo3")*CaCrédit) -> 0 | F45: 0 | G45: 0 | H45: 0 | I45: 0 | J45: 0 | K45: 0 | L45: 0 | M45: 0 | N45: 0 | O45: 0 | P45: 0
D47: Semaine
E48: =SUMPRODUCT((CaSem=E47)*(CACatégorie="location")*(CaDésignation="vélo3")*CaCrédit) -> 0 | F48: 0 | G48: 0 | H48: 0 | I48: 0 | J48: 0 | K48: 0 | L48: 0 | M48: 0 | N48: 0 | O48: 0 | P48: 0
C50: VELO 3 | D50: Semaine
E51: =SUMPRODUCT((CaSem=E50)*(CACatégorie="location")*(CaDésignation="vélo3")*CaCrédit) -> 0 | F51: 0 | G51: 0 | H51: 0 | I51: 0 | J51: 0 | K51: 0 | L51: 0 | M51: 0 | N51: 0 | O51: 0 | P51: 0
D53: Semaine
E54: =SUMPRODUCT((CaSem=E53)*(CACatégorie="location")*(CaDésignation="vélo3")*CaCrédit)-F39 -> 0 | F54: 0 | G54: 0 | H54: 0 | I54: 0 | J54: 0 | K54: 0 | L54: 0 | M54: 0 | N54: 0 | O54: 0 | P54: =SUMPRODUCT((CaSem=P53)*(CACatégorie="location")*(CaDésignation="vélo3")*CaCrédit) -> 0
C56: Report différence jour
C57: VELO 3 | D57: TOTAL | E57: =E39+E42+E45+E48+E51+E56 -> 0 | F57: =F39+F42+F45+F48+F51+F56 -> 0 | G57: 0 | H57: 0 | I57: 0 | J57: 0 | K57: 0 | L57: 0 | M57: 0 | N57: 0 | O57: 0 | P57: 0 | Q57: =SUM(E57:P58) -> 0 | R57: =Q57*16.6667/100 -> 0 | S57: =Q57-R57 -> 0
C61: VELO 4 | D61: Semaine
E62: =SUMPRODUCT((CaSem=E61)*(CACatégorie="location")*(CaDésignation="vélo4")*CaCrédit) -> 0 | F62: =SUMPRODUCT((CaSem=F61)*(CACatégorie="location")*(CaDésignation="vélo4")*CaCrédit)-E79 -> 0 | G62: 0 | H62: 0 | I62: 0 | J62: 0 | K62: 0 | L62: 0 | M62: 0 | N62: 0 | O62: 0 | P62: =SUMPRODUCT((CaSem=P61)*(CACatégorie="location")*(CaDésignation="vélo4")*CaCrédit) -> 0
D64: Semaine
E65: =SUMPRODUCT((CaSem=E64)*(CACatégorie="location")*(CaDésignation="vélo4")*CaCrédit) -> 0 | F65: 0 | G65: 0 | H65: 0 | I65: 0 | J65: 0 | K65: 0 | L65: 0 | M65: 0 | N65: 0 | O65: 0 | P65: 0
C67: VELO 4 | D67: Semaine
E68: =SUMPRODUCT((CaSem=E67)*(CACatégorie="location")*(CaDésignation="vélo4")*CaCrédit) -> 0 | F68: 0 | G68: 0 | H68: 0 | I68: 0 | J68: 0 | K68: 0 | L68: 0 | M68: 0 | N68: 0 | O68: 0 | P68: 0
D70: Semaine
E71: =SUMPRODUCT((CaSem=E70)*(CACatégorie="location")*(CaDésignation="vélo4")*CaCrédit) -> 0 | F71: 0 | G71: 0 | H71: 0 | I71: 0 | J71: 0 | K71: 0 | L71: 0 | M71: 0 | N71: 0 | O71: 0 | P71: 0
C73: VELO 4 | D73: Semaine
E74: =SUMPRODUCT((CaSem=E73)*(CACatégorie="location")*(CaDésignation="vélo4")*CaCrédit) -> 0 | F74: 0 | G74: 0 | H74: 0 | I74: 0 | J74: 0 | K74: 0 | L74: 0 | M74: 0 | N74: 0 | O74: 0 | P74: 0
D76: Semaine
E77: =SUMPRODUCT((CaSem=E76)*(CACatégorie="location")*(CaDésignation="vélo4")*CaCrédit)-F62 -> 0 | F77: 0 | G77: 0 | H77: 0 | I77: 0 | J77: 0 | K77: 0 | L77: 0 | M77: 0 | N77: 0 | O77: 0 | P77: =SUMPRODUCT((CaSem=P76)*(CACatégorie="location")*(CaDésignation="vélo4")*CaCrédit) -> 0
C79: Report différence jour
C80: VELO 4 | D80: TOTAL | E80: =E62+E65+E68+E71+E74+E79 -> 0 | F80: =F62+F65+F68+F71+F74+F79 -> 0 | G80: 0 | H80: 0 | I80: 0 | J80: 0 | K80: 0 | L80: 0 | M80: 0 | N80: 0 | O80: 0 | P80: 0 | Q80: =SUM(E80:P81) -> 0 | R80: =Q80*16.6667/100 -> 0 | S80: =Q80-R80 -> 0
C84: VELO 1 | D84: Semaine | E84: 1 | F84: 5 | G84: 9 | H84: 14 | I84: 18 | J84: 22 | K84: 27 | L84: 31 | M84: 36 | N84: 40 | O84: 44 | P84: 49
E85: =SUMPRODUCT((CaSem=E84)*(CACatégorie="location")*(CaDésignation="vélo1")*CaCrédit) -> 0 | F85: =SUMPRODUCT((CaSem=F84)*(CACatégorie="location")*(CaDésignation="vélo1")*CaCrédit)-E102 -> 0 | G85: 0 | H85: 0 | I85: 0 | J85: 0 | K85: 0 | L85: 0 | M85: 0 | N85: 90 | O85: 0 | P85: =SUMPRODUCT((CaSem=P84)*(CACatégorie="location")*(CaDésignation="vélo1")*CaCrédit) -> 0
D87: Semaine | E87: 2 | F87: 6 | G87: 10 | H87: 15 | I87: 19 | J87: 23 | K87: 28 | L87: 32 | M87: 37 | N87: 41 | O87: 45 | P87: 50
E88: =SUMPRODUCT((CaSem=E87)*(CACatégorie="location")*(CaDésignation="vélo1")*CaCrédit) -> 0 | F88: 0 | G88: 0 | H88: 0 | I88: 0 | J88: 0 | K88: 0 | L88: 0 | M88: 0 | N88: 0 | O88: 0 | P88: 0
C90: VELO 1 | D90: Semaine | E90: 3 | F90: 7 | G90: 11 | H90: 16 | I90: 20 | J90: 24 | K90: 29 | L90: 33 | M90: 38 | N90: 42 | O90: 46 | P90: 51
E91: =SUMPRODUCT((CaSem=E90)*(CACatégorie="location")*(CaDésignation="vélo1")*CaCrédit) -> 0 | F91: 0 | G91: 0 | H91: 0 | I91: 0 | J91: 0 | K91: 0 | L91: 0 | M91: 0 | N91: 100 | O91: 0 | P91: 0
D93: Semaine | E93: 4 | F93: 8 | G93: 12 | H93: 17 | I93: 21 | J93: 25 | K93: 30 | L93: 34 | M93: 39 | N93: 43 | O93: 47 | P93: 52
E94: =SUMPRODUCT((CaSem=E93)*(CACatégorie="location")*(CaDésignation="vélo1")*CaCrédit) -> 0 | F94: 0 | G94: 0 | H94: 0 | I94: 0 | J94: 0 | K94: 0 | L94: 0 | M94: 0 | N94: 0 | O94: 0 | P94: 0
C96: VELO 1 | D96: Semaine | G96: 13 | J96: 26 | L96: 35 | P96: 1
E97: =SUMPRODUCT((CaSem=E96)*(CACatégorie="location")*(CaDésignation="vélo1")*CaCrédit) -> 0 | F97: 0 | G97: 0 | H97: 0 | I97: 0 | J97: 0 | K97: 0 | L97: 0 | M97: 0 | N97: 0 | O97: 0 | P97: 0
D99: Semaine | E99: 5 | F99: 9 | G99: 14 | H99: 18 | I99: 22 | J99: 27 | K99: 31 | M99: 40 | N99: 44 | O99: 48
E100: =SUMPRODUCT((CaSem=E99)*(CACatégorie="location")*(CaDésignation="vélo1")*CaCrédit)-F85 -> 0 | F100: 0 | G100: 0 | H100: 0 | I100: 0 | J100: 0 | K100: 0 | L100: 0 | M100: 0 | N100: 0 | O100: 0 | P100: =SUMPRODUCT((CaSem=P99)*(CACatégorie="location")*(CaDésignation="vélo1")*CaCrédit) -> 0
C102: Report différence jour
C103: VELO 1 | D103: TOTAL | E103: =E85+E88+E91+E94+E97+E102 -> 0 | F103: =F85+F88+F91+F94+F97+F102 -> 0 | G103: 0 | H103: 0 | I103: 0 | J103: 0 | K103: 0 | L103: 0 | M103: 0 | N103: 190 | O103: 0 | P103: 0 | Q103: =SUM(E103:P104) -> 190 | R103: =Q103*16.6667/100 -> 31.66673 | S103: =Q103-R103 -> 158.33327

Sheet TAXI
D1: T A X I | T1: VENTILATION DU CA TAXI
A3: notice
R5: JANVIER | S5: FÉVRIER | T5: MARS | U5: AVRIL | V5: MAI | W5: JUIN | X5: JUILLET | Y5: AOÛT | Z5: SEPTEMBRE | AA5: OCTOBRE | AB5: NOVEMBRE | AC5: DÉCEMBRE | AD5: TOTAL
B6: DATE | C6: JOUR | D6: SEMAINE | E6: MOIS | G6: MODE | H6: Recette taxi | I6: TOTAL JOUR | J6: Validation | K6: TOTAL SEMAINE | P6: CA HT | Q6: TTC
O7: OBJECTIFS | P7: 11700 | Q7: =P7+(P7*10/100) -> 12870 | R7: 715 | S7: 358 | T7: 715 | U7: 1430 | V7: 1430 | W7: 1788 | X7: 1787 | Y7: 1430 | Z7: 1430 | AA7: 715 | AB7: 357 | AC7: 715 | AD7: =SUM(R7:AC7) -> 12870
B9: 2013-10-03 | C9: =DATE(YEAR(B9),MONTH(B9),DAY(B9)) -> 41550 | D9: =INT(MOD(INT((B9-2)/7)+0.6,52+5/28))+1 -> 40 | E9: =IF(B9=0,"",UPPER(TEXT(B9,"mmmm"))) -> OCTOBRE | F9: Taxi | G9: Espèce | H9: =IF(C9=0,0,(SUMPRODUCT((CaDate=C9)*(CACatégorie="Taxi")*(CaMode=G9)*CaCrédit))) -> 50 | I9: =IF(AND((TaxiJour=B9),(TaxiMode="Résultat")),IF(B9=B8,H8,0),0) -> 0 | K9: =SUMPRODUCT((J9=TaxiSemaine)*(TaxiTotalJour)) -> 0 | Q9: Espèce | R9: =SUMPRODUCT((TaxiMois=R5)*(TaxiMode=$Q$9)*TaxiRec) -> 100 | S9: 0 | T9: 0 | U9: 0 | V9: 0 | W9: 0 | X9: 0 | Y9: 0 | Z9: 0 | AA9: 70 | AB9: 0 | AC9: 0 | AD9: =SUM(R9:AC10) -> 170
B10: 2013-10-03 | C10: 41550 | D10: 40 | E10: OCTOBRE | F10: Taxi | G10: Tickets | H10: =IF(C10=0,0,(SUMPRODUCT((CaDate=C10)*(CACatégorie="Taxi")*(CaMode=G10)*CaCrédit))) -> 10 | I10: =IF(AND((TaxiJour=B10),(TaxiMode="Résultat")),IF(B10=B9,H9,0)+IF(B10=B8,H8,0),0) -> 0 | K10: 0
B11: 2013-10-03 | C11: 41550 | D11: 40 | E11: OCTOBRE | F11: Taxi | G11: Chèque | H11: =IF(C11=0,0,(SUMPRODUCT((CaDate=C11)*(CACatégorie="Taxi")*(CaMode=G11)*CaCrédit))) -> 46 | I11: =IF(AND((TaxiJour=B11),(TaxiMode="Résultat")),IF(B11=B10,H10,0)+IF(B11=B9,H9,0)+IF(B11=B8,H8,0),0) -> 0 | K11: 0 | Q11: Chèque | R11: =SUMPRODUCT((TaxiMois=R5)*(TaxiMode=$Q$11)*TaxiRec) -> 0 | S11: 200 | T11: 0 | U11: 0 | V11: 0 | W11: 0 | X11: 0 | Y11: 0 | Z11: 0 | AA11: 124 | AB11: 0 | AC11: 0 | AD11: =SUM(R11:AC12) -> 324
B12: 2013-10-03 | C12: 41550 | D12: 40 | E12: OCTOBRE | F12: Taxi | G12: Résultat | H12: =IF(C12=0,0,(SUMPRODUCT((CaDate=C12)*(CACatégorie="Taxi")*(CaMode=G12)*CaCrédit))) -> 0 | I12: =IF(AND((TaxiJour=B12),(TaxiMode="Résultat")),IF(B12=B11,H11,0)+IF(B12=B10,H10,0)+IF(B12=B9,H9,0)+IF(B12=B8,H8,0),0) -> 106 | K12: 0
B13: 2013-10-04 | C13: 41551 | D13: 40 | E13: OCTOBRE | F13: Taxi | G13: Espèce | H13: =IF(C13=0,0,(SUMPRODUCT((CaDate=C13)*(CACatégorie="Taxi")*(CaMode=G13)*CaCrédit))) -> 20 | I13: =IF(AND((TaxiJour=B13),(TaxiMode="Résultat")),IF(B13=B12,H12,0)+IF(B13=B11,H11,0)+IF(B13=B10,H10,0)+IF(B13=B9,H9,0)+IF(B13=B8,H8,0),0) -> 0 | K13: 0 | Q13: CB | R13: =SUMPRODUCT((TaxiMois=R5)*(TaxiMode=$Q$13)*TaxiRec) -> 0 | S13: 0 | T13: 0 | U13: 0 | V13: 0 | W13: 0 | X13: 0 | Y13: 0 | Z13: 0 | AA13: 0 | AB13: 0 | AC13: 0 | AD13: =SUM(R13:AC14) -> 0
B14: 2013-10-04 | C14: 41551 | D14: 40 | E14: OCTOBRE | F14: Taxi | G14: Chèque | H14: =IF(C14=0,0,(SUMPRODUCT((CaDate=C14)*(CACatégorie="Taxi")*(CaMode=G14)*CaCrédit))) -> 78 | I14: 0 | K14: 0
B15: 2013-10-04 | C15: 41551 | D15: 40 | E15: OCTOBRE | F15: Taxi | G15: Résultat | H15: =IF(C15=0,0,(SUMPRODUCT((CaDate=C15)*(CACatégorie="Taxi")*(CaMode=G15)*CaCrédit))) -> 0 | I15: 98 | J15: 40 | K15: 204 | Q15: Tickets | R15: =SUMPRODUCT((TaxiMois=R5)*(TaxiMode=$Q$15)*TaxiRec) -> 0 | S15: 0 | T15: 0 | U15: 0 | V15: 0 | W15: 0 | X15: 0 | Y15: 0 | Z15: 0 | AA15: 10 | AB15: 0 | AC15: 0 | AD15: =SUM(R15:AC16) -> 10
C16: 0 | D16: 52 | F16: Taxi | G16: Résultat | H16: =IF(C16=0,0,(SUMPRODUCT((CaDate=C16)*(CACatégorie="Taxi")*(CaMode=G16)*CaCrédit))) -> 0 | I16: 0 | K16: 0 | AE16: vérif
C17: 0 | D17: 52 | F17: Taxi | G17: Chèque | H17: =IF(C17=0,0,(SUMPRODUCT((CaDate=C17)*(CACatégorie="Taxi")*(CaMode=G17)*CaCrédit))) -> 0 | I17: 0 | K17: 0 | Q17: TOTAL | R17: =R9+R11+R13+R15 -> 100 | S17: =S9+S11+S13+S15 -> 200 | T17: 0 | U17: 0 | V17: 0 | W17: 0 | X17: 0 | Y17: 0 | Z17: 0 | AA17: 204 | AB17: 0 | AC17: 0 | AD17: =SUM(R17:AC17) -> 504 | AE17: =AD9+AD11+AD13+AD15 -> 504
C18: 0 | D18: 52 | F18: Taxi | G18: Résultat | H18: =IF(C18=0,0,(SUMPRODUCT((CaDate=C18)*(CACatégorie="Taxi")*(CaMode=G18)*CaCrédit))) -> 0 | I18: 0 | J18: 41 | K18: 0
C19: 0 | D19: 52 | F19: Taxi | H19: =IF(C19=0,0,(SUMPRODUCT((CaDate=C19)*(CACatégorie="Taxi")*(CaMode=G19)*CaCrédit))) -> 0 | I19: 0 | K19: 0 | P19: Différence avec l'objectif | R19: =R17-R7 -> -615 | S19: =S17-S7 -> -158 | T19: -715 | U19: -1430 | V19: -1430 | W19: -1788 | X19: -1787 | Y19: -1430 | Z19: -1430 | AA19: -511 | AB19: -357 | AC19: -715 | AD19: -12366
C20: 0 | D20: 52 | F20: Taxi | H20: =IF(C20=0,0,(SUMPRODUCT((CaDate=C20)*(CACatégorie="Taxi")*(CaMode=G20)*CaCrédit))) -> 0 | I20: 0 | K20: 0 | Q20: en % | R20: =(R19/R7) -> -0.8601398601 | S20: =(S19/S7) -> -0.4413407821 | T20: -1 | U20: -1 | V20: -1 | W20: -1 | X20: -1 | Y20: -1 | Z20: -1 | AA20: -0.7146853147 | AB20: -1 | AC20: -1 | AD20: -0.9608391608
C21: 0 | D21: 52 | F21: Taxi | G21: Espèce | H21: =IF(C21=0,0,(SUMPRODUCT((CaDate=C21)*(CACatégorie="Taxi")*(CaMode=G21)*CaCrédit))) -> 0 | I21: 0 | K21: 0
B22: 2014-01-31 | C22: 41670 | D22: 5 | E22: JANVIER | F22: Taxi | G22: Espèce | H22: =IF(C22=0,0,(SUMPRODUCT((CaDate=C22)*(CACatégorie="Taxi")*(CaMode=G22)*CaCrédit))) -> 100 | I22: 0 | K22: 0
B23: 2014-01-31 | C23: 41670 | D23: 5 | E23: JANVIER | F23: Taxi | G23: Résultat | H23: =IF(C23=0,0,(SUMPRODUCT((CaDate=C23)*(CACatégorie="Taxi")*(CaMode=G23)*CaCrédit))) -> 0 | I23: 100 | K23: 0 | P23: Notice
B24: 2014-02-01 | C24: 41671 | D24: 5 | E24: FÉVRIER | F24: Taxi | G24: Chèque | H24: =IF(C24=0,0,(SUMPRODUCT((CaDate=C24)*(CACatégorie="Taxi")*(CaMode=G24)*CaCrédit))) -> 200 | I24: 0 | K24: 0 | P24: Total semaine | R24: =SUMPRODUCT((TaxiValid=1)*(TaxiTotalSem)) -> 0 | S24: =SUMPRODUCT((TaxiValid=5)*(TaxiTotalSem))-R31 -> 200 | T24: =SUMPRODUCT((TaxiValid=9)*(TaxiTotalSem))-S31 -> 0 | U24: =SUMPRODUCT((TaxiValid=14)*(TaxiTotalSem))-T31 -> 0 | V24: =SUMPRODUCT((TaxiValid=18)*(TaxiTotalSem))-U31 -> 0 | W24: =SUMPRODUCT((TaxiValid=22)*(TaxiTotalSem))-V31 -> 0 | X24: =SUMPRODUCT((TaxiValid=27)*(TaxiTotalSem))-W31 -> 0 | Y24: =SUMPRODUCT((TaxiValid=31)*(TaxiTotalSem))-X31 -> 0 | Z24: =SUMPRODUCT((TaxiValid=35)*(TaxiTotalSem))-Y31 -> 0 | AA24: =SUMPRODUCT((TaxiValid=40)*(TaxiTotalSem))-Z31 -> 204 | AB24: =SUMPRODUCT((TaxiValid=44)*(TaxiTotalSem))-AA31 -> 0 | AC24: =SUMPRODUCT((TaxiValid=48)*(TaxiTotalSem))-AB31 -> 0
B25: 2014-02-01 | C25: 41671 | D25: 5 | E25: FÉVRIER | F25: Taxi | G25: Résultat | H25: =IF(C25=0,0,(SUMPRODUCT((CaDate=C25)*(CACatégorie="Taxi")*(CaMode=G25)*CaCrédit))) -> 0 | I25: 200 | J25: 5 | K25: 300 | P25: Total semaine | R25: =SUMPRODUCT((TaxiValid=2)*(TaxiTotalSem)) -> 0 | S25: =SUMPRODUCT((TaxiValid=6)*(TaxiTotalSem)) -> 0 | T25: =SUMPRODUCT((TaxiValid=10)*(TaxiTotalSem)) -> 0 | U25: =SUMPRODUCT((TaxiValid=15)*(TaxiTotalSem)) -> 0 | V25: =SUMPRODUCT((TaxiValid=19)*(TaxiTotalSem)) -> 0 | W25: =SUMPRODUCT((TaxiValid=23)*(TaxiTotalSem)) -> 0 | X25: =SUMPRODUCT((TaxiValid=28)*(TaxiTotalSem)) -> 0 | Y25: =SUMPRODUCT((TaxiValid=32)*(TaxiTotalSem)) -> 0 | Z25: =SUMPRODUCT((TaxiValid=36)*(TaxiTotalSem)) -> 0 | AA25: =SUMPRODUCT((TaxiValid=41)*(TaxiTotalSem)) -> 0 | AB25: =SUMPRODUCT((TaxiValid=45)*(TaxiTotalSem)) -> 0 | AC25: =SUMPRODUCT((TaxiValid=49)*(TaxiTotalSem)) -> 0
C26: 0 | D26: 52 | F26: Taxi | H26: =IF(C26=0,0,(SUMPRODUCT((CaDate=C26)*(CACatégorie="Taxi")*(CaMode=G26)*CaCrédit))) -> 0 | I26: 0 | K26: 0 | P26: Total semaine | R26: =SUMPRODUCT((TaxiValid=3)*(TaxiTotalSem)) -> 0 | S26: =SUMPRODUCT((TaxiValid=7)*(TaxiTotalSem)) -> 0 | T26: =SUMPRODUCT((TaxiValid=11)*(TaxiTotalSem)) -> 0 | U26: =SUMPRODUCT((TaxiValid=16)*(TaxiTotalSem)) -> 0 | V26: =SUMPRODUCT((TaxiValid=20)*(TaxiTotalSem)) -> 0 | W26: =SUMPRODUCT((TaxiValid=24)*(TaxiTotalSem)) -> 0 | X26: =SUMPRODUCT((TaxiValid=29)*(TaxiTotalSem)) -> 0 | Y26: =SUMPRODUCT((TaxiValid=33)*(TaxiTotalSem)) -> 0 | Z26: =SUMPRODUCT((TaxiValid=37)*(TaxiTotalSem)) -> 0 | AA26: =SUMPRODUCT((TaxiValid=42)*(TaxiTotalSem)) -> 0 | AB26: =SUMPRODUCT((TaxiValid=46)*(TaxiTotalSem)) -> 0 | AC26: =SUMPRODUCT((TaxiValid=50)*(TaxiTotalSem)) -> 0
C27: 0 | D27: 52 | F27: Taxi | H27: =IF(C27=0,0,(SUMPRODUCT((CaDate=C27)*(CACatégorie="Taxi")*(CaMode=G27)*CaCrédit))) -> 0 | I27: 0 | K27: 0 | P27: Total semaine | R27: =SUMPRODUCT((TaxiValid=4)*(TaxiTotalSem)) -> 0 | S27: =SUMPRODUCT((TaxiValid=8)*(TaxiTotalSem)) -> 0 | T27: =SUMPRODUCT((TaxiValid=12)*(TaxiTotalSem)) -> 0 | U27: =SUMPRODUCT((TaxiValid=17)*(TaxiTotalSem)) -> 0 | V27: =SUMPRODUCT((TaxiValid=21)*(TaxiTotalSem)) -> 0 | W27: =SUMPRODUCT((TaxiValid=25)*(TaxiTotalSem)) -> 0 | X27: =SUMPRODUCT((TaxiValid=30)*(TaxiTotalSem)) -> 0 | Y27: =SUMPRODUCT((TaxiValid=34)*(TaxiTotalSem)) -> 0 | Z27: =SUMPRODUCT((TaxiValid=38)*(TaxiTotalSem)) -> 0 | AA27: =SUMPRODUCT((TaxiValid=43)*(TaxiTotalSem)) -> 0 | AB27: =SUMPRODUCT((TaxiValid=47)*(TaxiTotalSem)) -> 0 | AC27: =SUMPRODUCT((TaxiValid=51)*(TaxiTotalSem)) -> 0
C28: 0 | D28: 52 | F28: Taxi | H28: =IF(C28=0,0,(SUMPRODUCT((CaDate=C28)*(CACatégorie="Taxi")*(CaMode=G28)*CaCrédit))) -> 0 | I28: 0 | K28: 0 | P28: Total semaine | T28: =SUMPRODUCT((TaxiValid=13)*(TaxiTotalSem)) -> 0 | W28: =SUMPRODUCT((TaxiValid=26)*(TaxiTotalSem)) -> 0 | Z28: =SUMPRODUCT((TaxiValid=39)*(TaxiTotalSem)) -> 0 | AC28: =SUMPRODUCT((TaxiValid=52)*(TaxiTotalSem)) -> 0
C29: 0 | D29: 52 | F29: Taxi | H29: =IF(C29=0,0,(SUMPRODUCT((CaDate=C29)*(CACatégorie="Taxi")*(CaMode=G29)*CaCrédit))) -> 0 | I29: 0 | K29: 0 | P29: Total semaine | AC29: =SUMPRODUCT((TaxiValid=1)*(TaxiTotalSem))-R24 -> 0
C30: 0 | D30: 52 | F30: Taxi | H30: =IF(C30=0,0,(SUMPRODUCT((CaDate=C30)*(CACatégorie="Taxi")*(CaMode=G30)*CaCrédit))) -> 0 | I30: 0 | K30: 0 | P30: Total semaine | R30: =SUMPRODUCT((TaxiValid=5)*(TaxiTotalSem))-S24 -> 100 | S30: =SUMPRODUCT((TaxiValid=9)*(TaxiTotalSem))-T24 -> 0 | T30: =SUMPRODUCT((TaxiValid=14)*(TaxiTotalSem))-U24 -> 0 | U30: =SUMPRODUCT((TaxiValid=18)*(TaxiTotalSem))-V24 -> 0 | V30: =SUMPRODUCT((TaxiValid=22)*(TaxiTotalSem))-W24 -> 0 | W30: =SUMPRODUCT((TaxiValid=27)*(TaxiTotalSem))-X24 -> 0 | X30: =SUMPRODUCT((TaxiValid=31)*(TaxiTotalSem))-Y24 -> 0 | Y30: =SUMPRODUCT((TaxiValid=35)*(TaxiTotalSem))-Z24 -> 0 | Z30: =SUMPRODUCT((TaxiValid=40)*(TaxiTotalSem))-AA24 -> 0 | AA30: =SUMPRODUCT((TaxiValid=44)*(TaxiTotalSem))-AB24 -> 0 | AB30: =SUMPRODUCT((TaxiValid=48)*(TaxiTotalSem))-AC24 -> 0
C31: 0 | D31: 52 | F31: Taxi | H31: =IF(C31=0,0,(SUMPRODUCT((CaDate=C31)*(CACatégorie="Taxi")*(CaMode=G31)*CaCrédit))) -> 0 | I31: =IF(AND((TaxiJour=B31),(TaxiMode="Résultat")),IF(B31=B30,H30,0)+IF(B31=B27,H27,0)+IF(B31=B26,H26,0)+IF(B31=B25,H25,0)+IF(B31=B24,H24,0),0) -> 0 | K31: 0 | P31: report différence jour | R31: 100
C32: 0 | D32: 52 | F32: Taxi | H32: =IF(C32=0,0,(SUMPRODUCT((CaDate=C32)*(CACatégorie="Taxi")*(CaMode=G32)*CaCrédit))) -> 0 | I32: =IF(AND((TaxiJour=B32),(TaxiMode="Résultat")),IF(B32=B31,H31,0)+IF(B32=B30,H30,0)+IF(B32=B27,H27,0)+IF(B32=B26,H26,0)+IF(B32=B25,H25,0),0) -> 0 | K32: 0 | P32: Total mois | Q32: vérif | R32: =SUM(R24:R30) -> 100 | S32: =SUM(S24:S30) -> 200 | T32: 0 | U32: 0 | V32: 0 | W32: 0 | X32: 0 | Y32: 0 | Z32: 0 | AA32: 204 | AB32: 0 | AC32: 0 | AD32: =SUM(R32:AC32) -> 504
C33: 0 | D33: 52 | F33: Taxi | H33: =IF(C33=0,0,(SUMPRODUCT((CaDate=C33)*(CACatégorie="Taxi")*(CaMode=G33)*CaCrédit))) -> 0 | I33: =IF(AND((TaxiJour=B33),(TaxiMode="Résultat")),IF(B33=B32,H32,0)+IF(B33=B31,H31,0)+IF(B33=B30,H30,0)+IF(B33=B27,H27,0)+IF(B33=B26,H26,0),0) -> 0 | K33: 0
C34: 0 | D34: 52 | F34: Taxi | H34: =IF(C34=0,0,(SUMPRODUCT((CaDate=C34)*(CACatégorie="Taxi")*(CaMode=G34)*CaCrédit))) -> 0 | I34: =IF(AND((TaxiJour=B34),(TaxiMode="Résultat")),IF(B34=B33,H33,0)+IF(B34=B32,H32,0)+IF(B34=B31,H31,0)+IF(B34=B30,H30,0)+IF(B34=B27,H27,0),0) -> 0 | K34: 0
C35: 0 | D35: 52 | F35: Taxi | H35: =IF(C35=0,0,(SUMPRODUCT((CaDate=C35)*(CACatégorie="Taxi")*(CaMode=G35)*CaCrédit))) -> 0 | I35: 0 | K35: 0 | O35: Notice | P35: Taxi | Q35: TX | AD35: =SUM(R35:AC35) -> 0
C36: 0 | D36: 52 | F36: Taxi | H36: =IF(C36=0,0,(SUMPRODUCT((CaDate=C36)*(CACatégorie="Taxi")*(CaMode=G36)*CaCrédit))) -> 0 | I36: 0 | K36: 0 | P36: Livraisons | Q36: LV | AD36: =SUM(R36:AC36) -> 0
C37: 0 | D37: 52 | F37: Taxi | H37: =IF(C37=0,0,(SUMPRODUCT((CaDate=C37)*(CACatégorie="Taxi")*(CaMode=G37)*CaCrédit))) -> 0 | I37: 0 | K37: 0 | P37: Essentiel | Q37: ES | AD37: =SUM(R37:AC37) -> 0
C38: 0 | D38: 52 | F38: Taxi | H38: =IF(C38=0,0,(SUMPRODUCT((CaDate=C38)*(CACatégorie="Taxi")*(CaMode=G38)*CaCrédit))) -> 0 | I38: 0 | K38: 0 | P38: Intégral | Q38: IN | AD38: =SUM(R38:AC38) -> 0 | AE38: vérif
C39: 0 | D39: 52 | F39: Taxi | H39: =IF(C39=0,0,(SUMPRODUCT((CaDate=C39)*(CACatégorie="Taxi")*(CaMode=G39)*CaCrédit))) -> 0 | I39: 0 | K39: 0 | Q39: TOTAL | R39: =SUM(R35:R38) -> 0 | S39: =SUM(S35:S38) -> 0 | T39: 0 | U39: 0 | V39: 0 | W39: 0 | X39: 0 | Y39: 0 | Z39: 0 | AA39: 0 | AB39: 0 | AC39: 0 | AD39: 0 | AE39: =SUM(R39:AC39) -> 0
C40: 0 | D40: 52 | F40: Taxi | H40: =IF(C40=0,0,(SUMPRODUCT((CaDate=C40)*(CACatégorie="Taxi")*(CaMode=G40)*CaCrédit))) -> 0 | I40: 0 | K40: 0
C41: 0 | D41: 52 | F41: Taxi | H41: =IF(C41=0,0,(SUMPRODUCT((CaDate=C41)*(CACatégorie="Taxi")*(CaMode=G41)*CaCrédit))) -> 0 | I41: 0 | K41: 0 | P41: Réservations | Q41: taxi
C42: 0 | D42: 52 | F42: Taxi | H42: =IF(C42=0,0,(SUMPRODUCT((CaDate=C42)*(CACatégorie="Taxi")*(CaMode=G42)*CaCrédit))) -> 0 | I42: 0 | K42: 0 | Q42: tourisme
C43: 0 | D43: 52 | F43: Taxi | H43: =IF(C43=0,0,(SUMPRODUCT((CaDate=C43)*(CACatégorie="Taxi")*(CaMode=G43)*CaCrédit))) -> 0 | I43: 0 | K43: 0 | Q43: total | R43: =R41+R42 -> 0 | S43: =S41+S42 -> 0 | T43: 0 | U43: 0 | V43: 0 | W43: 0 | X43: 0 | Y43: 0 | Z43: 0 | AA43: 0 | AB43: 0 | AC43: 0 | AD43: =SUM(R43:AC43) -> 0
C44: 0 | D44: 52 | F44: Taxi | H44: =IF(C44=0,0,(SUMPRODUCT((CaDate=C44)*(CACatégorie="Taxi")*(CaMode=G44)*CaCrédit))) -> 0 | I44: 0 | K44: 0
C45: 0 | D45: 52 | F45: Taxi | H45: =IF(C45=0,0,(SUMPRODUCT((CaDate=C45)*(CACatégorie="Taxi")*(CaMode=G45)*CaCrédit))) -> 0 | I45: 0 | K45: 0
C46: 0 | D46: 52 | F46: Taxi | H46: =IF(C46=0,0,(SUMPRODUCT((CaDate=C46)*(CACatégorie="Taxi")*(CaMode=G46)*CaCrédit))) -> 0 | I46: 0 | K46: 0 | O46: CYCLO 2 | P46: Taxi | Q46: TX | AD46: =SUM(R46:AC46) -> 0
C47: 0 | D47: 52 | F47: Taxi | H47: =IF(C47=0,0,(SUMPRODUCT((CaDate=C47)*(CACatégorie="Taxi")*(CaMode=G47)*CaCrédit))) -> 0 | I47: 0 | K47: 0 | P47: Livraisons | Q47: LV | AD47: =SUM(R47:AC47) -> 0
C48: 0 | D48: 52 | F48: Taxi | H48: =IF(C48=0,0,(SUMPRODUCT((CaDate=C48)*(CACatégorie="Taxi")*(CaMode=G48)*CaCrédit))) -> 0 | I48: 0 | K48: 0 | P48: Essentiel | Q48: ES | AD48: =SUM(R48:AC48) -> 0
C49: 0 | D49: 52 | F49: Taxi | H49: =IF(C49=0,0,(SUMPRODUCT((CaDate=C49)*(CACatégorie="Taxi")*(CaMode=G49)*CaCrédit))) -> 0 | I49: 0 | K49: 0 | P49: Intégral | Q49: IN | AD49: =SUM(R49:AC49) -> 0 | AE49: vérif
C50: 0 | D50: 52 | F50: Taxi | H50: =IF(C50=0,0,(SUMPRODUCT((CaDate=C50)*(CACatégorie="Taxi")*(CaMode=G50)*CaCrédit))) -> 0 | I50: 0 | K50: 0 | Q50: TOTAL | R50: =SUM(R46:R49) -> 0 | S50: =SUM(S46:S49) -> 0 | T50: 0 | U50: 0 | V50: 0 | W50: 0 | X50: 0 | Y50: 0 | Z50: 0 | AA50: 0 | AB50: 0 | AC50: 0 | AD50: 0 | AE50: =SUM(R50:AC50) -> 0
C51: 0 | D51: 52 | F51: Taxi | H51: =IF(C51=0,0,(SUMPRODUCT((CaDate=C51)*(CACatégorie="Taxi")*(CaMode=G51)*CaCrédit))) -> 0 | I51: 0 | K51: 0
C52: 0 | D52: 52 | F52: Taxi | H52: =IF(C52=0,0,(SUMPRODUCT((CaDate=C52)*(CACatégorie="Taxi")*(CaMode=G52)*CaCrédit))) -> 0 | I52: 0 | K52: 0
C53: 0 | D53: 52 | F53: Taxi | H53: =IF(C53=0,0,(SUMPRODUCT((CaDate=C53)*(CACatégorie="Taxi")*(CaMode=G53)*CaCrédit))) -> 0 | I53: 0 | K53: 0
C54: 0 | D54: 52 | F54: Taxi | H54: =IF(C54=0,0,(SUMPRODUCT((CaDate=C54)*(CACatégorie="Taxi")*(CaMode=G54)*CaCrédit))) -> 0 | I54: 0 | K54: 0
C55: 0 | D55: 52 | F55: Taxi | H55: =IF(C55=0,0,(SUMPRODUCT((CaDate=C55)*(CACatégorie="Taxi")*(CaMode=G55)*CaCrédit))) -> 0 | I55: 0 | K55: 0
C56: 0 | D56: 52 | F56: Taxi | H56: =IF(C56=0,0,(SUMPRODUCT((CaDate=C56)*(CACatégorie="Taxi")*(CaMode=G56)*CaCrédit))) -> 0 | I56: 0 | K56: 0
C57: 0 | D57: 52 | F57: Taxi | H57: =IF(C57=0,0,(SUMPRODUCT((CaDate=C57)*(CACatégorie="Taxi")*(CaMode=G57)*CaCrédit))) -> 0 | I57: 0 | K57: 0
C58: 0 | D58: 52 | F58: Taxi | H58: =IF(C58=0,0,(SUMPRODUCT((CaDate=C58)*(CACatégorie="Taxi")*(CaMode=G58)*CaCrédit))) -> 0 | I58: 0 | K58: 0
C59: 0 | D59: 52 | F59: Taxi | H59: =IF(C59=0,0,(SUMPRODUCT((CaDate=C59)*(CACatégorie="Taxi")*(CaMode=G59)*CaCrédit))) -> 0 | I59: 0 | K59: 0
C60: 0 | D60: 52 | F60: Taxi | H60: =IF(C60=0,0,(SUMPRODUCT((CaDate=C60)*(CACatégorie="Taxi")*(CaMode=G60)*CaCrédit))) -> 0 | I60: 0 | K60: 0
C61: 0 | D61: 52 | F61: Taxi | H61: =IF(C61=0,0,(SUMPRODUCT((CaDate=C61)*(CACatégorie="Taxi")*(CaMode=G61)*CaCrédit))) -> 0 | I61: 0 | K61: 0
C62: 0 | D62: 52 | F62: Taxi | H62: =IF(C62=0,0,(SUMPRODUCT((CaDate=C62)*(CACatégorie="Taxi")*(CaMode=G62)*CaCrédit))) -> 0 | I62: 0 | K62: 0
C63: 0 | D63: 52 | F63: Taxi | H63: =IF(C63=0,0,(SUMPRODUCT((CaDate=C63)*(CACatégorie="Taxi")*(CaMode=G63)*CaCrédit))) -> 0 | I63: 0 | K63: 0
C64: 0 | D64: 52 | F64: Taxi | H64: =IF(C64=0,0,(SUMPRODUCT((CaDate=C64)*(CACatégorie="Taxi")*(CaMode=G64)*CaCrédit))) -> 0 | I64: 0 | K64: 0
C65: 0 | D65: 52 | F65: Taxi | H65: =IF(C65=0,0,(SUMPRODUCT((CaDate=C65)*(CACatégorie="Taxi")*(CaMode=G65)*CaCrédit))) -> 0 | I65: 0 | K65: 0
C66: 0 | D66: 52 | F66: Taxi | H66: =IF(C66=0,0,(SUMPRODUCT((CaDate=C66)*(CACatégorie="Taxi")*(CaMode=G66)*CaCrédit))) -> 0 | I66: 0 | K66: 0
C67: 0 | D67: 52 | F67: Taxi | H67: =IF(C67=0,0,(SUMPRODUCT((CaDate=C67)*(CACatégorie="Taxi")*(CaMode=G67)*CaCrédit))) -> 0 | I67: 0 | K67: 0
C68: 0 | D68: 52 | F68: Taxi | H68: =IF(C68=0,0,(SUMPRODUCT((CaDate=C68)*(CACatégorie="Taxi")*(CaMode=G68)*CaCrédit))) -> 0 | I68: 0 | K68: 0
C69: 0 | D69: 52 | F69: Taxi | H69: =IF(C69=0,0,(SUMPRODUCT((CaDate=C69)*(CACatégorie="Taxi")*(CaMode=G69)*CaCrédit))) -> 0 | I69: 0 | K69: 0
C70: 0 | D70: 52 | F70: Taxi | H70: =IF(C70=0,0,(SUMPRODUCT((CaDate=C70)*(CACatégorie="Taxi")*(CaMode=G70)*CaCrédit))) -> 0 | I70: 0 | K70: 0
C71: 0 | D71: 52 | F71: Taxi | H71: =IF(C71=0,0,(SUMPRODUCT((CaDate=C71)*(CACatégorie="Taxi")*(CaMode=G71)*CaCrédit))) -> 0 | I71: 0 | K71: 0
C72: 0 | D72: 52 | F72: Taxi | H72: =IF(C72=0,0,(SUMPRODUCT((CaDate=C72)*(CACatégorie="Taxi")*(CaMode=G72)*CaCrédit))) -> 0 | I72: 0 | K72: =SUMPRODUCT((J72=TaxiSemaine)*(TaxiTotalJour)) -> 0
C73: 0 | D73: 52 | F73: Taxi | H73: =IF(C73=0,0,(SUMPRODUCT((CaDate=C73)*(CACatégorie="Taxi")*(CaMode=G73)*CaCrédit))) -> 0 | I73: 0 | K73: 0
C74: 0 | D74: 52 | F74: Taxi | H74: =IF(C74=0,0,(SUMPRODUCT((CaDate=C74)*(CACatégorie="Taxi")*(CaMode=G74)*CaCrédit))) -> 0 | I74: 0 | K74: 0
C75: =DATE(YEAR(B75),MONTH(B75),DAY(B75)) -> 0 | D75: =INT(MOD(INT((B75-2)/7)+0.6,52+5/28))+1 -> 52 | E75: =IF(B75=0,"",UPPER(TEXT(B75,"mmmm"))) ->  | F75: Taxi | H75: =IF(C75=0,0,(SUMPRODUCT((CaDate=C75)*(CACatégorie="Taxi")*(CaMode=G75)*CaCrédit))) -> 0 | I75: 0 | K75: 0
C76: 0 | D76: 52 | F76: Taxi | H76: =IF(C76=0,0,(SUMPRODUCT((CaDate=C76)*(CACatégorie="Taxi")*(CaMode=G76)*CaCrédit))) -> 0 | I76: 0 | K76: 0
C77: 0 | D77: 52 | F77: Taxi | H77: =IF(C77=0,0,(SUMPRODUCT((CaDate=C77)*(CACatégorie="Taxi")*(CaMode=G77)*CaCrédit))) -> 0 | I77: 0 | K77: 0
C78: 0 | D78: 52 | F78: Taxi | H78: =IF(C78=0,0,(SUMPRODUCT((CaDate=C78)*(CACatégorie="Taxi")*(CaMode=G78)*CaCrédit))) -> 0 | I78: 0 | K78: 0
C79: 0 | D79: 52 | F79: Taxi | H79: =IF(C79=0,0,(SUMPRODUCT((CaDate=C79)*(CACatégorie="Taxi")*(CaMode=G79)*CaCrédit))) -> 0 | I79: =IF(AND((TaxiJour=B79),(TaxiMode="Résultat")),IF(B79=B78,H78,0)+IF(B79=B77,H77,0)+IF(B79=B76,H76,0)+IF(B79=B75,H75,0)+IF(B79=B74,H74,0),0) -> 0 | K79: 0
C80: 0 | D80: 52 | F80: Taxi | H80: =IF(C80=0,0,(SUMPRODUCT((CaDate=C80)*(CACatégorie="Taxi")*(CaMode=G80)*CaCrédit))) -> 0 | I80: 0 | K80: 0
C81: 0 | D81: 52 | F81: Taxi | H81: =IF(C81=0,0,(SUMPRODUCT((CaDate=C81)*(CACatégorie="Taxi")*(CaMode=G81)*CaCrédit))) -> 0 | I81: 0 | K81: 0
C82: 0 | D82: 52 | F82: Taxi | H82: =IF(C82=0,0,(SUMPRODUCT((CaDate=C82)*(CACatégorie="Taxi")*(CaMode=G82)*CaCrédit))) -> 0 | I82: 0 | K82: 0
C83: 0 | D83: 52 | F83: Taxi | H83: =IF(C83=0,0,(SUMPRODUCT((CaDate=C83)*(CACatégorie="Taxi")*(CaMode=G83)*CaCrédit))) -> 0 | I83: 0 | K83: 0
C84: 0 | D84: 52 | F84: Taxi | H84: =IF(C84=0,0,(SUMPRODUCT((CaDate=C84)*(CACatégorie="Taxi")*(CaMode=G84)*CaCrédit))) -> 0 | I84: 0 | K84: 0
C85: 0 | D85: 52 | F85: Taxi | H85: =IF(C85=0,0,(SUMPRODUCT((CaDate=C85)*(CACatégorie="Taxi")*(CaMode=G85)*CaCrédit))) -> 0 | I85: 0 | K85: 0
C86: 0 | D86: 52 | F86: Taxi | H86: =IF(C86=0,0,(SUMPRODUCT((CaDate=C86)*(CACatégorie="Taxi")*(CaMode=G86)*CaCrédit))) -> 0 | I86: 0 | K86: 0
C87: 0 | D87: 52 | F87: Taxi | H87: =IF(C87=0,0,(SUMPRODUCT((CaDate=C87)*(CACatégorie="Taxi")*(CaMode=G87)*CaCrédit))) -> 0 | I87: 0 | K87: 0
C88: 0 | D88: 52 | F88: Taxi | H88: =IF(C88=0,0,(SUMPRODUCT((CaDate=C88)*(CACatégorie="Taxi")*(CaMode=G88)*CaCrédit))) -> 0 | I88: 0 | K88: 0
C89: 0 | D89: 52 | F89: Taxi | H89: =IF(C89=0,0,(SUMPRODUCT((CaDate=C89)*(CACatégorie="Taxi")*(CaMode=G89)*CaCrédit))) -> 0 | I89: 0 | K89: 0
C90: 0 | D90: 52 | F90: Taxi | H90: =IF(C90=0,0,(SUMPRODUCT((CaDate=C90)*(CACatégorie="Taxi")*(CaMode=G90)*CaCrédit))) -> 0 | I90: 0 | K90: 0
C91: 0 | D91: 52 | F91: Taxi | H91: =IF(C91=0,0,(SUMPRODUCT((CaDate=C91)*(CACatégorie="Taxi")*(CaMode=G91)*CaCrédit))) -> 0 | I91: 0 | K91: 0
C92: 0 | D92: 52 | F92: Taxi | H92: =IF(C92=0,0,(SUMPRODUCT((CaDate=C92)*(CACatégorie="Taxi")*(CaMode=G92)*CaCrédit))) -> 0 | I92: 0 | K92: 0
C93: 0 | D93: 52 | F93: Taxi | H93: =IF(C93=0,0,(SUMPRODUCT((CaDate=C93)*(CACatégorie="Taxi")*(CaMode=G93)*CaCrédit))) -> 0 | I93: 0 | K93: 0
C94: 0 | D94: 52 | F94: Taxi | H94: =IF(C94=0,0,(SUMPRODUCT((CaDate=C94)*(CACatégorie="Taxi")*(CaMode=G94)*CaCrédit))) -> 0 | I94: 0 | K94: 0
C95: 0 | D95: 52 | F95: Taxi | H95: =IF(C95=0,0,(SUMPRODUCT((CaDate=C95)*(CACatégorie="Taxi")*(CaMode=G95)*CaCrédit))) -> 0 | I95: 0 | K95: 0
C96: 0 | D96: 52 | F96: Taxi | H96: =IF(C96=0,0,(SUMPRODUCT((CaDate=C96)*(CACatégorie="Taxi")*(CaMode=G96)*CaCrédit))) -> 0 | I96: 0 | K96: 0
C97: 0 | D97: 52 | F97: Taxi | H97: =IF(C97=0,0,(SUMPRODUCT((CaDate=C97)*(CACatégorie="Taxi")*(CaMode=G97)*CaCrédit))) -> 0 | I97: 0 | K97: 0
C98: 0 | D98: 52 | F98: Taxi | H98: =IF(C98=0,0,(SUMPRODUCT((CaDate=C98)*(CACatégorie="Taxi")*(CaMode=G98)*CaCrédit))) -> 0 | I98: 0 | K98: 0
C99: 0 | D99: 52 | F99: Taxi | H99: =IF(C99=0,0,(SUMPRODUCT((CaDate=C99)*(CACatégorie="Taxi")*(CaMode=G99)*CaCrédit))) -> 0 | I99: 0 | K99: 0
C100: 0 | D100: 52 | F100: Taxi | H100: =IF(C100=0,0,(SUMPRODUCT((CaDate=C100)*(CACatégorie="Taxi")*(CaMode=G100)*CaCrédit))) -> 0 | I100: 0 | K100: 0
C101: 0 | D101: 52 | F101: Taxi | H101: =IF(C101=0,0,(SUMPRODUCT((CaDate=C101)*(CACatégorie="Taxi")*(CaMode=G101)*CaCrédit))) -> 0 | I101: 0 | K101: 0
C102: 0 | D102: 52 | F102: Taxi | H102: =IF(C102=0,0,(SUMPRODUCT((CaDate=C102)*(CACatégorie="Taxi")*(CaMode=G102)*CaCrédit))) -> 0 | I102: 0 | K102: 0
C103: 0 | D103: 52 | F103: Taxi | H103: =IF(C103=0,0,(SUMPRODUCT((CaDate=C103)*(CACatégorie="Taxi")*(CaMode=G103)*CaCrédit))) -> 0 | I103: 0 | K103: 0
C104: 0 | D104: 52 | F104: Taxi | H104: =IF(C104=0,0,(SUMPRODUCT((CaDate=C104)*(CACatégorie="Taxi")*(CaMode=G104)*CaCrédit))) -> 0 | I104: 0 | K104: 0
C105: 0 | D105: 52 | F105: Taxi | H105: =IF(C105=0,0,(SUMPRODUCT((CaDate=C105)*(CACatégorie="Taxi")*(CaMode=G105)*CaCrédit))) -> 0 | I105: 0 | K105: 0
C106: 0 | D106: 52 | F106: Taxi | H106: =IF(C106=0,0,(SUMPRODUCT((CaDate=C106)*(CACatégorie="Taxi")*(CaMode=G106)*CaCrédit))) -> 0 | I106: 0 | K106: 0
C107: 0 | D107: 52 | F107: Taxi | H107: =IF(C107=0,0,(SUMPRODUCT((CaDate=C107)*(CACatégorie="Taxi")*(CaMode=G107)*CaCrédit))) -> 0 | I107: 0 | K107: 0
C108: 0 | D108: 52 | F108: Taxi | H108: =IF(C108=0,0,(SUMPRODUCT((CaDate=C108)*(CACatégorie="Taxi")*(CaMode=G108)*CaCrédit))) -> 0 | I108: 0 | K108: 0
C109: 0 | D109: 52 | F109: Taxi | H109: =IF(C109=0,0,(SUMPRODUCT((CaDate=C109)*(CACatégorie="Taxi")*(CaMode=G109)*CaCrédit))) -> 0 | I109: 0 | K109: 0
C110: 0 | D110: 52 | F110: Taxi | H110: =IF(C110=0,0,(SUMPRODUCT((CaDate=C110)*(CACatégorie="Taxi")*(CaMode=G110)*CaCrédit))) -> 0 | I110: 0 | K110: 0
C111: 0 | D111: 52 | F111: Taxi | H111: =IF(C111=0,0,(SUMPRODUCT((CaDate=C111)*(CACatégorie="Taxi")*(CaMode=G111)*CaCrédit))) -> 0 | I111: 0 | K111: 0
C112: 0 | D112: 52 | F112: Taxi | H112: =IF(C112=0,0,(SUMPRODUCT((CaDate=C112)*(CACatégorie="Taxi")*(CaMode=G112)*CaCrédit))) -> 0 | I112: 0 | K112: 0
C113: 0 | D113: 52 | F113: Taxi | H113: =IF(C113=0,0,(SUMPRODUCT((CaDate=C113)*(CACatégorie="Taxi")*(CaMode=G113)*CaCrédit))) -> 0 | I113: 0 | K113: 0
C114: 0 | D114: 52 | F114: Taxi | H114: =IF(C114=0,0,(SUMPRODUCT((CaDate=C114)*(CACatégorie="Taxi")*(CaMode=G114)*CaCrédit))) -> 0 | I114: 0 | K114: 0
C115: 0 | D115: 52 | F115: Taxi | H115: =IF(C115=0,0,(SUMPRODUCT((CaDate=C115)*(CACatégorie="Taxi")*(CaMode=G115)*CaCrédit))) -> 0 | I115: 0 | K115: 0
C116: 0 | D116: 52 | F116: Taxi | H116: =IF(C116=0,0,(SUMPRODUCT((CaDate=C116)*(CACatégorie="Taxi")*(CaMode=G116)*CaCrédit))) -> 0 | I116: 0 | K116: 0
C117: 0 | D117: 52 | F117: Taxi | H117: =IF(C117=0,0,(SUMPRODUCT((CaDate=C117)*(CACatégorie="Taxi")*(CaMode=G117)*CaCrédit))) -> 0 | I117: 0 | K117: 0
C118: 0 | D118: 52 | F118: Taxi | H118: =IF(C118=0,0,(SUMPRODUCT((CaDate=C118)*(CACatégorie="Taxi")*(CaMode=G118)*CaCrédit))) -> 0 | I118: 0 | K118: 0
C119: 0 | D119: 52 | F119: Taxi | H119: =IF(C119=0,0,(SUMPRODUCT((CaDate=C119)*(CACatégorie="Taxi")*(CaMode=G119)*CaCrédit))) -> 0 | I119: 0 | K119: 0
C120: 0 | D120: 52 | F120: Taxi | H120: =IF(C120=0,0,(SUMPRODUCT((CaDate=C120)*(CACatégorie="Taxi")*(CaMode=G120)*CaCrédit))) -> 0 | I120: 0 | K120: 0
C121: 0 | D121: 52 | F121: Taxi | H121: =IF(C121=0,0,(SUMPRODUCT((CaDate=C121)*(CACatégorie="Taxi")*(CaMode=G121)*CaCrédit))) -> 0 | I121: 0 | K121: 0
C122: 0 | D122: 52 | F122: Taxi | H122: =IF(C122=0,0,(SUMPRODUCT((CaDate=C122)*(CACatégorie="Taxi")*(CaMode=G122)*CaCrédit))) -> 0 | I122: 0 | K122: 0
C123: 0 | D123: 52 | F123: Taxi | H123: =IF(C123=0,0,(SUMPRODUCT((CaDate=C123)*(CACatégorie="Taxi")*(CaMode=G123)*CaCrédit))) -> 0 | I123: 0 | K123: 0
C124: 0 | D124: 52 | F124: Taxi | H124: =IF(C124=0,0,(SUMPRODUCT((CaDate=C124)*(CACatégorie="Taxi")*(CaMode=G124)*CaCrédit))) -> 0 | I124: 0 | K124: 0
C125: 0 | D125: 52 | F125: Taxi | H125: =IF(C125=0,0,(SUMPRODUCT((CaDate=C125)*(CACatégorie="Taxi")*(CaMode=G125)*CaCrédit))) -> 0 | I125: 0 | K125: 0
C126: 0 | D126: 52 | F126: Taxi | H126: =IF(C126=0,0,(SUMPRODUCT((CaDate=C126)*(CACatégorie="Taxi")*(CaMode=G126)*CaCrédit))) -> 0 | I126: 0 | K126: 0
C127: 0 | D127: 52 | F127: Taxi | H127: =IF(C127=0,0,(SUMPRODUCT((CaDate=C127)*(CACatégorie="Taxi")*(CaMode=G127)*CaCrédit))) -> 0 | I127: 0 | K127: 0
C128: 0 | D128: 52 | F128: Taxi | H128: =IF(C128=0,0,(SUMPRODUCT((CaDate=C128)*(CACatégorie="Taxi")*(CaMode=G128)*CaCrédit))) -> 0 | I128: 0 | K128: 0
C129: 0 | D129: 52 | F129: Taxi | H129: =IF(C129=0,0,(SUMPRODUCT((CaDate=C129)*(CACatégorie="Taxi")*(CaMode=G129)*CaCrédit))) -> 0 | I129: 0 | K129: 0
C130: 0 | D130: 52 | F130: Taxi | H130: =IF(C130=0,0,(SUMPRODUCT((CaDate=C130)*(CACatégorie="Taxi")*(CaMode=G130)*CaCrédit))) -> 0 | I130: 0 | K130: 0
C131: 0 | D131: 52 | F131: Taxi | H131: =IF(C131=0,0,(SUMPRODUCT((CaDate=C131)*(CACatégorie="Taxi")*(CaMode=G131)*CaCrédit))) -> 0 | I131: 0 | K131: 0
C132: 0 | D132: 52 | F132: Taxi | H132: =IF(C132=0,0,(SUMPRODUCT((CaDate=C132)*(CACatégorie="Taxi")*(CaMode=G132)*CaCrédit))) -> 0 | I132: 0 | K132: 0
C133: 0 | D133: 52 | F133: Taxi | H133: =IF(C133=0,0,(SUMPRODUCT((CaDate=C133)*(CACatégorie="Taxi")*(CaMode=G133)*CaCrédit))) -> 0 | I133: 0 | K133: 0
C134: 0 | D134: 52 | F134: Taxi | H134: =IF(C134=0,0,(SUMPRODUCT((CaDate=C134)*(CACatégorie="Taxi")*(CaMode=G134)*CaCrédit))) -> 0 | I134: 0 | K134: 0
C135: 0 | D135: 52 | F135: Taxi | H135: =IF(C135=0,0,(SUMPRODUCT((CaDate=C135)*(CACatégorie="Taxi")*(CaMode=G135)*CaCrédit))) -> 0 | I135: 0 | K135: 0
C136: 0 | D136: 52 | F136: Taxi | H136: =IF(C136=0,0,(SUMPRODUCT((CaDate=C136)*(CACatégorie="Taxi")*(CaMode=G136)*CaCrédit))) -> 0 | I136: 0 | K136: =SUMPRODUCT((J136=TaxiSemaine)*(TaxiTotalJour)) -> 0
C137: 0 | D137: 52 | F137: Taxi | H137: =IF(C137=0,0,(SUMPRODUCT((CaDate=C137)*(CACatégorie="Taxi")*(CaMode=G137)*CaCrédit))) -> 0 | I137: 0 | K137: 0
C138: 0 | D138: 52 | F138: Taxi | H138: =IF(C138=0,0,(SUMPRODUCT((CaDate=C138)*(CACatégorie="Taxi")*(CaMode=G138)*CaCrédit))) -> 0 | I138: 0 | K138: 0
C139: =DATE(YEAR(B139),MONTH(B139),DAY(B139)) -> 0 | D139: =INT(MOD(INT((B139-2)/7)+0.6,52+5/28))+1 -> 52 | E139: =IF(B139=0,"",UPPER(TEXT(B139,"mmmm"))) ->  | F139: Taxi | H139: =IF(C139=0,0,(SUMPRODUCT((CaDate=C139)*(CACatégorie="Taxi")*(CaMode=G139)*CaCrédit))) -> 0 | I139: 0 | K139: 0
C140: 0 | D140: 52 | F140: Taxi | H140: =IF(C140=0,0,(SUMPRODUCT((CaDate=C140)*(CACatégorie="Taxi")*(CaMode=G140)*CaCrédit))) -> 0 | I140: 0 | K140: 0
C141: 0 | D141: 52 | F141: Taxi | H141: =IF(C141=0,0,(SUMPRODUCT((CaDate=C141)*(CACatégorie="Taxi")*(CaMode=G141)*CaCrédit))) -> 0 | I141: 0 | K141: 0
C142: 0 | D142: 52 | F142: Taxi | H142: =IF(C142=0,0,(SUMPRODUCT((CaDate=C142)*(CACatégorie="Taxi")*(CaMode=G142)*CaCrédit))) -> 0 | I142: 0 | K142: 0
C143: 0 | D143: 52 | F143: Taxi | H143: =IF(C143=0,0,(SUMPRODUCT((CaDate=C143)*(CACatégorie="Taxi")*(CaMode=G143)*CaCrédit))) -> 0 | I143: =IF(AND((TaxiJour=B143),(TaxiMode="Résultat")),IF(B143=B142,H142,0)+IF(B143=B141,H141,0)+IF(B143=B140,H140,0)+IF(B143=B139,H139,0)+IF(B143=B138,H138,0),0) -> 0 | K143: 0
C144: 0 | D144: 52 | F144: Taxi | H144: =IF(C144=0,0,(SUMPRODUCT((CaDate=C144)*(CACatégorie="Taxi")*(CaMode=G144)*CaCrédit))) -> 0 | I144: 0 | K144: 0
C145: 0 | D145: 52 | F145: Taxi | H145: =IF(C145=0,0,(SUMPRODUCT((CaDate=C145)*(CACatégorie="Taxi")*(CaMode=G145)*CaCrédit))) -> 0 | I145: 0 | K145: 0
C146: 0 | D146: 52 | F146: Taxi | H146: =IF(C146=0,0,(SUMPRODUCT((CaDate=C146)*(CACatégorie="Taxi")*(CaMode=G146)*CaCrédit))) -> 0 | I146: 0 | K146: 0
C147: 0 | D147: 52 | F147: Taxi | H147: =IF(C147=0,0,(SUMPRODUCT((CaDate=C147)*(CACatégorie="Taxi")*(CaMode=G147)*CaCrédit))) -> 0 | I147: 0 | K147: 0
C148: 0 | D148: 52 | F148: Taxi | H148: =IF(C148=0,0,(SUMPRODUCT((CaDate=C148)*(CACatégorie="Taxi")*(CaMode=G148)*CaCrédit))) -> 0 | I148: 0 | K148: 0
C149: 0 | D149: 52 | F149: Taxi | H149: =IF(C149=0,0,(SUMPRODUCT((CaDate=C149)*(CACatégorie="Taxi")*(CaMode=G149)*CaCrédit))) -> 0 | I149: 0 | K149: 0
C150: 0 | D150: 52 | F150: Taxi | H150: =IF(C150=0,0,(SUMPRODUCT((CaDate=C150)*(CACatégorie="Taxi")*(CaMode=G150)*CaCrédit))) -> 0 | I150: 0 | K150: 0
C151: 0 | D151: 52 | F151: Taxi | H151: =IF(C151=0,0,(SUMPRODUCT((CaDate=C151)*(CACatégorie="Taxi")*(CaMode=G151)*CaCrédit))) -> 0 | I151: 0 | K151: 0
C152: 0 | D152: 52 | F152: Taxi | H152: =IF(C152=0,0,(SUMPRODUCT((CaDate=C152)*(CACatégorie="Taxi")*(CaMode=G152)*CaCrédit))) -> 0 | I152: 0 | K152: 0
C153: 0 | D153: 52 | F153: Taxi | H153: =IF(C153=0,0,(SUMPRODUCT((CaDate=C153)*(CACatégorie="Taxi")*(CaMode=G153)*CaCrédit))) -> 0 | I153: 0 | K153: 0
C154: 0 | D154: 52 | F154: Taxi | H154: =IF(C154=0,0,(SUMPRODUCT((CaDate=C154)*(CACatégorie="Taxi")*(CaMode=G154)*CaCrédit))) -> 0 | I154: 0 | K154: 0
C155: 0 | D155: 52 | F155: Taxi | H155: =IF(C155=0,0,(SUMPRODUCT((CaDate=C155)*(CACatégorie="Taxi")*(CaMode=G155)*CaCrédit))) -> 0 | I155: 0 | K155: 0
C156: 0 | D156: 52 | F156: Taxi | H156: =IF(C156=0,0,(SUMPRODUCT((CaDate=C156)*(CACatégorie="Taxi")*(CaMode=G156)*CaCrédit))) -> 0 | I156: 0 | K156: 0
C157: 0 | D157: 52 | F157: Taxi | H157: =IF(C157=0,0,(SUMPRODUCT((CaDate=C157)*(CACatégorie="Taxi")*(CaMode=G157)*CaCrédit))) -> 0 | I157: 0 | K157: 0
C158: 0 | D158: 52 | F158: Taxi | H158: =IF(C158=0,0,(SUMPRODUCT((CaDate=C158)*(CACatégorie="Taxi")*(CaMode=G158)*CaCrédit))) -> 0 | I158: 0 | K158: 0
C159: 0 | D159: 52 | F159: Taxi | H159: =IF(C159=0,0,(SUMPRODUCT((CaDate=C159)*(CACatégorie="Taxi")*(CaMode=G159)*CaCrédit))) -> 0 | I159: 0 | K159: 0
C160: 0 | D160: 52 | F160: Taxi | H160: =IF(C160=0,0,(SUMPRODUCT((CaDate=C160)*(CACatégorie="Taxi")*(CaMode=G160)*CaCrédit))) -> 0 | I160: 0 | K160: 0
C161: 0 | D161: 52 | F161: Taxi | H161: =IF(C161=0,0,(SUMPRODUCT((CaDate=C161)*(CACatégorie="Taxi")*(CaMode=G161)*CaCrédit))) -> 0 | I161: 0 | K161: 0
C162: 0 | D162: 52 | F162: Taxi | H162: =IF(C162=0,0,(SUMPRODUCT((CaDate=C162)*(CACatégorie="Taxi")*(CaMode=G162)*CaCrédit))) -> 0 | I162: 0 | K162: 0
C163: 0 | D163: 52 | F163: Taxi | H163: =IF(C163=0,0,(SUMPRODUCT((CaDate=C163)*(CACatégorie="Taxi")*(CaMode=G163)*CaCrédit))) -> 0 | I163: 0 | K163: 0
C164: 0 | D164: 52 | F164: Taxi | H164: =IF(C164=0,0,(SUMPRODUCT((CaDate=C164)*(CACatégorie="Taxi")*(CaMode=G164)*CaCrédit))) -> 0 | I164: 0 | K164: 0
C165: 0 | D165: 52 | F165: Taxi | H165: =IF(C165=0,0,(SUMPRODUCT((CaDate=C165)*(CACatégorie="Taxi")*(CaMode=G165)*CaCrédit))) -> 0 | I165: 0 | K165: 0
C166: 0 | D166: 52 | F166: Taxi | H166: =IF(C166=0,0,(SUMPRODUCT((CaDate=C166)*(CACatégorie="Taxi")*(CaMode=G166)*CaCrédit))) -> 0 | I166: 0 | K166: 0
C167: 0 | D167: 52 | F167: Taxi | H167: =IF(C167=0,0,(SUMPRODUCT((CaDate=C167)*(CACatégorie="Taxi")*(CaMode=G167)*CaCrédit))) -> 0 | I167: 0 | K167: 0
C168: 0 | D168: 52 | F168: Taxi | H168: =IF(C168=0,0,(SUMPRODUCT((CaDate=C168)*(CACatégorie="Taxi")*(CaMode=G168)*CaCrédit))) -> 0 | I168: 0 | K168: 0
C169: 0 | D169: 52 | F169: Taxi | H169: =IF(C169=0,0,(SUMPRODUCT((CaDate=C169)*(CACatégorie="Taxi")*(CaMode=G169)*CaCrédit))) -> 0 | I169: 0 | K169: 0
C170: 0 | D170: 52 | F170: Taxi | H170: =IF(C170=0,0,(SUMPRODUCT((CaDate=C170)*(CACatégorie="Taxi")*(CaMode=G170)*CaCrédit))) -> 0 | I170: 0 | K170: 0
C171: 0 | D171: 52 | F171: Taxi | H171: =IF(C171=0,0,(SUMPRODUCT((CaDate=C171)*(CACatégorie="Taxi")*(CaMode=G171)*CaCrédit))) -> 0 | I171: 0 | K171: 0
C172: 0 | D172: 52 | F172: Taxi | H172: =IF(C172=0,0,(SUMPRODUCT((CaDate=C172)*(CACatégorie="Taxi")*(CaMode=G172)*CaCrédit))) -> 0 | I172: 0 | K172: 0
C173: 0 | D173: 52 | F173: Taxi | H173: =IF(C173=0,0,(SUMPRODUCT((CaDate=C173)*(CACatégorie="Taxi")*(CaMode=G173)*CaCrédit))) -> 0 | I173: 0 | K173: 0
C174: 0 | D174: 52 | F174: Taxi | H174: =IF(C174=0,0,(SUMPRODUCT((CaDate=C174)*(CACatégorie="Taxi")*(CaMode=G174)*CaCrédit))) -> 0 | I174: 0 | K174: 0
C175: 0 | D175: 52 | F175: Taxi | H175: =IF(C175=0,0,(SUMPRODUCT((CaDate=C175)*(CACatégorie="Taxi")*(CaMode=G175)*CaCrédit))) -> 0 | I175: 0 | K175: 0
C176: 0 | D176: 52 | F176: Taxi | H176: =IF(C176=0,0,(SUMPRODUCT((CaDate=C176)*(CACatégorie="Taxi")*(CaMode=G176)*CaCrédit))) -> 0 | I176: 0 | K176: 0
C177: 0 | D177: 52 | F177: Taxi | H177: =IF(C177=0,0,(SUMPRODUCT((CaDate=C177)*(CACatégorie="Taxi")*(CaMode=G177)*CaCrédit))) -> 0 | I177: 0 | K177: 0
C178: 0 | D178: 52 | F178: Taxi | H178: =IF(C178=0,0,(SUMPRODUCT((CaDate=C178)*(CACatégorie="Taxi")*(CaMode=G178)*CaCrédit))) -> 0 | I178: 0 | K178: 0
C179: 0 | D179: 52 | F179: Taxi | H179: =IF(C179=0,0,(SUMPRODUCT((CaDate=C179)*(CACatégorie="Taxi")*(CaMode=G179)*CaCrédit))) -> 0 | I179: 0 | K179: 0
C180: 0 | D180: 52 | F180: Taxi | H180: =IF(C180=0,0,(SUMPRODUCT((CaDate=C180)*(CACatégorie="Taxi")*(CaMode=G180)*CaCrédit))) -> 0 | I180: 0 | K180: 0
C181: 0 | D181: 52 | F181: Taxi | H181: =IF(C181=0,0,(SUMPRODUCT((CaDate=C181)*(CACatégorie="Taxi")*(CaMode=G181)*CaCrédit))) -> 0 | I181: 0 | K181: 0
C182: 0 | D182: 52 | F182: Taxi | H182: =IF(C182=0,0,(SUMPRODUCT((CaDate=C182)*(CACatégorie="Taxi")*(CaMode=G182)*CaCrédit))) -> 0 | I182: 0 | K182: 0
C183: 0 | D183: 52 | F183: Taxi | H183: =IF(C183=0,0,(SUMPRODUCT((CaDate=C183)*(CACatégorie="Taxi")*(CaMode=G183)*CaCrédit))) -> 0 | I183: 0 | K183: 0
C184: 0 | D184: 52 | F184: Taxi | H184: =IF(C184=0,0,(SUMPRODUCT((CaDate=C184)*(CACatégorie="Taxi")*(CaMode=G184)*CaCrédit))) -> 0 | I184: 0 | K184: 0
C185: 0 | D185: 52 | F185: Taxi | H185: =IF(C185=0,0,(SUMPRODUCT((CaDate=C185)*(CACatégorie="Taxi")*(CaMode=G185)*CaCrédit))) -> 0 | I185: 0 | K185: 0
C186: 0 | D186: 52 | F186: Taxi | H186: =IF(C186=0,0,(SUMPRODUCT((CaDate=C186)*(CACatégorie="Taxi")*(CaMode=G186)*CaCrédit))) -> 0 | I186: 0 | K186: 0
C187: 0 | D187: 52 | F187: Taxi | H187: =IF(C187=0,0,(SUMPRODUCT((CaDate=C187)*(CACatégorie="Taxi")*(CaMode=G187)*CaCrédit))) -> 0 | I187: 0 | K187: 0
C188: 0 | D188: 52 | F188: Taxi | H188: =IF(C188=0,0,(SUMPRODUCT((CaDate=C188)*(CACatégorie="Taxi")*(CaMode=G188)*CaCrédit))) -> 0 | I188: 0 | K188: 0
C189: 0 | D189: 52 | F189: Taxi | H189: =IF(C189=0,0,(SUMPRODUCT((CaDate=C189)*(CACatégorie="Taxi")*(CaMode=G189)*CaCrédit))) -> 0 | I189: 0 | K189: 0
C190: 0 | D190: 52 | F190: Taxi | H190: =IF(C190=0,0,(SUMPRODUCT((CaDate=C190)*(CACatégorie="Taxi")*(CaMode=G190)*CaCrédit))) -> 0 | I190: 0 | K190: 0
C191: 0 | D191: 52 | F191: Taxi | H191: =IF(C191=0,0,(SUMPRODUCT((CaDate=C191)*(CACatégorie="Taxi")*(CaMode=G191)*CaCrédit))) -> 0 | I191: 0 | K191: 0
C192: 0 | D192: 52 | F192: Taxi | H192: =IF(C192=0,0,(SUMPRODUCT((CaDate=C192)*(CACatégorie="Taxi")*(CaMode=G192)*CaCrédit))) -> 0 | I192: 0 | K192: 0
C193: 0 | D193: 52 | F193: Taxi | H193: =IF(C193=0,0,(SUMPRODUCT((CaDate=C193)*(CACatégorie="Taxi")*(CaMode=G193)*CaCrédit))) -> 0 | I193: 0 | K193: 0
C194: 0 | D194: 52 | F194: Taxi | H194: =IF(C194=0,0,(SUMPRODUCT((CaDate=C194)*(CACatégorie="Taxi")*(CaMode=G194)*CaCrédit))) -> 0 | I194: 0 | K194: 0
C195: 0 | D195: 52 | F195: Taxi | H195: =IF(C195=0,0,(SUMPRODUCT((CaDate=C195)*(CACatégorie="Taxi")*(CaMode=G195)*CaCrédit))) -> 0 | I195: 0 | K195: 0
C196: 0 | D196: 52 | F196: Taxi | H196: =IF(C196=0,0,(SUMPRODUCT((CaDate=C196)*(CACatégorie="Taxi")*(CaMode=G196)*CaCrédit))) -> 0 | I196: 0 | K196: 0
C197: 0 | D197: 52 | F197: Taxi | H197: =IF(C197=0,0,(SUMPRODUCT((CaDate=C197)*(CACatégorie="Taxi")*(CaMode=G197)*CaCrédit))) -> 0 | I197: 0 | K197: 0
C198: 0 | D198: 52 | F198: Taxi | H198: =IF(C198=0,0,(SUMPRODUCT((CaDate=C198)*(CACatégorie="Taxi")*(CaMode=G198)*CaCrédit))) -> 0 | I198: 0 | K198: 0
C199: 0 | D199: 52 | F199: Taxi | H199: =IF(C199=0,0,(SUMPRODUCT((CaDate=C199)*(CACatégorie="Taxi")*(CaMode=G199)*CaCrédit))) -> 0 | I199: 0 | K199: 0
C200: 0 | D200: 52 | F200: Taxi | H200: =IF(C200=0,0,(SUMPRODUCT((CaDate=C200)*(CACatégorie="Taxi")*(CaMode=G200)*CaCrédit))) -> 0 | I200: 0 | K200: =SUMPRODUCT((J200=TaxiSemaine)*(TaxiTotalJour)) -> 0
C201: 0 | D201: 52 | F201: Taxi | H201: =IF(C201=0,0,(SUMPRODUCT((CaDate=C201)*(CACatégorie="Taxi")*(CaMode=G201)*CaCrédit))) -> 0 | I201: 0 | K201: 0
C202: 0 | D202: 52 | F202: Taxi | H202: =IF(C202=0,0,(SUMPRODUCT((CaDate=C202)*(CACatégorie="Taxi")*(CaMode=G202)*CaCrédit))) -> 0 | I202: 0 | K202: 0
C203: =DATE(YEAR(B203),MONTH(B203),DAY(B203)) -> 0 | D203: =INT(MOD(INT((B203-2)/7)+0.6,52+5/28))+1 -> 52 | E203: =IF(B203=0,"",UPPER(TEXT(B203,"mmmm"))) ->  | F203: Taxi | H203: =IF(C203=0,0,(SUMPRODUCT((CaDate=C203)*(CACatégorie="Taxi")*(CaMode=G203)*CaCrédit))) -> 0 | I203: 0 | K203: 0
... 300 more rows

Sheet PUBLICITE
F1: PUBLICITE | Y1: VENTILATION DU CA PUBLICITE
X5: JANVIER | Y5: FÉVRIER | Z5: MARS | AA5: AVRIL | AB5: MAI | AC5: JUIN | AD5: JUILLET | AE5: AOÛT | AF5: SEPTEMBRE | AG5: OCTOBRE | AH5: NOVEMBRE | AI5: DÉCEMBRE | AJ5: TOTAL TTC | AK5: TVA | AL5: TOTAL HT
B6: DATE | C6: JOUR | D6: MOIS | F6: N° de Client | G6: OBJET | H6: N° de Document | I6: DESIGNATION | J6: NB Réglmt | K6: PAIEMENT | L6: MONTANT T.T.C | M6: REGLEMENT | N6: Pointage | O6: RESTE DÛ | V6: CA HT | W6: TTC | AO6: DATE | AP6: N° de document | AQ6: N° de client | AR6: MONTANT HT | AS6: Code TVA | AT6: TVA | AU6: MONTANT TTC | AV6: ACOMPTE | AW6: RESTE DÛ
T7: OBJECTIFS | U7: Cyclopolitain | V7: 5000 | W7: =V7+(V7*20/100) -> 6000 | AA7: 3000 | AI7: 3000 | AJ7: =SUM(X7:AI7) -> 6000 | AK7: =AJ7*16.66667/100 -> 1000.0002 | AL7: =AJ7-AK7 -> 4999.9998
U8: Cycle-Hop | V8: 23400 | W8: =V8+(V8*20/100) -> 28080 | Y8: 1560 | Z8: 1560 | AA8: 1560 | AB8: 3120 | AC8: 3120 | AD8: 3120 | AE8: 3120 | AF8: 3120 | AG8: 3120 | AH8: 3120 | AI8: 1560 | AJ8: =SUM(X8:AI8) -> 28080 | AK8: =AJ8*16.66667/100 -> 4680.000936 | AL8: =AJ8-AK8 -> 23399.99906
B10: 2013-09-30 | C10: =DATE(YEAR(B10),MONTH(B10),DAY(B10)) -> 41547 | D10: =IF(PubJour=0,"",UPPER(TEXT(C10,"mmmm"))) -> SEPTEMBRE | E10: Publicité | F10: =IF(C10<>0,(INDEX(CaRefClient,MATCH(1,(CaDate=B10)*(CACatégorie="Publicité"),0))),"") -> PUCYC0001 | G10: =IF($C10<>0,(INDEX(CaObjet,MATCH(1,(CaDate=$B10)*(CACatégorie="Publicité"),0))),"") -> Factures | H10: =IF(B10<>0,(INDEX(CaRefDoc,MATCH(1,(CaDate=B10)*(CaRefClient=F10),0))),"") -> F2013421 | J10: =IF(B10<>0,(INDEX(CaNbRéglement,MATCH(1,(CaDate=B10)*(CaRefDoc=H10),0))),"") -> R1 | K10: =IF(C10<>0,(INDEX(CaMode,MATCH(1,(CaDate=B10)*(CaRefDoc=H10),0))),"") -> Virement | L10: =IF(H10="",0,INDEX(FactMontant,MATCH(H10,FactRefDoc,0))) -> 3600 | M10: =IF(C10<>0,(INDEX(CaCrédit,MATCH(1,(CaRefDoc=H10)*(CaNbRéglement=J10),0))),"") -> 1300 | N10: a | O10: =IF($C10=0,0,(IF($J10="R1",$L10-$M10,IF($J10="R2",$L10-((INDEX(FactR1,MATCH($H10,FactRefDoc,0)))+(INDEX(FactR2,MATCH($H10,FactRefDoc,0)))),IF($J10="R3",$L10-((INDEX(FactR1,MATCH($H10,FactRefDoc,0)))+(INDEX(FactR2,MATCH($H10,FactRefDoc,0)))+(INDEX(FactR3,MATCH($H10,FactRefDoc,0)))),IF($J10="R4",$L10-((INDEX(FactR1,MATCH($H10,FactRefDoc,0)))+(INDEX(FactR2,MATCH($H10,FactRefDoc,0)))+(INDEX(FactR3,MATCH($H10,FactRefDoc,0)))+(INDEX(FactR4,MATCH($H10,FactRefDoc,0)))),$L10-((INDEX(FactR1,MATCH($H10,FactRefDoc,0)))+(INDEX(FactR2,MATCH($H10,FactRefDoc,0)))+(INDEX(FactR3,MATCH($H10,FactRefDoc,0)))+(INDEX(FactR4,MATCH($H10,FactRefDoc,0)))+(INDEX(FactR5,MATCH($H10,FactRefDoc,0)))))))))) -> 2300 | U10: CA REALISE | W10: Cyclopolitain | X10: =SUMPRODUCT((PubMois=X5)*(PubNbRégl="R1")*(PubRefclient="PUCYC0001")*PubMontant) -> 0 | Y10: 0 | Z10: 0 | AA10: 0 | AB10: 0 | AC10: 0 | AD10: 0 | AE10: 0 | AF10: 3600 | AG10: 4500 | AH10: 2550 | AI10: 0 | AJ10: =SUM(X10:AI10) -> 10650 | AK10: =AJ10-AL10 -> 1775 | AL10: =AJ10/1.2 -> 8875 | AR10: 100 | AT10: =IF(AS10=1,(AR10*10/100),IF(AS10=2,AR10*20/100,"")) ->  | AU10: =IF(AT10="",0,AR10+AT10) -> 0 | AW10: =AU10-AV10 -> 0
B11: 2013-10-01 | C11: =DATE(YEAR(B11),MONTH(B11),DAY(B11)) -> 41548 | D11: OCTOBRE | E11: Publicité | F11: =IF(C11<>0,(INDEX(CaRefClient,MATCH(1,(CaDate=B11)*(CACatégorie="Publicité"),0))),"") -> PUAPF002 | G11: =IF($C11<>0,(INDEX(CaObjet,MATCH(1,(CaDate=$B11)*(CACatégorie="Publicité"),0))),"") -> Factures | H11: =IF(B11<>0,(INDEX(CaRefDoc,MATCH(1,(CaDate=B11)*(CaRefClient=F11),0))),"") -> F2013682 | J11: =IF(B11<>0,(INDEX(CaNbRéglement,MATCH(1,(CaDate=B11)*(CaRefDoc=H11),0))),"") -> R1 | K11: =IF(C11<>0,(INDEX(CaMode,MATCH(1,(CaDate=B11)*(CaRefDoc=H11),0))),"") -> Chèque | L11: 1620 | M11: =IF(C11<>0,(INDEX(CaCrédit,MATCH(1,(CaRefDoc=H11)*(CaNbRéglement=J11),0))),"") -> 520 | N11: b | O11: 1100 | W11: Cycle-Hop | X11: =SUMPRODUCT((PubMois=X5)*(PubNbRégl="R1")*(PubRefclient<>"PUCYC0001")*PubMontant) -> 0 | Y11: 0 | Z11: 0 | AA11: 0 | AB11: 0 | AC11: 0 | AD11: 0 | AE11: 0 | AF11: 0 | AG11: 1620 | AH11: 0 | AI11: 0 | AJ11: =SUM(X11:AI11) -> 1620 | AK11: =AJ11-AL11 -> 270 | AL11: =AJ11/1.2 -> 1350
B12: 2013-10-03 | C12: 41550 | D12: OCTOBRE | E12: Publicité | F12: =IF(C12<>0,(INDEX(CaRefClient,MATCH(1,(CaDate=B12)*(CACatégorie="Publicité"),0))),"") -> PUCYC0001 | G12: =IF($C12<>0,(INDEX(CaObjet,MATCH(1,(CaDate=$B12)*(CACatégorie="Publicité"),0))),"") -> Factures | H12: =IF(B12<>0,(INDEX(CaRefDoc,MATCH(1,(CaDate=B12)*(CaRefClient=F12),0))),"") -> F2013421 | J12: =IF(B12<>0,(INDEX(CaNbRéglement,MATCH(1,(CaDate=B12)*(CaRefDoc=H12),0))),"") -> R2 | K12: =IF(C12<>0,(INDEX(CaMode,MATCH(1,(CaDate=B12)*(CaRefDoc=H12),0))),"") -> Chèque | L12: =IF(H12="",0,INDEX(FactMontant,MATCH(H12,FactRefDoc,0))) -> 3600 | M12: =IF(C12<>0,(INDEX(CaCrédit,MATCH(1,(CaRefDoc=H12)*(CaNbRéglement=J12),0))),"") -> 2300 | N12: a | O12: 0
C13: 0 | E13: Publicité | F13: =IF(C13<>0,(INDEX(CaRefClient,MATCH(1,(CaDate=B13)*(CACatégorie="Publicité"),0))),"") ->  | G13: =IF($C13<>0,(INDEX(CaObjet,MATCH(1,(CaDate=$B13)*(CACatégorie="Publicité"),0))),"") ->  | H13: =IF(B13<>0,(INDEX(CaRefDoc,MATCH(1,(CaDate=B13)*(CaRefClient=F13),0))),"") ->  | J13: =IF(B13<>0,(INDEX(CaNbRéglement,MATCH(1,(CaDate=B13)*(CaRefDoc=H13),0))),"") ->  | K13: =IF(C13<>0,(INDEX(CaMode,MATCH(1,(CaDate=B13)*(CaRefDoc=H13),0))),"") ->  | L13: 0 | M13: =IF(C13<>0,(INDEX(CaCrédit,MATCH(1,(CaRefDoc=H13)*(CaNbRéglement=J13),0))),"") ->  | O13: 0 | V13: Différence avec l'objectif | X13: =(X11+X10)-(X8+X7) -> 0 | Y13: =(Y11+Y10)-(Y8+Y7) -> -1560 | Z13: -1560 | AA13: -4560 | AB13: -3120 | AC13: -3120 | AD13: -3120 | AE13: -3120 | AF13: 480 | AG13: 3000 | AH13: -570 | AI13: -4560 | AJ13: -21810
C14: 0 | E14: Publicité | F14: =IF(C14<>0,(INDEX(CaRefClient,MATCH(1,(CaDate=B14)*(CACatégorie="Publicité"),0))),"") ->  | G14: =IF($C14<>0,(INDEX(CaObjet,MATCH(1,(CaDate=$B14)*(CACatégorie="Publicité"),0))),"") ->  | H14: =IF(B14<>0,(INDEX(CaRefDoc,MATCH(1,(CaDate=B14)*(CaRefClient=F14),0))),"") ->  | J14: =IF(B14<>0,(INDEX(CaNbRéglement,MATCH(1,(CaDate=B14)*(CaRefDoc=H14),0))),"") ->  | K14: =IF(C14<>0,(INDEX(CaMode,MATCH(1,(CaDate=B14)*(CaRefDoc=H14),0))),"") ->  | L14: 0 | M14: =IF(C14<>0,(INDEX(CaCrédit,MATCH(1,(CaRefDoc=H14)*(CaNbRéglement=J14),0))),"") ->  | O14: 0 | W14: en % | X14: =IF(AND(X7=0,X8=0),0,(X13/(X8+X7))) -> 0 | Y14: =IF(AND(Y7=0,Y8=0),0,(Y13/(Y8+Y7))) -> -1 | Z14: -1 | AA14: -1 | AB14: -1 | AC14: -1 | AD14: -1 | AE14: -1 | AF14: 0.1538461538 | AG14: 0.9615384615 | AH14: -0.1826923077 | AI14: -1 | AJ14: =IF(AND(AJ7=0,AJ8=0),0,(AJ13/(AJ8+AJ7))) -> -0.6399647887
C15: 0 | E15: Publicité | F15: =IF(C15<>0,(INDEX(CaRefClient,MATCH(1,(CaDate=B15)*(CACatégorie="Publicité"),0))),"") ->  | G15: =IF($C15<>0,(INDEX(CaObjet,MATCH(1,(CaDate=$B15)*(CACatégorie="Publicité"),0))),"") ->  | H15: =IF(B15<>0,(INDEX(CaRefDoc,MATCH(1,(CaDate=B15)*(CaRefClient=F15),0))),"") ->  | J15: =IF(B15<>0,(INDEX(CaNbRéglement,MATCH(1,(CaDate=B15)*(CaRefDoc=H15),0))),"") ->  | K15: =IF(C15<>0,(INDEX(CaMode,MATCH(1,(CaDate=B15)*(CaRefDoc=H15),0))),"") ->  | L15: 0 | M15: =IF(C15<>0,(INDEX(CaCrédit,MATCH(1,(CaRefDoc=H15)*(CaNbRéglement=J15),0))),"") ->  | O15: 0
B16: 2013-10-20 | C16: 41567 | D16: OCTOBRE | E16: Publicité | F16: =IF(C16<>0,(INDEX(CaRefClient,MATCH(1,(CaDate=B16)*(CACatégorie="Publicité"),0))),"") -> PUAPF002 | G16: =IF($C16<>0,(INDEX(CaObjet,MATCH(1,(CaDate=$B16)*(CACatégorie="Publicité"),0))),"") -> Factures | H16: =IF(B16<>0,(INDEX(CaRefDoc,MATCH(1,(CaDate=B16)*(CaRefClient=F16),0))),"") -> F2013682 | J16: =IF(B16<>0,(INDEX(CaNbRéglement,MATCH(1,(CaDate=B16)*(CaRefDoc=H16),0))),"") -> R2 | K16: =IF(C16<>0,(INDEX(CaMode,MATCH(1,(CaDate=B16)*(CaRefDoc=H16),0))),"") -> CB | L16: 1620 | M16: =IF(C16<>0,(INDEX(CaCrédit,MATCH(1,(CaRefDoc=H16)*(CaNbRéglement=J16),0))),"") -> 1100 | N16: b | O16: 0
B17: 2013-10-10 | C17: 41557 | D17: OCTOBRE | E17: Publicité | F17: =IF(C17<>0,(INDEX(CaRefClient,MATCH(1,(CaDate=B17)*(CACatégorie="Publicité"),0))),"") -> PUCYC0001 | G17: =IF($C17<>0,(INDEX(CaObjet,MATCH(1,(CaDate=$B17)*(CACatégorie="Publicité"),0))),"") -> Factures | H17: =IF(B17<>0,(INDEX(CaRefDoc,MATCH(1,(CaDate=B17)*(CaRefClient=F17),0))),"") -> 130010 | J17: =IF(B17<>0,(INDEX(CaNbRéglement,MATCH(1,(CaDate=B17)*(CaRefDoc=H17),0))),"") -> R1 | K17: =IF(C17<>0,(INDEX(CaMode,MATCH(1,(CaDate=B17)*(CaRefDoc=H17),0))),"") -> Chèque | L17: 4500 | M17: =IF(C17<>0,(INDEX(CaCrédit,MATCH(1,(CaRefDoc=H17)*(CaNbRéglement=J17),0))),"") -> 1000 | N17: c | O17: 3500
B18: 2013-11-05 | C18: 41583 | D18: NOVEMBRE | E18: Publicité | F18: =IF(C18<>0,(INDEX(CaRefClient,MATCH(1,(CaDate=B18)*(CACatégorie="Publicité"),0))),"") -> PUCYC0001 | G18: =IF($C18<>0,(INDEX(CaObjet,MATCH(1,(CaDate=$B18)*(CACatégorie="Publicité"),0))),"") -> Factures | H18: =IF(B18<>0,(INDEX(CaRefDoc,MATCH(1,(CaDate=B18)*(CaRefClient=F18),0))),"") -> 130005 | J18: =IF(B18<>0,(INDEX(CaNbRéglement,MATCH(1,(CaDate=B18)*(CaRefDoc=H18),0))),"") -> R1 | K18: =IF(C18<>0,(INDEX(CaMode,MATCH(1,(CaDate=B18)*(CaRefDoc=H18),0))),"") -> Chèque | L18: 2550 | M18: =IF(C18<>0,(INDEX(CaCrédit,MATCH(1,(CaRefDoc=H18)*(CaNbRéglement=J18),0))),"") -> 1000 | N18: d | O18: 1550 | W18: Code client | Z18: REPARTITION DU CA PAR CLIENT ET PAR MOIS | AJ18: TOTAL TTC
B19: 2013-11-10 | C19: 41588 | D19: NOVEMBRE | E19: Publicité | F19: =IF(C19<>0,(INDEX(CaRefClient,MATCH(1,(CaDate=B19)*(CACatégorie="Publicité"),0))),"") -> PUCYC0001 | G19: =IF($C19<>0,(INDEX(CaObjet,MATCH(1,(CaDate=$B19)*(CACatégorie="Publicité"),0))),"") -> Factures | H19: =IF(B19<>0,(INDEX(CaRefDoc,MATCH(1,(CaDate=B19)*(CaRefClient=F19),0))),"") -> 130005 | J19: =IF(B19<>0,(INDEX(CaNbRéglement,MATCH(1,(CaDate=B19)*(CaRefDoc=H19),0))),"") -> R2 | K19: =IF(C19<>0,(INDEX(CaMode,MATCH(1,(CaDate=B19)*(CaRefDoc=H19),0))),"") -> Chèque | L19: 2550 | M19: =IF(C19<>0,(INDEX(CaCrédit,MATCH(1,(CaRefDoc=H19)*(CaNbRéglement=J19),0))),"") -> 1550 | N19: d | O19: 0 | W19: =Prestations!#REF! ->  | X19: =SUMPRODUCT((PubMois=X$5)*(PubRefclient=$W19)*(PubNbRégl="R1")*PubMontant) ->  | AJ19: =SUM(X19:AI19) -> 
B20: 2013-11-06 | C20: 41584 | D20: NOVEMBRE | E20: Publicité | F20: =IF(C20<>0,(INDEX(CaRefClient,MATCH(1,(CaDate=B20)*(CACatégorie="Publicité"),0))),"") -> PUCYC0001 | G20: =IF($C20<>0,(INDEX(CaObjet,MATCH(1,(CaDate=$B20)*(CACatégorie="Publicité"),0))),"") -> 0 | H20: =IF(B20<>0,(INDEX(CaRefDoc,MATCH(1,(CaDate=B20)*(CaRefClient=F20),0))),"") -> 130010 | J20: =IF(B20<>0,(INDEX(CaNbRéglement,MATCH(1,(CaDate=B20)*(CaRefDoc=H20),0))),"") -> R2 | K20: =IF(C20<>0,(INDEX(CaMode,MATCH(1,(CaDate=B20)*(CaRefDoc=H20),0))),"") -> Chèque | L20: 4500 | M20: =IF(C20<>0,(INDEX(CaCrédit,MATCH(1,(CaRefDoc=H20)*(CaNbRéglement=J20),0))),"") -> 800 | N20: c | O20: 2700 | W20: =Prestations!#REF! ->  | AJ20: =SUM(X20:AI20) -> 
B21: 2013-12-12 | C21: 41620 | D21: DÉCEMBRE | E21: Publicité | F21: =IF(C21<>0,(INDEX(CaRefClient,MATCH(1,(CaDate=B21)*(CACatégorie="Publicité"),0))),"") -> PUCYC0001 | G21: =IF($C21<>0,(INDEX(CaObjet,MATCH(1,(CaDate=$B21)*(CACatégorie="Publicité"),0))),"") -> 0 | H21: =IF(B21<>0,(INDEX(CaRefDoc,MATCH(1,(CaDate=B21)*(CaRefClient=F21),0))),"") -> 130010 | J21: =IF(B21<>0,(INDEX(CaNbRéglement,MATCH(1,(CaDate=B21)*(CaRefDoc=H21),0))),"") -> R3 | K21: =IF(C21<>0,(INDEX(CaMode,MATCH(1,(CaDate=B21)*(CaRefDoc=H21),0))),"") -> Chèque | L21: 4500 | M21: =IF(C21<>0,(INDEX(CaCrédit,MATCH(1,(CaRefDoc=H21)*(CaNbRéglement=J21),0))),"") -> 800 | N21: c | O21: 1900 | W21: =Prestations!#REF! -> 
B22: 2014-01-03 | C22: 41642 | D22: JANVIER | E22: Publicité | F22: =IF(C22<>0,(INDEX(CaRefClient,MATCH(1,(CaDate=B22)*(CACatégorie="Publicité"),0))),"") -> PUCYC0001 | G22: =IF($C22<>0,(INDEX(CaObjet,MATCH(1,(CaDate=$B22)*(CACatégorie="Publicité"),0))),"") -> 0 | H22: =IF(B22<>0,(INDEX(CaRefDoc,MATCH(1,(CaDate=B22)*(CaRefClient=F22),0))),"") -> 130010 | J22: =IF(B22<>0,(INDEX(CaNbRéglement,MATCH(1,(CaDate=B22)*(CaRefDoc=H22),0))),"") -> R4 | K22: =IF(C22<>0,(INDEX(CaMode,MATCH(1,(CaDate=B22)*(CaRefDoc=H22),0))),"") -> Chèque | L22: 4500 | M22: =IF(C22<>0,(INDEX(CaCrédit,MATCH(1,(CaRefDoc=H22)*(CaNbRéglement=J22),0))),"") -> 850 | O22: 1050 | W22: =Prestations!#REF! -> 
C23: 0 | E23: Publicité | F23: =IF(C23<>0,(INDEX(CaRefClient,MATCH(1,(CaDate=B23)*(CACatégorie="Publicité"),0))),"") ->  | G23: =IF($C23<>0,(INDEX(CaObjet,MATCH(1,(CaDate=$B23)*(CACatégorie="Publicité"),0))),"") ->  | H23: =IF(B23<>0,(INDEX(CaRefDoc,MATCH(1,(CaDate=B23)*(CaRefClient=F23),0))),"") ->  | J23: =IF(B23<>0,(INDEX(CaNbRéglement,MATCH(1,(CaDate=B23)*(CaRefDoc=H23),0))),"") ->  | K23: =IF(C23<>0,(INDEX(CaMode,MATCH(1,(CaDate=B23)*(CaRefDoc=H23),0))),"") ->  | L23: 0 | M23: =IF(C23<>0,(INDEX(CaCrédit,MATCH(1,(CaRefDoc=H23)*(CaNbRéglement=J23),0))),"") ->  | O23: 0 | W23: =Prestations!#REF! -> 
C24: 0 | E24: Publicité | F24: =IF(C24<>0,(INDEX(CaRefClient,MATCH(1,(CaDate=B24)*(CACatégorie="Publicité"),0))),"") ->  | G24: =IF($C24<>0,(INDEX(CaObjet,MATCH(1,(CaDate=$B24)*(CACatégorie="Publicité"),0))),"") ->  | H24: =IF(B24<>0,(INDEX(CaRefDoc,MATCH(1,(CaDate=B24)*(CaRefClient=F24),0))),"") ->  | J24: =IF(B24<>0,(INDEX(CaNbRéglement,MATCH(1,(CaDate=B24)*(CaRefDoc=H24),0))),"") ->  | K24: =IF(C24<>0,(INDEX(CaMode,MATCH(1,(CaDate=B24)*(CaRefDoc=H24),0))),"") ->  | L24: 0 | M24: =IF(C24<>0,(INDEX(CaCrédit,MATCH(1,(CaRefDoc=H24)*(CaNbRéglement=J24),0))),"") ->  | O24: 0 | W24: =Prestations!#REF! -> 
C25: 0 | E25: Publicité | F25: =IF(C25<>0,(INDEX(CaRefClient,MATCH(1,(CaDate=B25)*(CACatégorie="Publicité"),0))),"") ->  | G25: =IF($C25<>0,(INDEX(CaObjet,MATCH(1,(CaDate=$B25)*(CACatégorie="Publicité"),0))),"") ->  | H25: =IF(B25<>0,(INDEX(CaRefDoc,MATCH(1,(CaDate=B25)*(CaRefClient=F25),0))),"") ->  | J25: =IF(B25<>0,(INDEX(CaNbRéglement,MATCH(1,(CaDate=B25)*(CaRefDoc=H25),0))),"") ->  | K25: =IF(C25<>0,(INDEX(CaMode,MATCH(1,(CaDate=B25)*(CaRefDoc=H25),0))),"") ->  | L25: 0 | M25: =IF(C25<>0,(INDEX(CaCrédit,MATCH(1,(CaRefDoc=H25)*(CaNbRéglement=J25),0))),"") ->  | O25: 0 | W25: =Prestations!#REF! -> 
C26: 0 | E26: Publicité | F26: =IF(C26<>0,(INDEX(CaRefClient,MATCH(1,(CaDate=B26)*(CACatégorie="Publicité"),0))),"") ->  | G26: =IF($C26<>0,(INDEX(CaObjet,MATCH(1,(CaDate=$B26)*(CACatégorie="Publicité"),0))),"") ->  | H26: =IF(B26<>0,(INDEX(CaRefDoc,MATCH(1,(CaDate=B26)*(CaRefClient=F26),0))),"") ->  | J26: =IF(B26<>0,(INDEX(CaNbRéglement,MATCH(1,(CaDate=B26)*(CaRefDoc=H26),0))),"") ->  | K26: =IF(C26<>0,(INDEX(CaMode,MATCH(1,(CaDate=B26)*(CaRefDoc=H26),0))),"") ->  | L26: 0 | M26: =IF(C26<>0,(INDEX(CaCrédit,MATCH(1,(CaRefDoc=H26)*(CaNbRéglement=J26),0))),"") ->  | O26: 0 | W26: =Prestations!#REF! -> 
C27: 0 | E27: Publicité | F27: =IF(C27<>0,(INDEX(CaRefClient,MATCH(1,(CaDate=B27)*(CACatégorie="Publicité"),0))),"") ->  | G27: =IF($C27<>0,(INDEX(CaObjet,MATCH(1,(CaDate=$B27)*(CACatégorie="Publicité"),0))),"") ->  | H27: =IF(B27<>0,(INDEX(CaRefDoc,MATCH(1,(CaDate=B27)*(CaRefClient=F27),0))),"") ->  | J27: =IF(B27<>0,(INDEX(CaNbRéglement,MATCH(1,(CaDate=B27)*(CaRefDoc=H27),0))),"") ->  | K27: =IF(C27<>0,(INDEX(CaMode,MATCH(1,(CaDate=B27)*(CaRefDoc=H27),0))),"") ->  | L27: 0 | M27: =IF(C27<>0,(INDEX(CaCrédit,MATCH(1,(CaRefDoc=H27)*(CaNbRéglement=J27),0))),"") ->  | O27: 0 | W27: =Prestations!#REF! -> 
C28: 0 | E28: Publicité | F28: =IF(C28<>0,(INDEX(CaRefClient,MATCH(1,(CaDate=B28)*(CACatégorie="Publicité"),0))),"") ->  | G28: =IF($C28<>0,(INDEX(CaObjet,MATCH(1,(CaDate=$B28)*(CACatégorie="Publicité"),0))),"") ->  | H28: =IF(B28<>0,(INDEX(CaRefDoc,MATCH(1,(CaDate=B28)*(CaRefClient=F28),0))),"") ->  | J28: =IF(B28<>0,(INDEX(CaNbRéglement,MATCH(1,(CaDate=B28)*(CaRefDoc=H28),0))),"") ->  | K28: =IF(C28<>0,(INDEX(CaMode,MATCH(1,(CaDate=B28)*(CaRefDoc=H28),0))),"") ->  | L28: 0 | M28: =IF(C28<>0,(INDEX(CaCrédit,MATCH(1,(CaRefDoc=H28)*(CaNbRéglement=J28),0))),"") ->  | O28: 0 | W28: =Prestations!#REF! -> 
C29: 0 | E29: Publicité | F29: =IF(C29<>0,(INDEX(CaRefClient,MATCH(1,(CaDate=B29)*(CACatégorie="Publicité"),0))),"") ->  | G29: =IF($C29<>0,(INDEX(CaObjet,MATCH(1,(CaDate=$B29)*(CACatégorie="Publicité"),0))),"") ->  | H29: =IF(B29<>0,(INDEX(CaRefDoc,MATCH(1,(CaDate=B29)*(CaRefClient=F29),0))),"") ->  | J29: =IF(B29<>0,(INDEX(CaNbRéglement,MATCH(1,(CaDate=B29)*(CaRefDoc=H29),0))),"") ->  | K29: =IF(C29<>0,(INDEX(CaMode,MATCH(1,(CaDate=B29)*(CaRefDoc=H29),0))),"") ->  | L29: 0 | M29: =IF(C29<>0,(INDEX(CaCrédit,MATCH(1,(CaRefDoc=H29)*(CaNbRéglement=J29),0))),"") ->  | O29: 0 | W29: =Prestations!#REF! -> 
C30: 0 | E30: Publicité | F30: =IF(C30<>0,(INDEX(CaRefClient,MATCH(1,(CaDate=B30)*(CACatégorie="Publicité"),0))),"") ->  | G30: =IF($C30<>0,(INDEX(CaObjet,MATCH(1,(CaDate=$B30)*(CACatégorie="Publicité"),0))),"") ->  | H30: =IF(B30<>0,(INDEX(CaRefDoc,MATCH(1,(CaDate=B30)*(CaRefClient=F30),0))),"") ->  | J30: =IF(B30<>0,(INDEX(CaNbRéglement,MATCH(1,(CaDate=B30)*(CaRefDoc=H30),0))),"") ->  | K30: =IF(C30<>0,(INDEX(CaMode,MATCH(1,(CaDate=B30)*(CaRefDoc=H30),0))),"") ->  | L30: 0 | M30: =IF(C30<>0,(INDEX(CaCrédit,MATCH(1,(CaRefDoc=H30)*(CaNbRéglement=J30),0))),"") ->  | O30: 0 | W30: =Prestations!#REF! -> 
C31: 0 | E31: Publicité | F31: =IF(C31<>0,(INDEX(CaRefClient,MATCH(1,(CaDate=B31)*(CACatégorie="Publicité"),0))),"") ->  | G31: =IF($C31<>0,(INDEX(CaObjet,MATCH(1,(CaDate=$B31)*(CACatégorie="Publicité"),0))),"") ->  | H31: =IF(B31<>0,(INDEX(CaRefDoc,MATCH(1,(CaDate=B31)*(CaRefClient=F31),0))),"") ->  | J31: =IF(B31<>0,(INDEX(CaNbRéglement,MATCH(1,(CaDate=B31)*(CaRefDoc=H31),0))),"") ->  | K31: =IF(C31<>0,(INDEX(CaMode,MATCH(1,(CaDate=B31)*(CaRefDoc=H31),0))),"") ->  | L31: 0 | M31: =IF(C31<>0,(INDEX(CaCrédit,MATCH(1,(CaRefDoc=H31)*(CaNbRéglement=J31),0))),"") ->  | O31: 0 | W31: =Prestations!#REF! -> 
C32: 0 | E32: Publicité | F32: =IF(C32<>0,(INDEX(CaRefClient,MATCH(1,(CaDate=B32)*(CACatégorie="Publicité"),0))),"") ->  | G32: =IF($C32<>0,(INDEX(CaObjet,MATCH(1,(CaDate=$B32)*(CACatégorie="Publicité"),0))),"") ->  | H32: =IF(B32<>0,(INDEX(CaRefDoc,MATCH(1,(CaDate=B32)*(CaRefClient=F32),0))),"") ->  | J32: =IF(B32<>0,(INDEX(CaNbRéglement,MATCH(1,(CaDate=B32)*(CaRefDoc=H32),0))),"") ->  | K32: =IF(C32<>0,(INDEX(CaMode,MATCH(1,(CaDate=B32)*(CaRefDoc=H32),0))),"") ->  | L32: 0 | M32: =IF(C32<>0,(INDEX(CaCrédit,MATCH(1,(CaRefDoc=H32)*(CaNbRéglement=J32),0))),"") ->  | O32: 0 | W32: =Prestations!#REF! -> 
C33: 0 | E33: Publicité | F33: =IF(C33<>0,(INDEX(CaRefClient,MATCH(1,(CaDate=B33)*(CACatégorie="Publicité"),0))),"") ->  | G33: =IF($C33<>0,(INDEX(CaObjet,MATCH(1,(CaDate=$B33)*(CACatégorie="Publicité"),0))),"") ->  | H33: =IF(B33<>0,(INDEX(CaRefDoc,MATCH(1,(CaDate=B33)*(CaRefClient=F33),0))),"") ->  | J33: =IF(B33<>0,(INDEX(CaNbRéglement,MATCH(1,(CaDate=B33)*(CaRefDoc=H33),0))),"") ->  | K33: =IF(C33<>0,(INDEX(CaMode,MATCH(1,(CaDate=B33)*(CaRefDoc=H33),0))),"") ->  | L33: 0 | M33: =IF(C33<>0,(INDEX(CaCrédit,MATCH(1,(CaRefDoc=H33)*(CaNbRéglement=J33),0))),"") ->  | O33: 0 | W33: =Prestations!#REF! -> 
C34: 0 | E34: Publicité | F34: =IF(C34<>0,(INDEX(CaRefClient,MATCH(1,(CaDate=B34)*(CACatégorie="Publicité"),0))),"") ->  | G34: =IF($C34<>0,(INDEX(CaObjet,MATCH(1,(CaDate=$B34)*(CACatégorie="Publicité"),0))),"") ->  | H34: =IF(B34<>0,(INDEX(CaRefDoc,MATCH(1,(CaDate=B34)*(CaRefClient=F34),0))),"") ->  | J34: =IF(B34<>0,(INDEX(CaNbRéglement,MATCH(1,(CaDate=B34)*(CaRefDoc=H34),0))),"") ->  | K34: =IF(C34<>0,(INDEX(CaMode,MATCH(1,(CaDate=B34)*(CaRefDoc=H34),0))),"") ->  | L34: 0 | M34: =IF(C34<>0,(INDEX(CaCrédit,MATCH(1,(CaRefDoc=H34)*(CaNbRéglement=J34),0))),"") ->  | O34: 0 | W34: =Prestations!#REF! -> 
C35: 0 | E35: Publicité | F35: =IF(C35<>0,(INDEX(CaRefClient,MATCH(1,(CaDate=B35)*(CACatégorie="Publicité"),0))),"") ->  | G35: =IF($C35<>0,(INDEX(CaObjet,MATCH(1,(CaDate=$B35)*(CACatégorie="Publicité"),0))),"") ->  | H35: =IF(B35<>0,(INDEX(CaRefDoc,MATCH(1,(CaDate=B35)*(CaRefClient=F35),0))),"") ->  | J35: =IF(B35<>0,(INDEX(CaNbRéglement,MATCH(1,(CaDate=B35)*(CaRefDoc=H35),0))),"") ->  | K35: =IF(C35<>0,(INDEX(CaMode,MATCH(1,(CaDate=B35)*(CaRefDoc=H35),0))),"") ->  | L35: 0 | M35: =IF(C35<>0,(INDEX(CaCrédit,MATCH(1,(CaRefDoc=H35)*(CaNbRéglement=J35),0))),"") ->  | O35: 0 | W35: =Prestations!#REF! ->  | X35: =SUMPRODUCT((PubMois=X$5)*(PubRefclient=$W35)*(PubNbRégl="R1")*PubMontant) ->  | AB35: =SUMPRODUCT((PubMois=AB$5)*(PubRefclient=$W35)*(PubNbRégl="R1")*PubMontant) ->  | AF35: =SUMPRODUCT((PubMois=AF$5)*(PubRefclient=$W35)*(PubNbRégl="R1")*PubMontant) -> 
C36: 0 | E36: Publicité | F36: =IF(C36<>0,(INDEX(CaRefClient,MATCH(1,(CaDate=B36)*(CACatégorie="Publicité"),0))),"") ->  | G36: =IF($C36<>0,(INDEX(CaObjet,MATCH(1,(CaDate=$B36)*(CACatégorie="Publicité"),0))),"") ->  | H36: =IF(B36<>0,(INDEX(CaRefDoc,MATCH(1,(CaDate=B36)*(CaRefClient=F36),0))),"") ->  | J36: =IF(B36<>0,(INDEX(CaNbRéglement,MATCH(1,(CaDate=B36)*(CaRefDoc=H36),0))),"") ->  | K36: =IF(C36<>0,(INDEX(CaMode,MATCH(1,(CaDate=B36)*(CaRefDoc=H36),0))),"") ->  | L36: 0 | M36: =IF(C36<>0,(INDEX(CaCrédit,MATCH(1,(CaRefDoc=H36)*(CaNbRéglement=J36),0))),"") ->  | O36: 0 | W36: =Prestations!#REF! -> 
C37: 0 | E37: Publicité | F37: =IF(C37<>0,(INDEX(CaRefClient,MATCH(1,(CaDate=B37)*(CACatégorie="Publicité"),0))),"") ->  | G37: =IF($C37<>0,(INDEX(CaObjet,MATCH(1,(CaDate=$B37)*(CACatégorie="Publicité"),0))),"") ->  | H37: =IF(B37<>0,(INDEX(CaRefDoc,MATCH(1,(CaDate=B37)*(CaRefClient=F37),0))),"") ->  | J37: =IF(B37<>0,(INDEX(CaNbRéglement,MATCH(1,(CaDate=B37)*(CaRefDoc=H37),0))),"") ->  | K37: =IF(C37<>0,(INDEX(CaMode,MATCH(1,(CaDate=B37)*(CaRefDoc=H37),0))),"") ->  | L37: 0 | M37: =IF(C37<>0,(INDEX(CaCrédit,MATCH(1,(CaRefDoc=H37)*(CaNbRéglement=J37),0))),"") ->  | O37: 0 | W37: =Prestations!#REF! -> 
C38: 0 | E38: Publicité | F38: =IF(C38<>0,(INDEX(CaRefClient,MATCH(1,(CaDate=B38)*(CACatégorie="Publicité"),0))),"") ->  | G38: =IF($C38<>0,(INDEX(CaObjet,MATCH(1,(CaDate=$B38)*(CACatégorie="Publicité"),0))),"") ->  | H38: =IF(B38<>0,(INDEX(CaRefDoc,MATCH(1,(CaDate=B38)*(CaRefClient=F38),0))),"") ->  | J38: =IF(B38<>0,(INDEX(CaNbRéglement,MATCH(1,(CaDate=B38)*(CaRefDoc=H38),0))),"") ->  | K38: =IF(C38<>0,(INDEX(CaMode,MATCH(1,(CaDate=B38)*(CaRefDoc=H38),0))),"") ->  | L38: 0 | M38: =IF(C38<>0,(INDEX(CaCrédit,MATCH(1,(CaRefDoc=H38)*(CaNbRéglement=J38),0))),"") ->  | O38: 0 | W38: =Prestations!#REF! -> 
C39: 0 | E39: Publicité | F39: =IF(C39<>0,(INDEX(CaRefClient,MATCH(1,(CaDate=B39)*(CACatégorie="Publicité"),0))),"") ->  | G39: =IF($C39<>0,(INDEX(CaObjet,MATCH(1,(CaDate=$B39)*(CACatégorie="Publicité"),0))),"") ->  | H39: =IF(B39<>0,(INDEX(CaRefDoc,MATCH(1,(CaDate=B39)*(CaRefClient=F39),0))),"") ->  | J39: =IF(B39<>0,(INDEX(CaNbRéglement,MATCH(1,(CaDate=B39)*(CaRefDoc=H39),0))),"") ->  | K39: =IF(C39<>0,(INDEX(CaMode,MATCH(1,(CaDate=B39)*(CaRefDoc=H39),0))),"") ->  | L39: 0 | M39: =IF(C39<>0,(INDEX(CaCrédit,MATCH(1,(CaRefDoc=H39)*(CaNbRéglement=J39),0))),"") ->  | O39: 0 | W39: =Prestations!#REF! -> 
C40: 0 | E40: Publicité | F40: =IF(C40<>0,(INDEX(CaRefClient,MATCH(1,(CaDate=B40)*(CACatégorie="Publicité"),0))),"") ->  | G40: =IF($C40<>0,(INDEX(CaObjet,MATCH(1,(CaDate=$B40)*(CACatégorie="Publicité"),0))),"") ->  | H40: =IF(B40<>0,(INDEX(CaRefDoc,MATCH(1,(CaDate=B40)*(CaRefClient=F40),0))),"") ->  | J40: =IF(B40<>0,(INDEX(CaNbRéglement,MATCH(1,(CaDate=B40)*(CaRefDoc=H40),0))),"") ->  | K40: =IF(C40<>0,(INDEX(CaMode,MATCH(1,(CaDate=B40)*(CaRefDoc=H40),0))),"") ->  | L40: 0 | M40: =IF(C40<>0,(INDEX(CaCrédit,MATCH(1,(CaRefDoc=H40)*(CaNbRéglement=J40),0))),"") ->  | O40: 0 | W40: =Prestations!#REF! -> 
C41: 0 | E41: Publicité | F41: =IF(C41<>0,(INDEX(CaRefClient,MATCH(1,(CaDate=B41)*(CACatégorie="Publicité"),0))),"") ->  | G41: =IF($C41<>0,(INDEX(CaObjet,MATCH(1,(CaDate=$B41)*(CACatégorie="Publicité"),0))),"") ->  | H41: =IF(B41<>0,(INDEX(CaRefDoc,MATCH(1,(CaDate=B41)*(CaRefClient=F41),0))),"") ->  | J41: =IF(B41<>0,(INDEX(CaNbRéglement,MATCH(1,(CaDate=B41)*(CaRefDoc=H41),0))),"") ->  | K41: =IF(C41<>0,(INDEX(CaMode,MATCH(1,(CaDate=B41)*(CaRefDoc=H41),0))),"") ->  | L41: 0 | M41: =IF(C41<>0,(INDEX(CaCrédit,MATCH(1,(CaRefDoc=H41)*(CaNbRéglement=J41),0))),"") ->  | O41: 0 | W41: =Prestations!#REF! -> 
C42: 0 | E42: Publicité | F42: =IF(C42<>0,(INDEX(CaRefClient,MATCH(1,(CaDate=B42)*(CACatégorie="Publicité"),0))),"") ->  | G42: =IF($C42<>0,(INDEX(CaObjet,MATCH(1,(CaDate=$B42)*(CACatégorie="Publicité"),0))),"") ->  | H42: =IF(B42<>0,(INDEX(CaRefDoc,MATCH(1,(CaDate=B42)*(CaRefClient=F42),0))),"") ->  | J42: =IF(B42<>0,(INDEX(CaNbRéglement,MATCH(1,(CaDate=B42)*(CaRefDoc=H42),0))),"") ->  | K42: =IF(C42<>0,(INDEX(CaMode,MATCH(1,(CaDate=B42)*(CaRefDoc=H42),0))),"") ->  | L42: 0 | M42: =IF(C42<>0,(INDEX(CaCrédit,MATCH(1,(CaRefDoc=H42)*(CaNbRéglement=J42),0))),"") ->  | O42: 0 | W42: =Prestations!#REF! -> 
C43: 0 | E43: Publicité | F43: =IF(C43<>0,(INDEX(CaRefClient,MATCH(1,(CaDate=B43)*(CACatégorie="Publicité"),0))),"") ->  | G43: =IF($C43<>0,(INDEX(CaObjet,MATCH(1,(CaDate=$B43)*(CACatégorie="Publicité"),0))),"") ->  | H43: =IF(B43<>0,(INDEX(CaRefDoc,MATCH(1,(CaDate=B43)*(CaRefClient=F43),0))),"") ->  | J43: =IF(B43<>0,(INDEX(CaNbRéglement,MATCH(1,(CaDate=B43)*(CaRefDoc=H43),0))),"") ->  | K43: =IF(C43<>0,(INDEX(CaMode,MATCH(1,(CaDate=B43)*(CaRefDoc=H43),0))),"") ->  | L43: 0 | M43: =IF(C43<>0,(INDEX(CaCrédit,MATCH(1,(CaRefDoc=H43)*(CaNbRéglement=J43),0))),"") ->  | O43: 0 | W43: =Prestations!#REF! -> 
C44: 0 | E44: Publicité | F44: =IF(C44<>0,(INDEX(CaRefClient,MATCH(1,(CaDate=B44)*(CACatégorie="Publicité"),0))),"") ->  | G44: =IF($C44<>0,(INDEX(CaObjet,MATCH(1,(CaDate=$B44)*(CACatégorie="Publicité"),0))),"") ->  | H44: =IF(B44<>0,(INDEX(CaRefDoc,MATCH(1,(CaDate=B44)*(CaRefClient=F44),0))),"") ->  | J44: =IF(B44<>0,(INDEX(CaNbRéglement,MATCH(1,(CaDate=B44)*(CaRefDoc=H44),0))),"") ->  | K44: =IF(C44<>0,(INDEX(CaMode,MATCH(1,(CaDate=B44)*(CaRefDoc=H44),0))),"") ->  | L44: 0 | M44: =IF(C44<>0,(INDEX(CaCrédit,MATCH(1,(CaRefDoc=H44)*(CaNbRéglement=J44),0))),"") ->  | O44: 0 | W44: =Prestations!#REF! -> 
C45: 0 | E45: Publicité | F45: =IF(C45<>0,(INDEX(CaRefClient,MATCH(1,(CaDate=B45)*(CACatégorie="Publicité"),0))),"") ->  | G45: =IF($C45<>0,(INDEX(CaObjet,MATCH(1,(CaDate=$B45)*(CACatégorie="Publicité"),0))),"") ->  | H45: =IF(B45<>0,(INDEX(CaRefDoc,MATCH(1,(CaDate=B45)*(CaRefClient=F45),0))),"") ->  | J45: =IF(B45<>0,(INDEX(CaNbRéglement,MATCH(1,(CaDate=B45)*(CaRefDoc=H45),0))),"") ->  | K45: =IF(C45<>0,(INDEX(CaMode,MATCH(1,(CaDate=B45)*(CaRefDoc=H45),0))),"") ->  | L45: 0 | M45: =IF(C45<>0,(INDEX(CaCrédit,MATCH(1,(CaRefDoc=H45)*(CaNbRéglement=J45),0))),"") ->  | O45: 0 | W45: =Prestations!#REF! -> 
C46: 0 | E46: Publicité | F46: =IF(C46<>0,(INDEX(CaRefClient,MATCH(1,(CaDate=B46)*(CACatégorie="Publicité"),0))),"") ->  | G46: =IF($C46<>0,(INDEX(CaObjet,MATCH(1,(CaDate=$B46)*(CACatégorie="Publicité"),0))),"") ->  | H46: =IF(B46<>0,(INDEX(CaRefDoc,MATCH(1,(CaDate=B46)*(CaRefClient=F46),0))),"") ->  | J46: =IF(B46<>0,(INDEX(CaNbRéglement,MATCH(1,(CaDate=B46)*(CaRefDoc=H46),0))),"") ->  | K46: =IF(C46<>0,(INDEX(CaMode,MATCH(1,(CaDate=B46)*(CaRefDoc=H46),0))),"") ->  | L46: 0 | M46: =IF(C46<>0,(INDEX(CaCrédit,MATCH(1,(CaRefDoc=H46)*(CaNbRéglement=J46),0))),"") ->  | O46: 0 | W46: =Prestations!#REF! -> 
C47: 0 | E47: Publicité | F47: =IF(C47<>0,(INDEX(CaRefClient,MATCH(1,(CaDate=B47)*(CACatégorie="Publicité"),0))),"") ->  | G47: =IF($C47<>0,(INDEX(CaObjet,MATCH(1,(CaDate=$B47)*(CACatégorie="Publicité"),0))),"") ->  | H47: =IF(B47<>0,(INDEX(CaRefDoc,MATCH(1,(CaDate=B47)*(CaRefClient=F47),0))),"") ->  | J47: =IF(B47<>0,(INDEX(CaNbRéglement,MATCH(1,(CaDate=B47)*(CaRefDoc=H47),0))),"") ->  | K47: =IF(C47<>0,(INDEX(CaMode,MATCH(1,(CaDate=B47)*(CaRefDoc=H47),0))),"") ->  | L47: 0 | M47: =IF(C47<>0,(INDEX(CaCrédit,MATCH(1,(CaRefDoc=H47)*(CaNbRéglement=J47),0))),"") ->  | O47: 0 | W47: =Prestations!#REF! -> 
C48: 0 | E48: Publicité | F48: =IF(C48<>0,(INDEX(CaRefClient,MATCH(1,(CaDate=B48)*(CACatégorie="Publicité"),0))),"") ->  | G48: =IF($C48<>0,(INDEX(CaObjet,MATCH(1,(CaDate=$B48)*(CACatégorie="Publicité"),0))),"") ->  | H48: =IF(B48<>0,(INDEX(CaRefDoc,MATCH(1,(CaDate=B48)*(CaRefClient=F48),0))),"") ->  | J48: =IF(B48<>0,(INDEX(CaNbRéglement,MATCH(1,(CaDate=B48)*(CaRefDoc=H48),0))),"") ->  | K48: =IF(C48<>0,(INDEX(CaMode,MATCH(1,(CaDate=B48)*(CaRefDoc=H48),0))),"") ->  | L48: 0 | M48: =IF(C48<>0,(INDEX(CaCrédit,MATCH(1,(CaRefDoc=H48)*(CaNbRéglement=J48),0))),"") ->  | O48: 0 | W48: =Prestations!#REF! -> 
C49: 0 | E49: Publicité | F49: =IF(C49<>0,(INDEX(CaRefClient,MATCH(1,(CaDate=B49)*(CACatégorie="Publicité"),0))),"") ->  | G49: =IF($C49<>0,(INDEX(CaObjet,MATCH(1,(CaDate=$B49)*(CACatégorie="Publicité"),0))),"") ->  | H49: =IF(B49<>0,(INDEX(CaRefDoc,MATCH(1,(CaDate=B49)*(CaRefClient=F49),0))),"") ->  | J49: =IF(B49<>0,(INDEX(CaNbRéglement,MATCH(1,(CaDate=B49)*(CaRefDoc=H49),0))),"") ->  | K49: =IF(C49<>0,(INDEX(CaMode,MATCH(1,(CaDate=B49)*(CaRefDoc=H49),0))),"") ->  | L49: 0 | M49: =IF(C49<>0,(INDEX(CaCrédit,MATCH(1,(CaRefDoc=H49)*(CaNbRéglement=J49),0))),"") ->  | O49: 0 | W49: =Prestations!#REF! -> 
C50: 0 | E50: Publicité | F50: =IF(C50<>0,(INDEX(CaRefClient,MATCH(1,(CaDate=B50)*(CACatégorie="Publicité"),0))),"") ->  | G50: =IF($C50<>0,(INDEX(CaObjet,MATCH(1,(CaDate=$B50)*(CACatégorie="Publicité"),0))),"") ->  | H50: =IF(B50<>0,(INDEX(CaRefDoc,MATCH(1,(CaDate=B50)*(CaRefClient=F50),0))),"") ->  | J50: =IF(B50<>0,(INDEX(CaNbRéglement,MATCH(1,(CaDate=B50)*(CaRefDoc=H50),0))),"") ->  | K50: =IF(C50<>0,(INDEX(CaMode,MATCH(1,(CaDate=B50)*(CaRefDoc=H50),0))),"") ->  | L50: 0 | M50: =IF(C50<>0,(INDEX(CaCrédit,MATCH(1,(CaRefDoc=H50)*(CaNbRéglement=J50),0))),"") ->  | O50: 0 | W50: =Prestations!#REF! -> 
C51: 0 | E51: Publicité | F51: =IF(C51<>0,(INDEX(CaRefClient,MATCH(1,(CaDate=B51)*(CACatégorie="Publicité"),0))),"") ->  | G51: =IF($C51<>0,(INDEX(CaObjet,MATCH(1,(CaDate=$B51)*(CACatégorie="Publicité"),0))),"") ->  | H51: =IF(B51<>0,(INDEX(CaRefDoc,MATCH(1,(CaDate=B51)*(CaRefClient=F51),0))),"") ->  | J51: =IF(B51<>0,(INDEX(CaNbRéglement,MATCH(1,(CaDate=B51)*(CaRefDoc=H51),0))),"") ->  | K51: =IF(C51<>0,(INDEX(CaMode,MATCH(1,(CaDate=B51)*(CaRefDoc=H51),0))),"") ->  | L51: 0 | M51: =IF(C51<>0,(INDEX(CaCrédit,MATCH(1,(CaRefDoc=H51)*(CaNbRéglement=J51),0))),"") ->  | O51: 0 | W51: =Prestations!#REF! -> 
C52: 0 | E52: Publicité | F52: =IF(C52<>0,(INDEX(CaRefClient,MATCH(1,(CaDate=B52)*(CACatégorie="Publicité"),0))),"") ->  | G52: =IF($C52<>0,(INDEX(CaObjet,MATCH(1,(CaDate=$B52)*(CACatégorie="Publicité"),0))),"") ->  | H52: =IF(B52<>0,(INDEX(CaRefDoc,MATCH(1,(CaDate=B52)*(CaRefClient=F52),0))),"") ->  | J52: =IF(B52<>0,(INDEX(CaNbRéglement,MATCH(1,(CaDate=B52)*(CaRefDoc=H52),0))),"") ->  | K52: =IF(C52<>0,(INDEX(CaMode,MATCH(1,(CaDate=B52)*(CaRefDoc=H52),0))),"") ->  | L52: 0 | M52: =IF(C52<>0,(INDEX(CaCrédit,MATCH(1,(CaRefDoc=H52)*(CaNbRéglement=J52),0))),"") ->  | O52: 0 | W52: =Prestations!#REF! -> 
C53: 0 | E53: Publicité | F53: =IF(C53<>0,(INDEX(CaRefClient,MATCH(1,(CaDate=B53)*(CACatégorie="Publicité"),0))),"") ->  | G53: =IF($C53<>0,(INDEX(CaObjet,MATCH(1,(CaDate=$B53)*(CACatégorie="Publicité"),0))),"") ->  | H53: =IF(B53<>0,(INDEX(CaRefDoc,MATCH(1,(CaDate=B53)*(CaRefClient=F53),0))),"") ->  | J53: =IF(B53<>0,(INDEX(CaNbRéglement,MATCH(1,(CaDate=B53)*(CaRefDoc=H53),0))),"") ->  | K53: =IF(C53<>0,(INDEX(CaMode,MATCH(1,(CaDate=B53)*(CaRefDoc=H53),0))),"") ->  | L53: 0 | M53: =IF(C53<>0,(INDEX(CaCrédit,MATCH(1,(CaRefDoc=H53)*(CaNbRéglement=J53),0))),"") ->  | O53: 0 | W53: =Prestations!#REF! -> 
C54: 0 | E54: Publicité | F54: =IF(C54<>0,(INDEX(CaRefClient,MATCH(1,(CaDate=B54)*(CACatégorie="Publicité"),0))),"") ->  | G54: =IF($C54<>0,(INDEX(CaObjet,MATCH(1,(CaDate=$B54)*(CACatégorie="Publicité"),0))),"") ->  | H54: =IF(B54<>0,(INDEX(CaRefDoc,MATCH(1,(CaDate=B54)*(CaRefClient=F54),0))),"") ->  | J54: =IF(B54<>0,(INDEX(CaNbRéglement,MATCH(1,(CaDate=B54)*(CaRefDoc=H54),0))),"") ->  | K54: =IF(C54<>0,(INDEX(CaMode,MATCH(1,(CaDate=B54)*(CaRefDoc=H54),0))),"") ->  | L54: 0 | M54: =IF(C54<>0,(INDEX(CaCrédit,MATCH(1,(CaRefDoc=H54)*(CaNbRéglement=J54),0))),"") ->  | O54: 0 | W54: =Prestations!#REF! -> 
C55: 0 | E55: Publicité | F55: =IF(C55<>0,(INDEX(CaRefClient,MATCH(1,(CaDate=B55)*(CACatégorie="Publicité"),0))),"") ->  | G55: =IF($C55<>0,(INDEX(CaObjet,MATCH(1,(CaDate=$B55)*(CACatégorie="Publicité"),0))),"") ->  | H55: =IF(B55<>0,(INDEX(CaRefDoc,MATCH(1,(CaDate=B55)*(CaRefClient=F55),0))),"") ->  | J55: =IF(B55<>0,(INDEX(CaNbRéglement,MATCH(1,(CaDate=B55)*(CaRefDoc=H55),0))),"") ->  | K55: =IF(C55<>0,(INDEX(CaMode,MATCH(1,(CaDate=B55)*(CaRefDoc=H55),0))),"") ->  | L55: 0 | M55: =IF(C55<>0,(INDEX(CaCrédit,MATCH(1,(CaRefDoc=H55)*(CaNbRéglement=J55),0))),"") ->  | O55: 0 | W55: =Prestations!#REF! -> 
C56: 0 | E56: Publicité | F56: =IF(C56<>0,(INDEX(CaRefClient,MATCH(1,(CaDate=B56)*(CACatégorie="Publicité"),0))),"") ->  | G56: =IF($C56<>0,(INDEX(CaObjet,MATCH(1,(CaDate=$B56)*(CACatégorie="Publicité"),0))),"") ->  | H56: =IF(B56<>0,(INDEX(CaRefDoc,MATCH(1,(CaDate=B56)*(CaRefClient=F56),0))),"") ->  | J56: =IF(B56<>0,(INDEX(CaNbRéglement,MATCH(1,(CaDate=B56)*(CaRefDoc=H56),0))),"") ->  | K56: =IF(C56<>0,(INDEX(CaMode,MATCH(1,(CaDate=B56)*(CaRefDoc=H56),0))),"") ->  | L56: 0 | M56: =IF(C56<>0,(INDEX(CaCrédit,MATCH(1,(CaRefDoc=H56)*(CaNbRéglement=J56),0))),"") ->  | O56: 0 | W56: =Prestations!#REF! -> 
C57: 0 | E57: Publicité | F57: =IF(C57<>0,(INDEX(CaRefClient,MATCH(1,(CaDate=B57)*(CACatégorie="Publicité"),0))),"") ->  | G57: =IF($C57<>0,(INDEX(CaObjet,MATCH(1,(CaDate=$B57)*(CACatégorie="Publicité"),0))),"") ->  | H57: =IF(B57<>0,(INDEX(CaRefDoc,MATCH(1,(CaDate=B57)*(CaRefClient=F57),0))),"") ->  | J57: =IF(B57<>0,(INDEX(CaNbRéglement,MATCH(1,(CaDate=B57)*(CaRefDoc=H57),0))),"") ->  | K57: =IF(C57<>0,(INDEX(CaMode,MATCH(1,(CaDate=B57)*(CaRefDoc=H57),0))),"") ->  | L57: 0 | M57: =IF(C57<>0,(INDEX(CaCrédit,MATCH(1,(CaRefDoc=H57)*(CaNbRéglement=J57),0))),"") ->  | O57: 0 | W57: =Prestations!#REF! -> 
C58: 0 | E58: Publicité | F58: =IF(C58<>0,(INDEX(CaRefClient,MATCH(1,(CaDate=B58)*(CACatégorie="Publicité"),0))),"") ->  | G58: =IF($C58<>0,(INDEX(CaObjet,MATCH(1,(CaDate=$B58)*(CACatégorie="Publicité"),0))),"") ->  | H58: =IF(B58<>0,(INDEX(CaRefDoc,MATCH(1,(CaDate=B58)*(CaRefClient=F58),0))),"") ->  | J58: =IF(B58<>0,(INDEX(CaNbRéglement,MATCH(1,(CaDate=B58)*(CaRefDoc=H58),0))),"") ->  | K58: =IF(C58<>0,(INDEX(CaMode,MATCH(1,(CaDate=B58)*(CaRefDoc=H58),0))),"") ->  | L58: 0 | M58: =IF(C58<>0,(INDEX(CaCrédit,MATCH(1,(CaRefDoc=H58)*(CaNbRéglement=J58),0))),"") ->  | O58: 0 | W58: =Prestations!#REF! -> 
C59: 0 | E59: Publicité | F59: =IF(C59<>0,(INDEX(CaRefClient,MATCH(1,(CaDate=B59)*(CACatégorie="Publicité"),0))),"") ->  | G59: =IF($C59<>0,(INDEX(CaObjet,MATCH(1,(CaDate=$B59)*(CACatégorie="Publicité"),0))),"") ->  | H59: =IF(B59<>0,(INDEX(CaRefDoc,MATCH(1,(CaDate=B59)*(CaRefClient=F59),0))),"") ->  | J59: =IF(B59<>0,(INDEX(CaNbRéglement,MATCH(1,(CaDate=B59)*(CaRefDoc=H59),0))),"") ->  | K59: =IF(C59<>0,(INDEX(CaMode,MATCH(1,(CaDate=B59)*(CaRefDoc=H59),0))),"") ->  | L59: 0 | M59: =IF(C59<>0,(INDEX(CaCrédit,MATCH(1,(CaRefDoc=H59)*(CaNbRéglement=J59),0))),"") ->  | O59: 0 | W59: =Prestations!#REF! -> 
C60: 0 | E60: Publicité | F60: =IF(C60<>0,(INDEX(CaRefClient,MATCH(1,(CaDate=B60)*(CACatégorie="Publicité"),0))),"") ->  | G60: =IF($C60<>0,(INDEX(CaObjet,MATCH(1,(CaDate=$B60)*(CACatégorie="Publicité"),0))),"") ->  | H60: =IF(B60<>0,(INDEX(CaRefDoc,MATCH(1,(CaDate=B60)*(CaRefClient=F60),0))),"") ->  | J60: =IF(B60<>0,(INDEX(CaNbRéglement,MATCH(1,(CaDate=B60)*(CaRefDoc=H60),0))),"") ->  | K60: =IF(C60<>0,(INDEX(CaMode,MATCH(1,(CaDate=B60)*(CaRefDoc=H60),0))),"") ->  | L60: 0 | M60: =IF(C60<>0,(INDEX(CaCrédit,MATCH(1,(CaRefDoc=H60)*(CaNbRéglement=J60),0))),"") ->  | O60: 0 | W60: =Prestations!#REF! -> 
C61: 0 | E61: Publicité | F61: =IF(C61<>0,(INDEX(CaRefClient,MATCH(1,(CaDate=B61)*(CACatégorie="Publicité"),0))),"") ->  | G61: =IF($C61<>0,(INDEX(CaObjet,MATCH(1,(CaDate=$B61)*(CACatégorie="Publicité"),0))),"") ->  | H61: =IF(B61<>0,(INDEX(CaRefDoc,MATCH(1,(CaDate=B61)*(CaRefClient=F61),0))),"") ->  | J61: =IF(B61<>0,(INDEX(CaNbRéglement,MATCH(1,(CaDate=B61)*(CaRefDoc=H61),0))),"") ->  | K61: =IF(C61<>0,(INDEX(CaMode,MATCH(1,(CaDate=B61)*(CaRefDoc=H61),0))),"") ->  | L61: 0 | M61: =IF(C61<>0,(INDEX(CaCrédit,MATCH(1,(CaRefDoc=H61)*(CaNbRéglement=J61),0))),"") ->  | O61: 0 | W61: =Prestations!#REF! -> 
C62: 0 | E62: Publicité | F62: =IF(C62<>0,(INDEX(CaRefClient,MATCH(1,(CaDate=B62)*(CACatégorie="Publicité"),0))),"") ->  | G62: =IF($C62<>0,(INDEX(CaObjet,MATCH(1,(CaDate=$B62)*(CACatégorie="Publicité"),0))),"") ->  | H62: =IF(B62<>0,(INDEX(CaRefDoc,MATCH(1,(CaDate=B62)*(CaRefClient=F62),0))),"") ->  | J62: =IF(B62<>0,(INDEX(CaNbRéglement,MATCH(1,(CaDate=B62)*(CaRefDoc=H62),0))),"") ->  | K62: =IF(C62<>0,(INDEX(CaMode,MATCH(1,(CaDate=B62)*(CaRefDoc=H62),0))),"") ->  | L62: 0 | M62: =IF(C62<>0,(INDEX(CaCrédit,MATCH(1,(CaRefDoc=H62)*(CaNbRéglement=J62),0))),"") ->  | O62: 0 | W62: =Prestations!#REF! -> 
C63: 0 | E63: Publicité | F63: =IF(C63<>0,(INDEX(CaRefClient,MATCH(1,(CaDate=B63)*(CACatégorie="Publicité"),0))),"") ->  | G63: =IF($C63<>0,(INDEX(CaObjet,MATCH(1,(CaDate=$B63)*(CACatégorie="Publicité"),0))),"") ->  | H63: =IF(B63<>0,(INDEX(CaRefDoc,MATCH(1,(CaDate=B63)*(CaRefClient=F63),0))),"") ->  | J63: =IF(B63<>0,(INDEX(CaNbRéglement,MATCH(1,(CaDate=B63)*(CaRefDoc=H63),0))),"") ->  | K63: =IF(C63<>0,(INDEX(CaMode,MATCH(1,(CaDate=B63)*(CaRefDoc=H63),0))),"") ->  | L63: 0 | M63: =IF(C63<>0,(INDEX(CaCrédit,MATCH(1,(CaRefDoc=H63)*(CaNbRéglement=J63),0))),"") ->  | O63: 0 | W63: =Prestations!#REF! -> 
C64: 0 | E64: Publicité | F64: =IF(C64<>0,(INDEX(CaRefClient,MATCH(1,(CaDate=B64)*(CACatégorie="Publicité"),0))),"") ->  | G64: =IF($C64<>0,(INDEX(CaObjet,MATCH(1,(CaDate=$B64)*(CACatégorie="Publicité"),0))),"") ->  | H64: =IF(B64<>0,(INDEX(CaRefDoc,MATCH(1,(CaDate=B64)*(CaRefClient=F64),0))),"") ->  | J64: =IF(B64<>0,(INDEX(CaNbRéglement,MATCH(1,(CaDate=B64)*(CaRefDoc=H64),0))),"") ->  | K64: =IF(C64<>0,(INDEX(CaMode,MATCH(1,(CaDate=B64)*(CaRefDoc=H64),0))),"") ->  | L64: 0 | M64: =IF(C64<>0,(INDEX(CaCrédit,MATCH(1,(CaRefDoc=H64)*(CaNbRéglement=J64),0))),"") ->  | O64: 0 | W64: =Prestations!#REF! -> 
C65: 0 | E65: Publicité | F65: =IF(C65<>0,(INDEX(CaRefClient,MATCH(1,(CaDate=B65)*(CACatégorie="Publicité"),0))),"") ->  | G65: =IF($C65<>0,(INDEX(CaObjet,MATCH(1,(CaDate=$B65)*(CACatégorie="Publicité"),0))),"") ->  | H65: =IF(B65<>0,(INDEX(CaRefDoc,MATCH(1,(CaDate=B65)*(CaRefClient=F65),0))),"") ->  | J65: =IF(B65<>0,(INDEX(CaNbRéglement,MATCH(1,(CaDate=B65)*(CaRefDoc=H65),0))),"") ->  | K65: =IF(C65<>0,(INDEX(CaMode,MATCH(1,(CaDate=B65)*(CaRefDoc=H65),0))),"") ->  | L65: 0 | M65: =IF(C65<>0,(INDEX(CaCrédit,MATCH(1,(CaRefDoc=H65)*(CaNbRéglement=J65),0))),"") ->  | O65: 0 | W65: =Prestations!#REF! -> 
C66: 0 | E66: Publicité | F66: =IF(C66<>0,(INDEX(CaRefClient,MATCH(1,(CaDate=B66)*(CACatégorie="Publicité"),0))),"") ->  | G66: =IF($C66<>0,(INDEX(CaObjet,MATCH(1,(CaDate=$B66)*(CACatégorie="Publicité"),0))),"") ->  | H66: =IF(B66<>0,(INDEX(CaRefDoc,MATCH(1,(CaDate=B66)*(CaRefClient=F66),0))),"") ->  | J66: =IF(B66<>0,(INDEX(CaNbRéglement,MATCH(1,(CaDate=B66)*(CaRefDoc=H66),0))),"") ->  | K66: =IF(C66<>0,(INDEX(CaMode,MATCH(1,(CaDate=B66)*(CaRefDoc=H66),0))),"") ->  | L66: 0 | M66: =IF(C66<>0,(INDEX(CaCrédit,MATCH(1,(CaRefDoc=H66)*(CaNbRéglement=J66),0))),"") ->  | O66: 0 | W66: =Prestations!#REF! -> 
C67: 0 | E67: Publicité | F67: =IF(C67<>0,(INDEX(CaRefClient,MATCH(1,(CaDate=B67)*(CACatégorie="Publicité"),0))),"") ->  | G67: =IF($C67<>0,(INDEX(CaObjet,MATCH(1,(CaDate=$B67)*(CACatégorie="Publicité"),0))),"") ->  | H67: =IF(B67<>0,(INDEX(CaRefDoc,MATCH(1,(CaDate=B67)*(CaRefClient=F67),0))),"") ->  | J67: =IF(B67<>0,(INDEX(CaNbRéglement,MATCH(1,(CaDate=B67)*(CaRefDoc=H67),0))),"") ->  | K67: =IF(C67<>0,(INDEX(CaMode,MATCH(1,(CaDate=B67)*(CaRefDoc=H67),0))),"") ->  | L67: 0 | M67: =IF(C67<>0,(INDEX(CaCrédit,MATCH(1,(CaRefDoc=H67)*(CaNbRéglement=J67),0))),"") ->  | O67: 0 | W67: =Prestations!#REF! -> 
C68: 0 | E68: Publicité | F68: =IF(C68<>0,(INDEX(CaRefClient,MATCH(1,(CaDate=B68)*(CACatégorie="Publicité"),0))),"") ->  | G68: =IF($C68<>0,(INDEX(CaObjet,MATCH(1,(CaDate=$B68)*(CACatégorie="Publicité"),0))),"") ->  | H68: =IF(B68<>0,(INDEX(CaRefDoc,MATCH(1,(CaDate=B68)*(CaRefClient=F68),0))),"") ->  | J68: =IF(B68<>0,(INDEX(CaNbRéglement,MATCH(1,(CaDate=B68)*(CaRefDoc=H68),0))),"") ->  | K68: =IF(C68<>0,(INDEX(CaMode,MATCH(1,(CaDate=B68)*(CaRefDoc=H68),0))),"") ->  | L68: 0 | M68: =IF(C68<>0,(INDEX(CaCrédit,MATCH(1,(CaRefDoc=H68)*(CaNbRéglement=J68),0))),"") ->  | O68: 0 | W68: =Prestations!#REF! -> 
C69: 0 | E69: Publicité | F69: =IF(C69<>0,(INDEX(CaRefClient,MATCH(1,(CaDate=B69)*(CACatégorie="Publicité"),0))),"") ->  | G69: =IF($C69<>0,(INDEX(CaObjet,MATCH(1,(CaDate=$B69)*(CACatégorie="Publicité"),0))),"") ->  | H69: =IF(B69<>0,(INDEX(CaRefDoc,MATCH(1,(CaDate=B69)*(CaRefClient=F69),0))),"") ->  | J69: =IF(B69<>0,(INDEX(CaNbRéglement,MATCH(1,(CaDate=B69)*(CaRefDoc=H69),0))),"") ->  | K69: =IF(C69<>0,(INDEX(CaMode,MATCH(1,(CaDate=B69)*(CaRefDoc=H69),0))),"") ->  | L69: 0 | M69: =IF(C69<>0,(INDEX(CaCrédit,MATCH(1,(CaRefDoc=H69)*(CaNbRéglement=J69),0))),"") ->  | O69: 0 | W69: =Prestations!#REF! -> 
C70: 0 | E70: Publicité | F70: =IF(C70<>0,(INDEX(CaRefClient,MATCH(1,(CaDate=B70)*(CACatégorie="Publicité"),0))),"") ->  | G70: =IF($C70<>0,(INDEX(CaObjet,MATCH(1,(CaDate=$B70)*(CACatégorie="Publicité"),0))),"") ->  | H70: =IF(B70<>0,(INDEX(CaRefDoc,MATCH(1,(CaDate=B70)*(CaRefClient=F70),0))),"") ->  | J70: =IF(B70<>0,(INDEX(CaNbRéglement,MATCH(1,(CaDate=B70)*(CaRefDoc=H70),0))),"") ->  | K70: =IF(C70<>0,(INDEX(CaMode,MATCH(1,(CaDate=B70)*(CaRefDoc=H70),0))),"") ->  | L70: 0 | M70: =IF(C70<>0,(INDEX(CaCrédit,MATCH(1,(CaRefDoc=H70)*(CaNbRéglement=J70),0))),"") ->  | O70: 0 | W70: =Prestations!#REF! -> 
C71: 0 | E71: Publicité | F71: =IF(C71<>0,(INDEX(CaRefClient,MATCH(1,(CaDate=B71)*(CACatégorie="Publicité"),0))),"") ->  | G71: =IF($C71<>0,(INDEX(CaObjet,MATCH(1,(CaDate=$B71)*(CACatégorie="Publicité"),0))),"") ->  | H71: =IF(B71<>0,(INDEX(CaRefDoc,MATCH(1,(CaDate=B71)*(CaRefClient=F71),0))),"") ->  | J71: =IF(B71<>0,(INDEX(CaNbRéglement,MATCH(1,(CaDate=B71)*(CaRefDoc=H71),0))),"") ->  | K71: =IF(C71<>0,(INDEX(CaMode,MATCH(1,(CaDate=B71)*(CaRefDoc=H71),0))),"") ->  | L71: 0 | M71: =IF(C71<>0,(INDEX(CaCrédit,MATCH(1,(CaRefDoc=H71)*(CaNbRéglement=J71),0))),"") ->  | O71: 0 | W71: =Prestations!#REF! -> 
C72: 0 | E72: Publicité | F72: =IF(C72<>0,(INDEX(CaRefClient,MATCH(1,(CaDate=B72)*(CACatégorie="Publicité"),0))),"") ->  | G72: =IF($C72<>0,(INDEX(CaObjet,MATCH(1,(CaDate=$B72)*(CACatégorie="Publicité"),0))),"") ->  | H72: =IF(B72<>0,(INDEX(CaRefDoc,MATCH(1,(CaDate=B72)*(CaRefClient=F72),0))),"") ->  | J72: =IF(B72<>0,(INDEX(CaNbRéglement,MATCH(1,(CaDate=B72)*(CaRefDoc=H72),0))),"") ->  | K72: =IF(C72<>0,(INDEX(CaMode,MATCH(1,(CaDate=B72)*(CaRefDoc=H72),0))),"") ->  | L72: 0 | M72: =IF(C72<>0,(INDEX(CaCrédit,MATCH(1,(CaRefDoc=H72)*(CaNbRéglement=J72),0))),"") ->  | O72: 0 | W72: =Prestations!#REF! -> 
C73: 0 | E73: Publicité | F73: =IF(C73<>0,(INDEX(CaRefClient,MATCH(1,(CaDate=B73)*(CACatégorie="Publicité"),0))),"") ->  | G73: =IF($C73<>0,(INDEX(CaObjet,MATCH(1,(CaDate=$B73)*(CACatégorie="Publicité"),0))),"") ->  | H73: =IF(B73<>0,(INDEX(CaRefDoc,MATCH(1,(CaDate=B73)*(CaRefClient=F73),0))),"") ->  | J73: =IF(B73<>0,(INDEX(CaNbRéglement,MATCH(1,(CaDate=B73)*(CaRefDoc=H73),0))),"") ->  | K73: =IF(C73<>0,(INDEX(CaMode,MATCH(1,(CaDate=B73)*(CaRefDoc=H73),0))),"") ->  | L73: 0 | M73: =IF(C73<>0,(INDEX(CaCrédit,MATCH(1,(CaRefDoc=H73)*(CaNbRéglement=J73),0))),"") ->  | O73: 0 | W73: =Prestations!#REF! -> 
C74: 0 | D74: =IF(PubJour=0,"",UPPER(TEXT(C74,"mmmm"))) ->  | E74: Publicité | F74: =IF(C74<>0,(INDEX(CaRefClient,MATCH(1,(CaDate=B74)*(CACatégorie="Publicité"),0))),"") ->  | G74: =IF($C74<>0,(INDEX(CaObjet,MATCH(1,(CaDate=$B74)*(CACatégorie="Publicité"),0))),"") ->  | H74: =IF(B74<>0,(INDEX(CaRefDoc,MATCH(1,(CaDate=B74)*(CaRefClient=F74),0))),"") ->  | J74: =IF(B74<>0,(INDEX(CaNbRéglement,MATCH(1,(CaDate=B74)*(CaRefDoc=H74),0))),"") ->  | K74: =IF(C74<>0,(INDEX(CaMode,MATCH(1,(CaDate=B74)*(CaRefDoc=H74),0))),"") ->  | L74: =IF(H74="",0,INDEX(FactMontant,MATCH(H74,FactRefDoc,0))) -> 0 | M74: =IF(C74<>0,(INDEX(CaCrédit,MATCH(1,(CaRefDoc=H74)*(CaNbRéglement=J74),0))),"") ->  | O74: =IF($C74=0,0,(IF($J74="R1",$L74-$M74,IF($J74="R2",$L74-((INDEX(FactR1,MATCH($H74,FactRefDoc,0)))+(INDEX(FactR2,MATCH($H74,FactRefDoc,0)))),IF($J74="R3",$L74-((INDEX(FactR1,MATCH($H74,FactRefDoc,0)))+(INDEX(FactR2,MATCH($H74,FactRefDoc,0)))+(INDEX(FactR3,MATCH($H74,FactRefDoc,0)))),IF($J74="R4",$L74-((INDEX(FactR1,MATCH($H74,FactRefDoc,0)))+(INDEX(FactR2,MATCH($H74,FactRefDoc,0)))+(INDEX(FactR3,MATCH($H74,FactRefDoc,0)))+(INDEX(FactR4,MATCH($H74,FactRefDoc,0)))),$L74-((INDEX(FactR1,MATCH($H74,FactRefDoc,0)))+(INDEX(FactR2,MATCH($H74,FactRefDoc,0)))+(INDEX(FactR3,MATCH($H74,FactRefDoc,0)))+(INDEX(FactR4,MATCH($H74,FactRefDoc,0)))+(INDEX(FactR5,MATCH($H74,FactRefDoc,0)))))))))) -> 0 | W74: =Prestations!#REF! -> 
C75: =DATE(YEAR(B75),MONTH(B75),DAY(B75)) -> 0 | E75: Publicité | F75: =IF(C75<>0,(INDEX(CaRefClient,MATCH(1,(CaDate=B75)*(CACatégorie="Publicité"),0))),"") ->  | G75: =IF($C75<>0,(INDEX(CaObjet,MATCH(1,(CaDate=$B75)*(CACatégorie="Publicité"),0))),"") ->  | H75: =IF(B75<>0,(INDEX(CaRefDoc,MATCH(1,(CaDate=B75)*(CaRefClient=F75),0))),"") ->  | J75: =IF(B75<>0,(INDEX(CaNbRéglement,MATCH(1,(CaDate=B75)*(CaRefDoc=H75),0))),"") ->  | K75: =IF(C75<>0,(INDEX(CaMode,MATCH(1,(CaDate=B75)*(CaRefDoc=H75),0))),"") ->  | L75: 0 | M75: =IF(C75<>0,(INDEX(CaCrédit,MATCH(1,(CaRefDoc=H75)*(CaNbRéglement=J75),0))),"") ->  | O75: 0 | W75: =Prestations!#REF! -> 
C76: 0 | E76: Publicité | F76: =IF(C76<>0,(INDEX(CaRefClient,MATCH(1,(CaDate=B76)*(CACatégorie="Publicité"),0))),"") ->  | G76: =IF($C76<>0,(INDEX(CaObjet,MATCH(1,(CaDate=$B76)*(CACatégorie="Publicité"),0))),"") ->  | H76: =IF(B76<>0,(INDEX(CaRefDoc,MATCH(1,(CaDate=B76)*(CaRefClient=F76),0))),"") ->  | J76: =IF(B76<>0,(INDEX(CaNbRéglement,MATCH(1,(CaDate=B76)*(CaRefDoc=H76),0))),"") ->  | K76: =IF(C76<>0,(INDEX(CaMode,MATCH(1,(CaDate=B76)*(CaRefDoc=H76),0))),"") ->  | L76: 0 | M76: =IF(C76<>0,(INDEX(CaCrédit,MATCH(1,(CaRefDoc=H76)*(CaNbRéglement=J76),0))),"") ->  | O76: 0 | W76: =Prestations!#REF! -> 
C77: 0 | E77: Publicité | F77: =IF(C77<>0,(INDEX(CaRefClient,MATCH(1,(CaDate=B77)*(CACatégorie="Publicité"),0))),"") ->  | G77: =IF($C77<>0,(INDEX(CaObjet,MATCH(1,(CaDate=$B77)*(CACatégorie="Publicité"),0))),"") ->  | H77: =IF(B77<>0,(INDEX(CaRefDoc,MATCH(1,(CaDate=B77)*(CaRefClient=F77),0))),"") ->  | J77: =IF(B77<>0,(INDEX(CaNbRéglement,MATCH(1,(CaDate=B77)*(CaRefDoc=H77),0))),"") ->  | K77: =IF(C77<>0,(INDEX(CaMode,MATCH(1,(CaDate=B77)*(CaRefDoc=H77),0))),"") ->  | L77: 0 | M77: =IF(C77<>0,(INDEX(CaCrédit,MATCH(1,(CaRefDoc=H77)*(CaNbRéglement=J77),0))),"") ->  | O77: 0 | W77: =Prestations!#REF! -> 
C78: 0 | E78: Publicité | F78: =IF(C78<>0,(INDEX(CaRefClient,MATCH(1,(CaDate=B78)*(CACatégorie="Publicité"),0))),"") ->  | G78: =IF($C78<>0,(INDEX(CaObjet,MATCH(1,(CaDate=$B78)*(CACatégorie="Publicité"),0))),"") ->  | H78: =IF(B78<>0,(INDEX(CaRefDoc,MATCH(1,(CaDate=B78)*(CaRefClient=F78),0))),"") ->  | J78: =IF(B78<>0,(INDEX(CaNbRéglement,MATCH(1,(CaDate=B78)*(CaRefDoc=H78),0))),"") ->  | K78: =IF(C78<>0,(INDEX(CaMode,MATCH(1,(CaDate=B78)*(CaRefDoc=H78),0))),"") ->  | L78: 0 | M78: =IF(C78<>0,(INDEX(CaCrédit,MATCH(1,(CaRefDoc=H78)*(CaNbRéglement=J78),0))),"") ->  | O78: 0 | W78: =Prestations!#REF! -> 
C79: 0 | E79: Publicité | F79: =IF(C79<>0,(INDEX(CaRefClient,MATCH(1,(CaDate=B79)*(CACatégorie="Publicité"),0))),"") ->  | G79: =IF($C79<>0,(INDEX(CaObjet,MATCH(1,(CaDate=$B79)*(CACatégorie="Publicité"),0))),"") ->  | H79: =IF(B79<>0,(INDEX(CaRefDoc,MATCH(1,(CaDate=B79)*(CaRefClient=F79),0))),"") ->  | J79: =IF(B79<>0,(INDEX(CaNbRéglement,MATCH(1,(CaDate=B79)*(CaRefDoc=H79),0))),"") ->  | K79: =IF(C79<>0,(INDEX(CaMode,MATCH(1,(CaDate=B79)*(CaRefDoc=H79),0))),"") ->  | L79: 0 | M79: =IF(C79<>0,(INDEX(CaCrédit,MATCH(1,(CaRefDoc=H79)*(CaNbRéglement=J79),0))),"") ->  | O79: 0 | W79: =Prestations!#REF! -> 
C80: 0 | E80: Publicité | F80: =IF(C80<>0,(INDEX(CaRefClient,MATCH(1,(CaDate=B80)*(CACatégorie="Publicité"),0))),"") ->  | G80: =IF($C80<>0,(INDEX(CaObjet,MATCH(1,(CaDate=$B80)*(CACatégorie="Publicité"),0))),"") ->  | H80: =IF(B80<>0,(INDEX(CaRefDoc,MATCH(1,(CaDate=B80)*(CaRefClient=F80),0))),"") ->  | J80: =IF(B80<>0,(INDEX(CaNbRéglement,MATCH(1,(CaDate=B80)*(CaRefDoc=H80),0))),"") ->  | K80: =IF(C80<>0,(INDEX(CaMode,MATCH(1,(CaDate=B80)*(CaRefDoc=H80),0))),"") ->  | L80: 0 | M80: =IF(C80<>0,(INDEX(CaCrédit,MATCH(1,(CaRefDoc=H80)*(CaNbRéglement=J80),0))),"") ->  | O80: 0 | W80: =Prestations!#REF! -> 
C81: 0 | E81: Publicité | F81: =IF(C81<>0,(INDEX(CaRefClient,MATCH(1,(CaDate=B81)*(CACatégorie="Publicité"),0))),"") ->  | G81: =IF($C81<>0,(INDEX(CaObjet,MATCH(1,(CaDate=$B81)*(CACatégorie="Publicité"),0))),"") ->  | H81: =IF(B81<>0,(INDEX(CaRefDoc,MATCH(1,(CaDate=B81)*(CaRefClient=F81),0))),"") ->  | J81: =IF(B81<>0,(INDEX(CaNbRéglement,MATCH(1,(CaDate=B81)*(CaRefDoc=H81),0))),"") ->  | K81: =IF(C81<>0,(INDEX(CaMode,MATCH(1,(CaDate=B81)*(CaRefDoc=H81),0))),"") ->  | L81: 0 | M81: =IF(C81<>0,(INDEX(CaCrédit,MATCH(1,(CaRefDoc=H81)*(CaNbRéglement=J81),0))),"") ->  | O81: 0 | W81: =Prestations!#REF! -> 
C82: 0 | E82: Publicité | F82: =IF(C82<>0,(INDEX(CaRefClient,MATCH(1,(CaDate=B82)*(CACatégorie="Publicité"),0))),"") ->  | G82: =IF($C82<>0,(INDEX(CaObjet,MATCH(1,(CaDate=$B82)*(CACatégorie="Publicité"),0))),"") ->  | H82: =IF(B82<>0,(INDEX(CaRefDoc,MATCH(1,(CaDate=B82)*(CaRefClient=F82),0))),"") ->  | J82: =IF(B82<>0,(INDEX(CaNbRéglement,MATCH(1,(CaDate=B82)*(CaRefDoc=H82),0))),"") ->  | K82: =IF(C82<>0,(INDEX(CaMode,MATCH(1,(CaDate=B82)*(CaRefDoc=H82),0))),"") ->  | L82: 0 | M82: =IF(C82<>0,(INDEX(CaCrédit,MATCH(1,(CaRefDoc=H82)*(CaNbRéglement=J82),0))),"") ->  | O82: 0 | W82: =Prestations!#REF! -> 
C83: 0 | E83: Publicité | F83: =IF(C83<>0,(INDEX(CaRefClient,MATCH(1,(CaDate=B83)*(CACatégorie="Publicité"),0))),"") ->  | G83: =IF($C83<>0,(INDEX(CaObjet,MATCH(1,(CaDate=$B83)*(CACatégorie="Publicité"),0))),"") ->  | H83: =IF(B83<>0,(INDEX(CaRefDoc,MATCH(1,(CaDate=B83)*(CaRefClient=F83),0))),"") ->  | J83: =IF(B83<>0,(INDEX(CaNbRéglement,MATCH(1,(CaDate=B83)*(CaRefDoc=H83),0))),"") ->  | K83: =IF(C83<>0,(INDEX(CaMode,MATCH(1,(CaDate=B83)*(CaRefDoc=H83),0))),"") ->  | L83: 0 | M83: =IF(C83<>0,(INDEX(CaCrédit,MATCH(1,(CaRefDoc=H83)*(CaNbRéglement=J83),0))),"") ->  | O83: 0 | W83: =Prestations!#REF! -> 
C84: 0 | E84: Publicité | F84: =IF(C84<>0,(INDEX(CaRefClient,MATCH(1,(CaDate=B84)*(CACatégorie="Publicité"),0))),"") ->  | G84: =IF($C84<>0,(INDEX(CaObjet,MATCH(1,(CaDate=$B84)*(CACatégorie="Publicité"),0))),"") ->  | H84: =IF(B84<>0,(INDEX(CaRefDoc,MATCH(1,(CaDate=B84)*(CaRefClient=F84),0))),"") ->  | J84: =IF(B84<>0,(INDEX(CaNbRéglement,MATCH(1,(CaDate=B84)*(CaRefDoc=H84),0))),"") ->  | K84: =IF(C84<>0,(INDEX(CaMode,MATCH(1,(CaDate=B84)*(CaRefDoc=H84),0))),"") ->  | L84: 0 | M84: =IF(C84<>0,(INDEX(CaCrédit,MATCH(1,(CaRefDoc=H84)*(CaNbRéglement=J84),0))),"") ->  | O84: 0 | W84: =Prestations!#REF! ->  | AJ84: =SUM(X84:AI84) -> 
C85: 0 | E85: Publicité | F85: =IF(C85<>0,(INDEX(CaRefClient,MATCH(1,(CaDate=B85)*(CACatégorie="Publicité"),0))),"") ->  | G85: =IF($C85<>0,(INDEX(CaObjet,MATCH(1,(CaDate=$B85)*(CACatégorie="Publicité"),0))),"") ->  | H85: =IF(B85<>0,(INDEX(CaRefDoc,MATCH(1,(CaDate=B85)*(CaRefClient=F85),0))),"") ->  | J85: =IF(B85<>0,(INDEX(CaNbRéglement,MATCH(1,(CaDate=B85)*(CaRefDoc=H85),0))),"") ->  | K85: =IF(C85<>0,(INDEX(CaMode,MATCH(1,(CaDate=B85)*(CaRefDoc=H85),0))),"") ->  | L85: 0 | M85: =IF(C85<>0,(INDEX(CaCrédit,MATCH(1,(CaRefDoc=H85)*(CaNbRéglement=J85),0))),"") ->  | O85: 0 | W85: =Prestations!#REF! -> 
C86: 0 | E86: Publicité | F86: =IF(C86<>0,(INDEX(CaRefClient,MATCH(1,(CaDate=B86)*(CACatégorie="Publicité"),0))),"") ->  | G86: =IF($C86<>0,(INDEX(CaObjet,MATCH(1,(CaDate=$B86)*(CACatégorie="Publicité"),0))),"") ->  | H86: =IF(B86<>0,(INDEX(CaRefDoc,MATCH(1,(CaDate=B86)*(CaRefClient=F86),0))),"") ->  | J86: =IF(B86<>0,(INDEX(CaNbRéglement,MATCH(1,(CaDate=B86)*(CaRefDoc=H86),0))),"") ->  | K86: =IF(C86<>0,(INDEX(CaMode,MATCH(1,(CaDate=B86)*(CaRefDoc=H86),0))),"") ->  | L86: 0 | M86: =IF(C86<>0,(INDEX(CaCrédit,MATCH(1,(CaRefDoc=H86)*(CaNbRéglement=J86),0))),"") ->  | O86: 0 | W86: =Prestations!#REF! -> 
C87: 0 | E87: Publicité | F87: =IF(C87<>0,(INDEX(CaRefClient,MATCH(1,(CaDate=B87)*(CACatégorie="Publicité"),0))),"") ->  | G87: =IF($C87<>0,(INDEX(CaObjet,MATCH(1,(CaDate=$B87)*(CACatégorie="Publicité"),0))),"") ->  | H87: =IF(B87<>0,(INDEX(CaRefDoc,MATCH(1,(CaDate=B87)*(CaRefClient=F87),0))),"") ->  | J87: =IF(B87<>0,(INDEX(CaNbRéglement,MATCH(1,(CaDate=B87)*(CaRefDoc=H87),0))),"") ->  | K87: =IF(C87<>0,(INDEX(CaMode,MATCH(1,(CaDate=B87)*(CaRefDoc=H87),0))),"") ->  | L87: 0 | M87: =IF(C87<>0,(INDEX(CaCrédit,MATCH(1,(CaRefDoc=H87)*(CaNbRéglement=J87),0))),"") ->  | O87: 0 | W87: =Prestations!#REF! -> 
C88: 0 | E88: Publicité | F88: =IF(C88<>0,(INDEX(CaRefClient,MATCH(1,(CaDate=B88)*(CACatégorie="Publicité"),0))),"") ->  | G88: =IF($C88<>0,(INDEX(CaObjet,MATCH(1,(CaDate=$B88)*(CACatégorie="Publicité"),0))),"") ->  | H88: =IF(B88<>0,(INDEX(CaRefDoc,MATCH(1,(CaDate=B88)*(CaRefClient=F88),0))),"") ->  | J88: =IF(B88<>0,(INDEX(CaNbRéglement,MATCH(1,(CaDate=B88)*(CaRefDoc=H88),0))),"") ->  | K88: =IF(C88<>0,(INDEX(CaMode,MATCH(1,(CaDate=B88)*(CaRefDoc=H88),0))),"") ->  | L88: 0 | M88: =IF(C88<>0,(INDEX(CaCrédit,MATCH(1,(CaRefDoc=H88)*(CaNbRéglement=J88),0))),"") ->  | O88: 0 | W88: =Prestations!#REF! -> 
C89: 0 | E89: Publicité | F89: =IF(C89<>0,(INDEX(CaRefClient,MATCH(1,(CaDate=B89)*(CACatégorie="Publicité"),0))),"") ->  | G89: =IF($C89<>0,(INDEX(CaObjet,MATCH(1,(CaDate=$B89)*(CACatégorie="Publicité"),0))),"") ->  | H89: =IF(B89<>0,(INDEX(CaRefDoc,MATCH(1,(CaDate=B89)*(CaRefClient=F89),0))),"") ->  | J89: =IF(B89<>0,(INDEX(CaNbRéglement,MATCH(1,(CaDate=B89)*(CaRefDoc=H89),0))),"") ->  | K89: =IF(C89<>0,(INDEX(CaMode,MATCH(1,(CaDate=B89)*(CaRefDoc=H89),0))),"") ->  | L89: 0 | M89: =IF(C89<>0,(INDEX(CaCrédit,MATCH(1,(CaRefDoc=H89)*(CaNbRéglement=J89),0))),"") ->  | O89: 0 | W89: =Prestations!#REF! -> 
C90: 0 | E90: Publicité | F90: =IF(C90<>0,(INDEX(CaRefClient,MATCH(1,(CaDate=B90)*(CACatégorie="Publicité"),0))),"") ->  | G90: =IF($C90<>0,(INDEX(CaObjet,MATCH(1,(CaDate=$B90)*(CACatégorie="Publicité"),0))),"") ->  | H90: =IF(B90<>0,(INDEX(CaRefDoc,MATCH(1,(CaDate=B90)*(CaRefClient=F90),0))),"") ->  | J90: =IF(B90<>0,(INDEX(CaNbRéglement,MATCH(1,(CaDate=B90)*(CaRefDoc=H90),0))),"") ->  | K90: =IF(C90<>0,(INDEX(CaMode,MATCH(1,(CaDate=B90)*(CaRefDoc=H90),0))),"") ->  | L90: 0 | M90: =IF(C90<>0,(INDEX(CaCrédit,MATCH(1,(CaRefDoc=H90)*(CaNbRéglement=J90),0))),"") ->  | O90: 0 | W90: =Prestations!#REF! -> 
C91: 0 | E91: Publicité | F91: =IF(C91<>0,(INDEX(CaRefClient,MATCH(1,(CaDate=B91)*(CACatégorie="Publicité"),0))),"") ->  | G91: =IF($C91<>0,(INDEX(CaObjet,MATCH(1,(CaDate=$B91)*(CACatégorie="Publicité"),0))),"") ->  | H91: =IF(B91<>0,(INDEX(CaRefDoc,MATCH(1,(CaDate=B91)*(CaRefClient=F91),0))),"") ->  | J91: =IF(B91<>0,(INDEX(CaNbRéglement,MATCH(1,(CaDate=B91)*(CaRefDoc=H91),0))),"") ->  | K91: =IF(C91<>0,(INDEX(CaMode,MATCH(1,(CaDate=B91)*(CaRefDoc=H91),0))),"") ->  | L91: 0 | M91: =IF(C91<>0,(INDEX(CaCrédit,MATCH(1,(CaRefDoc=H91)*(CaNbRéglement=J91),0))),"") ->  | O91: 0 | W91: =Prestations!#REF! -> 
C92: 0 | E92: Publicité | F92: =IF(C92<>0,(INDEX(CaRefClient,MATCH(1,(CaDate=B92)*(CACatégorie="Publicité"),0))),"") ->  | G92: =IF($C92<>0,(INDEX(CaObjet,MATCH(1,(CaDate=$B92)*(CACatégorie="Publicité"),0))),"") ->  | H92: =IF(B92<>0,(INDEX(CaRefDoc,MATCH(1,(CaDate=B92)*(CaRefClient=F92),0))),"") ->  | J92: =IF(B92<>0,(INDEX(CaNbRéglement,MATCH(1,(CaDate=B92)*(CaRefDoc=H92),0))),"") ->  | K92: =IF(C92<>0,(INDEX(CaMode,MATCH(1,(CaDate=B92)*(CaRefDoc=H92),0))),"") ->  | L92: 0 | M92: =IF(C92<>0,(INDEX(CaCrédit,MATCH(1,(CaRefDoc=H92)*(CaNbRéglement=J92),0))),"") ->  | O92: 0 | W92: =Prestations!#REF! -> 
C93: 0 | E93: Publicité | F93: =IF(C93<>0,(INDEX(CaRefClient,MATCH(1,(CaDate=B93)*(CACatégorie="Publicité"),0))),"") ->  | G93: =IF($C93<>0,(INDEX(CaObjet,MATCH(1,(CaDate=$B93)*(CACatégorie="Publicité"),0))),"") ->  | H93: =IF(B93<>0,(INDEX(CaRefDoc,MATCH(1,(CaDate=B93)*(CaRefClient=F93),0))),"") ->  | J93: =IF(B93<>0,(INDEX(CaNbRéglement,MATCH(1,(CaDate=B93)*(CaRefDoc=H93),0))),"") ->  | K93: =IF(C93<>0,(INDEX(CaMode,MATCH(1,(CaDate=B93)*(CaRefDoc=H93),0))),"") ->  | L93: 0 | M93: =IF(C93<>0,(INDEX(CaCrédit,MATCH(1,(CaRefDoc=H93)*(CaNbRéglement=J93),0))),"") ->  | O93: 0 | W93: =Prestations!#REF! -> 
C94: 0 | E94: Publicité | F94: =IF(C94<>0,(INDEX(CaRefClient,MATCH(1,(CaDate=B94)*(CACatégorie="Publicité"),0))),"") ->  | G94: =IF($C94<>0,(INDEX(CaObjet,MATCH(1,(CaDate=$B94)*(CACatégorie="Publicité"),0))),"") ->  | H94: =IF(B94<>0,(INDEX(CaRefDoc,MATCH(1,(CaDate=B94)*(CaRefClient=F94),0))),"") ->  | J94: =IF(B94<>0,(INDEX(CaNbRéglement,MATCH(1,(CaDate=B94)*(CaRefDoc=H94),0))),"") ->  | K94: =IF(C94<>0,(INDEX(CaMode,MATCH(1,(CaDate=B94)*(CaRefDoc=H94),0))),"") ->  | L94: 0 | M94: =IF(C94<>0,(INDEX(CaCrédit,MATCH(1,(CaRefDoc=H94)*(CaNbRéglement=J94),0))),"") ->  | O94: 0 | W94: =Prestations!#REF! -> 
C95: 0 | E95: Publicité | F95: =IF(C95<>0,(INDEX(CaRefClient,MATCH(1,(CaDate=B95)*(CACatégorie="Publicité"),0))),"") ->  | G95: =IF($C95<>0,(INDEX(CaObjet,MATCH(1,(CaDate=$B95)*(CACatégorie="Publicité"),0))),"") ->  | H95: =IF(B95<>0,(INDEX(CaRefDoc,MATCH(1,(CaDate=B95)*(CaRefClient=F95),0))),"") ->  | J95: =IF(B95<>0,(INDEX(CaNbRéglement,MATCH(1,(CaDate=B95)*(CaRefDoc=H95),0))),"") ->  | K95: =IF(C95<>0,(INDEX(CaMode,MATCH(1,(CaDate=B95)*(CaRefDoc=H95),0))),"") ->  | L95: 0 | M95: =IF(C95<>0,(INDEX(CaCrédit,MATCH(1,(CaRefDoc=H95)*(CaNbRéglement=J95),0))),"") ->  | O95: 0 | W95: =Prestations!#REF! -> 
C96: 0 | E96: Publicité | F96: =IF(C96<>0,(INDEX(CaRefClient,MATCH(1,(CaDate=B96)*(CACatégorie="Publicité"),0))),"") ->  | G96: =IF($C96<>0,(INDEX(CaObjet,MATCH(1,(CaDate=$B96)*(CACatégorie="Publicité"),0))),"") ->  | H96: =IF(B96<>0,(INDEX(CaRefDoc,MATCH(1,(CaDate=B96)*(CaRefClient=F96),0))),"") ->  | J96: =IF(B96<>0,(INDEX(CaNbRéglement,MATCH(1,(CaDate=B96)*(CaRefDoc=H96),0))),"") ->  | K96: =IF(C96<>0,(INDEX(CaMode,MATCH(1,(CaDate=B96)*(CaRefDoc=H96),0))),"") ->  | L96: 0 | M96: =IF(C96<>0,(INDEX(CaCrédit,MATCH(1,(CaRefDoc=H96)*(CaNbRéglement=J96),0))),"") ->  | O96: 0 | W96: =Prestations!#REF! -> 
C97: 0 | E97: Publicité | F97: =IF(C97<>0,(INDEX(CaRefClient,MATCH(1,(CaDate=B97)*(CACatégorie="Publicité"),0))),"") ->  | G97: =IF($C97<>0,(INDEX(CaObjet,MATCH(1,(CaDate=$B97)*(CACatégorie="Publicité"),0))),"") ->  | H97: =IF(B97<>0,(INDEX(CaRefDoc,MATCH(1,(CaDate=B97)*(CaRefClient=F97),0))),"") ->  | J97: =IF(B97<>0,(INDEX(CaNbRéglement,MATCH(1,(CaDate=B97)*(CaRefDoc=H97),0))),"") ->  | K97: =IF(C97<>0,(INDEX(CaMode,MATCH(1,(CaDate=B97)*(CaRefDoc=H97),0))),"") ->  | L97: 0 | M97: =IF(C97<>0,(INDEX(CaCrédit,MATCH(1,(CaRefDoc=H97)*(CaNbRéglement=J97),0))),"") ->  | O97: 0 | W97: =Prestations!#REF! -> 
C98: 0 | E98: Publicité | F98: =IF(C98<>0,(INDEX(CaRefClient,MATCH(1,(CaDate=B98)*(CACatégorie="Publicité"),0))),"") ->  | G98: =IF($C98<>0,(INDEX(CaObjet,MATCH(1,(CaDate=$B98)*(CACatégorie="Publicité"),0))),"") ->  | H98: =IF(B98<>0,(INDEX(CaRefDoc,MATCH(1,(CaDate=B98)*(CaRefClient=F98),0))),"") ->  | J98: =IF(B98<>0,(INDEX(CaNbRéglement,MATCH(1,(CaDate=B98)*(CaRefDoc=H98),0))),"") ->  | K98: =IF(C98<>0,(INDEX(CaMode,MATCH(1,(CaDate=B98)*(CaRefDoc=H98),0))),"") ->  | L98: 0 | M98: =IF(C98<>0,(INDEX(CaCrédit,MATCH(1,(CaRefDoc=H98)*(CaNbRéglement=J98),0))),"") ->  | O98: 0 | W98: =Prestations!#REF! ->  | AA98: =SUMPRODUCT((PubMois=AA$5)*(PubRefclient=$W98)*(PubNbRégl="R1")*PubMontant) ->  | AE98: =SUMPRODUCT((PubMois=AE$5)*(PubRefclient=$W98)*(PubNbRégl="R1")*PubMontant) ->  | AI98: =SUMPRODUCT((PubMois=AI$5)*(PubRefclient=$W98)*(PubNbRégl="R1")*PubMontant) -> 
C99: 0 | E99: Publicité | F99: =IF(C99<>0,(INDEX(CaRefClient,MATCH(1,(CaDate=B99)*(CACatégorie="Publicité"),0))),"") ->  | G99: =IF($C99<>0,(INDEX(CaObjet,MATCH(1,(CaDate=$B99)*(CACatégorie="Publicité"),0))),"") ->  | H99: =IF(B99<>0,(INDEX(CaRefDoc,MATCH(1,(CaDate=B99)*(CaRefClient=F99),0))),"") ->  | J99: =IF(B99<>0,(INDEX(CaNbRéglement,MATCH(1,(CaDate=B99)*(CaRefDoc=H99),0))),"") ->  | K99: =IF(C99<>0,(INDEX(CaMode,MATCH(1,(CaDate=B99)*(CaRefDoc=H99),0))),"") ->  | L99: 0 | M99: =IF(C99<>0,(INDEX(CaCrédit,MATCH(1,(CaRefDoc=H99)*(CaNbRéglement=J99),0))),"") ->  | O99: 0 | W99: =Prestations!#REF! ->  | X99: =SUMPRODUCT((PubMois=X$5)*(PubRefclient=$W99)*(PubNbRégl="R1")*PubMontant) -> 
C100: 0 | E100: Publicité | F100: =IF(C100<>0,(INDEX(CaRefClient,MATCH(1,(CaDate=B100)*(CACatégorie="Publicité"),0))),"") ->  | G100: =IF($C100<>0,(INDEX(CaObjet,MATCH(1,(CaDate=$B100)*(CACatégorie="Publicité"),0))),"") ->  | H100: =IF(B100<>0,(INDEX(CaRefDoc,MATCH(1,(CaDate=B100)*(CaRefClient=F100),0))),"") ->  | J100: =IF(B100<>0,(INDEX(CaNbRéglement,MATCH(1,(CaDate=B100)*(CaRefDoc=H100),0))),"") ->  | K100: =IF(C100<>0,(INDEX(CaMode,MATCH(1,(CaDate=B100)*(CaRefDoc=H100),0))),"") ->  | L100: 0 | M100: =IF(C100<>0,(INDEX(CaCrédit,MATCH(1,(CaRefDoc=H100)*(CaNbRéglement=J100),0))),"") ->  | O100: 0 | W100: =Prestations!#REF! -> 
C101: 0 | E101: Publicité | F101: =IF(C101<>0,(INDEX(CaRefClient,MATCH(1,(CaDate=B101)*(CACatégorie="Publicité"),0))),"") ->  | G101: =IF($C101<>0,(INDEX(CaObjet,MATCH(1,(CaDate=$B101)*(CACatégorie="Publicité"),0))),"") ->  | H101: =IF(B101<>0,(INDEX(CaRefDoc,MATCH(1,(CaDate=B101)*(CaRefClient=F101),0))),"") ->  | J101: =IF(B101<>0,(INDEX(CaNbRéglement,MATCH(1,(CaDate=B101)*(CaRefDoc=H101),0))),"") ->  | K101: =IF(C101<>0,(INDEX(CaMode,MATCH(1,(CaDate=B101)*(CaRefDoc=H101),0))),"") ->  | L101: 0 | M101: =IF(C101<>0,(INDEX(CaCrédit,MATCH(1,(CaRefDoc=H101)*(CaNbRéglement=J101),0))),"") ->  | O101: 0
C102: 0 | E102: Publicité | F102: =IF(C102<>0,(INDEX(CaRefClient,MATCH(1,(CaDate=B102)*(CACatégorie="Publicité"),0))),"") ->  | G102: =IF($C102<>0,(INDEX(CaObjet,MATCH(1,(CaDate=$B102)*(CACatégorie="Publicité"),0))),"") ->  | H102: =IF(B102<>0,(INDEX(CaRefDoc,MATCH(1,(CaDate=B102)*(CaRefClient=F102),0))),"") ->  | J102: =IF(B102<>0,(INDEX(CaNbRéglement,MATCH(1,(CaDate=B102)*(CaRefDoc=H102),0))),"") ->  | K102: =IF(C102<>0,(INDEX(CaMode,MATCH(1,(CaDate=B102)*(CaRefDoc=H102),0))),"") ->  | L102: 0 | M102: =IF(C102<>0,(INDEX(CaCrédit,MATCH(1,(CaRefDoc=H102)*(CaNbRéglement=J102),0))),"") ->  | O102: 0
C103: 0 | E103: Publicité | F103: =IF(C103<>0,(INDEX(CaRefClient,MATCH(1,(CaDate=B103)*(CACatégorie="Publicité"),0))),"") ->  | G103: =IF($C103<>0,(INDEX(CaObjet,MATCH(1,(CaDate=$B103)*(CACatégorie="Publicité"),0))),"") ->  | H103: =IF(B103<>0,(INDEX(CaRefDoc,MATCH(1,(CaDate=B103)*(CaRefClient=F103),0))),"") ->  | J103: =IF(B103<>0,(INDEX(CaNbRéglement,MATCH(1,(CaDate=B103)*(CaRefDoc=H103),0))),"") ->  | K103: =IF(C103<>0,(INDEX(CaMode,MATCH(1,(CaDate=B103)*(CaRefDoc=H103),0))),"") ->  | L103: 0 | M103: =IF(C103<>0,(INDEX(CaCrédit,MATCH(1,(CaRefDoc=H103)*(CaNbRéglement=J103),0))),"") ->  | O103: 0
C104: 0 | E104: Publicité | F104: =IF(C104<>0,(INDEX(CaRefClient,MATCH(1,(CaDate=B104)*(CACatégorie="Publicité"),0))),"") ->  | G104: =IF($C104<>0,(INDEX(CaObjet,MATCH(1,(CaDate=$B104)*(CACatégorie="Publicité"),0))),"") ->  | H104: =IF(B104<>0,(INDEX(CaRefDoc,MATCH(1,(CaDate=B104)*(CaRefClient=F104),0))),"") ->  | J104: =IF(B104<>0,(INDEX(CaNbRéglement,MATCH(1,(CaDate=B104)*(CaRefDoc=H104),0))),"") ->  | K104: =IF(C104<>0,(INDEX(CaMode,MATCH(1,(CaDate=B104)*(CaRefDoc=H104),0))),"") ->  | L104: 0 | M104: =IF(C104<>0,(INDEX(CaCrédit,MATCH(1,(CaRefDoc=H104)*(CaNbRéglement=J104),0))),"") ->  | O104: 0
C105: 0 | E105: Publicité | F105: =IF(C105<>0,(INDEX(CaRefClient,MATCH(1,(CaDate=B105)*(CACatégorie="Publicité"),0))),"") ->  | G105: =IF($C105<>0,(INDEX(CaObjet,MATCH(1,(CaDate=$B105)*(CACatégorie="Publicité"),0))),"") ->  | H105: =IF(B105<>0,(INDEX(CaRefDoc,MATCH(1,(CaDate=B105)*(CaRefClient=F105),0))),"") ->  | J105: =IF(B105<>0,(INDEX(CaNbRéglement,MATCH(1,(CaDate=B105)*(CaRefDoc=H105),0))),"") ->  | K105: =IF(C105<>0,(INDEX(CaMode,MATCH(1,(CaDate=B105)*(CaRefDoc=H105),0))),"") ->  | L105: 0 | M105: =IF(C105<>0,(INDEX(CaCrédit,MATCH(1,(CaRefDoc=H105)*(CaNbRéglement=J105),0))),"") ->  | O105: 0
C106: 0 | E106: Publicité | F106: =IF(C106<>0,(INDEX(CaRefClient,MATCH(1,(CaDate=B106)*(CACatégorie="Publicité"),0))),"") ->  | G106: =IF($C106<>0,(INDEX(CaObjet,MATCH(1,(CaDate=$B106)*(CACatégorie="Publicité"),0))),"") ->  | H106: =IF(B106<>0,(INDEX(CaRefDoc,MATCH(1,(CaDate=B106)*(CaRefClient=F106),0))),"") ->  | J106: =IF(B106<>0,(INDEX(CaNbRéglement,MATCH(1,(CaDate=B106)*(CaRefDoc=H106),0))),"") ->  | K106: =IF(C106<>0,(INDEX(CaMode,MATCH(1,(CaDate=B106)*(CaRefDoc=H106),0))),"") ->  | L106: 0 | M106: =IF(C106<>0,(INDEX(CaCrédit,MATCH(1,(CaRefDoc=H106)*(CaNbRéglement=J106),0))),"") ->  | O106: 0
C107: 0 | E107: Publicité | F107: =IF(C107<>0,(INDEX(CaRefClient,MATCH(1,(CaDate=B107)*(CACatégorie="Publicité"),0))),"") ->  | G107: =IF($C107<>0,(INDEX(CaObjet,MATCH(1,(CaDate=$B107)*(CACatégorie="Publicité"),0))),"") ->  | H107: =IF(B107<>0,(INDEX(CaRefDoc,MATCH(1,(CaDate=B107)*(CaRefClient=F107),0))),"") ->  | J107: =IF(B107<>0,(INDEX(CaNbRéglement,MATCH(1,(CaDate=B107)*(CaRefDoc=H107),0))),"") ->  | K107: =IF(C107<>0,(INDEX(CaMode,MATCH(1,(CaDate=B107)*(CaRefDoc=H107),0))),"") ->  | L107: 0 | M107: =IF(C107<>0,(INDEX(CaCrédit,MATCH(1,(CaRefDoc=H107)*(CaNbRéglement=J107),0))),"") ->  | O107: 0
C108: 0 | E108: Publicité | F108: =IF(C108<>0,(INDEX(CaRefClient,MATCH(1,(CaDate=B108)*(CACatégorie="Publicité"),0))),"") ->  | G108: =IF($C108<>0,(INDEX(CaObjet,MATCH(1,(CaDate=$B108)*(CACatégorie="Publicité"),0))),"") ->  | H108: =IF(B108<>0,(INDEX(CaRefDoc,MATCH(1,(CaDate=B108)*(CaRefClient=F108),0))),"") ->  | J108: =IF(B108<>0,(INDEX(CaNbRéglement,MATCH(1,(CaDate=B108)*(CaRefDoc=H108),0))),"") ->  | K108: =IF(C108<>0,(INDEX(CaMode,MATCH(1,(CaDate=B108)*(CaRefDoc=H108),0))),"") ->  | L108: 0 | M108: =IF(C108<>0,(INDEX(CaCrédit,MATCH(1,(CaRefDoc=H108)*(CaNbRéglement=J108),0))),"") ->  | O108: 0
C109: 0 | E109: Publicité | F109: =IF(C109<>0,(INDEX(CaRefClient,MATCH(1,(CaDate=B109)*(CACatégorie="Publicité"),0))),"") ->  | G109: =IF($C109<>0,(INDEX(CaObjet,MATCH(1,(CaDate=$B109)*(CACatégorie="Publicité"),0))),"") ->  | H109: =IF(B109<>0,(INDEX(CaRefDoc,MATCH(1,(CaDate=B109)*(CaRefClient=F109),0))),"") ->  | J109: =IF(B109<>0,(INDEX(CaNbRéglement,MATCH(1,(CaDate=B109)*(CaRefDoc=H109),0))),"") ->  | K109: =IF(C109<>0,(INDEX(CaMode,MATCH(1,(CaDate=B109)*(CaRefDoc=H109),0))),"") ->  | L109: 0 | M109: =IF(C109<>0,(INDEX(CaCrédit,MATCH(1,(CaRefDoc=H109)*(CaNbRéglement=J109),0))),"") ->  | O109: 0
C110: 0 | E110: Publicité | F110: =IF(C110<>0,(INDEX(CaRefClient,MATCH(1,(CaDate=B110)*(CACatégorie="Publicité"),0))),"") ->  | G110: =IF($C110<>0,(INDEX(CaObjet,MATCH(1,(CaDate=$B110)*(CACatégorie="Publicité"),0))),"") ->  | H110: =IF(B110<>0,(INDEX(CaRefDoc,MATCH(1,(CaDate=B110)*(CaRefClient=F110),0))),"") ->  | J110: =IF(B110<>0,(INDEX(CaNbRéglement,MATCH(1,(CaDate=B110)*(CaRefDoc=H110),0))),"") ->  | K110: =IF(C110<>0,(INDEX(CaMode,MATCH(1,(CaDate=B110)*(CaRefDoc=H110),0))),"") ->  | L110: 0 | M110: =IF(C110<>0,(INDEX(CaCrédit,MATCH(1,(CaRefDoc=H110)*(CaNbRéglement=J110),0))),"") ->  | O110: 0
C111: 0 | E111: Publicité | F111: =IF(C111<>0,(INDEX(CaRefClient,MATCH(1,(CaDate=B111)*(CACatégorie="Publicité"),0))),"") ->  | G111: =IF($C111<>0,(INDEX(CaObjet,MATCH(1,(CaDate=$B111)*(CACatégorie="Publicité"),0))),"") ->  | H111: =IF(B111<>0,(INDEX(CaRefDoc,MATCH(1,(CaDate=B111)*(CaRefClient=F111),0))),"") ->  | J111: =IF(B111<>0,(INDEX(CaNbRéglement,MATCH(1,(CaDate=B111)*(CaRefDoc=H111),0))),"") ->  | K111: =IF(C111<>0,(INDEX(CaMode,MATCH(1,(CaDate=B111)*(CaRefDoc=H111),0))),"") ->  | L111: 0 | M111: =IF(C111<>0,(INDEX(CaCrédit,MATCH(1,(CaRefDoc=H111)*(CaNbRéglement=J111),0))),"") ->  | O111: 0
C112: 0 | E112: Publicité | F112: =IF(C112<>0,(INDEX(CaRefClient,MATCH(1,(CaDate=B112)*(CACatégorie="Publicité"),0))),"") ->  | G112: =IF($C112<>0,(INDEX(CaObjet,MATCH(1,(CaDate=$B112)*(CACatégorie="Publicité"),0))),"") ->  | H112: =IF(B112<>0,(INDEX(CaRefDoc,MATCH(1,(CaDate=B112)*(CaRefClient=F112),0))),"") ->  | J112: =IF(B112<>0,(INDEX(CaNbRéglement,MATCH(1,(CaDate=B112)*(CaRefDoc=H112),0))),"") ->  | K112: =IF(C112<>0,(INDEX(CaMode,MATCH(1,(CaDate=B112)*(CaRefDoc=H112),0))),"") ->  | L112: 0 | M112: =IF(C112<>0,(INDEX(CaCrédit,MATCH(1,(CaRefDoc=H112)*(CaNbRéglement=J112),0))),"") ->  | O112: 0
C113: 0 | E113: Publicité | F113: =IF(C113<>0,(INDEX(CaRefClient,MATCH(1,(CaDate=B113)*(CACatégorie="Publicité"),0))),"") ->  | G113: =IF($C113<>0,(INDEX(CaObjet,MATCH(1,(CaDate=$B113)*(CACatégorie="Publicité"),0))),"") ->  | H113: =IF(B113<>0,(INDEX(CaRefDoc,MATCH(1,(CaDate=B113)*(CaRefClient=F113),0))),"") ->  | J113: =IF(B113<>0,(INDEX(CaNbRéglement,MATCH(1,(CaDate=B113)*(CaRefDoc=H113),0))),"") ->  | K113: =IF(C113<>0,(INDEX(CaMode,MATCH(1,(CaDate=B113)*(CaRefDoc=H113),0))),"") ->  | L113: 0 | M113: =IF(C113<>0,(INDEX(CaCrédit,MATCH(1,(CaRefDoc=H113)*(CaNbRéglement=J113),0))),"") ->  | O113: 0
C114: 0 | E114: Publicité | F114: =IF(C114<>0,(INDEX(CaRefClient,MATCH(1,(CaDate=B114)*(CACatégorie="Publicité"),0))),"") ->  | G114: =IF($C114<>0,(INDEX(CaObjet,MATCH(1,(CaDate=$B114)*(CACatégorie="Publicité"),0))),"") ->  | H114: =IF(B114<>0,(INDEX(CaRefDoc,MATCH(1,(CaDate=B114)*(CaRefClient=F114),0))),"") ->  | J114: =IF(B114<>0,(INDEX(CaNbRéglement,MATCH(1,(CaDate=B114)*(CaRefDoc=H114),0))),"") ->  | K114: =IF(C114<>0,(INDEX(CaMode,MATCH(1,(CaDate=B114)*(CaRefDoc=H114),0))),"") ->  | L114: 0 | M114: =IF(C114<>0,(INDEX(CaCrédit,MATCH(1,(CaRefDoc=H114)*(CaNbRéglement=J114),0))),"") ->  | O114: 0
C115: 0 | E115: Publicité | F115: =IF(C115<>0,(INDEX(CaRefClient,MATCH(1,(CaDate=B115)*(CACatégorie="Publicité"),0))),"") ->  | G115: =IF($C115<>0,(INDEX(CaObjet,MATCH(1,(CaDate=$B115)*(CACatégorie="Publicité"),0))),"") ->  | H115: =IF(B115<>0,(INDEX(CaRefDoc,MATCH(1,(CaDate=B115)*(CaRefClient=F115),0))),"") ->  | J115: =IF(B115<>0,(INDEX(CaNbRéglement,MATCH(1,(CaDate=B115)*(CaRefDoc=H115),0))),"") ->  | K115: =IF(C115<>0,(INDEX(CaMode,MATCH(1,(CaDate=B115)*(CaRefDoc=H115),0))),"") ->  | L115: 0 | M115: =IF(C115<>0,(INDEX(CaCrédit,MATCH(1,(CaRefDoc=H115)*(CaNbRéglement=J115),0))),"") ->  | O115: 0
C116: 0 | E116: Publicité | F116: =IF(C116<>0,(INDEX(CaRefClient,MATCH(1,(CaDate=B116)*(CACatégorie="Publicité"),0))),"") ->  | G116: =IF($C116<>0,(INDEX(CaObjet,MATCH(1,(CaDate=$B116)*(CACatégorie="Publicité"),0))),"") ->  | H116: =IF(B116<>0,(INDEX(CaRefDoc,MATCH(1,(CaDate=B116)*(CaRefClient=F116),0))),"") ->  | J116: =IF(B116<>0,(INDEX(CaNbRéglement,MATCH(1,(CaDate=B116)*(CaRefDoc=H116),0))),"") ->  | K116: =IF(C116<>0,(INDEX(CaMode,MATCH(1,(CaDate=B116)*(CaRefDoc=H116),0))),"") ->  | L116: 0 | M116: =IF(C116<>0,(INDEX(CaCrédit,MATCH(1,(CaRefDoc=H116)*(CaNbRéglement=J116),0))),"") ->  | O116: 0
C117: 0 | E117: Publicité | F117: =IF(C117<>0,(INDEX(CaRefClient,MATCH(1,(CaDate=B117)*(CACatégorie="Publicité"),0))),"") ->  | G117: =IF($C117<>0,(INDEX(CaObjet,MATCH(1,(CaDate=$B117)*(CACatégorie="Publicité"),0))),"") ->  | H117: =IF(B117<>0,(INDEX(CaRefDoc,MATCH(1,(CaDate=B117)*(CaRefClient=F117),0))),"") ->  | J117: =IF(B117<>0,(INDEX(CaNbRéglement,MATCH(1,(CaDate=B117)*(CaRefDoc=H117),0))),"") ->  | K117: =IF(C117<>0,(INDEX(CaMode,MATCH(1,(CaDate=B117)*(CaRefDoc=H117),0))),"") ->  | L117: 0 | M117: =IF(C117<>0,(INDEX(CaCrédit,MATCH(1,(CaRefDoc=H117)*(CaNbRéglement=J117),0))),"") ->  | O117: 0
C118: 0 | E118: Publicité | F118: =IF(C118<>0,(INDEX(CaRefClient,MATCH(1,(CaDate=B118)*(CACatégorie="Publicité"),0))),"") ->  | G118: =IF($C118<>0,(INDEX(CaObjet,MATCH(1,(CaDate=$B118)*(CACatégorie="Publicité"),0))),"") ->  | H118: =IF(B118<>0,(INDEX(CaRefDoc,MATCH(1,(CaDate=B118)*(CaRefClient=F118),0))),"") ->  | J118: =IF(B118<>0,(INDEX(CaNbRéglement,MATCH(1,(CaDate=B118)*(CaRefDoc=H118),0))),"") ->  | K118: =IF(C118<>0,(INDEX(CaMode,MATCH(1,(CaDate=B118)*(CaRefDoc=H118),0))),"") ->  | L118: 0 | M118: =IF(C118<>0,(INDEX(CaCrédit,MATCH(1,(CaRefDoc=H118)*(CaNbRéglement=J118),0))),"") ->  | O118: 0
C119: 0 | E119: Publicité | F119: =IF(C119<>0,(INDEX(CaRefClient,MATCH(1,(CaDate=B119)*(CACatégorie="Publicité"),0))),"") ->  | G119: =IF($C119<>0,(INDEX(CaObjet,MATCH(1,(CaDate=$B119)*(CACatégorie="Publicité"),0))),"") ->  | H119: =IF(B119<>0,(INDEX(CaRefDoc,MATCH(1,(CaDate=B119)*(CaRefClient=F119),0))),"") ->  | J119: =IF(B119<>0,(INDEX(CaNbRéglement,MATCH(1,(CaDate=B119)*(CaRefDoc=H119),0))),"") ->  | K119: =IF(C119<>0,(INDEX(CaMode,MATCH(1,(CaDate=B119)*(CaRefDoc=H119),0))),"") ->  | L119: 0 | M119: =IF(C119<>0,(INDEX(CaCrédit,MATCH(1,(CaRefDoc=H119)*(CaNbRéglement=J119),0))),"") ->  | O119: 0
C120: 0 | E120: Publicité | F120: =IF(C120<>0,(INDEX(CaRefClient,MATCH(1,(CaDate=B120)*(CACatégorie="Publicité"),0))),"") ->  | G120: =IF($C120<>0,(INDEX(CaObjet,MATCH(1,(CaDate=$B120)*(CACatégorie="Publicité"),0))),"") ->  | H120: =IF(B120<>0,(INDEX(CaRefDoc,MATCH(1,(CaDate=B120)*(CaRefClient=F120),0))),"") ->  | J120: =IF(B120<>0,(INDEX(CaNbRéglement,MATCH(1,(CaDate=B120)*(CaRefDoc=H120),0))),"") ->  | K120: =IF(C120<>0,(INDEX(CaMode,MATCH(1,(CaDate=B120)*(CaRefDoc=H120),0))),"") ->  | L120: 0 | M120: =IF(C120<>0,(INDEX(CaCrédit,MATCH(1,(CaRefDoc=H120)*(CaNbRéglement=J120),0))),"") ->  | O120: 0
C121: 0 | E121: Publicité | F121: =IF(C121<>0,(INDEX(CaRefClient,MATCH(1,(CaDate=B121)*(CACatégorie="Publicité"),0))),"") ->  | G121: =IF($C121<>0,(INDEX(CaObjet,MATCH(1,(CaDate=$B121)*(CACatégorie="Publicité"),0))),"") ->  | H121: =IF(B121<>0,(INDEX(CaRefDoc,MATCH(1,(CaDate=B121)*(CaRefClient=F121),0))),"") ->  | J121: =IF(B121<>0,(INDEX(CaNbRéglement,MATCH(1,(CaDate=B121)*(CaRefDoc=H121),0))),"") ->  | K121: =IF(C121<>0,(INDEX(CaMode,MATCH(1,(CaDate=B121)*(CaRefDoc=H121),0))),"") ->  | L121: 0 | M121: =IF(C121<>0,(INDEX(CaCrédit,MATCH(1,(CaRefDoc=H121)*(CaNbRéglement=J121),0))),"") ->  | O121: 0
C122: 0 | E122: Publicité | F122: =IF(C122<>0,(INDEX(CaRefClient,MATCH(1,(CaDate=B122)*(CACatégorie="Publicité"),0))),"") ->  | G122: =IF($C122<>0,(INDEX(CaObjet,MATCH(1,(CaDate=$B122)*(CACatégorie="Publicité"),0))),"") ->  | H122: =IF(B122<>0,(INDEX(CaRefDoc,MATCH(1,(CaDate=B122)*(CaRefClient=F122),0))),"") ->  | J122: =IF(B122<>0,(INDEX(CaNbRéglement,MATCH(1,(CaDate=B122)*(CaRefDoc=H122),0))),"") ->  | K122: =IF(C122<>0,(INDEX(CaMode,MATCH(1,(CaDate=B122)*(CaRefDoc=H122),0))),"") ->  | L122: 0 | M122: =IF(C122<>0,(INDEX(CaCrédit,MATCH(1,(CaRefDoc=H122)*(CaNbRéglement=J122),0))),"") ->  | O122: 0
C123: 0 | E123: Publicité | F123: =IF(C123<>0,(INDEX(CaRefClient,MATCH(1,(CaDate=B123)*(CACatégorie="Publicité"),0))),"") ->  | G123: =IF($C123<>0,(INDEX(CaObjet,MATCH(1,(CaDate=$B123)*(CACatégorie="Publicité"),0))),"") ->  | H123: =IF(B123<>0,(INDEX(CaRefDoc,MATCH(1,(CaDate=B123)*(CaRefClient=F123),0))),"") ->  | J123: =IF(B123<>0,(INDEX(CaNbRéglement,MATCH(1,(CaDate=B123)*(CaRefDoc=H123),0))),"") ->  | K123: =IF(C123<>0,(INDEX(CaMode,MATCH(1,(CaDate=B123)*(CaRefDoc=H123),0))),"") ->  | L123: 0 | M123: =IF(C123<>0,(INDEX(CaCrédit,MATCH(1,(CaRefDoc=H123)*(CaNbRéglement=J123),0))),"") ->  | O123: 0
C124: 0 | E124: Publicité | F124: =IF(C124<>0,(INDEX(CaRefClient,MATCH(1,(CaDate=B124)*(CACatégorie="Publicité"),0))),"") ->  | G124: =IF($C124<>0,(INDEX(CaObjet,MATCH(1,(CaDate=$B124)*(CACatégorie="Publicité"),0))),"") ->  | H124: =IF(B124<>0,(INDEX(CaRefDoc,MATCH(1,(CaDate=B124)*(CaRefClient=F124),0))),"") ->  | J124: =IF(B124<>0,(INDEX(CaNbRéglement,MATCH(1,(CaDate=B124)*(CaRefDoc=H124),0))),"") ->  | K124: =IF(C124<>0,(INDEX(CaMode,MATCH(1,(CaDate=B124)*(CaRefDoc=H124),0))),"") ->  | L124: 0 | M124: =IF(C124<>0,(INDEX(CaCrédit,MATCH(1,(CaRefDoc=H124)*(CaNbRéglement=J124),0))),"") ->  | O124: 0
C125: 0 | E125: Publicité | F125: =IF(C125<>0,(INDEX(CaRefClient,MATCH(1,(CaDate=B125)*(CACatégorie="Publicité"),0))),"") ->  | G125: =IF($C125<>0,(INDEX(CaObjet,MATCH(1,(CaDate=$B125)*(CACatégorie="Publicité"),0))),"") ->  | H125: =IF(B125<>0,(INDEX(CaRefDoc,MATCH(1,(CaDate=B125)*(CaRefClient=F125),0))),"") ->  | J125: =IF(B125<>0,(INDEX(CaNbRéglement,MATCH(1,(CaDate=B125)*(CaRefDoc=H125),0))),"") ->  | K125: =IF(C125<>0,(INDEX(CaMode,MATCH(1,(CaDate=B125)*(CaRefDoc=H125),0))),"") ->  | L125: 0 | M125: =IF(C125<>0,(INDEX(CaCrédit,MATCH(1,(CaRefDoc=H125)*(CaNbRéglement=J125),0))),"") ->  | O125: 0
C126: 0 | E126: Publicité | F126: =IF(C126<>0,(INDEX(CaRefClient,MATCH(1,(CaDate=B126)*(CACatégorie="Publicité"),0))),"") ->  | G126: =IF($C126<>0,(INDEX(CaObjet,MATCH(1,(CaDate=$B126)*(CACatégorie="Publicité"),0))),"") ->  | H126: =IF(B126<>0,(INDEX(CaRefDoc,MATCH(1,(CaDate=B126)*(CaRefClient=F126),0))),"") ->  | J126: =IF(B126<>0,(INDEX(CaNbRéglement,MATCH(1,(CaDate=B126)*(CaRefDoc=H126),0))),"") ->  | K126: =IF(C126<>0,(INDEX(CaMode,MATCH(1,(CaDate=B126)*(CaRefDoc=H126),0))),"") ->  | L126: 0 | M126: =IF(C126<>0,(INDEX(CaCrédit,MATCH(1,(CaRefDoc=H126)*(CaNbRéglement=J126),0))),"") ->  | O126: 0
C127: 0 | E127: Publicité | F127: =IF(C127<>0,(INDEX(CaRefClient,MATCH(1,(CaDate=B127)*(CACatégorie="Publicité"),0))),"") ->  | G127: =IF($C127<>0,(INDEX(CaObjet,MATCH(1,(CaDate=$B127)*(CACatégorie="Publicité"),0))),"") ->  | H127: =IF(B127<>0,(INDEX(CaRefDoc,MATCH(1,(CaDate=B127)*(CaRefClient=F127),0))),"") ->  | J127: =IF(B127<>0,(INDEX(CaNbRéglement,MATCH(1,(CaDate=B127)*(CaRefDoc=H127),0))),"") ->  | K127: =IF(C127<>0,(INDEX(CaMode,MATCH(1,(CaDate=B127)*(CaRefDoc=H127),0))),"") ->  | L127: 0 | M127: =IF(C127<>0,(INDEX(CaCrédit,MATCH(1,(CaRefDoc=H127)*(CaNbRéglement=J127),0))),"") ->  | O127: 0
C128: 0 | E128: Publicité | F128: =IF(C128<>0,(INDEX(CaRefClient,MATCH(1,(CaDate=B128)*(CACatégorie="Publicité"),0))),"") ->  | G128: =IF($C128<>0,(INDEX(CaObjet,MATCH(1,(CaDate=$B128)*(CACatégorie="Publicité"),0))),"") ->  | H128: =IF(B128<>0,(INDEX(CaRefDoc,MATCH(1,(CaDate=B128)*(CaRefClient=F128),0))),"") ->  | J128: =IF(B128<>0,(INDEX(CaNbRéglement,MATCH(1,(CaDate=B128)*(CaRefDoc=H128),0))),"") ->  | K128: =IF(C128<>0,(INDEX(CaMode,MATCH(1,(CaDate=B128)*(CaRefDoc=H128),0))),"") ->  | L128: 0 | M128: =IF(C128<>0,(INDEX(CaCrédit,MATCH(1,(CaRefDoc=H128)*(CaNbRéglement=J128),0))),"") ->  | O128: 0
C129: 0 | E129: Publicité | F129: =IF(C129<>0,(INDEX(CaRefClient,MATCH(1,(CaDate=B129)*(CACatégorie="Publicité"),0))),"") ->  | G129: =IF($C129<>0,(INDEX(CaObjet,MATCH(1,(CaDate=$B129)*(CACatégorie="Publicité"),0))),"") ->  | H129: =IF(B129<>0,(INDEX(CaRefDoc,MATCH(1,(CaDate=B129)*(CaRefClient=F129),0))),"") ->  | J129: =IF(B129<>0,(INDEX(CaNbRéglement,MATCH(1,(CaDate=B129)*(CaRefDoc=H129),0))),"") ->  | K129: =IF(C129<>0,(INDEX(CaMode,MATCH(1,(CaDate=B129)*(CaRefDoc=H129),0))),"") ->  | L129: 0 | M129: =IF(C129<>0,(INDEX(CaCrédit,MATCH(1,(CaRefDoc=H129)*(CaNbRéglement=J129),0))),"") ->  | O129: 0
C130: 0 | E130: Publicité | F130: =IF(C130<>0,(INDEX(CaRefClient,MATCH(1,(CaDate=B130)*(CACatégorie="Publicité"),0))),"") ->  | G130: =IF($C130<>0,(INDEX(CaObjet,MATCH(1,(CaDate=$B130)*(CACatégorie="Publicité"),0))),"") ->  | H130: =IF(B130<>0,(INDEX(CaRefDoc,MATCH(1,(CaDate=B130)*(CaRefClient=F130),0))),"") ->  | J130: =IF(B130<>0,(INDEX(CaNbRéglement,MATCH(1,(CaDate=B130)*(CaRefDoc=H130),0))),"") ->  | K130: =IF(C130<>0,(INDEX(CaMode,MATCH(1,(CaDate=B130)*(CaRefDoc=H130),0))),"") ->  | L130: 0 | M130: =IF(C130<>0,(INDEX(CaCrédit,MATCH(1,(CaRefDoc=H130)*(CaNbRéglement=J130),0))),"") ->  | O130: 0
C131: 0 | E131: Publicité | F131: =IF(C131<>0,(INDEX(CaRefClient,MATCH(1,(CaDate=B131)*(CACatégorie="Publicité"),0))),"") ->  | G131: =IF($C131<>0,(INDEX(CaObjet,MATCH(1,(CaDate=$B131)*(CACatégorie="Publicité"),0))),"") ->  | H131: =IF(B131<>0,(INDEX(CaRefDoc,MATCH(1,(CaDate=B131)*(CaRefClient=F131),0))),"") ->  | J131: =IF(B131<>0,(INDEX(CaNbRéglement,MATCH(1,(CaDate=B131)*(CaRefDoc=H131),0))),"") ->  | K131: =IF(C131<>0,(INDEX(CaMode,MATCH(1,(CaDate=B131)*(CaRefDoc=H131),0))),"") ->  | L131: 0 | M131: =IF(C131<>0,(INDEX(CaCrédit,MATCH(1,(CaRefDoc=H131)*(CaNbRéglement=J131),0))),"") ->  | O131: 0
C132: 0 | E132: Publicité | F132: =IF(C132<>0,(INDEX(CaRefClient,MATCH(1,(CaDate=B132)*(CACatégorie="Publicité"),0))),"") ->  | G132: =IF($C132<>0,(INDEX(CaObjet,MATCH(1,(CaDate=$B132)*(CACatégorie="Publicité"),0))),"") ->  | H132: =IF(B132<>0,(INDEX(CaRefDoc,MATCH(1,(CaDate=B132)*(CaRefClient=F132),0))),"") ->  | J132: =IF(B132<>0,(INDEX(CaNbRéglement,MATCH(1,(CaDate=B132)*(CaRefDoc=H132),0))),"") ->  | K132: =IF(C132<>0,(INDEX(CaMode,MATCH(1,(CaDate=B132)*(CaRefDoc=H132),0))),"") ->  | L132: 0 | M132: =IF(C132<>0,(INDEX(CaCrédit,MATCH(1,(CaRefDoc=H132)*(CaNbRéglement=J132),0))),"") ->  | O132: 0
C133: 0 | E133: Publicité | F133: =IF(C133<>0,(INDEX(CaRefClient,MATCH(1,(CaDate=B133)*(CACatégorie="Publicité"),0))),"") ->  | G133: =IF($C133<>0,(INDEX(CaObjet,MATCH(1,(CaDate=$B133)*(CACatégorie="Publicité"),0))),"") ->  | H133: =IF(B133<>0,(INDEX(CaRefDoc,MATCH(1,(CaDate=B133)*(CaRefClient=F133),0))),"") ->  | J133: =IF(B133<>0,(INDEX(CaNbRéglement,MATCH(1,(CaDate=B133)*(CaRefDoc=H133),0))),"") ->  | K133: =IF(C133<>0,(INDEX(CaMode,MATCH(1,(CaDate=B133)*(CaRefDoc=H133),0))),"") ->  | L133: 0 | M133: =IF(C133<>0,(INDEX(CaCrédit,MATCH(1,(CaRefDoc=H133)*(CaNbRéglement=J133),0))),"") ->  | O133: 0
C134: 0 | E134: Publicité | F134: =IF(C134<>0,(INDEX(CaRefClient,MATCH(1,(CaDate=B134)*(CACatégorie="Publicité"),0))),"") ->  | G134: =IF($C134<>0,(INDEX(CaObjet,MATCH(1,(CaDate=$B134)*(CACatégorie="Publicité"),0))),"") ->  | H134: =IF(B134<>0,(INDEX(CaRefDoc,MATCH(1,(CaDate=B134)*(CaRefClient=F134),0))),"") ->  | J134: =IF(B134<>0,(INDEX(CaNbRéglement,MATCH(1,(CaDate=B134)*(CaRefDoc=H134),0))),"") ->  | K134: =IF(C134<>0,(INDEX(CaMode,MATCH(1,(CaDate=B134)*(CaRefDoc=H134),0))),"") ->  | L134: 0 | M134: =IF(C134<>0,(INDEX(CaCrédit,MATCH(1,(CaRefDoc=H134)*(CaNbRéglement=J134),0))),"") ->  | O134: 0
C135: 0 | E135: Publicité | F135: =IF(C135<>0,(INDEX(CaRefClient,MATCH(1,(CaDate=B135)*(CACatégorie="Publicité"),0))),"") ->  | G135: =IF($C135<>0,(INDEX(CaObjet,MATCH(1,(CaDate=$B135)*(CACatégorie="Publicité"),0))),"") ->  | H135: =IF(B135<>0,(INDEX(CaRefDoc,MATCH(1,(CaDate=B135)*(CaRefClient=F135),0))),"") ->  | J135: =IF(B135<>0,(INDEX(CaNbRéglement,MATCH(1,(CaDate=B135)*(CaRefDoc=H135),0))),"") ->  | K135: =IF(C135<>0,(INDEX(CaMode,MATCH(1,(CaDate=B135)*(CaRefDoc=H135),0))),"") ->  | L135: 0 | M135: =IF(C135<>0,(INDEX(CaCrédit,MATCH(1,(CaRefDoc=H135)*(CaNbRéglement=J135),0))),"") ->  | O135: 0
C136: 0 | E136: Publicité | F136: =IF(C136<>0,(INDEX(CaRefClient,MATCH(1,(CaDate=B136)*(CACatégorie="Publicité"),0))),"") ->  | G136: =IF($C136<>0,(INDEX(CaObjet,MATCH(1,(CaDate=$B136)*(CACatégorie="Publicité"),0))),"") ->  | H136: =IF(B136<>0,(INDEX(CaRefDoc,MATCH(1,(CaDate=B136)*(CaRefClient=F136),0))),"") ->  | J136: =IF(B136<>0,(INDEX(CaNbRéglement,MATCH(1,(CaDate=B136)*(CaRefDoc=H136),0))),"") ->  | K136: =IF(C136<>0,(INDEX(CaMode,MATCH(1,(CaDate=B136)*(CaRefDoc=H136),0))),"") ->  | L136: 0 | M136: =IF(C136<>0,(INDEX(CaCrédit,MATCH(1,(CaRefDoc=H136)*(CaNbRéglement=J136),0))),"") ->  | O136: 0
C137: 0 | E137: Publicité | F137: =IF(C137<>0,(INDEX(CaRefClient,MATCH(1,(CaDate=B137)*(CACatégorie="Publicité"),0))),"") ->  | G137: =IF($C137<>0,(INDEX(CaObjet,MATCH(1,(CaDate=$B137)*(CACatégorie="Publicité"),0))),"") ->  | H137: =IF(B137<>0,(INDEX(CaRefDoc,MATCH(1,(CaDate=B137)*(CaRefClient=F137),0))),"") ->  | J137: =IF(B137<>0,(INDEX(CaNbRéglement,MATCH(1,(CaDate=B137)*(CaRefDoc=H137),0))),"") ->  | K137: =IF(C137<>0,(INDEX(CaMode,MATCH(1,(CaDate=B137)*(CaRefDoc=H137),0))),"") ->  | L137: 0 | M137: =IF(C137<>0,(INDEX(CaCrédit,MATCH(1,(CaRefDoc=H137)*(CaNbRéglement=J137),0))),"") ->  | O137: 0
C138: 0 | D138: =IF(PubJour=0,"",UPPER(TEXT(C138,"mmmm"))) ->  | E138: Publicité | F138: =IF(C138<>0,(INDEX(CaRefClient,MATCH(1,(CaDate=B138)*(CACatégorie="Publicité"),0))),"") ->  | G138: =IF($C138<>0,(INDEX(CaObjet,MATCH(1,(CaDate=$B138)*(CACatégorie="Publicité"),0))),"") ->  | H138: =IF(B138<>0,(INDEX(CaRefDoc,MATCH(1,(CaDate=B138)*(CaRefClient=F138),0))),"") ->  | J138: =IF(B138<>0,(INDEX(CaNbRéglement,MATCH(1,(CaDate=B138)*(CaRefDoc=H138),0))),"") ->  | K138: =IF(C138<>0,(INDEX(CaMode,MATCH(1,(CaDate=B138)*(CaRefDoc=H138),0))),"") ->  | L138: =IF(H138="",0,INDEX(FactMontant,MATCH(H138,FactRefDoc,0))) -> 0 | M138: =IF(C138<>0,(INDEX(CaCrédit,MATCH(1,(CaRefDoc=H138)*(CaNbRéglement=J138),0))),"") ->  | O138: =IF($C138=0,0,(IF($J138="R1",$L138-$M138,IF($J138="R2",$L138-((INDEX(FactR1,MATCH($H138,FactRefDoc,0)))+(INDEX(FactR2,MATCH($H138,FactRefDoc,0)))),IF($J138="R3",$L138-((INDEX(FactR1,MATCH($H138,FactRefDoc,0)))+(INDEX(FactR2,MATCH($H138,FactRefDoc,0)))+(INDEX(FactR3,MATCH($H138,FactRefDoc,0)))),IF($J138="R4",$L138-((INDEX(FactR1,MATCH($H138,FactRefDoc,0)))+(INDEX(FactR2,MATCH($H138,FactRefDoc,0)))+(INDEX(FactR3,MATCH($H138,FactRefDoc,0)))+(INDEX(FactR4,MATCH($H138,FactRefDoc,0)))),$L138-((INDEX(FactR1,MATCH($H138,FactRefDoc,0)))+(INDEX(FactR2,MATCH($H138,FactRefDoc,0)))+(INDEX(FactR3,MATCH($H138,FactRefDoc,0)))+(INDEX(FactR4,MATCH($H138,FactRefDoc,0)))+(INDEX(FactR5,MATCH($H138,FactRefDoc,0)))))))))) -> 0
C139: =DATE(YEAR(B139),MONTH(B139),DAY(B139)) -> 0 | E139: Publicité | F139: =IF(C139<>0,(INDEX(CaRefClient,MATCH(1,(CaDate=B139)*(CACatégorie="Publicité"),0))),"") ->  | G139: =IF($C139<>0,(INDEX(CaObjet,MATCH(1,(CaDate=$B139)*(CACatégorie="Publicité"),0))),"") ->  | H139: =IF(B139<>0,(INDEX(CaRefDoc,MATCH(1,(CaDate=B139)*(CaRefClient=F139),0))),"") ->  | J139: =IF(B139<>0,(INDEX(CaNbRéglement,MATCH(1,(CaDate=B139)*(CaRefDoc=H139),0))),"") ->  | K139: =IF(C139<>0,(INDEX(CaMode,MATCH(1,(CaDate=B139)*(CaRefDoc=H139),0))),"") ->  | L139: 0 | M139: =IF(C139<>0,(INDEX(CaCrédit,MATCH(1,(CaRefDoc=H139)*(CaNbRéglement=J139),0))),"") ->  | O139: 0
C140: 0 | E140: Publicité | F140: =IF(C140<>0,(INDEX(CaRefClient,MATCH(1,(CaDate=B140)*(CACatégorie="Publicité"),0))),"") ->  | G140: =IF($C140<>0,(INDEX(CaObjet,MATCH(1,(CaDate=$B140)*(CACatégorie="Publicité"),0))),"") ->  | H140: =IF(B140<>0,(INDEX(CaRefDoc,MATCH(1,(CaDate=B140)*(CaRefClient=F140),0))),"") ->  | J140: =IF(B140<>0,(INDEX(CaNbRéglement,MATCH(1,(CaDate=B140)*(CaRefDoc=H140),0))),"") ->  | K140: =IF(C140<>0,(INDEX(CaMode,MATCH(1,(CaDate=B140)*(CaRefDoc=H140),0))),"") ->  | L140: 0 | M140: =IF(C140<>0,(INDEX(CaCrédit,MATCH(1,(CaRefDoc=H140)*(CaNbRéglement=J140),0))),"") ->  | O140: 0
C141: 0 | E141: Publicité | F141: =IF(C141<>0,(INDEX(CaRefClient,MATCH(1,(CaDate=B141)*(CACatégorie="Publicité"),0))),"") ->  | G141: =IF($C141<>0,(INDEX(CaObjet,MATCH(1,(CaDate=$B141)*(CACatégorie="Publicité"),0))),"") ->  | H141: =IF(B141<>0,(INDEX(CaRefDoc,MATCH(1,(CaDate=B141)*(CaRefClient=F141),0))),"") ->  | J141: =IF(B141<>0,(INDEX(CaNbRéglement,MATCH(1,(CaDate=B141)*(CaRefDoc=H141),0))),"") ->  | K141: =IF(C141<>0,(INDEX(CaMode,MATCH(1,(CaDate=B141)*(CaRefDoc=H141),0))),"") ->  | L141: 0 | M141: =IF(C141<>0,(INDEX(CaCrédit,MATCH(1,(CaRefDoc=H141)*(CaNbRéglement=J141),0))),"") ->  | O141: 0
C142: 0 | E142: Publicité | F142: =IF(C142<>0,(INDEX(CaRefClient,MATCH(1,(CaDate=B142)*(CACatégorie="Publicité"),0))),"") ->  | G142: =IF($C142<>0,(INDEX(CaObjet,MATCH(1,(CaDate=$B142)*(CACatégorie="Publicité"),0))),"") ->  | H142: =IF(B142<>0,(INDEX(CaRefDoc,MATCH(1,(CaDate=B142)*(CaRefClient=F142),0))),"") ->  | J142: =IF(B142<>0,(INDEX(CaNbRéglement,MATCH(1,(CaDate=B142)*(CaRefDoc=H142),0))),"") ->  | K142: =IF(C142<>0,(INDEX(CaMode,MATCH(1,(CaDate=B142)*(CaRefDoc=H142),0))),"") ->  | L142: 0 | M142: =IF(C142<>0,(INDEX(CaCrédit,MATCH(1,(CaRefDoc=H142)*(CaNbRéglement=J142),0))),"") ->  | O142: 0
C143: 0 | E143: Publicité | F143: =IF(C143<>0,(INDEX(CaRefClient,MATCH(1,(CaDate=B143)*(CACatégorie="Publicité"),0))),"") ->  | G143: =IF($C143<>0,(INDEX(CaObjet,MATCH(1,(CaDate=$B143)*(CACatégorie="Publicité"),0))),"") ->  | H143: =IF(B143<>0,(INDEX(CaRefDoc,MATCH(1,(CaDate=B143)*(CaRefClient=F143),0))),"") ->  | J143: =IF(B143<>0,(INDEX(CaNbRéglement,MATCH(1,(CaDate=B143)*(CaRefDoc=H143),0))),"") ->  | K143: =IF(C143<>0,(INDEX(CaMode,MATCH(1,(CaDate=B143)*(CaRefDoc=H143),0))),"") ->  | L143: 0 | M143: =IF(C143<>0,(INDEX(CaCrédit,MATCH(1,(CaRefDoc=H143)*(CaNbRéglement=J143),0))),"") ->  | O143: 0
C144: 0 | E144: Publicité | F144: =IF(C144<>0,(INDEX(CaRefClient,MATCH(1,(CaDate=B144)*(CACatégorie="Publicité"),0))),"") ->  | G144: =IF($C144<>0,(INDEX(CaObjet,MATCH(1,(CaDate=$B144)*(CACatégorie="Publicité"),0))),"") ->  | H144: =IF(B144<>0,(INDEX(CaRefDoc,MATCH(1,(CaDate=B144)*(CaRefClient=F144),0))),"") ->  | J144: =IF(B144<>0,(INDEX(CaNbRéglement,MATCH(1,(CaDate=B144)*(CaRefDoc=H144),0))),"") ->  | K144: =IF(C144<>0,(INDEX(CaMode,MATCH(1,(CaDate=B144)*(CaRefDoc=H144),0))),"") ->  | L144: 0 | M144: =IF(C144<>0,(INDEX(CaCrédit,MATCH(1,(CaRefDoc=H144)*(CaNbRéglement=J144),0))),"") ->  | O144: 0
C145: 0 | E145: Publicité | F145: =IF(C145<>0,(INDEX(CaRefClient,MATCH(1,(CaDate=B145)*(CACatégorie="Publicité"),0))),"") ->  | G145: =IF($C145<>0,(INDEX(CaObjet,MATCH(1,(CaDate=$B145)*(CACatégorie="Publicité"),0))),"") ->  | H145: =IF(B145<>0,(INDEX(CaRefDoc,MATCH(1,(CaDate=B145)*(CaRefClient=F145),0))),"") ->  | J145: =IF(B145<>0,(INDEX(CaNbRéglement,MATCH(1,(CaDate=B145)*(CaRefDoc=H145),0))),"") ->  | K145: =IF(C145<>0,(INDEX(CaMode,MATCH(1,(CaDate=B145)*(CaRefDoc=H145),0))),"") ->  | L145: 0 | M145: =IF(C145<>0,(INDEX(CaCrédit,MATCH(1,(CaRefDoc=H145)*(CaNbRéglement=J145),0))),"") ->  | O145: 0
C146: 0 | E146: Publicité | F146: =IF(C146<>0,(INDEX(CaRefClient,MATCH(1,(CaDate=B146)*(CACatégorie="Publicité"),0))),"") ->  | G146: =IF($C146<>0,(INDEX(CaObjet,MATCH(1,(CaDate=$B146)*(CACatégorie="Publicité"),0))),"") ->  | H146: =IF(B146<>0,(INDEX(CaRefDoc,MATCH(1,(CaDate=B146)*(CaRefClient=F146),0))),"") ->  | J146: =IF(B146<>0,(INDEX(CaNbRéglement,MATCH(1,(CaDate=B146)*(CaRefDoc=H146),0))),"") ->  | K146: =IF(C146<>0,(INDEX(CaMode,MATCH(1,(CaDate=B146)*(CaRefDoc=H146),0))),"") ->  | L146: 0 | M146: =IF(C146<>0,(INDEX(CaCrédit,MATCH(1,(CaRefDoc=H146)*(CaNbRéglement=J146),0))),"") ->  | O146: 0
C147: 0 | E147: Publicité | F147: =IF(C147<>0,(INDEX(CaRefClient,MATCH(1,(CaDate=B147)*(CACatégorie="Publicité"),0))),"") ->  | G147: =IF($C147<>0,(INDEX(CaObjet,MATCH(1,(CaDate=$B147)*(CACatégorie="Publicité"),0))),"") ->  | H147: =IF(B147<>0,(INDEX(CaRefDoc,MATCH(1,(CaDate=B147)*(CaRefClient=F147),0))),"") ->  | J147: =IF(B147<>0,(INDEX(CaNbRéglement,MATCH(1,(CaDate=B147)*(CaRefDoc=H147),0))),"") ->  | K147: =IF(C147<>0,(INDEX(CaMode,MATCH(1,(CaDate=B147)*(CaRefDoc=H147),0))),"") ->  | L147: 0 | M147: =IF(C147<>0,(INDEX(CaCrédit,MATCH(1,(CaRefDoc=H147)*(CaNbRéglement=J147),0))),"") ->  | O147: 0
C148: 0 | E148: Publicité | F148: =IF(C148<>0,(INDEX(CaRefClient,MATCH(1,(CaDate=B148)*(CACatégorie="Publicité"),0))),"") ->  | G148: =IF($C148<>0,(INDEX(CaObjet,MATCH(1,(CaDate=$B148)*(CACatégorie="Publicité"),0))),"") ->  | H148: =IF(B148<>0,(INDEX(CaRefDoc,MATCH(1,(CaDate=B148)*(CaRefClient=F148),0))),"") ->  | J148: =IF(B148<>0,(INDEX(CaNbRéglement,MATCH(1,(CaDate=B148)*(CaRefDoc=H148),0))),"") ->  | K148: =IF(C148<>0,(INDEX(CaMode,MATCH(1,(CaDate=B148)*(CaRefDoc=H148),0))),"") ->  | L148: 0 | M148: =IF(C148<>0,(INDEX(CaCrédit,MATCH(1,(CaRefDoc=H148)*(CaNbRéglement=J148),0))),"") ->  | O148: 0
C149: 0 | E149: Publicité | F149: =IF(C149<>0,(INDEX(CaRefClient,MATCH(1,(CaDate=B149)*(CACatégorie="Publicité"),0))),"") ->  | G149: =IF($C149<>0,(INDEX(CaObjet,MATCH(1,(CaDate=$B149)*(CACatégorie="Publicité"),0))),"") ->  | H149: =IF(B149<>0,(INDEX(CaRefDoc,MATCH(1,(CaDate=B149)*(CaRefClient=F149),0))),"") ->  | J149: =IF(B149<>0,(INDEX(CaNbRéglement,MATCH(1,(CaDate=B149)*(CaRefDoc=H149),0))),"") ->  | K149: =IF(C149<>0,(INDEX(CaMode,MATCH(1,(CaDate=B149)*(CaRefDoc=H149),0))),"") ->  | L149: 0 | M149: =IF(C149<>0,(INDEX(CaCrédit,MATCH(1,(CaRefDoc=H149)*(CaNbRéglement=J149),0))),"") ->  | O149: 0
C150: 0 | E150: Publicité | F150: =IF(C150<>0,(INDEX(CaRefClient,MATCH(1,(CaDate=B150)*(CACatégorie="Publicité"),0))),"") ->  | G150: =IF($C150<>0,(INDEX(CaObjet,MATCH(1,(CaDate=$B150)*(CACatégorie="Publicité"),0))),"") ->  | H150: =IF(B150<>0,(INDEX(CaRefDoc,MATCH(1,(CaDate=B150)*(CaRefClient=F150),0))),"") ->  | J150: =IF(B150<>0,(INDEX(CaNbRéglement,MATCH(1,(CaDate=B150)*(CaRefDoc=H150),0))),"") ->  | K150: =IF(C150<>0,(INDEX(CaMode,MATCH(1,(CaDate=B150)*(CaRefDoc=H150),0))),"") ->  | L150: 0 | M150: =IF(C150<>0,(INDEX(CaCrédit,MATCH(1,(CaRefDoc=H150)*(CaNbRéglement=J150),0))),"") ->  | O150: 0
C151: 0 | E151: Publicité | F151: =IF(C151<>0,(INDEX(CaRefClient,MATCH(1,(CaDate=B151)*(CACatégorie="Publicité"),0))),"") ->  | G151: =IF($C151<>0,(INDEX(CaObjet,MATCH(1,(CaDate=$B151)*(CACatégorie="Publicité"),0))),"") ->  | H151: =IF(B151<>0,(INDEX(CaRefDoc,MATCH(1,(CaDate=B151)*(CaRefClient=F151),0))),"") ->  | J151: =IF(B151<>0,(INDEX(CaNbRéglement,MATCH(1,(CaDate=B151)*(CaRefDoc=H151),0))),"") ->  | K151: =IF(C151<>0,(INDEX(CaMode,MATCH(1,(CaDate=B151)*(CaRefDoc=H151),0))),"") ->  | L151: 0 | M151: =IF(C151<>0,(INDEX(CaCrédit,MATCH(1,(CaRefDoc=H151)*(CaNbRéglement=J151),0))),"") ->  | O151: 0
C152: 0 | E152: Publicité | F152: =IF(C152<>0,(INDEX(CaRefClient,MATCH(1,(CaDate=B152)*(CACatégorie="Publicité"),0))),"") ->  | G152: =IF($C152<>0,(INDEX(CaObjet,MATCH(1,(CaDate=$B152)*(CACatégorie="Publicité"),0))),"") ->  | H152: =IF(B152<>0,(INDEX(CaRefDoc,MATCH(1,(CaDate=B152)*(CaRefClient=F152),0))),"") ->  | J152: =IF(B152<>0,(INDEX(CaNbRéglement,MATCH(1,(CaDate=B152)*(CaRefDoc=H152),0))),"") ->  | K152: =IF(C152<>0,(INDEX(CaMode,MATCH(1,(CaDate=B152)*(CaRefDoc=H152),0))),"") ->  | L152: 0 | M152: =IF(C152<>0,(INDEX(CaCrédit,MATCH(1,(CaRefDoc=H152)*(CaNbRéglement=J152),0))),"") ->  | O152: 0
C153: 0 | E153: Publicité | F153: =IF(C153<>0,(INDEX(CaRefClient,MATCH(1,(CaDate=B153)*(CACatégorie="Publicité"),0))),"") ->  | G153: =IF($C153<>0,(INDEX(CaObjet,MATCH(1,(CaDate=$B153)*(CACatégorie="Publicité"),0))),"") ->  | H153: =IF(B153<>0,(INDEX(CaRefDoc,MATCH(1,(CaDate=B153)*(CaRefClient=F153),0))),"") ->  | J153: =IF(B153<>0,(INDEX(CaNbRéglement,MATCH(1,(CaDate=B153)*(CaRefDoc=H153),0))),"") ->  | K153: =IF(C153<>0,(INDEX(CaMode,MATCH(1,(CaDate=B153)*(CaRefDoc=H153),0))),"") ->  | L153: 0 | M153: =IF(C153<>0,(INDEX(CaCrédit,MATCH(1,(CaRefDoc=H153)*(CaNbRéglement=J153),0))),"") ->  | O153: 0
C154: 0 | E154: Publicité | F154: =IF(C154<>0,(INDEX(CaRefClient,MATCH(1,(CaDate=B154)*(CACatégorie="Publicité"),0))),"") ->  | G154: =IF($C154<>0,(INDEX(CaObjet,MATCH(1,(CaDate=$B154)*(CACatégorie="Publicité"),0))),"") ->  | H154: =IF(B154<>0,(INDEX(CaRefDoc,MATCH(1,(CaDate=B154)*(CaRefClient=F154),0))),"") ->  | J154: =IF(B154<>0,(INDEX(CaNbRéglement,MATCH(1,(CaDate=B154)*(CaRefDoc=H154),0))),"") ->  | K154: =IF(C154<>0,(INDEX(CaMode,MATCH(1,(CaDate=B154)*(CaRefDoc=H154),0))),"") ->  | L154: 0 | M154: =IF(C154<>0,(INDEX(CaCrédit,MATCH(1,(CaRefDoc=H154)*(CaNbRéglement=J154),0))),"") ->  | O154: 0
C155: 0 | E155: Publicité | F155: =IF(C155<>0,(INDEX(CaRefClient,MATCH(1,(CaDate=B155)*(CACatégorie="Publicité"),0))),"") ->  | G155: =IF($C155<>0,(INDEX(CaObjet,MATCH(1,(CaDate=$B155)*(CACatégorie="Publicité"),0))),"") ->  | H155: =IF(B155<>0,(INDEX(CaRefDoc,MATCH(1,(CaDate=B155)*(CaRefClient=F155),0))),"") ->  | J155: =IF(B155<>0,(INDEX(CaNbRéglement,MATCH(1,(CaDate=B155)*(CaRefDoc=H155),0))),"") ->  | K155: =IF(C155<>0,(INDEX(CaMode,MATCH(1,(CaDate=B155)*(CaRefDoc=H155),0))),"") ->  | L155: 0 | M155: =IF(C155<>0,(INDEX(CaCrédit,MATCH(1,(CaRefDoc=H155)*(CaNbRéglement=J155),0))),"") ->  | O155: 0
C156: 0 | E156: Publicité | F156: =IF(C156<>0,(INDEX(CaRefClient,MATCH(1,(CaDate=B156)*(CACatégorie="Publicité"),0))),"") ->  | G156: =IF($C156<>0,(INDEX(CaObjet,MATCH(1,(CaDate=$B156)*(CACatégorie="Publicité"),0))),"") ->  | H156: =IF(B156<>0,(INDEX(CaRefDoc,MATCH(1,(CaDate=B156)*(CaRefClient=F156),0))),"") ->  | J156: =IF(B156<>0,(INDEX(CaNbRéglement,MATCH(1,(CaDate=B156)*(CaRefDoc=H156),0))),"") ->  | K156: =IF(C156<>0,(INDEX(CaMode,MATCH(1,(CaDate=B156)*(CaRefDoc=H156),0))),"") ->  | L156: 0 | M156: =IF(C156<>0,(INDEX(CaCrédit,MATCH(1,(CaRefDoc=H156)*(CaNbRéglement=J156),0))),"") ->  | O156: 0
C157: 0 | E157: Publicité | F157: =IF(C157<>0,(INDEX(CaRefClient,MATCH(1,(CaDate=B157)*(CACatégorie="Publicité"),0))),"") ->  | G157: =IF($C157<>0,(INDEX(CaObjet,MATCH(1,(CaDate=$B157)*(CACatégorie="Publicité"),0))),"") ->  | H157: =IF(B157<>0,(INDEX(CaRefDoc,MATCH(1,(CaDate=B157)*(CaRefClient=F157),0))),"") ->  | J157: =IF(B157<>0,(INDEX(CaNbRéglement,MATCH(1,(CaDate=B157)*(CaRefDoc=H157),0))),"") ->  | K157: =IF(C157<>0,(INDEX(CaMode,MATCH(1,(CaDate=B157)*(CaRefDoc=H157),0))),"") ->  | L157: 0 | M157: =IF(C157<>0,(INDEX(CaCrédit,MATCH(1,(CaRefDoc=H157)*(CaNbRéglement=J157),0))),"") ->  | O157: 0
C158: 0 | E158: Publicité | F158: =IF(C158<>0,(INDEX(CaRefClient,MATCH(1,(CaDate=B158)*(CACatégorie="Publicité"),0))),"") ->  | G158: =IF($C158<>0,(INDEX(CaObjet,MATCH(1,(CaDate=$B158)*(CACatégorie="Publicité"),0))),"") ->  | H158: =IF(B158<>0,(INDEX(CaRefDoc,MATCH(1,(CaDate=B158)*(CaRefClient=F158),0))),"") ->  | J158: =IF(B158<>0,(INDEX(CaNbRéglement,MATCH(1,(CaDate=B158)*(CaRefDoc=H158),0))),"") ->  | K158: =IF(C158<>0,(INDEX(CaMode,MATCH(1,(CaDate=B158)*(CaRefDoc=H158),0))),"") ->  | L158: 0 | M158: =IF(C158<>0,(INDEX(CaCrédit,MATCH(1,(CaRefDoc=H158)*(CaNbRéglement=J158),0))),"") ->  | O158: 0
C159: 0 | E159: Publicité | F159: =IF(C159<>0,(INDEX(CaRefClient,MATCH(1,(CaDate=B159)*(CACatégorie="Publicité"),0))),"") ->  | G159: =IF($C159<>0,(INDEX(CaObjet,MATCH(1,(CaDate=$B159)*(CACatégorie="Publicité"),0))),"") ->  | H159: =IF(B159<>0,(INDEX(CaRefDoc,MATCH(1,(CaDate=B159)*(CaRefClient=F159),0))),"") ->  | J159: =IF(B159<>0,(INDEX(CaNbRéglement,MATCH(1,(CaDate=B159)*(CaRefDoc=H159),0))),"") ->  | K159: =IF(C159<>0,(INDEX(CaMode,MATCH(1,(CaDate=B159)*(CaRefDoc=H159),0))),"") ->  | L159: 0 | M159: =IF(C159<>0,(INDEX(CaCrédit,MATCH(1,(CaRefDoc=H159)*(CaNbRéglement=J159),0))),"") ->  | O159: 0
C160: 0 | E160: Publicité | F160: =IF(C160<>0,(INDEX(CaRefClient,MATCH(1,(CaDate=B160)*(CACatégorie="Publicité"),0))),"") ->  | G160: =IF($C160<>0,(INDEX(CaObjet,MATCH(1,(CaDate=$B160)*(CACatégorie="Publicité"),0))),"") ->  | H160: =IF(B160<>0,(INDEX(CaRefDoc,MATCH(1,(CaDate=B160)*(CaRefClient=F160),0))),"") ->  | J160: =IF(B160<>0,(INDEX(CaNbRéglement,MATCH(1,(CaDate=B160)*(CaRefDoc=H160),0))),"") ->  | K160: =IF(C160<>0,(INDEX(CaMode,MATCH(1,(CaDate=B160)*(CaRefDoc=H160),0))),"") ->  | L160: 0 | M160: =IF(C160<>0,(INDEX(CaCrédit,MATCH(1,(CaRefDoc=H160)*(CaNbRéglement=J160),0))),"") ->  | O160: 0
C161: 0 | E161: Publicité | F161: =IF(C161<>0,(INDEX(CaRefClient,MATCH(1,(CaDate=B161)*(CACatégorie="Publicité"),0))),"") ->  | G161: =IF($C161<>0,(INDEX(CaObjet,MATCH(1,(CaDate=$B161)*(CACatégorie="Publicité"),0))),"") ->  | H161: =IF(B161<>0,(INDEX(CaRefDoc,MATCH(1,(CaDate=B161)*(CaRefClient=F161),0))),"") ->  | J161: =IF(B161<>0,(INDEX(CaNbRéglement,MATCH(1,(CaDate=B161)*(CaRefDoc=H161),0))),"") ->  | K161: =IF(C161<>0,(INDEX(CaMode,MATCH(1,(CaDate=B161)*(CaRefDoc=H161),0))),"") ->  | L161: 0 | M161: =IF(C161<>0,(INDEX(CaCrédit,MATCH(1,(CaRefDoc=H161)*(CaNbRéglement=J161),0))),"") ->  | O161: 0
C162: 0 | E162: Publicité | F162: =IF(C162<>0,(INDEX(CaRefClient,MATCH(1,(CaDate=B162)*(CACatégorie="Publicité"),0))),"") ->  | G162: =IF($C162<>0,(INDEX(CaObjet,MATCH(1,(CaDate=$B162)*(CACatégorie="Publicité"),0))),"") ->  | H162: =IF(B162<>0,(INDEX(CaRefDoc,MATCH(1,(CaDate=B162)*(CaRefClient=F162),0))),"") ->  | J162: =IF(B162<>0,(INDEX(CaNbRéglement,MATCH(1,(CaDate=B162)*(CaRefDoc=H162),0))),"") ->  | K162: =IF(C162<>0,(INDEX(CaMode,MATCH(1,(CaDate=B162)*(CaRefDoc=H162),0))),"") ->  | L162: 0 | M162: =IF(C162<>0,(INDEX(CaCrédit,MATCH(1,(CaRefDoc=H162)*(CaNbRéglement=J162),0))),"") ->  | O162: 0
C163: 0 | E163: Publicité | F163: =IF(C163<>0,(INDEX(CaRefClient,MATCH(1,(CaDate=B163)*(CACatégorie="Publicité"),0))),"") ->  | G163: =IF($C163<>0,(INDEX(CaObjet,MATCH(1,(CaDate=$B163)*(CACatégorie="Publicité"),0))),"") ->  | H163: =IF(B163<>0,(INDEX(CaRefDoc,MATCH(1,(CaDate=B163)*(CaRefClient=F163),0))),"") ->  | J163: =IF(B163<>0,(INDEX(CaNbRéglement,MATCH(1,(CaDate=B163)*(CaRefDoc=H163),0))),"") ->  | K163: =IF(C163<>0,(INDEX(CaMode,MATCH(1,(CaDate=B163)*(CaRefDoc=H163),0))),"") ->  | L163: 0 | M163: =IF(C163<>0,(INDEX(CaCrédit,MATCH(1,(CaRefDoc=H163)*(CaNbRéglement=J163),0))),"") ->  | O163: 0
C164: 0 | E164: Publicité | F164: =IF(C164<>0,(INDEX(CaRefClient,MATCH(1,(CaDate=B164)*(CACatégorie="Publicité"),0))),"") ->  | G164: =IF($C164<>0,(INDEX(CaObjet,MATCH(1,(CaDate=$B164)*(CACatégorie="Publicité"),0))),"") ->  | H164: =IF(B164<>0,(INDEX(CaRefDoc,MATCH(1,(CaDate=B164)*(CaRefClient=F164),0))),"") ->  | J164: =IF(B164<>0,(INDEX(CaNbRéglement,MATCH(1,(CaDate=B164)*(CaRefDoc=H164),0))),"") ->  | K164: =IF(C164<>0,(INDEX(CaMode,MATCH(1,(CaDate=B164)*(CaRefDoc=H164),0))),"") ->  | L164: 0 | M164: =IF(C164<>0,(INDEX(CaCrédit,MATCH(1,(CaRefDoc=H164)*(CaNbRéglement=J164),0))),"") ->  | O164: 0
C165: 0 | E165: Publicité | F165: =IF(C165<>0,(INDEX(CaRefClient,MATCH(1,(CaDate=B165)*(CACatégorie="Publicité"),0))),"") ->  | G165: =IF($C165<>0,(INDEX(CaObjet,MATCH(1,(CaDate=$B165)*(CACatégorie="Publicité"),0))),"") ->  | H165: =IF(B165<>0,(INDEX(CaRefDoc,MATCH(1,(CaDate=B165)*(CaRefClient=F165),0))),"") ->  | J165: =IF(B165<>0,(INDEX(CaNbRéglement,MATCH(1,(CaDate=B165)*(CaRefDoc=H165),0))),"") ->  | K165: =IF(C165<>0,(INDEX(CaMode,MATCH(1,(CaDate=B165)*(CaRefDoc=H165),0))),"") ->  | L165: 0 | M165: =IF(C165<>0,(INDEX(CaCrédit,MATCH(1,(CaRefDoc=H165)*(CaNbRéglement=J165),0))),"") ->  | O165: 0
C166: 0 | E166: Publicité | F166: =IF(C166<>0,(INDEX(CaRefClient,MATCH(1,(CaDate=B166)*(CACatégorie="Publicité"),0))),"") ->  | G166: =IF($C166<>0,(INDEX(CaObjet,MATCH(1,(CaDate=$B166)*(CACatégorie="Publicité"),0))),"") ->  | H166: =IF(B166<>0,(INDEX(CaRefDoc,MATCH(1,(CaDate=B166)*(CaRefClient=F166),0))),"") ->  | J166: =IF(B166<>0,(INDEX(CaNbRéglement,MATCH(1,(CaDate=B166)*(CaRefDoc=H166),0))),"") ->  | K166: =IF(C166<>0,(INDEX(CaMode,MATCH(1,(CaDate=B166)*(CaRefDoc=H166),0))),"") ->  | L166: 0 | M166: =IF(C166<>0,(INDEX(CaCrédit,MATCH(1,(CaRefDoc=H166)*(CaNbRéglement=J166),0))),"") ->  | O166: 0
C167: 0 | E167: Publicité | F167: =IF(C167<>0,(INDEX(CaRefClient,MATCH(1,(CaDate=B167)*(CACatégorie="Publicité"),0))),"") ->  | G167: =IF($C167<>0,(INDEX(CaObjet,MATCH(1,(CaDate=$B167)*(CACatégorie="Publicité"),0))),"") ->  | H167: =IF(B167<>0,(INDEX(CaRefDoc,MATCH(1,(CaDate=B167)*(CaRefClient=F167),0))),"") ->  | J167: =IF(B167<>0,(INDEX(CaNbRéglement,MATCH(1,(CaDate=B167)*(CaRefDoc=H167),0))),"") ->  | K167: =IF(C167<>0,(INDEX(CaMode,MATCH(1,(CaDate=B167)*(CaRefDoc=H167),0))),"") ->  | L167: 0 | M167: =IF(C167<>0,(INDEX(CaCrédit,MATCH(1,(CaRefDoc=H167)*(CaNbRéglement=J167),0))),"") ->  | O167: 0
C168: 0 | E168: Publicité | F168: =IF(C168<>0,(INDEX(CaRefClient,MATCH(1,(CaDate=B168)*(CACatégorie="Publicité"),0))),"") ->  | G168: =IF($C168<>0,(INDEX(CaObjet,MATCH(1,(CaDate=$B168)*(CACatégorie="Publicité"),0))),"") ->  | H168: =IF(B168<>0,(INDEX(CaRefDoc,MATCH(1,(CaDate=B168)*(CaRefClient=F168),0))),"") ->  | J168: =IF(B168<>0,(INDEX(CaNbRéglement,MATCH(1,(CaDate=B168)*(CaRefDoc=H168),0))),"") ->  | K168: =IF(C168<>0,(INDEX(CaMode,MATCH(1,(CaDate=B168)*(CaRefDoc=H168),0))),"") ->  | L168: 0 | M168: =IF(C168<>0,(INDEX(CaCrédit,MATCH(1,(CaRefDoc=H168)*(CaNbRéglement=J168),0))),"") ->  | O168: 0
C169: 0 | E169: Publicité | F169: =IF(C169<>0,(INDEX(CaRefClient,MATCH(1,(CaDate=B169)*(CACatégorie="Publicité"),0))),"") ->  | G169: =IF($C169<>0,(INDEX(CaObjet,MATCH(1,(CaDate=$B169)*(CACatégorie="Publicité"),0))),"") ->  | H169: =IF(B169<>0,(INDEX(CaRefDoc,MATCH(1,(CaDate=B169)*(CaRefClient=F169),0))),"") ->  | J169: =IF(B169<>0,(INDEX(CaNbRéglement,MATCH(1,(CaDate=B169)*(CaRefDoc=H169),0))),"") ->  | K169: =IF(C169<>0,(INDEX(CaMode,MATCH(1,(CaDate=B169)*(CaRefDoc=H169),0))),"") ->  | L169: 0 | M169: =IF(C169<>0,(INDEX(CaCrédit,MATCH(1,(CaRefDoc=H169)*(CaNbRéglement=J169),0))),"") ->  | O169: 0
C170: 0 | E170: Publicité | F170: =IF(C170<>0,(INDEX(CaRefClient,MATCH(1,(CaDate=B170)*(CACatégorie="Publicité"),0))),"") ->  | G170: =IF($C170<>0,(INDEX(CaObjet,MATCH(1,(CaDate=$B170)*(CACatégorie="Publicité"),0))),"") ->  | H170: =IF(B170<>0,(INDEX(CaRefDoc,MATCH(1,(CaDate=B170)*(CaRefClient=F170),0))),"") ->  | J170: =IF(B170<>0,(INDEX(CaNbRéglement,MATCH(1,(CaDate=B170)*(CaRefDoc=H170),0))),"") ->  | K170: =IF(C170<>0,(INDEX(CaMode,MATCH(1,(CaDate=B170)*(CaRefDoc=H170),0))),"") ->  | L170: 0 | M170: =IF(C170<>0,(INDEX(CaCrédit,MATCH(1,(CaRefDoc=H170)*(CaNbRéglement=J170),0))),"") ->  | O170: 0
C171: 0 | E171: Publicité | F171: =IF(C171<>0,(INDEX(CaRefClient,MATCH(1,(CaDate=B171)*(CACatégorie="Publicité"),0))),"") ->  | G171: =IF($C171<>0,(INDEX(CaObjet,MATCH(1,(CaDate=$B171)*(CACatégorie="Publicité"),0))),"") ->  | H171: =IF(B171<>0,(INDEX(CaRefDoc,MATCH(1,(CaDate=B171)*(CaRefClient=F171),0))),"") ->  | J171: =IF(B171<>0,(INDEX(CaNbRéglement,MATCH(1,(CaDate=B171)*(CaRefDoc=H171),0))),"") ->  | K171: =IF(C171<>0,(INDEX(CaMode,MATCH(1,(CaDate=B171)*(CaRefDoc=H171),0))),"") ->  | L171: 0 | M171: =IF(C171<>0,(INDEX(CaCrédit,MATCH(1,(CaRefDoc=H171)*(CaNbRéglement=J171),0))),"") ->  | O171: 0
C172: 0 | E172: Publicité | F172: =IF(C172<>0,(INDEX(CaRefClient,MATCH(1,(CaDate=B172)*(CACatégorie="Publicité"),0))),"") ->  | G172: =IF($C172<>0,(INDEX(CaObjet,MATCH(1,(CaDate=$B172)*(CACatégorie="Publicité"),0))),"") ->  | H172: =IF(B172<>0,(INDEX(CaRefDoc,MATCH(1,(CaDate=B172)*(CaRefClient=F172),0))),"") ->  | J172: =IF(B172<>0,(INDEX(CaNbRéglement,MATCH(1,(CaDate=B172)*(CaRefDoc=H172),0))),"") ->  | K172: =IF(C172<>0,(INDEX(CaMode,MATCH(1,(CaDate=B172)*(CaRefDoc=H172),0))),"") ->  | L172: 0 | M172: =IF(C172<>0,(INDEX(CaCrédit,MATCH(1,(CaRefDoc=H172)*(CaNbRéglement=J172),0))),"") ->  | O172: 0
C173: 0 | E173: Publicité | F173: =IF(C173<>0,(INDEX(CaRefClient,MATCH(1,(CaDate=B173)*(CACatégorie="Publicité"),0))),"") ->  | G173: =IF($C173<>0,(INDEX(CaObjet,MATCH(1,(CaDate=$B173)*(CACatégorie="Publicité"),0))),"") ->  | H173: =IF(B173<>0,(INDEX(CaRefDoc,MATCH(1,(CaDate=B173)*(CaRefClient=F173),0))),"") ->  | J173: =IF(B173<>0,(INDEX(CaNbRéglement,MATCH(1,(CaDate=B173)*(CaRefDoc=H173),0))),"") ->  | K173: =IF(C173<>0,(INDEX(CaMode,MATCH(1,(CaDate=B173)*(CaRefDoc=H173),0))),"") ->  | L173: 0 | M173: =IF(C173<>0,(INDEX(CaCrédit,MATCH(1,(CaRefDoc=H173)*(CaNbRéglement=J173),0))),"") ->  | O173: 0
C174: 0 | E174: Publicité | F174: =IF(C174<>0,(INDEX(CaRefClient,MATCH(1,(CaDate=B174)*(CACatégorie="Publicité"),0))),"") ->  | G174: =IF($C174<>0,(INDEX(CaObjet,MATCH(1,(CaDate=$B174)*(CACatégorie="Publicité"),0))),"") ->  | H174: =IF(B174<>0,(INDEX(CaRefDoc,MATCH(1,(CaDate=B174)*(CaRefClient=F174),0))),"") ->  | J174: =IF(B174<>0,(INDEX(CaNbRéglement,MATCH(1,(CaDate=B174)*(CaRefDoc=H174),0))),"") ->  | K174: =IF(C174<>0,(INDEX(CaMode,MATCH(1,(CaDate=B174)*(CaRefDoc=H174),0))),"") ->  | L174: 0 | M174: =IF(C174<>0,(INDEX(CaCrédit,MATCH(1,(CaRefDoc=H174)*(CaNbRéglement=J174),0))),"") ->  | O174: 0
C175: 0 | E175: Publicité | F175: =IF(C175<>0,(INDEX(CaRefClient,MATCH(1,(CaDate=B175)*(CACatégorie="Publicité"),0))),"") ->  | G175: =IF($C175<>0,(INDEX(CaObjet,MATCH(1,(CaDate=$B175)*(CACatégorie="Publicité"),0))),"") ->  | H175: =IF(B175<>0,(INDEX(CaRefDoc,MATCH(1,(CaDate=B175)*(CaRefClient=F175),0))),"") ->  | J175: =IF(B175<>0,(INDEX(CaNbRéglement,MATCH(1,(CaDate=B175)*(CaRefDoc=H175),0))),"") ->  | K175: =IF(C175<>0,(INDEX(CaMode,MATCH(1,(CaDate=B175)*(CaRefDoc=H175),0))),"") ->  | L175: 0 | M175: =IF(C175<>0,(INDEX(CaCrédit,MATCH(1,(CaRefDoc=H175)*(CaNbRéglement=J175),0))),"") ->  | O175: 0
C176: 0 | E176: Publicité | F176: =IF(C176<>0,(INDEX(CaRefClient,MATCH(1,(CaDate=B176)*(CACatégorie="Publicité"),0))),"") ->  | G176: =IF($C176<>0,(INDEX(CaObjet,MATCH(1,(CaDate=$B176)*(CACatégorie="Publicité"),0))),"") ->  | H176: =IF(B176<>0,(INDEX(CaRefDoc,MATCH(1,(CaDate=B176)*(CaRefClient=F176),0))),"") ->  | J176: =IF(B176<>0,(INDEX(CaNbRéglement,MATCH(1,(CaDate=B176)*(CaRefDoc=H176),0))),"") ->  | K176: =IF(C176<>0,(INDEX(CaMode,MATCH(1,(CaDate=B176)*(CaRefDoc=H176),0))),"") ->  | L176: 0 | M176: =IF(C176<>0,(INDEX(CaCrédit,MATCH(1,(CaRefDoc=H176)*(CaNbRéglement=J176),0))),"") ->  | O176: 0
C177: 0 | E177: Publicité | F177: =IF(C177<>0,(INDEX(CaRefClient,MATCH(1,(CaDate=B177)*(CACatégorie="Publicité"),0))),"") ->  | G177: =IF($C177<>0,(INDEX(CaObjet,MATCH(1,(CaDate=$B177)*(CACatégorie="Publicité"),0))),"") ->  | H177: =IF(B177<>0,(INDEX(CaRefDoc,MATCH(1,(CaDate=B177)*(CaRefClient=F177),0))),"") ->  | J177: =IF(B177<>0,(INDEX(CaNbRéglement,MATCH(1,(CaDate=B177)*(CaRefDoc=H177),0))),"") ->  | K177: =IF(C177<>0,(INDEX(CaMode,MATCH(1,(CaDate=B177)*(CaRefDoc=H177),0))),"") ->  | L177: 0 | M177: =IF(C177<>0,(INDEX(CaCrédit,MATCH(1,(CaRefDoc=H177)*(CaNbRéglement=J177),0))),"") ->  | O177: 0
C178: 0 | E178: Publicité | F178: =IF(C178<>0,(INDEX(CaRefClient,MATCH(1,(CaDate=B178)*(CACatégorie="Publicité"),0))),"") ->  | G178: =IF($C178<>0,(INDEX(CaObjet,MATCH(1,(CaDate=$B178)*(CACatégorie="Publicité"),0))),"") ->  | H178: =IF(B178<>0,(INDEX(CaRefDoc,MATCH(1,(CaDate=B178)*(CaRefClient=F178),0))),"") ->  | J178: =IF(B178<>0,(INDEX(CaNbRéglement,MATCH(1,(CaDate=B178)*(CaRefDoc=H178),0))),"") ->  | K178: =IF(C178<>0,(INDEX(CaMode,MATCH(1,(CaDate=B178)*(CaRefDoc=H178),0))),"") ->  | L178: 0 | M178: =IF(C178<>0,(INDEX(CaCrédit,MATCH(1,(CaRefDoc=H178)*(CaNbRéglement=J178),0))),"") ->  | O178: 0
C179: 0 | E179: Publicité | F179: =IF(C179<>0,(INDEX(CaRefClient,MATCH(1,(CaDate=B179)*(CACatégorie="Publicité"),0))),"") ->  | G179: =IF($C179<>0,(INDEX(CaObjet,MATCH(1,(CaDate=$B179)*(CACatégorie="Publicité"),0))),"") ->  | H179: =IF(B179<>0,(INDEX(CaRefDoc,MATCH(1,(CaDate=B179)*(CaRefClient=F179),0))),"") ->  | J179: =IF(B179<>0,(INDEX(CaNbRéglement,MATCH(1,(CaDate=B179)*(CaRefDoc=H179),0))),"") ->  | K179: =IF(C179<>0,(INDEX(CaMode,MATCH(1,(CaDate=B179)*(CaRefDoc=H179),0))),"") ->  | L179: 0 | M179: =IF(C179<>0,(INDEX(CaCrédit,MATCH(1,(CaRefDoc=H179)*(CaNbRéglement=J179),0))),"") ->  | O179: 0
C180: 0 | E180: Publicité | F180: =IF(C180<>0,(INDEX(CaRefClient,MATCH(1,(CaDate=B180)*(CACatégorie="Publicité"),0))),"") ->  | G180: =IF($C180<>0,(INDEX(CaObjet,MATCH(1,(CaDate=$B180)*(CACatégorie="Publicité"),0))),"") ->  | H180: =IF(B180<>0,(INDEX(CaRefDoc,MATCH(1,(CaDate=B180)*(CaRefClient=F180),0))),"") ->  | J180: =IF(B180<>0,(INDEX(CaNbRéglement,MATCH(1,(CaDate=B180)*(CaRefDoc=H180),0))),"") ->  | K180: =IF(C180<>0,(INDEX(CaMode,MATCH(1,(CaDate=B180)*(CaRefDoc=H180),0))),"") ->  | L180: 0 | M180: =IF(C180<>0,(INDEX(CaCrédit,MATCH(1,(CaRefDoc=H180)*(CaNbRéglement=J180),0))),"") ->  | O180: 0
C181: 0 | E181: Publicité | F181: =IF(C181<>0,(INDEX(CaRefClient,MATCH(1,(CaDate=B181)*(CACatégorie="Publicité"),0))),"") ->  | G181: =IF($C181<>0,(INDEX(CaObjet,MATCH(1,(CaDate=$B181)*(CACatégorie="Publicité"),0))),"") ->  | H181: =IF(B181<>0,(INDEX(CaRefDoc,MATCH(1,(CaDate=B181)*(CaRefClient=F181),0))),"") ->  | J181: =IF(B181<>0,(INDEX(CaNbRéglement,MATCH(1,(CaDate=B181)*(CaRefDoc=H181),0))),"") ->  | K181: =IF(C181<>0,(INDEX(CaMode,MATCH(1,(CaDate=B181)*(CaRefDoc=H181),0))),"") ->  | L181: 0 | M181: =IF(C181<>0,(INDEX(CaCrédit,MATCH(1,(CaRefDoc=H181)*(CaNbRéglement=J181),0))),"") ->  | O181: 0
C182: 0 | E182: Publicité | F182: =IF(C182<>0,(INDEX(CaRefClient,MATCH(1,(CaDate=B182)*(CACatégorie="Publicité"),0))),"") ->  | G182: =IF($C182<>0,(INDEX(CaObjet,MATCH(1,(CaDate=$B182)*(CACatégorie="Publicité"),0))),"") ->  | H182: =IF(B182<>0,(INDEX(CaRefDoc,MATCH(1,(CaDate=B182)*(CaRefClient=F182),0))),"") ->  | J182: =IF(B182<>0,(INDEX(CaNbRéglement,MATCH(1,(CaDate=B182)*(CaRefDoc=H182),0))),"") ->  | K182: =IF(C182<>0,(INDEX(CaMode,MATCH(1,(CaDate=B182)*(CaRefDoc=H182),0))),"") ->  | L182: 0 | M182: =IF(C182<>0,(INDEX(CaCrédit,MATCH(1,(CaRefDoc=H182)*(CaNbRéglement=J182),0))),"") ->  | O182: 0
C183: 0 | E183: Publicité | F183: =IF(C183<>0,(INDEX(CaRefClient,MATCH(1,(CaDate=B183)*(CACatégorie="Publicité"),0))),"") ->  | G183: =IF($C183<>0,(INDEX(CaObjet,MATCH(1,(CaDate=$B183)*(CACatégorie="Publicité"),0))),"") ->  | H183: =IF(B183<>0,(INDEX(CaRefDoc,MATCH(1,(CaDate=B183)*(CaRefClient=F183),0))),"") ->  | J183: =IF(B183<>0,(INDEX(CaNbRéglement,MATCH(1,(CaDate=B183)*(CaRefDoc=H183),0))),"") ->  | K183: =IF(C183<>0,(INDEX(CaMode,MATCH(1,(CaDate=B183)*(CaRefDoc=H183),0))),"") ->  | L183: 0 | M183: =IF(C183<>0,(INDEX(CaCrédit,MATCH(1,(CaRefDoc=H183)*(CaNbRéglement=J183),0))),"") ->  | O183: 0
C184: 0 | E184: Publicité | F184: =IF(C184<>0,(INDEX(CaRefClient,MATCH(1,(CaDate=B184)*(CACatégorie="Publicité"),0))),"") ->  | G184: =IF($C184<>0,(INDEX(CaObjet,MATCH(1,(CaDate=$B184)*(CACatégorie="Publicité"),0))),"") ->  | H184: =IF(B184<>0,(INDEX(CaRefDoc,MATCH(1,(CaDate=B184)*(CaRefClient=F184),0))),"") ->  | J184: =IF(B184<>0,(INDEX(CaNbRéglement,MATCH(1,(CaDate=B184)*(CaRefDoc=H184),0))),"") ->  | K184: =IF(C184<>0,(INDEX(CaMode,MATCH(1,(CaDate=B184)*(CaRefDoc=H184),0))),"") ->  | L184: 0 | M184: =IF(C184<>0,(INDEX(CaCrédit,MATCH(1,(CaRefDoc=H184)*(CaNbRéglement=J184),0))),"") ->  | O184: 0
C185: 0 | E185: Publicité | F185: =IF(C185<>0,(INDEX(CaRefClient,MATCH(1,(CaDate=B185)*(CACatégorie="Publicité"),0))),"") ->  | G185: =IF($C185<>0,(INDEX(CaObjet,MATCH(1,(CaDate=$B185)*(CACatégorie="Publicité"),0))),"") ->  | H185: =IF(B185<>0,(INDEX(CaRefDoc,MATCH(1,(CaDate=B185)*(CaRefClient=F185),0))),"") ->  | J185: =IF(B185<>0,(INDEX(CaNbRéglement,MATCH(1,(CaDate=B185)*(CaRefDoc=H185),0))),"") ->  | K185: =IF(C185<>0,(INDEX(CaMode,MATCH(1,(CaDate=B185)*(CaRefDoc=H185),0))),"") ->  | L185: 0 | M185: =IF(C185<>0,(INDEX(CaCrédit,MATCH(1,(CaRefDoc=H185)*(CaNbRéglement=J185),0))),"") ->  | O185: 0
C186: 0 | E186: Publicité | F186: =IF(C186<>0,(INDEX(CaRefClient,MATCH(1,(CaDate=B186)*(CACatégorie="Publicité"),0))),"") ->  | G186: =IF($C186<>0,(INDEX(CaObjet,MATCH(1,(CaDate=$B186)*(CACatégorie="Publicité"),0))),"") ->  | H186: =IF(B186<>0,(INDEX(CaRefDoc,MATCH(1,(CaDate=B186)*(CaRefClient=F186),0))),"") ->  | J186: =IF(B186<>0,(INDEX(CaNbRéglement,MATCH(1,(CaDate=B186)*(CaRefDoc=H186),0))),"") ->  | K186: =IF(C186<>0,(INDEX(CaMode,MATCH(1,(CaDate=B186)*(CaRefDoc=H186),0))),"") ->  | L186: 0 | M186: =IF(C186<>0,(INDEX(CaCrédit,MATCH(1,(CaRefDoc=H186)*(CaNbRéglement=J186),0))),"") ->  | O186: 0
C187: 0 | E187: Publicité | F187: =IF(C187<>0,(INDEX(CaRefClient,MATCH(1,(CaDate=B187)*(CACatégorie="Publicité"),0))),"") ->  | G187: =IF($C187<>0,(INDEX(CaObjet,MATCH(1,(CaDate=$B187)*(CACatégorie="Publicité"),0))),"") ->  | H187: =IF(B187<>0,(INDEX(CaRefDoc,MATCH(1,(CaDate=B187)*(CaRefClient=F187),0))),"") ->  | J187: =IF(B187<>0,(INDEX(CaNbRéglement,MATCH(1,(CaDate=B187)*(CaRefDoc=H187),0))),"") ->  | K187: =IF(C187<>0,(INDEX(CaMode,MATCH(1,(CaDate=B187)*(CaRefDoc=H187),0))),"") ->  | L187: 0 | M187: =IF(C187<>0,(INDEX(CaCrédit,MATCH(1,(CaRefDoc=H187)*(CaNbRéglement=J187),0))),"") ->  | O187: 0
C188: 0 | E188: Publicité | F188: =IF(C188<>0,(INDEX(CaRefClient,MATCH(1,(CaDate=B188)*(CACatégorie="Publicité"),0))),"") ->  | G188: =IF($C188<>0,(INDEX(CaObjet,MATCH(1,(CaDate=$B188)*(CACatégorie="Publicité"),0))),"") ->  | H188: =IF(B188<>0,(INDEX(CaRefDoc,MATCH(1,(CaDate=B188)*(CaRefClient=F188),0))),"") ->  | J188: =IF(B188<>0,(INDEX(CaNbRéglement,MATCH(1,(CaDate=B188)*(CaRefDoc=H188),0))),"") ->  | K188: =IF(C188<>0,(INDEX(CaMode,MATCH(1,(CaDate=B188)*(CaRefDoc=H188),0))),"") ->  | L188: 0 | M188: =IF(C188<>0,(INDEX(CaCrédit,MATCH(1,(CaRefDoc=H188)*(CaNbRéglement=J188),0))),"") ->  | O188: 0
C189: 0 | E189: Publicité | F189: =IF(C189<>0,(INDEX(CaRefClient,MATCH(1,(CaDate=B189)*(CACatégorie="Publicité"),0))),"") ->  | G189: =IF($C189<>0,(INDEX(CaObjet,MATCH(1,(CaDate=$B189)*(CACatégorie="Publicité"),0))),"") ->  | H189: =IF(B189<>0,(INDEX(CaRefDoc,MATCH(1,(CaDate=B189)*(CaRefClient=F189),0))),"") ->  | J189: =IF(B189<>0,(INDEX(CaNbRéglement,MATCH(1,(CaDate=B189)*(CaRefDoc=H189),0))),"") ->  | K189: =IF(C189<>0,(INDEX(CaMode,MATCH(1,(CaDate=B189)*(CaRefDoc=H189),0))),"") ->  | L189: 0 | M189: =IF(C189<>0,(INDEX(CaCrédit,MATCH(1,(CaRefDoc=H189)*(CaNbRéglement=J189),0))),"") ->  | O189: 0
C190: 0 | E190: Publicité | F190: =IF(C190<>0,(INDEX(CaRefClient,MATCH(1,(CaDate=B190)*(CACatégorie="Publicité"),0))),"") ->  | G190: =IF($C190<>0,(INDEX(CaObjet,MATCH(1,(CaDate=$B190)*(CACatégorie="Publicité"),0))),"") ->  | H190: =IF(B190<>0,(INDEX(CaRefDoc,MATCH(1,(CaDate=B190)*(CaRefClient=F190),0))),"") ->  | J190: =IF(B190<>0,(INDEX(CaNbRéglement,MATCH(1,(CaDate=B190)*(CaRefDoc=H190),0))),"") ->  | K190: =IF(C190<>0,(INDEX(CaMode,MATCH(1,(CaDate=B190)*(CaRefDoc=H190),0))),"") ->  | L190: 0 | M190: =IF(C190<>0,(INDEX(CaCrédit,MATCH(1,(CaRefDoc=H190)*(CaNbRéglement=J190),0))),"") ->  | O190: 0
C191: 0 | E191: Publicité | F191: =IF(C191<>0,(INDEX(CaRefClient,MATCH(1,(CaDate=B191)*(CACatégorie="Publicité"),0))),"") ->  | G191: =IF($C191<>0,(INDEX(CaObjet,MATCH(1,(CaDate=$B191)*(CACatégorie="Publicité"),0))),"") ->  | H191: =IF(B191<>0,(INDEX(CaRefDoc,MATCH(1,(CaDate=B191)*(CaRefClient=F191),0))),"") ->  | J191: =IF(B191<>0,(INDEX(CaNbRéglement,MATCH(1,(CaDate=B191)*(CaRefDoc=H191),0))),"") ->  | K191: =IF(C191<>0,(INDEX(CaMode,MATCH(1,(CaDate=B191)*(CaRefDoc=H191),0))),"") ->  | L191: 0 | M191: =IF(C191<>0,(INDEX(CaCrédit,MATCH(1,(CaRefDoc=H191)*(CaNbRéglement=J191),0))),"") ->  | O191: 0
C192: 0 | E192: Publicité | F192: =IF(C192<>0,(INDEX(CaRefClient,MATCH(1,(CaDate=B192)*(CACatégorie="Publicité"),0))),"") ->  | G192: =IF($C192<>0,(INDEX(CaObjet,MATCH(1,(CaDate=$B192)*(CACatégorie="Publicité"),0))),"") ->  | H192: =IF(B192<>0,(INDEX(CaRefDoc,MATCH(1,(CaDate=B192)*(CaRefClient=F192),0))),"") ->  | J192: =IF(B192<>0,(INDEX(CaNbRéglement,MATCH(1,(CaDate=B192)*(CaRefDoc=H192),0))),"") ->  | K192: =IF(C192<>0,(INDEX(CaMode,MATCH(1,(CaDate=B192)*(CaRefDoc=H192),0))),"") ->  | L192: 0 | M192: =IF(C192<>0,(INDEX(CaCrédit,MATCH(1,(CaRefDoc=H192)*(CaNbRéglement=J192),0))),"") ->  | O192: 0
C193: 0 | E193: Publicité | F193: =IF(C193<>0,(INDEX(CaRefClient,MATCH(1,(CaDate=B193)*(CACatégorie="Publicité"),0))),"") ->  | G193: =IF($C193<>0,(INDEX(CaObjet,MATCH(1,(CaDate=$B193)*(CACatégorie="Publicité"),0))),"") ->  | H193: =IF(B193<>0,(INDEX(CaRefDoc,MATCH(1,(CaDate=B193)*(CaRefClient=F193),0))),"") ->  | J193: =IF(B193<>0,(INDEX(CaNbRéglement,MATCH(1,(CaDate=B193)*(CaRefDoc=H193),0))),"") ->  | K193: =IF(C193<>0,(INDEX(CaMode,MATCH(1,(CaDate=B193)*(CaRefDoc=H193),0))),"") ->  | L193: 0 | M193: =IF(C193<>0,(INDEX(CaCrédit,MATCH(1,(CaRefDoc=H193)*(CaNbRéglement=J193),0))),"") ->  | O193: 0
C194: 0 | E194: Publicité | F194: =IF(C194<>0,(INDEX(CaRefClient,MATCH(1,(CaDate=B194)*(CACatégorie="Publicité"),0))),"") ->  | G194: =IF($C194<>0,(INDEX(CaObjet,MATCH(1,(CaDate=$B194)*(CACatégorie="Publicité"),0))),"") ->  | H194: =IF(B194<>0,(INDEX(CaRefDoc,MATCH(1,(CaDate=B194)*(CaRefClient=F194),0))),"") ->  | J194: =IF(B194<>0,(INDEX(CaNbRéglement,MATCH(1,(CaDate=B194)*(CaRefDoc=H194),0))),"") ->  | K194: =IF(C194<>0,(INDEX(CaMode,MATCH(1,(CaDate=B194)*(CaRefDoc=H194),0))),"") ->  | L194: 0 | M194: =IF(C194<>0,(INDEX(CaCrédit,MATCH(1,(CaRefDoc=H194)*(CaNbRéglement=J194),0))),"") ->  | O194: 0
C195: 0 | E195: Publicité | F195: =IF(C195<>0,(INDEX(CaRefClient,MATCH(1,(CaDate=B195)*(CACatégorie="Publicité"),0))),"") ->  | G195: =IF($C195<>0,(INDEX(CaObjet,MATCH(1,(CaDate=$B195)*(CACatégorie="Publicité"),0))),"") ->  | H195: =IF(B195<>0,(INDEX(CaRefDoc,MATCH(1,(CaDate=B195)*(CaRefClient=F195),0))),"") ->  | J195: =IF(B195<>0,(INDEX(CaNbRéglement,MATCH(1,(CaDate=B195)*(CaRefDoc=H195),0))),"") ->  | K195: =IF(C195<>0,(INDEX(CaMode,MATCH(1,(CaDate=B195)*(CaRefDoc=H195),0))),"") ->  | L195: 0 | M195: =IF(C195<>0,(INDEX(CaCrédit,MATCH(1,(CaRefDoc=H195)*(CaNbRéglement=J195),0))),"") ->  | O195: 0
C196: 0 | E196: Publicité | F196: =IF(C196<>0,(INDEX(CaRefClient,MATCH(1,(CaDate=B196)*(CACatégorie="Publicité"),0))),"") ->  | G196: =IF($C196<>0,(INDEX(CaObjet,MATCH(1,(CaDate=$B196)*(CACatégorie="Publicité"),0))),"") ->  | H196: =IF(B196<>0,(INDEX(CaRefDoc,MATCH(1,(CaDate=B196)*(CaRefClient=F196),0))),"") ->  | J196: =IF(B196<>0,(INDEX(CaNbRéglement,MATCH(1,(CaDate=B196)*(CaRefDoc=H196),0))),"") ->  | K196: =IF(C196<>0,(INDEX(CaMode,MATCH(1,(CaDate=B196)*(CaRefDoc=H196),0))),"") ->  | L196: 0 | M196: =IF(C196<>0,(INDEX(CaCrédit,MATCH(1,(CaRefDoc=H196)*(CaNbRéglement=J196),0))),"") ->  | O196: 0
C197: 0 | E197: Publicité | F197: =IF(C197<>0,(INDEX(CaRefClient,MATCH(1,(CaDate=B197)*(CACatégorie="Publicité"),0))),"") ->  | G197: =IF($C197<>0,(INDEX(CaObjet,MATCH(1,(CaDate=$B197)*(CACatégorie="Publicité"),0))),"") ->  | H197: =IF(B197<>0,(INDEX(CaRefDoc,MATCH(1,(CaDate=B197)*(CaRefClient=F197),0))),"") ->  | J197: =IF(B197<>0,(INDEX(CaNbRéglement,MATCH(1,(CaDate=B197)*(CaRefDoc=H197),0))),"") ->  | K197: =IF(C197<>0,(INDEX(CaMode,MATCH(1,(CaDate=B197)*(CaRefDoc=H197),0))),"") ->  | L197: 0 | M197: =IF(C197<>0,(INDEX(CaCrédit,MATCH(1,(CaRefDoc=H197)*(CaNbRéglement=J197),0))),"") ->  | O197: 0
C198: 0 | E198: Publicité | F198: =IF(C198<>0,(INDEX(CaRefClient,MATCH(1,(CaDate=B198)*(CACatégorie="Publicité"),0))),"") ->  | G198: =IF($C198<>0,(INDEX(CaObjet,MATCH(1,(CaDate=$B198)*(CACatégorie="Publicité"),0))),"") ->  | H198: =IF(B198<>0,(INDEX(CaRefDoc,MATCH(1,(CaDate=B198)*(CaRefClient=F198),0))),"") ->  | J198: =IF(B198<>0,(INDEX(CaNbRéglement,MATCH(1,(CaDate=B198)*(CaRefDoc=H198),0))),"") ->  | K198: =IF(C198<>0,(INDEX(CaMode,MATCH(1,(CaDate=B198)*(CaRefDoc=H198),0))),"") ->  | L198: 0 | M198: =IF(C198<>0,(INDEX(CaCrédit,MATCH(1,(CaRefDoc=H198)*(CaNbRéglement=J198),0))),"") ->  | O198: 0
C199: 0 | E199: Publicité | F199: =IF(C199<>0,(INDEX(CaRefClient,MATCH(1,(CaDate=B199)*(CACatégorie="Publicité"),0))),"") ->  | G199: =IF($C199<>0,(INDEX(CaObjet,MATCH(1,(CaDate=$B199)*(CACatégorie="Publicité"),0))),"") ->  | H199: =IF(B199<>0,(INDEX(CaRefDoc,MATCH(1,(CaDate=B199)*(CaRefClient=F199),0))),"") ->  | J199: =IF(B199<>0,(INDEX(CaNbRéglement,MATCH(1,(CaDate=B199)*(CaRefDoc=H199),0))),"") ->  | K199: =IF(C199<>0,(INDEX(CaMode,MATCH(1,(CaDate=B199)*(CaRefDoc=H199),0))),"") ->  | L199: 0 | M199: =IF(C199<>0,(INDEX(CaCrédit,MATCH(1,(CaRefDoc=H199)*(CaNbRéglement=J199),0))),"") ->  | O199: 0
C200: 0 | E200: Publicité | F200: =IF(C200<>0,(INDEX(CaRefClient,MATCH(1,(CaDate=B200)*(CACatégorie="Publicité"),0))),"") ->  | G200: =IF($C200<>0,(INDEX(CaObjet,MATCH(1,(CaDate=$B200)*(CACatégorie="Publicité"),0))),"") ->  | H200: =IF(B200<>0,(INDEX(CaRefDoc,MATCH(1,(CaDate=B200)*(CaRefClient=F200),0))),"") ->  | J200: =IF(B200<>0,(INDEX(CaNbRéglement,MATCH(1,(CaDate=B200)*(CaRefDoc=H200),0))),"") ->  | K200: =IF(C200<>0,(INDEX(CaMode,MATCH(1,(CaDate=B200)*(CaRefDoc=H200),0))),"") ->  | L200: 0 | M200: =IF(C200<>0,(INDEX(CaCrédit,MATCH(1,(CaRefDoc=H200)*(CaNbRéglement=J200),0))),"") ->  | O200: 0
C201: 0 | E201: Publicité | F201: =IF(C201<>0,(INDEX(CaRefClient,MATCH(1,(CaDate=B201)*(CACatégorie="Publicité"),0))),"") ->  | G201: =IF($C201<>0,(INDEX(CaObjet,MATCH(1,(CaDate=$B201)*(CACatégorie="Publicité"),0))),"") ->  | H201: =IF(B201<>0,(INDEX(CaRefDoc,MATCH(1,(CaDate=B201)*(CaRefClient=F201),0))),"") ->  | J201: =IF(B201<>0,(INDEX(CaNbRéglement,MATCH(1,(CaDate=B201)*(CaRefDoc=H201),0))),"") ->  | K201: =IF(C201<>0,(INDEX(CaMode,MATCH(1,(CaDate=B201)*(CaRefDoc=H201),0))),"") ->  | L201: 0 | M201: =IF(C201<>0,(INDEX(CaCrédit,MATCH(1,(CaRefDoc=H201)*(CaNbRéglement=J201),0))),"") ->  | O201: 0
C202: 0 | D202: =IF(PubJour=0,"",UPPER(TEXT(C202,"mmmm"))) ->  | E202: Publicité | F202: =IF(C202<>0,(INDEX(CaRefClient,MATCH(1,(CaDate=B202)*(CACatégorie="Publicité"),0))),"") ->  | G202: =IF($C202<>0,(INDEX(CaObjet,MATCH(1,(CaDate=$B202)*(CACatégorie="Publicité"),0))),"") ->  | H202: =IF(B202<>0,(INDEX(CaRefDoc,MATCH(1,(CaDate=B202)*(CaRefClient=F202),0))),"") ->  | J202: =IF(B202<>0,(INDEX(CaNbRéglement,MATCH(1,(CaDate=B202)*(CaRefDoc=H202),0))),"") ->  | K202: =IF(C202<>0,(INDEX(CaMode,MATCH(1,(CaDate=B202)*(CaRefDoc=H202),0))),"") ->  | L202: =IF(H202="",0,INDEX(FactMontant,MATCH(H202,FactRefDoc,0))) -> 0 | M202: =IF(C202<>0,(INDEX(CaCrédit,MATCH(1,(CaRefDoc=H202)*(CaNbRéglement=J202),0))),"") ->  | O202: =IF($C202=0,0,(IF($J202="R1",$L202-$M202,IF($J202="R2",$L202-((INDEX(FactR1,MATCH($H202,FactRefDoc,0)))+(INDEX(FactR2,MATCH($H202,FactRefDoc,0)))),IF($J202="R3",$L202-((INDEX(FactR1,MATCH($H202,FactRefDoc,0)))+(INDEX(FactR2,MATCH($H202,FactRefDoc,0)))+(INDEX(FactR3,MATCH($H202,FactRefDoc,0)))),IF($J202="R4",$L202-((INDEX(FactR1,MATCH($H202,FactRefDoc,0)))+(INDEX(FactR2,MATCH($H202,FactRefDoc,0)))+(INDEX(FactR3,MATCH($H202,FactRefDoc,0)))+(INDEX(FactR4,MATCH($H202,FactRefDoc,0)))),$L202-((INDEX(FactR1,MATCH($H202,FactRefDoc,0)))+(INDEX(FactR2,MATCH($H202,FactRefDoc,0)))+(INDEX(FactR3,MATCH($H202,FactRefDoc,0)))+(INDEX(FactR4,MATCH($H202,FactRefDoc,0)))+(INDEX(FactR5,MATCH($H202,FactRefDoc,0)))))))))) -> 0
C203: =DATE(YEAR(B203),MONTH(B203),DAY(B203)) -> 0 | E203: Publicité | F203: =IF(C203<>0,(INDEX(CaRefClient,MATCH(1,(CaDate=B203)*(CACatégorie="Publicité"),0))),"") ->  | G203: =IF($C203<>0,(INDEX(CaObjet,MATCH(1,(CaDate=$B203)*(CACatégorie="Publicité"),0))),"") ->  | H203: =IF(B203<>0,(INDEX(CaRefDoc,MATCH(1,(CaDate=B203)*(CaRefClient=F203),0))),"") ->  | J203: =IF(B203<>0,(INDEX(CaNbRéglement,MATCH(1,(CaDate=B203)*(CaRefDoc=H203),0))),"") ->  | K203: =IF(C203<>0,(INDEX(CaMode,MATCH(1,(CaDate=B203)*(CaRefDoc=H203),0))),"") ->  | L203: 0 | M203: =IF(C203<>0,(INDEX(CaCrédit,MATCH(1,(CaRefDoc=H203)*(CaNbRéglement=J203),0))),"") ->  | O203: 0
C204: 0 | E204: Publicité | F204: =IF(C204<>0,(INDEX(CaRefClient,MATCH(1,(CaDate=B204)*(CACatégorie="Publicité"),0))),"") ->  | G204: =IF($C204<>0,(INDEX(CaObjet,MATCH(1,(CaDate=$B204)*(CACatégorie="Publicité"),0))),"") ->  | H204: =IF(B204<>0,(INDEX(CaRefDoc,MATCH(1,(CaDate=B204)*(CaRefClient=F204),0))),"") ->  | J204: =IF(B204<>0,(INDEX(CaNbRéglement,MATCH(1,(CaDate=B204)*(CaRefDoc=H204),0))),"") ->  | K204: =IF(C204<>0,(INDEX(CaMode,MATCH(1,(CaDate=B204)*(CaRefDoc=H204),0))),"") ->  | L204: 0 | M204: =IF(C204<>0,(INDEX(CaCrédit,MATCH(1,(CaRefDoc=H204)*(CaNbRéglement=J204),0))),"") ->  | O204: 0
... 98 more rows

Sheet FACTURES
D1: RELEVE DES FACTURES EMISES
C7: DATE | D7: N° de document | E7: N° de client | F7: MONTANT HT | G7: Code TVA | H7: TVA | I7: MONTANT TTC | J7: ACOMPTE 1 | K7: ACOMPTE 2 | L7: ACOMPTE 3 | M7: ACOMPTE 4 | N7: ACOMPTE 5 | O7: RESTE DÛ | T7: Date | U7: Journal | V7: N° Document | W7: Objet | X7: Fournisseur | Y7: Montant H.T. | Z7: Code TVA | AA7: T.V.A | AB7: Montant T.T.C
C9: 2013-09-30 | D9: F2013421 | E9: PUCYC0001 | F9: 3000 | G9: 2 | H9: =IF(G9=1,F9*10/100,IF(G9=2,F9*20/100,0)) -> 600 | I9: =F9+H9 -> 3600 | J9: =SUMPRODUCT((CaRefDoc=$D9)*(CaNbRéglement="R1")*CaCrédit) -> 1300 | K9: =SUMPRODUCT((CaRefDoc=$D9)*(CaNbRéglement="R2")*CaCrédit) -> 2300 | L9: =SUMPRODUCT((CaRefDoc=$D9)*(CaNbRéglement="R3")*CaCrédit) -> 0 | M9: =SUMPRODUCT((CaRefDoc=$D9)*(CaNbRéglement="R4")*CaCrédit) -> 0 | N9: =SUMPRODUCT((CaRefDoc=$D9)*(CaNbRéglement="R5")*CaCrédit) -> 0 | O9: =I9-J9-K9-L9-M9-N9 -> 0
C10: 2013-10-01 | D10: F2013682 | E10: PUAPF002 | F10: 1350 | G10: 2 | H10: =IF(G10=1,F10*10/100,IF(G10=2,F10*20/100,0)) -> 270 | I10: =F10+H10 -> 1620 | J10: =SUMPRODUCT((CaRefDoc=D10)*(CaNbRéglement="R1")*CaCrédit) -> 520 | K10: 1100 | L10: 0 | M10: 0 | N10: 0 | O10: =I10-J10-K10-L10-M10-N10 -> 0
C11: 2013-11-05 | D11: 130005 | E11: PUCYC0001 | F11: 2125 | G11: 2 | H11: =IF(G11=1,F11*10/100,IF(G11=2,F11*20/100,0)) -> 425 | I11: =F11+H11 -> 2550 | J11: 1000 | K11: 1550 | L11: 0 | M11: 0 | N11: 0 | O11: 0
C12: 2013-10-10 | D12: 130010 | E12: PUCYC0001 | F12: 3750 | G12: 2 | H12: =IF(G12=1,F12*10/100,IF(G12=2,F12*20/100,0)) -> 750 | I12: =F12+H12 -> 4500 | J12: 1000 | K12: 800 | L12: 800 | M12: 850 | N12: 0 | O12: 1050
H13: 0 | I13: 0 | J13: 0 | K13: 0 | L13: 0 | M13: 0 | N13: 0 | O13: 0
H14: 0 | I14: 0 | J14: 0 | K14: 0 | L14: 0 | M14: 0 | N14: 0 | O14: 0
H15: 0 | I15: 0 | J15: 0 | K15: 0 | L15: 0 | M15: 0 | N15: 0 | O15: 0
H16: 0 | I16: 0 | J16: 0 | K16: 0 | L16: 0 | M16: 0 | N16: 0 | O16: 0
H17: 0 | I17: 0 | J17: 0 | K17: 0 | L17: 0 | M17: 0 | N17: 0 | O17: 0
H18: 0 | I18: 0 | J18: 0 | K18: 0 | L18: 0 | M18: 0 | N18: 0 | O18: 0
H19: 0 | I19: 0 | J19: 0 | K19: 0 | L19: 0 | M19: 0 | N19: 0 | O19: 0
H20: 0 | I20: 0 | J20: 0 | K20: 0 | L20: 0 | M20: 0 | N20: 0 | O20: 0
H21: 0 | I21: 0 | J21: 0 | K21: 0 | L21: 0 | M21: 0 | N21: 0 | O21: 0
H22: 0 | I22: 0 | J22: 0 | K22: 0 | L22: 0 | M22: 0 | N22: 0 | O22: 0
H23: 0 | I23: 0 | J23: 0 | K23: 0 | L23: 0 | M23: 0 | N23: 0 | O23: 0
H24: 0 | I24: 0 | J24: 0 | K24: 0 | L24: 0 | M24: 0 | N24: 0 | O24: 0
H25: 0 | I25: 0 | J25: 0 | K25: 0 | L25: 0 | M25: 0 | N25: 0 | O25: 0
H26: 0 | I26: 0 | J26: 0 | K26: 0 | L26: 0 | M26: 0 | N26: 0 | O26: 0
H27: 0 | I27: 0 | J27: 0 | K27: 0 | L27: 0 | M27: 0 | N27: 0 | O27: 0
H28: 0 | I28: 0 | J28: 0 | K28: 0 | L28: 0 | M28: 0 | N28: 0 | O28: 0
H29: 0 | I29: 0 | J29: 0 | K29: 0 | L29: 0 | M29: 0 | N29: 0 | O29: 0
H30: 0 | I30: 0 | J30: 0 | K30: 0 | L30: 0 | M30: 0 | N30: 0 | O30: 0
H31: 0 | I31: 0 | J31: 0 | K31: 0 | L31: 0 | M31: 0 | N31: 0 | O31: 0
H32: 0 | I32: 0 | J32: 0 | K32: 0 | L32: 0 | M32: 0 | N32: 0 | O32: 0
H33: 0 | I33: 0 | J33: 0 | K33: 0 | L33: 0 | M33: 0 | N33: 0 | O33: 0
H34: 0 | I34: 0 | J34: 0 | K34: 0 | L34: 0 | M34: 0 | N34: 0 | O34: 0
H35: 0 | I35: 0 | J35: 0 | K35: 0 | L35: 0 | M35: 0 | N35: 0 | O35: 0
H36: 0 | I36: 0 | J36: 0 | K36: 0 | L36: 0 | M36: 0 | N36: 0 | O36: 0
H37: 0 | I37: 0 | J37: 0 | K37: 0 | L37: 0 | M37: 0 | N37: 0 | O37: 0
H38: 0 | I38: 0 | J38: 0 | K38: 0 | L38: 0 | M38: 0 | N38: 0 | O38: 0
H39: 0 | I39: 0 | J39: 0 | K39: 0 | L39: 0 | M39: 0 | N39: 0 | O39: 0
H40: 0 | I40: 0 | J40: 0 | K40: 0 | L40: 0 | M40: 0 | N40: 0 | O40: 0
H41: 0 | I41: 0 | J41: 0 | K41: 0 | L41: 0 | M41: 0 | N41: 0 | O41: 0
H42: 0 | I42: 0 | J42: 0 | K42: 0 | L42: 0 | M42: 0 | N42: 0 | O42: 0
H43: 0 | I43: 0 | J43: 0 | K43: 0 | L43: 0 | M43: 0 | N43: 0 | O43: 0
H44: 0 | I44: 0 | J44: 0 | K44: 0 | L44: 0 | M44: 0 | N44: 0 | O44: 0
H45: 0 | I45: 0 | J45: 0 | K45: 0 | L45: 0 | M45: 0 | N45: 0 | O45: 0
H46: 0 | I46: 0 | J46: 0 | K46: 0 | L46: 0 | M46: 0 | N46: 0 | O46: 0
H47: 0 | I47: 0 | J47: 0 | K47: 0 | L47: 0 | M47: 0 | N47: 0 | O47: 0
H48: 0 | I48: 0 | J48: 0 | K48: 0 | L48: 0 | M48: 0 | N48: 0 | O48: 0
H49: 0 | I49: 0 | J49: 0 | K49: 0 | L49: 0 | M49: 0 | N49: 0 | O49: 0
H50: 0 | I50: 0 | J50: 0 | K50: 0 | L50: 0 | M50: 0 | N50: 0 | O50: 0
H51: 0 | I51: 0 | J51: 0 | K51: 0 | L51: 0 | M51: 0 | N51: 0 | O51: 0
H52: 0 | I52: 0 | J52: 0 | K52: 0 | L52: 0 | M52: 0 | N52: 0 | O52: 0
H53: 0 | I53: 0 | J53: 0 | K53: 0 | L53: 0 | M53: 0 | N53: 0 | O53: 0
H54: 0 | I54: 0 | J54: 0 | K54: 0 | L54: 0 | M54: 0 | N54: 0 | O54: 0
H55: 0 | I55: 0 | J55: 0 | K55: 0 | L55: 0 | M55: 0 | N55: 0 | O55: 0
H56: 0 | I56: 0 | J56: 0 | K56: 0 | L56: 0 | M56: 0 | N56: 0 | O56: 0
H57: 0 | I57: 0 | J57: 0 | K57: 0 | L57: 0 | M57: 0 | N57: 0 | O57: 0
H58: 0 | I58: 0 | J58: 0 | K58: 0 | L58: 0 | M58: 0 | N58: 0 | O58: 0
H59: 0 | I59: 0 | J59: 0 | K59: 0 | L59: 0 | M59: 0 | N59: 0 | O59: 0
H60: 0 | I60: 0 | J60: 0 | K60: 0 | L60: 0 | M60: 0 | N60: 0 | O60: 0
H61: 0 | I61: 0 | J61: 0 | K61: 0 | L61: 0 | M61: 0 | N61: 0 | O61: 0
H62: 0 | I62: 0 | J62: 0 | K62: 0 | L62: 0 | M62: 0 | N62: 0 | O62: 0
H63: 0 | I63: 0 | J63: 0 | K63: 0 | L63: 0 | M63: 0 | N63: 0 | O63: 0
H64: 0 | I64: 0 | J64: 0 | K64: 0 | L64: 0 | M64: 0 | N64: 0 | O64: 0
H65: 0 | I65: 0 | J65: 0 | K65: 0 | L65: 0 | M65: 0 | N65: 0 | O65: 0
H66: 0 | I66: 0 | J66: 0 | K66: 0 | L66: 0 | M66: 0 | N66: 0 | O66: 0
H67: 0 | I67: 0 | J67: 0 | K67: 0 | L67: 0 | M67: 0 | N67: 0 | O67: 0
H68: 0 | I68: 0 | J68: 0 | K68: 0 | L68: 0 | M68: 0 | N68: 0 | O68: 0
H69: 0 | I69: 0 | J69: 0 | K69: 0 | L69: 0 | M69: 0 | N69: 0 | O69: 0
H70: 0 | I70: 0 | J70: 0 | K70: 0 | L70: 0 | M70: 0 | N70: 0 | O70: 0
H71: 0 | I71: 0 | J71: 0 | K71: 0 | L71: 0 | M71: 0 | N71: 0 | O71: 0
H72: 0 | I72: 0 | J72: 0 | K72: 0 | L72: 0 | M72: 0 | N72: 0 | O72: 0
H73: 0 | I73: 0 | J73: 0 | K73: =SUMPRODUCT((CaRefDoc=$D73)*(CaNbRéglement="R2")*CaCrédit) -> 0 | L73: =SUMPRODUCT((CaRefDoc=$D73)*(CaNbRéglement="R3")*CaCrédit) -> 0 | M73: =SUMPRODUCT((CaRefDoc=$D73)*(CaNbRéglement="R4")*CaCrédit) -> 0 | N73: =SUMPRODUCT((CaRefDoc=$D73)*(CaNbRéglement="R5")*CaCrédit) -> 0 | O73: 0
H74: 0 | I74: 0 | J74: =SUMPRODUCT((CaRefDoc=D74)*(CaNbRéglement="R1")*CaCrédit) -> 0 | K74: 0 | L74: 0 | M74: 0 | N74: 0 | O74: =I74-J74-K74-L74-M74-N74 -> 0
H75: 0 | I75: 0 | J75: 0 | K75: 0 | L75: 0 | M75: 0 | N75: 0 | O75: 0
H76: =IF(G76=1,F76*10/100,IF(G76=2,F76*20/100,0)) -> 0 | I76: =F76+H76 -> 0 | J76: 0 | K76: 0 | L76: 0 | M76: 0 | N76: 0 | O76: 0
H77: 0 | I77: 0 | J77: 0 | K77: 0 | L77: 0 | M77: 0 | N77: 0 | O77: 0
H78: 0 | I78: 0 | J78: 0 | K78: 0 | L78: 0 | M78: 0 | N78: 0 | O78: 0
H79: 0 | I79: 0 | J79: 0 | K79: 0 | L79: 0 | M79: 0 | N79: 0 | O79: 0
H80: 0 | I80: 0 | J80: 0 | K80: 0 | L80: 0 | M80: 0 | N80: 0 | O80: 0
H81: 0 | I81: 0 | J81: 0 | K81: 0 | L81: 0 | M81: 0 | N81: 0 | O81: 0
H82: 0 | I82: 0 | J82: 0 | K82: 0 | L82: 0 | M82: 0 | N82: 0 | O82: 0
H83: 0 | I83: 0 | J83: 0 | K83: 0 | L83: 0 | M83: 0 | N83: 0 | O83: 0
H84: 0 | I84: 0 | J84: 0 | K84: 0 | L84: 0 | M84: 0 | N84: 0 | O84: 0
H85: 0 | I85: 0 | J85: 0 | K85: 0 | L85: 0 | M85: 0 | N85: 0 | O85: 0
H86: 0 | I86: 0 | J86: 0 | K86: 0 | L86: 0 | M86: 0 | N86: 0 | O86: 0
H87: 0 | I87: 0 | J87: 0 | K87: 0 | L87: 0 | M87: 0 | N87: 0 | O87: 0
H88: 0 | I88: 0 | J88: 0 | K88: 0 | L88: 0 | M88: 0 | N88: 0 | O88: 0
H89: 0 | I89: 0 | J89: 0 | K89: 0 | L89: 0 | M89: 0 | N89: 0 | O89: 0
H90: 0 | I90: 0 | J90: 0 | K90: 0 | L90: 0 | M90: 0 | N90: 0 | O90: 0
H91: 0 | I91: 0 | J91: 0 | K91: 0 | L91: 0 | M91: 0 | N91: 0 | O91: 0
H92: 0 | I92: 0 | J92: 0 | K92: 0 | L92: 0 | M92: 0 | N92: 0 | O92: 0
H93: 0 | I93: 0 | J93: 0 | K93: 0 | L93: 0 | M93: 0 | N93: 0 | O93: 0
H94: 0 | I94: 0 | J94: 0 | K94: 0 | L94: 0 | M94: 0 | N94: 0 | O94: 0
H95: 0 | I95: 0 | J95: 0 | K95: 0 | L95: 0 | M95: 0 | N95: 0 | O95: 0
H96: 0 | I96: 0 | J96: 0 | K96: 0 | L96: 0 | M96: 0 | N96: 0 | O96: 0
H97: 0 | I97: 0 | J97: 0 | K97: 0 | L97: 0 | M97: 0 | N97: 0 | O97: 0
H98: 0 | I98: 0 | J98: 0 | K98: 0 | L98: 0 | M98: 0 | N98: 0 | O98: 0
H99: 0 | I99: 0 | J99: 0 | K99: 0 | L99: 0 | M99: 0 | N99: 0 | O99: 0
H100: 0 | I100: 0 | J100: 0 | K100: 0 | L100: 0 | M100: 0 | N100: 0 | O100: 0
H101: 0 | I101: 0 | J101: 0 | K101: 0 | L101: 0 | M101: 0 | N101: 0 | O101: 0
H102: 0 | I102: 0 | J102: 0 | K102: 0 | L102: 0 | M102: 0 | N102: 0 | O102: 0
H103: 0 | I103: 0 | J103: 0 | K103: 0 | L103: 0 | M103: 0 | N103: 0 | O103: 0
H104: 0 | I104: 0 | J104: 0 | K104: 0 | L104: 0 | M104: 0 | N104: 0 | O104: 0
H105: 0 | I105: 0 | J105: 0 | K105: 0 | L105: 0 | M105: 0 | N105: 0 | O105: 0
H106: 0 | I106: 0 | J106: 0 | K106: 0 | L106: 0 | M106: 0 | N106: 0 | O106: 0
H107: 0 | I107: 0 | J107: 0 | K107: 0 | L107: 0 | M107: 0 | N107: 0 | O107: 0
H108: 0 | I108: 0 | J108: 0 | K108: 0 | L108: 0 | M108: 0 | N108: 0 | O108: 0
H109: 0 | I109: 0 | J109: 0 | K109: 0 | L109: 0 | M109: 0 | N109: 0 | O109: 0
H110: 0 | I110: 0 | J110: 0 | K110: 0 | L110: 0 | M110: 0 | N110: 0 | O110: 0
H111: 0 | I111: 0 | J111: 0 | K111: 0 | L111: 0 | M111: 0 | N111: 0 | O111: 0
H112: 0 | I112: 0 | J112: 0 | K112: 0 | L112: 0 | M112: 0 | N112: 0 | O112: 0
H113: 0 | I113: 0 | J113: 0 | K113: 0 | L113: 0 | M113: 0 | N113: 0 | O113: 0
H114: 0 | I114: 0 | J114: 0 | K114: 0 | L114: 0 | M114: 0 | N114: 0 | O114: 0
H115: 0 | I115: 0 | J115: 0 | K115: 0 | L115: 0 | M115: 0 | N115: 0 | O115: 0
H116: 0 | I116: 0 | J116: 0 | K116: 0 | L116: 0 | M116: 0 | N116: 0 | O116: 0
H117: 0 | I117: 0 | J117: 0 | K117: 0 | L117: 0 | M117: 0 | N117: 0 | O117: 0
H118: 0 | I118: 0 | J118: 0 | K118: 0 | L118: 0 | M118: 0 | N118: 0 | O118: 0
H119: 0 | I119: 0 | J119: 0 | K119: 0 | L119: 0 | M119: 0 | N119: 0 | O119: 0
H120: 0 | I120: 0 | J120: 0 | K120: 0 | L120: 0 | M120: 0 | N120: 0 | O120: 0
H121: 0 | I121: 0 | J121: 0 | K121: 0 | L121: 0 | M121: 0 | N121: 0 | O121: 0
H122: 0 | I122: 0 | J122: 0 | K122: 0 | L122: 0 | M122: 0 | N122: 0 | O122: 0
H123: 0 | I123: 0 | J123: 0 | K123: 0 | L123: 0 | M123: 0 | N123: 0 | O123: 0
H124: 0 | I124: 0 | J124: 0 | K124: 0 | L124: 0 | M124: 0 | N124: 0 | O124: 0
H125: 0 | I125: 0 | J125: 0 | K125: 0 | L125: 0 | M125: 0 | N125: 0 | O125: 0
H126: 0 | I126: 0 | J126: 0 | K126: 0 | L126: 0 | M126: 0 | N126: 0 | O126: 0
H127: 0 | I127: 0 | J127: 0 | K127: 0 | L127: 0 | M127: 0 | N127: 0 | O127: 0
H128: 0 | I128: 0 | J128: 0 | K128: 0 | L128: 0 | M128: 0 | N128: 0 | O128: 0
H129: 0 | I129: 0 | J129: 0 | K129: 0 | L129: 0 | M129: 0 | N129: 0 | O129: 0
H130: 0 | I130: 0 | J130: 0 | K130: 0 | L130: 0 | M130: 0 | N130: 0 | O130: 0
H131: 0 | I131: 0 | J131: 0 | K131: 0 | L131: 0 | M131: 0 | N131: 0 | O131: 0
H132: 0 | I132: 0 | J132: 0 | K132: 0 | L132: 0 | M132: 0 | N132: 0 | O132: 0
H133: 0 | I133: 0 | J133: 0 | K133: 0 | L133: 0 | M133: 0 | N133: 0 | O133: 0
H134: 0 | I134: 0 | J134: 0 | K134: 0 | L134: 0 | M134: 0 | N134: 0 | O134: 0
H135: 0 | I135: 0 | J135: 0 | K135: 0 | L135: 0 | M135: 0 | N135: 0 | O135: 0
H136: 0 | I136: 0 | J136: 0 | K136: 0 | L136: 0 | M136: 0 | N136: 0 | O136: 0
H137: 0 | I137: 0 | J137: 0 | K137: =SUMPRODUCT((CaRefDoc=$D137)*(CaNbRéglement="R2")*CaCrédit) -> 0 | L137: =SUMPRODUCT((CaRefDoc=$D137)*(CaNbRéglement="R3")*CaCrédit) -> 0 | M137: =SUMPRODUCT((CaRefDoc=$D137)*(CaNbRéglement="R4")*CaCrédit) -> 0 | N137: =SUMPRODUCT((CaRefDoc=$D137)*(CaNbRéglement="R5")*CaCrédit) -> 0 | O137: 0
H138: 0 | I138: 0 | J138: =SUMPRODUCT((CaRefDoc=D138)*(CaNbRéglement="R1")*CaCrédit) -> 0 | K138: 0 | L138: 0 | M138: 0 | N138: 0 | O138: =I138-J138-K138-L138-M138-N138 -> 0
H139: 0 | I139: 0 | J139: 0 | K139: 0 | L139: 0 | M139: 0 | N139: 0 | O139: 0
H140: =IF(G140=1,F140*10/100,IF(G140=2,F140*20/100,0)) -> 0 | I140: =F140+H140 -> 0 | J140: 0 | K140: 0 | L140: 0 | M140: 0 | N140: 0 | O140: 0
H141: 0 | I141: 0 | J141: 0 | K141: 0 | L141: 0 | M141: 0 | N141: 0 | O141: 0
H142: 0 | I142: 0 | J142: 0 | K142: 0 | L142: 0 | M142: 0 | N142: 0 | O142: 0
H143: 0 | I143: 0 | J143: 0 | K143: 0 | L143: 0 | M143: 0 | N143: 0 | O143: 0
H144: 0 | I144: 0 | J144: 0 | K144: 0 | L144: 0 | M144: 0 | N144: 0 | O144: 0
H145: 0 | I145: 0 | J145: 0 | K145: 0 | L145: 0 | M145: 0 | N145: 0 | O145: 0
H146: 0 | I146: 0 | J146: 0 | K146: 0 | L146: 0 | M146: 0 | N146: 0 | O146: 0
H147: 0 | I147: 0 | J147: 0 | K147: 0 | L147: 0 | M147: 0 | N147: 0 | O147: 0
H148: 0 | I148: 0 | J148: 0 | K148: 0 | L148: 0 | M148: 0 | N148: 0 | O148: 0
H149: 0 | I149: 0 | J149: 0 | K149: 0 | L149: 0 | M149: 0 | N149: 0 | O149: 0
H150: 0 | I150: 0 | J150: 0 | K150: 0 | L150: 0 | M150: 0 | N150: 0 | O150: 0
H151: 0 | I151: 0 | J151: 0 | K151: 0 | L151: 0 | M151: 0 | N151: 0 | O151: 0
H152: 0 | I152: 0 | J152: 0 | K152: 0 | L152: 0 | M152: 0 | N152: 0 | O152: 0
H153: 0 | I153: 0 | J153: 0 | K153: 0 | L153: 0 | M153: 0 | N153: 0 | O153: 0
H154: 0 | I154: 0 | J154: 0 | K154: 0 | L154: 0 | M154: 0 | N154: 0 | O154: 0
H155: 0 | I155: 0 | J155: 0 | K155: 0 | L155: 0 | M155: 0 | N155: 0 | O155: 0
H156: 0 | I156: 0 | J156: 0 | K156: 0 | L156: 0 | M156: 0 | N156: 0 | O156: 0
H157: 0 | I157: 0 | J157: 0 | K157: 0 | L157: 0 | M157: 0 | N157: 0 | O157: 0
H158: 0 | I158: 0 | J158: 0 | K158: 0 | L158: 0 | M158: 0 | N158: 0 | O158: 0
H159: 0 | I159: 0 | J159: 0 | K159: 0 | L159: 0 | M159: 0 | N159: 0 | O159: 0
H160: 0 | I160: 0 | J160: 0 | K160: 0 | L160: 0 | M160: 0 | N160: 0 | O160: 0
H161: 0 | I161: 0 | J161: 0 | K161: 0 | L161: 0 | M161: 0 | N161: 0 | O161: 0
H162: 0 | I162: 0 | J162: 0 | K162: 0 | L162: 0 | M162: 0 | N162: 0 | O162: 0
H163: 0 | I163: 0 | J163: 0 | K163: 0 | L163: 0 | M163: 0 | N163: 0 | O163: 0
H164: 0 | I164: 0 | J164: 0 | K164: 0 | L164: 0 | M164: 0 | N164: 0 | O164: 0
H165: 0 | I165: 0 | J165: 0 | K165: 0 | L165: 0 | M165: 0 | N165: 0 | O165: 0
H166: 0 | I166: 0 | J166: 0 | K166: 0 | L166: 0 | M166: 0 | N166: 0 | O166: 0
H167: 0 | I167: 0 | J167: 0 | K167: 0 | L167: 0 | M167: 0 | N167: 0 | O167: 0
H168: 0 | I168: 0 | J168: 0 | K168: 0 | L168: 0 | M168: 0 | N168: 0 | O168: 0
H169: 0 | I169: 0 | J169: 0 | K169: 0 | L169: 0 | M169: 0 | N169: 0 | O169: 0
H170: 0 | I170: 0 | J170: 0 | K170: 0 | L170: 0 | M170: 0 | N170: 0 | O170: 0
H171: 0 | I171: 0 | J171: 0 | K171: 0 | L171: 0 | M171: 0 | N171: 0 | O171: 0
H172: 0 | I172: 0 | J172: 0 | K172: 0 | L172: 0 | M172: 0 | N172: 0 | O172: 0
H173: 0 | I173: 0 | J173: 0 | K173: 0 | L173: 0 | M173: 0 | N173: 0 | O173: 0
H174: 0 | I174: 0 | J174: 0 | K174: 0 | L174: 0 | M174: 0 | N174: 0 | O174: 0
H175: 0 | I175: 0 | J175: 0 | K175: 0 | L175: 0 | M175: 0 | N175: 0 | O175: 0
H176: 0 | I176: 0 | J176: 0 | K176: 0 | L176: 0 | M176: 0 | N176: 0 | O176: 0
H177: 0 | I177: 0 | J177: 0 | K177: 0 | L177: 0 | M177: 0 | N177: 0 | O177: 0
H178: 0 | I178: 0 | J178: 0 | K178: 0 | L178: 0 | M178: 0 | N178: 0 | O178: 0
H179: 0 | I179: 0 | J179: 0 | K179: 0 | L179: 0 | M179: 0 | N179: 0 | O179: 0
H180: 0 | I180: 0 | J180: 0 | K180: 0 | L180: 0 | M180: 0 | N180: 0 | O180: 0
H181: 0 | I181: 0 | J181: 0 | K181: 0 | L181: 0 | M181: 0 | N181: 0 | O181: 0
H182: 0 | I182: 0 | J182: 0 | K182: 0 | L182: 0 | M182: 0 | N182: 0 | O182: 0
H183: 0 | I183: 0 | J183: 0 | K183: 0 | L183: 0 | M183: 0 | N183: 0 | O183: 0
H184: 0 | I184: 0 | J184: 0 | K184: 0 | L184: 0 | M184: 0 | N184: 0 | O184: 0
H185: 0 | I185: 0 | J185: 0 | K185: 0 | L185: 0 | M185: 0 | N185: 0 | O185: 0
H186: 0 | I186: 0 | J186: 0 | K186: 0 | L186: 0 | M186: 0 | N186: 0 | O186: 0
H187: 0 | I187: 0 | J187: 0 | K187: 0 | L187: 0 | M187: 0 | N187: 0 | O187: 0
H188: 0 | I188: 0 | J188: 0 | K188: 0 | L188: 0 | M188: 0 | N188: 0 | O188: 0
H189: 0 | I189: 0 | J189: 0 | K189: 0 | L189: 0 | M189: 0 | N189: 0 | O189: 0
H190: 0 | I190: 0 | J190: 0 | K190: 0 | L190: 0 | M190: 0 | N190: 0 | O190: 0
H191: 0 | I191: 0 | J191: 0 | K191: 0 | L191: 0 | M191: 0 | N191: 0 | O191: 0
H192: 0 | I192: 0 | J192: 0 | K192: 0 | L192: 0 | M192: 0 | N192: 0 | O192: 0
H193: 0 | I193: 0 | J193: 0 | K193: 0 | L193: 0 | M193: 0 | N193: 0 | O193: 0
H194: 0 | I194: 0 | J194: 0 | K194: 0 | L194: 0 | M194: 0 | N194: 0 | O194: 0
H195: 0 | I195: 0 | J195: 0 | K195: 0 | L195: 0 | M195: 0 | N195: 0 | O195: 0
H196: 0 | I196: 0 | J196: 0 | K196: 0 | L196: 0 | M196: 0 | N196: 0 | O196: 0
H197: 0 | I197: 0 | J197: 0 | K197: 0 | L197: 0 | M197: 0 | N197: 0 | O197: 0
H198: 0 | I198: 0 | J198: 0 | K198: 0 | L198: 0 | M198: 0 | N198: 0 | O198: 0
H199: 0 | I199: 0 | J199: 0 | K199: 0 | L199: 0 | M199: 0 | N199: 0 | O199: 0
H200: 0 | I200: 0 | J200: 0 | K200: 0 | L200: 0 | M200: 0 | N200: 0 | O200: 0
H201: 0 | I201: 0 | J201: 0 | K201: =SUMPRODUCT((CaRefDoc=$D201)*(CaNbRéglement="R2")*CaCrédit) -> 0 | L201: =SUMPRODUCT((CaRefDoc=$D201)*(CaNbRéglement="R3")*CaCrédit) -> 0 | M201: =SUMPRODUCT((CaRefDoc=$D201)*(CaNbRéglement="R4")*CaCrédit) -> 0 | N201: =SUMPRODUCT((CaRefDoc=$D201)*(CaNbRéglement="R5")*CaCrédit) -> 0 | O201: 0
H202: 0 | I202: 0 | J202: =SUMPRODUCT((CaRefDoc=D202)*(CaNbRéglement="R1")*CaCrédit) -> 0 | K202: 0 | L202: 0 | M202: 0 | N202: 0 | O202: =I202-J202-K202-L202-M202-N202 -> 0
H203: 0 | I203: 0 | J203: 0 | K203: 0 | L203: 0 | M203: 0 | N203: 0 | O203: 0
H204: =IF(G204=1,F204*10/100,IF(G204=2,F204*20/100,0)) -> 0 | I204: =F204+H204 -> 0 | J204: 0 | K204: 0 | L204: 0 | M204: 0 | N204: 0 | O204: 0
H205: 0 | I205: 0 | J205: 0 | K205: 0 | L205: 0 | M205: 0 | N205: 0 | O205: 0
H206: 0 | I206: 0 | J206: 0 | K206: 0 | L206: 0 | M206: 0 | N206: 0 | O206: 0
... 294 more rows

Sheet Données
A2: Création de listes déroulantes | F2: trouver le n° semaine (b5=cellule date) | I2: "=ENT(MOD(ENT((B5-2)/7)+0,6;52+5/28))+1"
B3: Catégorie | C3: Paiements | D3: Objets | E3: Libellé | F3: Nb de Règlement | G3: Type doc | H3: TVA | I3: Journal
B4: Taxi | C4: Espèce | D4: Commandes | E4: Vélo1 | F4: R1 | H4: 0.1 | I4: Caisse
B5: Location | C5: Chèque | D5: Factures | E5: Vélo2 | F5: R2 | G5: DE | H5: 0.2 | I5: Banque
B6: Publicité | C6: CB | D6: Remise | E6: Vélo3 | F6: R3 | G6: CO | H6: TVA
B7: Banque | C7: Virement | D7: Frais généraux | E7: Vélo4 | F7: R4 | G7: FA
B8: Divers | C8: Tickets | D8: Frais de personnel | F8: R5 | G8: FALoc
B9: Dépense | C9: Résultat | D9: Cotisations
B10: Résultat | D10: Impots

Sheet Fichier clients
E1: F I C H I E R C L I E N T S | N1: F I C H I E R C L I E N T S
D4: =1 -> 1 | E4: 2 | F4: 3 | G4: 4 | H4: 5 | I4: 6 | J4: 7 | K4: 8 | L4: 9 | M4: 10 | N4: 11 | O4: 12 | P4: 13 | Q4: 14 | R4: 15 | S4: 16
E5: RESPONSABLE
D6: Code | E6: Nom | F6: Prénom | G6: Téléphone | H6: Enseigne | I6: Adresse | J6: C P | K6: Ville | L6: Téléphone | M6: Société | N6: Adresse | O6: C P | P6: Ville | Q6: N° de siren | R6: Téléphone | S6: Mail
D9: 5618 | H9: fast
D10: 82563 | E10: biloute | F10: paul
D11: NVX
D12: PUCYC0001 | E12: LEVY | F12: Gérald | G12: 614172536 | H12: CYCLOPOLITAIN | I12: ="" ->  | J12: 30000 | K12: NIMES | M12: Cyclopolitain média | N12: 2A rue sainte Marie des terreaux | O12: 69001 | P12: LYON | R12: 478303591 | S12: g.levy@cyclopolitain-media.com

Sheet Fournisseurs
E1: FICHIER FOURNISSEURS | M1: FICHIER FOURNISSEURS
D4: =1 -> 1 | E4: 2 | F4: 3 | G4: 4 | H4: 5 | I4: 6 | J4: 7 | K4: 8 | L4: 9 | M4: 10 | N4: 11 | O4: 12 | P4: 13 | Q4: 14 | R4: 15 | S4: 16
E5: RESPONSABLE
D6: Code | E6: Nom | F6: Prénom | G6: Téléphone | H6: Enseigne | I6: Adresse | J6: C P | K6: Ville | L6: Téléphone | M6: Société | N6: Adresse | O6: C P | P6: Ville | Q6: N° de siren | R6: Téléphone | S6: Mail
D9: NVX
D10: PUCYC0001 | E10: LEVY | F10: Gérald | G10: 614172536 | H10: CYCLOPOLITAIN | I10: ="" ->  | J10: 30000 | K10: NIMES
D11: rose | E11: ali | F11: berk | H11: pli | M11: Cyclopolitain média | N11: 2A rue sainte Marie des terreaux | O11: 69001 | P11: LYON | R11: 478303591 | S11: g.levy@cyclopolitain-media.com

Sheet Prestations
B1: PRESTATIONS
B8: Référence | C8: Descriptif | D8: Prix H.T.
B10: J1 | C10: 1 jour avec 3 cyclonautes | D10: 450
B11: AFF1V1sb | C11: 1 semaine d'affichage avec 1 vélo | D11: 1000
B12: AFF1V1sh | C12: 1 semaine d'affichage avec 1 vélo | D12: 1100
B13: AFF1V2sb | C13: 1 semaine d'affichage avec 2 vélos | D13: 1630
B14: AFF1V2sh | C14: 1 semaine d'affichage avec 2 vélos | D14: 1730
B15: AFF2V1sb | C15: 2 semaines d'affichage avec 1 vélo | D15: 1490
B16: AFF2V1sh | C16: 2 semaines d'affichage avec 1 vélo | D16: 1610
B17: AFF2V2sb | C17: 2 semaines d'affichage avec 2 vélos | D17: 2370
B18: AFF2V2sh | C18: 2 semaines d'affichage avec 2 vélos | D18: 2630
B19: AFF3V1sb | C19: 3 semaines d'affichage avec 1 vélo | D19: 1860
B20: AFF3V1sh | C20: 3 semaines d'affichage avec 1 vélo | D20: 2010
B21: AFF3V2sb | C21: 3 semaines d'affichage avec 2 vélos | D21: 2990
B22: AFF3V2sh | C22: 3 semaines d'affichage avec 2 vélos | D22: 3290
B23: AFF4V1sb | C23: 4 semaines d'affichage avec 1 vélo | D23: 2130
B24: AFF4V1sh | C24: 4 semaines d'affichage avec 1 vélo | D24: 2410
B25: AFF4V2sb | C25: 4 semaines d'affichage avec 2 vélos | D25: 3530
B26: AFF4V2sh | C26: 4 semaines d'affichage avec 2 vélos | D26: 3810
B27: CONDLOC | C27: Aucune semaine réservée n'est remboursable | D27: ="" -> 
B28: CONDRG | C28: Règlement : 30% commande ; Soldes fin de prestation | D28: ="" -> 
B29: Distrivoy | C29: Distribution de flyers aux voyageurs | D29: OFFERT
B30: FL1 | C30: =" - Flyers fournis par l'annonceur -" -> - Flyers fournis par l'annonceur - | D30: ="" -> 
B31: FL2 | C31: Flyers à fournir après acceptation devis | D31: ="" -> 
B32: LOCA | C32: Location cyclo pour la semaine | D32: 50
B33: LOCB | C33: Location cyclo pour la semaine | D33: 75
B34: LOCC | C34: Location cyclo pour la semaine | D34: 100
B35: NTPERS | C35: Nbre d'intervenant fournit par l'annonceur | D35: ="" -> 
B36: NTSEM | C36: =" 1 semaine d'affichage est comprise" -> 1 semaine d'affichage est comprise | D36: ="" -> 
B37: NTSEM1 | C37: =" du mardi au samedi inclus" -> du mardi au samedi inclus | D37: ="" -> 
B38: NTST | C38: STREET MARKETING | D38: ="" -> 
B39: POSE | C39: Conception et pose comprises | D39: ="" -> 
B40: SEM | C40: La prestation se déroulera la semaine | D40: ="" -> 
B41: SEMJ1 | C41: Samedi | D41: ="" -> 
B42: SEMJ2 | C42: Mercredi - Samedi | D42: ="" -> 
B43: SEMJ3 | C43: Mercredi - Vendredi - Samedi | D43: ="" -> 
B44: SEMJDIST | C44: Jours de distribution : | D44: ="" -> 
B45: SEMJX | D45: ="" -> 
B46: TIC10 | C46: Carnet de 10 tickets à 2,00 € + 2 | D46: 20
B47: TIC50 | C47: Carnet de 50 tickets à 2,00 € + 10 | D47: 100
B48: TICCLI | C48: Carnet de 05 tickets à 2,00 € + 1 | D48: 10
B49: TICPILO | C49: Carnet de 05 tickets à 2,00 € + 2 | D49: 10
B50: TRAJ | C50: Supplément par jour pour trajet sur-mesure | D50: 200
B51: CONDRG2 | C51: En votre aimable règlement.
B203: CondDevis | C203: DEVIS GRATUIT. Ce devis est valable 2 mois, mais la date de la prestation ne peut être retenue que par une commande définitive conclue au minimum 20 jours avant la prestation. Pour toute commande, il sera perçu un acompte de 30% du montant total TTC.
B211: CondComm | C211: Cette commande vous engage par le versement d'un acompte non remboursable de 30% du montant total TTC. D'éventuelles modifications devront s'effectuer au minimum 20 jours avant la date de début de la prestation. Fournis : un exemplaire de la commande, des conditions de vente et des travaux d'impression. Bon pour accord, date et signature.
B221: CondFact
B230: CondFactLoc

Sheet EDITIONS
C5: LA COMMUNICATION MOBILE ECOLOGIQUE | L5: Impression et save
B6: 2, rue Saint Antoine 30000 NIMES ; Siren n° 123654988 ; Rc n° 321654987 ; TVA n°654789321 | N6: NOM | O6: gone
B7: Votre contact : | L7: N° de doc | N7: PRENOM | O7: bill
B8: Richard Raveau | D8: 3212 | F8: =IF(D12="nvx",O10,IFERROR(VLOOKUP(D12,ClientsFichier,5,FALSE),"Enseigne")) -> Enseigne | L8: 130000 | N8: TELEPHONE | O8: 605020304
F9: =IF($D$12="nvx",O11,IFERROR(VLOOKUP($D$12,ClientsFichier,6,FALSE),"Adresse")) -> Adresse
B10: Date : | C10: =IF(L11=0,TODAY(),L11) -> 2013-12-05 | F10: =IF($D$12="nvx",O12,IFERROR(VLOOKUP($D$12,ClientsFichier,7,FALSE),"CP")) -> CP | G10: =IF($D$12="nvx",O13,IFERROR(VLOOKUP($D$12,ClientsFichier,8,FALSE),"Ville")) -> Ville | L10: Date facture | N10: ENSEIGNE | O10: OPTIC 2000
F11: =IF(D12="nvx",O16,IFERROR(VLOOKUP(D12,ClientsFichier,10,FALSE),"Société")) -> Société | N11: ADRESSE | O11: place du marché
B12: Code client : | F12: =IF(D12="nvx",O17,IFERROR(VLOOKUP(D12,ClientsFichier,11,FALSE),"Adresse")) -> Adresse | N12: CP | O12: 30000
F13: =IF($D$12="nvx",O18,IFERROR(VLOOKUP($D$12,ClientsFichier,12,FALSE),"CP")) -> CP | G13: =IF($D$12="nvx",O19,IFERROR(VLOOKUP($D$12,ClientsFichier,13,FALSE),"Ville")) -> Ville | N13: VILLE | O13: NIMES
B14: =IF(C15="fa","Commande n° : ","") ->  | F14: Siret n° | G14: =IF($D$12="nvx",O20,IFERROR(VLOOKUP($D$12,ClientsFichier,14,FALSE),"")) ->  | N14: TELEPHONE
B15: Type doc : | E15: Contact : | F15: =IF($D$12="nvx",O6&" "&O7,IFERROR(VLOOKUP($D$12,ClientsFichier,3,FALSE)&" "&(VLOOKUP($D$12,ClientsFichier,2,FALSE)),"")) ->  | I15: =IF($D$12="nvx",O8,IFERROR(VLOOKUP($D$12,ClientsFichier,4,FALSE),"")) -> 
N16: SOCIETE | O16: bidule
D17: =IF(C15="DE","DEVIS N°",IF(C15="CO","COMMANDE N°",IF(C15="FA","FACTURE N°",IF(C15="faloc","FACTURE N°","")))) ->  | F17: =IF(C15=0,"",L8+1) ->  | N17: ADRESSE | O17: trou duc
N18: CP | O18: 75010
B19: Réf. | C19: Descriptif de la prestation | H19: Nbr | I19: Prix H.T | N19: VILLE | O19: PARIS
C20: =IFERROR(VLOOKUP(B20,Prestations,2,FALSE),"") ->  | F20: =IF(OR(B20="TIC10",B20="TIC50",B20="TICCLI"),"OFFERTS","") ->  | I20: =IFERROR(IF(H20=0,(VLOOKUP(B20,Prestations,3,)),(VLOOKUP(B20,Prestations,3,)*H20)),"") ->  | N20: N° de SIREN
F21: =IF(OR(B21="TIC10",B21="TIC50",B21="TICCLI"),"OFFERTS","") ->  | N21: TELEPHONE
F22: =IF(OR(B22="TIC10",B22="TIC50",B22="TICCLI"),"OFFERTS","") -> 
N23: MAIL | O23: raveau.r@gmail.com
M26: J1 | N26: =Prestations!C10 -> 1 jour avec 3 cyclonautes
F27: =IF(OR(B27="TIC10",B27="TIC50",B27="TICCLI"),"OFFERTS","") ->  | M27: =Prestations!B11 -> AFF1V1sb | N27: =Prestations!C11 -> 1 semaine d'affichage avec 1 vélo
M28: =Prestations!B12 -> AFF1V1sh | N28: =Prestations!C12 -> 1 semaine d'affichage avec 1 vélo
M29: =Prestations!B13 -> AFF1V2sb | N29: =Prestations!C13 -> 1 semaine d'affichage avec 2 vélos
M30: =Prestations!B14 -> AFF1V2sh | N30: =Prestations!C14 -> 1 semaine d'affichage avec 2 vélos
M31: =Prestations!B15 -> AFF2V1sb | N31: =Prestations!C15 -> 2 semaines d'affichage avec 1 vélo
M32: =Prestations!B16 -> AFF2V1sh | N32: =Prestations!C16 -> 2 semaines d'affichage avec 1 vélo
M33: =Prestations!B17 -> AFF2V2sb | N33: =Prestations!C17 -> 2 semaines d'affichage avec 2 vélos
M34: =Prestations!B18 -> AFF2V2sh | N34: =Prestations!C18 -> 2 semaines d'affichage avec 2 vélos
M35: =Prestations!B19 -> AFF3V1sb | N35: =Prestations!C19 -> 3 semaines d'affichage avec 1 vélo
M36: =Prestations!B20 -> AFF3V1sh | N36: =Prestations!C20 -> 3 semaines d'affichage avec 1 vélo
M37: =Prestations!B21 -> AFF3V2sb | N37: =Prestations!C21 -> 3 semaines d'affichage avec 2 vélos
M38: =Prestations!B22 -> AFF3V2sh | N38: =Prestations!C22 -> 3 semaines d'affichage avec 2 vélos
M39: =Prestations!B23 -> AFF4V1sb | N39: =Prestations!C23 -> 4 semaines d'affichage avec 1 vélo
M40: =Prestations!B24 -> AFF4V1sh | N40: =Prestations!C24 -> 4 semaines d'affichage avec 1 vélo
M41: =Prestations!B25 -> AFF4V2sb | N41: =Prestations!C25 -> 4 semaines d'affichage avec 2 vélos
M42: =Prestations!B26 -> AFF4V2sh | N42: =Prestations!C26 -> 4 semaines d'affichage avec 2 vélos
M43: =Prestations!B27 -> CONDLOC | N43: =Prestations!C27 -> Aucune semaine réservée n'est remboursable
M44: =Prestations!B28 -> CONDRG | N44: =Prestations!C28 -> Règlement : 30% commande ; Soldes fin de prestation
M45: =Prestations!B29 -> Distrivoy | N45: =Prestations!C29 -> Distribution de flyers aux voyageurs
B46: =IF($C$15="de",CondDevis,IF($C$15="co",CondComm,IF($C$15="fa",condfact,IF($C$15="faloc",condfactloc,"")))) ->  | F46: TOTAL H.T | I46: =SUM(I20:I45) -> 0 | M46: =Prestations!B30 -> FL1 | N46: =Prestations!C30 -> - Flyers fournis par l'annonceur -
E47: =IF(H47=0,"","Remise exceptionnelle de ") ->  | I47: =IF(H47=0,"",I46*H47) ->  | M47: =Prestations!B31 -> FL2 | N47: =Prestations!C31 -> Flyers à fournir après acceptation devis
F48: =IF(H47=0,"","Total H.T. après remise") ->  | I48: =IF(H47=0,"",I46-I47) ->  | M48: =Prestations!B32 -> LOCA | N48: =Prestations!C32 -> Location cyclo pour la semaine
F49: =IF(OR(H49="TVA",H49=0),"","Montant TVA") ->  | H49: TVA | I49: =IFERROR(IF(I48="",I46*H49,I48*H49),"") ->  | M49: =Prestations!B33 -> LOCB | N49: =Prestations!C33 -> Location cyclo pour la semaine
F50: TOTAL T.T.C. | I50: =IFERROR(IF(I48="",(I46+I49),(I48+I49)),0) -> 0 | M50: =Prestations!B34 -> LOCC | N50: =Prestations!C34 -> Location cyclo pour la semaine
F51: Acompte | M51: =Prestations!B35 -> NTPERS | N51: =Prestations!C35 -> Nbre d'intervenant fournit par l'annonceur
F52: RESTE A PAYER | I52: =IFERROR(IF(I50<>0,(I50-I51)-I54,""),0) ->  | M52: =Prestations!B36 -> NTSEM | N52: =Prestations!C36 -> 1 semaine d'affichage est comprise
E53: =IFERROR(VLOOKUP(B45,Prestations,2,FALSE),"") ->  | M53: =Prestations!B37 -> NTSEM1 | N53: =Prestations!C37 -> du mardi au samedi inclus
D54: =IF(F54=0,"","Réglé par chèque le") ->  | M54: =Prestations!B38 -> NTST | N54: =Prestations!C38 -> STREET MARKETING
M55: =Prestations!B39 -> POSE | N55: =Prestations!C39 -> Conception et pose comprises
M56: =Prestations!B40 -> SEM | N56: =Prestations!C40 -> La prestation se déroulera la semaine
M57: =Prestations!B41 -> SEMJ1 | N57: =Prestations!C41 -> Samedi
M58: =Prestations!B42 -> SEMJ2 | N58: =Prestations!C42 -> Mercredi - Samedi
I59: =I50/3 -> 0 | M59: =Prestations!B43 -> SEMJ3 | N59: =Prestations!C43 -> Mercredi - Vendredi - Samedi
M60: =Prestations!B44 -> SEMJDIST | N60: =Prestations!C44 -> Jours de distribution :
M61: =Prestations!B45 -> SEMJX | N61: =Prestations!C45 -> 0
B62: FALSE | M62: =Prestations!B46 -> TIC10 | N62: =Prestations!C46 -> Carnet de 10 tickets à 2,00 € + 2
M63: =Prestations!B47 -> TIC50 | N63: =Prestations!C47 -> Carnet de 50 tickets à 2,00 € + 10
M64: =Prestations!B48 -> TICCLI | N64: =Prestations!C48 -> Carnet de 05 tickets à 2,00 € + 1
M65: =Prestations!B49 -> TICPILO | N65: =Prestations!C49 -> Carnet de 05 tickets à 2,00 € + 2
M66: =Prestations!B50 -> TRAJ | N66: =Prestations!C50 -> Supplément par jour pour trajet sur-mesure
M67: =Prestations!B51 -> CONDRG2 | N67: =Prestations!C51 -> En votre aimable règlement.
M68: =Prestations!B52 -> 0 | N68: =Prestations!C52 -> 0
M69: =Prestations!B53 -> 0 | N69: =Prestations!C53 -> 0
M70: =Prestations!B54 -> 0 | N70: =Prestations!C54 -> 0
M71: =Prestations!B55 -> 0 | N71: =Prestations!C55 -> 0
M72: =Prestations!B56 -> 0 | N72: =Prestations!C56 -> 0
M73: =Prestations!B57 -> 0 | N73: =Prestations!C57 -> 0
M74: =Prestations!B58 -> 0 | N74: =Prestations!C58 -> 0
M75: =Prestations!B59 -> 0 | N75: =Prestations!C59 -> 0
M76: =Prestations!B60 -> 0 | N76: =Prestations!C60 -> 0
M77: =Prestations!B61 -> 0 | N77: =Prestations!C61 -> 0
M78: =Prestations!B62 -> 0 | N78: =Prestations!C62 -> 0
M79: =Prestations!B63 -> 0 | N79: =Prestations!C63 -> 0
M80: =Prestations!B64 -> 0 | N80: =Prestations!C64 -> 0
M81: =Prestations!B65 -> 0 | N81: =Prestations!C65 -> 0

Sheet Impression et sauvegarde
C5: LA COMMUNICATION MOBILE ECOLOGIQUE
B6: 2, rue Saint Antoine 30000 NIMES ; Siren n° 123654988 ; Rc n° 321654987 ; TVA n°654789321
B7: Votre contact :
B8: Richard Raveau | D8: 654268456 | F8: =IF(D12="nvx",O10,IFERROR(VLOOKUP(D12,ClientsFichier,5,FALSE),"Enseigne")) -> Enseigne
F9: =IF($D$12="nvx",O11,IFERROR(VLOOKUP($D$12,ClientsFichier,6,FALSE),"Adresse")) -> Adresse
B10: Date : | C10: =TODAY() -> 2013-12-05 | F10: =IF($D$12="nvx",O12,IFERROR(VLOOKUP($D$12,ClientsFichier,7,FALSE),"CP")) -> CP | G10: =IF($D$12="nvx",O13,IFERROR(VLOOKUP($D$12,ClientsFichier,8,FALSE),"Ville")) -> Ville
F11: =IF(D12="nvx",O16,IFERROR(VLOOKUP(D12,ClientsFichier,10,FALSE),"Société")) -> Société
B12: Code client : | F12: =IF(D12="nvx",O17,IFERROR(VLOOKUP(D12,ClientsFichier,11,FALSE),"Adresse")) -> Adresse
F13: =IF($D$12="nvx",O18,IFERROR(VLOOKUP($D$12,ClientsFichier,12,FALSE),"CP")) -> CP | G13: =IF($D$12="nvx",O19,IFERROR(VLOOKUP($D$12,ClientsFichier,13,FALSE),"Ville")) -> Ville
F14: Siret n° | G14: =IF($D$12="nvx",O20,IFERROR(VLOOKUP($D$12,ClientsFichier,14,FALSE),"")) -> 
B15: Type doc : | E15: Contact : | F15: =IF($D$12="nvx",O6&" "&O7,IFERROR(VLOOKUP($D$12,ClientsFichier,3,FALSE)&" "&(VLOOKUP($D$12,ClientsFichier,2,FALSE)),"")) ->  | I15: =IF($D$12="nvx",O8,IFERROR(VLOOKUP($D$12,ClientsFichier,4,FALSE),"")) -> 
D17: =IF(C15="DE","DEVIS N°",IF(C15="CO","COMMANDE N°",IF(C15="FA","FACTURE N°",IF(C15="faloc","FACTURE N°","")))) -> 
B19: Réf. | C19: Descriptif de la prestation | H19: Nbr | I19: Prix H.T
C20: =IFERROR(VLOOKUP(B20,Prestations,2,FALSE),"") ->  | F20: =IF(OR(B20="TIC10",B20="TIC50",B20="TICCLI"),"OFFERTS","") ->  | I20: =IFERROR(IF(H20=0,(VLOOKUP(B20,Prestations,3,)),(VLOOKUP(B20,Prestations,3,)*H20)),"") -> 
F21: =IF(OR(B21="TIC10",B21="TIC50",B21="TICCLI"),"OFFERTS","") -> 
F22: =IF(OR(B22="TIC10",B22="TIC50",B22="TICCLI"),"OFFERTS","") -> 
F27: =IF(OR(B27="TIC10",B27="TIC50",B27="TICCLI"),"OFFERTS","") -> 
B46: =IF($C$15="de",CondDevis,IF($C$15="co",CondComm,IF($C$15="fa",condfact,IF($C$15="faloc",condfactloc,"")))) ->  | F46: TOTAL H.T | I46: =SUM(I20:I45) -> 0
E47: =IF(H47=0,"","Remise exceptionnelle de ") ->  | I47: =IF(H47=0,"",I46*H47) -> 
F48: =IF(H47=0,"","Total H.T. après remise") ->  | I48: =IF(H47=0,"",I46-I47) -> 
F49: =IF(OR(H49="TVA",H49=0),"","Montant TVA") ->  | H49: TVA | I49: =IFERROR(IF(I48="",I46*H49,I48*H49),"") -> 
F50: TOTAL T.T.C. | I50: =IFERROR(IF(I48="",(I46+I49),(I48+I49)),0) -> 0
F51: Acompte
F52: RESTE A PAYER | I52: =IFERROR(I50-I51,0) -> 0
E53: =IFERROR(VLOOKUP(B45,Prestations,2,FALSE),"") -> 
